Workbook

Sheet Notes
A2: National Quarterly Pulse Survey Data - Q4 2023-24
A3: :

Sheet Summary
B4: National level headline figures for Quarter 4
B6: 179 NHS service providers submitted to Q4 2023-24
C8: Quarter 4
C9: Response count | D9: Head Count | E9: Score | F9: Proportion
B10: Engagement | C10: 114335 | D10: 1258006 | E10: 6.633977565
B11: Acute and Acute & Community Trusts | C11: 77333 | D11: 906653 | E11: 6.569521851 | F11: 0.6763720645
B12: Acute Specialist Trusts | C12: 2422 | D12: 27773 | E12: 7.112125648 | F12: 0.02118336467
B13: Ambulance Trusts | C13: 5297 | D13: 50480 | E13: 5.720469929 | F13: 0.04632877072
B14: Community Trusts | C14: 6269 | D14: 43955 | E14: 7.107639203 | F14: 0.05483010452
B15: Mental Health & Learning Disability and Mental Health, Learning Disability & Community Trusts | C15: 23014 | D15: 229145 | E15: 6.883780868 | F15: 0.2012856955
B17: Motivation | C17: 114969 | D17: 1258006 | E17: 6.774623304
B18: Acute and Acute & Community Trusts | C18: 77825 | D18: 906653 | E18: 6.730556174 | F18: 0.676921605
B19: Acute Specialist Trusts | C19: 2424 | D19: 27773 | E19: 6.923364735 | F19: 0.02108394437
B20: Ambulance Trusts | C20: 5341 | D20: 50480 | E20: 6.089166089 | F20: 0.04645600118
B21: Community Trusts | C21: 6281 | D21: 43955 | E21: 7.11807269 | F21: 0.05463211822
B22: Mental Health & Learning Disability and Mental Health, Learning Disability & Community Trusts | C22: 23098 | D22: 229145 | E22: 6.973815434 | F22: 0.2009063313
B24: Advocacy | C24: 114701 | D24: 1258006 | E24: 6.645001642
B25: Acute and Acute & Community Trusts | C25: 77677 | D25: 906653 | E25: 6.553538229 | F25: 0.6772129275
B26: Acute Specialist Trusts | C26: 2429 | D26: 27773 | E26: 7.642716538 | F26: 0.02117679881
B27: Ambulance Trusts | C27: 5297 | D27: 50480 | E27: 5.879900573 | F27: 0.04618094001
B28: Community Trusts | C28: 6280 | D28: 43955 | E28: 7.326293011 | F28: 0.05475104838
B29: Mental Health & Learning Disability and Mental Health, Learning Disability & Community Trusts | C29: 23018 | D29: 229145 | E29: 6.845104555 | F29: 0.2006782853
B31: Involvement | C31: 114975 | D31: 1258006 | E31: 6.482307748
B32: Acute and Acute & Community Trusts | C32: 77790 | D32: 906653 | E32: 6.42447115 | F32: 0.6765818656
B33: Acute Specialist Trusts | C33: 2424 | D33: 27773 | E33: 6.770295672 | F33: 0.0210828441
B34: Ambulance Trusts | C34: 5330 | D34: 50480 | E34: 5.192343125 | F34: 0.04635790389
B35: Community Trusts | C35: 6295 | D35: 43955 | E35: 6.878551909 | F35: 0.05475103283
B36: Mental Health & Learning Disability and Mental Health, Learning Disability & Community Trusts | C36: 23136 | D36: 229145 | E36: 6.832422615 | F36: 0.2012263536

Sheet Engagement Score Breakdown
A7: Region Code | B7: Region Name | C7: ICB Code | D7: ICB Name | E7: Org Code | F7: Org Name | G7: Care Setting | H7: Total Responses (Average Across Theme) | I7: HSCIC Workforce Headcount | J7: Engagement Score | K7: Advocacy | L7: Involvement | M7: Motivation
G9: England | H9: 114335 | I9: 1258006 | J9: 6.633977565 | K9: 6.645001642 | L9: 6.482307748 | M9: 6.774623304
A10: Y56 | B10: LONDON COMMISSIONING REGION | C10: QMF | D10: NHS NORTH EAST LONDON ICB - A3A8R | E10: R1H | F10: BARTS HEALTH NHS TRUST | G10: Acute and Acute & Community Trusts | H10: 835 | I10: 20029 | J10: 6.090818363 | K10: 5.924151697 | L10: 5.9500998 | M10: 6.398203593
A11: Y56 | B11: LONDON COMMISSIONING REGION | C11: QMJ | D11: NHS NORTH CENTRAL LONDON ICB - 93C | E11: RAL | F11: ROYAL FREE LONDON NHS FOUNDATION TRUST | G11: Acute and Acute & Community Trusts | H11: 112 | I11: 11731 | J11: 6.321924603 | K11: 6.116071429 | L11: 6.138392857 | M11: 6.711309524
A12: Y56 | B12: LONDON COMMISSIONING REGION | C12: QRV | D12: NHS NORTH WEST LONDON ICB - W2U3Z | E12: RAN | F12: ROYAL NATIONAL ORTHOPAEDIC HOSPITAL NHS TRUST | G12: Acute Specialist Trusts | H12: 45 | I12: 1686 | J12: 7.148148148 | K12: 7.425925926 | L12: 7 | M12: 7.018518519
A13: Y56 | B13: LONDON COMMISSIONING REGION | C13: QMJ | D13: NHS NORTH CENTRAL LONDON ICB - 93C | E13: RAP | F13: NORTH MIDDLESEX UNIVERSITY HOSPITAL NHS TRUST | G13: Acute and Acute & Community Trusts | H13: 1086 | I13: 4597 | J13: 6.722945289 | K13: 6.456999085 | L13: 6.585532302 | M13: 7.126304481
A14: Y56 | B14: LONDON COMMISSIONING REGION | C14: QMF | D14: NHS NORTH EAST LONDON ICB - A3A8R | E14: RAT | F14: NORTH EAST LONDON NHS FOUNDATION TRUST | G14: Mental Health & Learning Disability and Mental Health, Learning Disability & Community Trusts | H14: 87 | I14: 7175 | J14: 6.736909323 | K14: 6.848659004 | L14: 6.647509579 | M14: 6.714559387
A15: Y56 | B15: LONDON COMMISSIONING REGION | C15: QKK | D15: NHS SOUTH EAST LONDON ICB - 72Q | E15: RJ1 | F15: GUY'S AND ST THOMAS' NHS FOUNDATION TRUST | G15: Acute and Acute & Community Trusts | H15: 1608 | I15: 23017 | J15: 6.721975401 | K15: 7.121304791 | L15: 6.35929803 | M15: 6.685323383
A16: Y56 | B16: LONDON COMMISSIONING REGION | C16: QKK | D16: NHS SOUTH EAST LONDON ICB - 72Q | E16: RJ2 | F16: LEWISHAM AND GREENWICH NHS TRUST | G16: Acute and Acute & Community Trusts | H16: 88 | I16: 7311 | J16: 6.34469697 | K16: 5.956439394 | L16: 6.581439394 | M16: 6.496212121
A17: Y56 | B17: LONDON COMMISSIONING REGION | C17: QWE | D17: NHS SOUTH WEST LONDON ICB - 36L | E17: RJ7 | F17: ST GEORGE'S UNIVERSITY HOSPITALS NHS FOUNDATION TRUST | G17: Acute and Acute & Community Trusts | H17: 12 | I17: 9885 | J17: 5.740740741 | K17: 5.555555556 | L17: 5.763888889 | M17: 5.902777778
A18: Y56 | B18: LONDON COMMISSIONING REGION | C18: QKK | D18: NHS SOUTH EAST LONDON ICB - 72Q | E18: RJZ | F18: KING'S COLLEGE HOSPITAL NHS FOUNDATION TRUST | G18: Acute and Acute & Community Trusts | H18: 55 | I18: 14383 | J18: 6.106060606 | K18: 5.560606061 | L18: 6.333333333 | M18: 6.424242424
A19: Y56 | B19: LONDON COMMISSIONING REGION | C19: QMJ | D19: NHS NORTH CENTRAL LONDON ICB - 93C | E19: RKE | F19: WHITTINGTON HEALTH NHS TRUST | G19: Acute and Acute & Community Trusts | H19: 411 | I19: 4929 | J19: 6.664639092 | K19: 6.504460665 | L19: 6.549067315 | M19: 6.940389294
A20: Y56 | B20: LONDON COMMISSIONING REGION | C20: QMJ | D20: NHS NORTH CENTRAL LONDON ICB - 93C | E20: RNK | F20: TAVISTOCK AND PORTMAN NHS FOUNDATION TRUST | G20: Mental Health & Learning Disability and Mental Health, Learning Disability & Community Trusts | H20: 21 | I20: 819 | J20: 5.489417989 | K20: 5.555555556 | L20: 5.317460317 | M20: 5.595238095
A21: Y56 | B21: LONDON COMMISSIONING REGION | C21: QMJ | D21: NHS NORTH CENTRAL LONDON ICB - 93C | E21: RP4 | F21: GREAT ORMOND STREET HOSPITAL FOR CHILDREN NHS FOUNDATION TRUST | G21: Acute Specialist Trusts | H21: 788 | I21: 5718 | J21: 6.984325382 | K21: 7.514749263 | L21: 6.588607595 | M21: 6.849619289
A22: Y56 | B22: LONDON COMMISSIONING REGION | C22: QMJ | D22: NHS NORTH CENTRAL LONDON ICB - 93C | E22: RP6 | F22: MOORFIELDS EYE HOSPITAL NHS FOUNDATION TRUST | G22: Acute Specialist Trusts | H22: 36 | I22: 2484 | J22: 5.586419753 | K22: 5.555555556 | L22: 4.62962963 | M22: 6.574074074
A23: Y56 | B23: LONDON COMMISSIONING REGION | C23: QRV | D23: NHS NORTH WEST LONDON ICB - W2U3Z | E23: RPY | F23: THE ROYAL MARSDEN NHS FOUNDATION TRUST | G23: Acute Specialist Trusts | H23: 163 | I23: 4612 | J23: 6.615541922 | K23: 7.259713701 | L23: 6.196319018 | M23: 6.390593047
A24: Y56 | B24: LONDON COMMISSIONING REGION | C24: QMF | D24: NHS NORTH EAST LONDON ICB - A3A8R | E24: RQX | F24: HOMERTON HEALTHCARE NHS FOUNDATION TRUST | G24: Acute and Acute & Community Trusts | H24: 607 | I24: 4208 | J24: 7.055642351 | K24: 7.460186711 | L24: 6.820987654 | M24: 6.885752688
A25: Y56 | B25: LONDON COMMISSIONING REGION | C25: QWE | D25: NHS SOUTH WEST LONDON ICB - 36L | E25: RQY | F25: SOUTH WEST LONDON AND ST GEORGE'S MENTAL HEALTH NHS TRUST | G25: Mental Health & Learning Disability and Mental Health, Learning Disability & Community Trusts | H25: 75 | I25: 2923 | J25: 6.185185185 | K25: 5.977777778 | L25: 6.177777778 | M25: 6.4
A26: Y56 | B26: LONDON COMMISSIONING REGION | C26: QMJ | D26: NHS NORTH CENTRAL LONDON ICB - 93C | E26: RRP | F26: BARNET, ENFIELD AND HARINGEY MENTAL HEALTH NHS TRUST | G26: Mental Health & Learning Disability and Mental Health, Learning Disability & Community Trusts | H26: 85 | I26: 3066 | J26: 6.153594771 | K26: 5.637254902 | L26: 6.441176471 | M26: 6.382352941
A27: Y56 | B27: LONDON COMMISSIONING REGION | C27: QKK | D27: NHS SOUTH EAST LONDON ICB - 72Q | E27: RRU | F27: LONDON AMBULANCE SERVICE NHS TRUST | G27: Ambulance Trusts | H27: 86 | I27: 7665 | J27: 5.9625323 | K27: 5.978682171 | L27: 5.639534884 | M27: 6.269379845
A28: Y56 | B28: LONDON COMMISSIONING REGION | C28: QMJ | D28: NHS NORTH CENTRAL LONDON ICB - 93C | E28: RRV | F28: UNIVERSITY COLLEGE LONDON HOSPITALS NHS FOUNDATION TRUST | G28: Acute and Acute & Community Trusts | H28: 514 | I28: 10939 | J28: 7.207090359 | K28: 7.709143969 | L28: 6.989299611 | M28: 6.922827497
A29: Y56 | B29: LONDON COMMISSIONING REGION | C29: QMJ | D29: NHS NORTH CENTRAL LONDON ICB - 93C | E29: RV3 | F29: CENTRAL AND NORTH WEST LONDON NHS FOUNDATION TRUST | G29: Mental Health & Learning Disability and Mental Health, Learning Disability & Community Trusts | H29: 35 | I29: 8539 | J29: 5.515873016 | K29: 5.19047619 | L29: 5.547619048 | M29: 5.80952381
A30: Y56 | B30: LONDON COMMISSIONING REGION | C30: QWE | D30: NHS SOUTH WEST LONDON ICB - 36L | E30: RVR | F30: EPSOM AND ST HELIER UNIVERSITY HOSPITALS NHS TRUST | G30: Acute and Acute & Community Trusts | H30: 231 | I30: 7102 | J30: 5.505050505 | K30: 5.194805195 | L30: 5.472582973 | M30: 5.847763348
A31: Y56 | B31: LONDON COMMISSIONING REGION | C31: QMF | D31: NHS NORTH EAST LONDON ICB - A3A8R | E31: RWK | F31: EAST LONDON NHS FOUNDATION TRUST | G31: Mental Health & Learning Disability and Mental Health, Learning Disability & Community Trusts | H31: 948 | I31: 7300 | J31: 7.049508468 | K31: 7.229254571 | L31: 6.9921875 | M31: 6.927083333
A32: Y56 | B32: LONDON COMMISSIONING REGION | C32: QRV | D32: NHS NORTH WEST LONDON ICB - W2U3Z | E32: RYJ | F32: IMPERIAL COLLEGE HEALTHCARE NHS TRUST | G32: Acute and Acute & Community Trusts | H32: 96 | I32: 13870 | J32: 6.527777778 | K32: 6.710069444 | L32: 6.197916667 | M32: 6.675347222
A33: Y56 | B33: LONDON COMMISSIONING REGION | C33: QRV | D33: NHS NORTH WEST LONDON ICB - W2U3Z | E33: RYX | F33: CENTRAL LONDON COMMUNITY HEALTHCARE NHS TRUST | G33: Community Trusts | H33: 961 | I33: 4806 | J33: 7.229484487 | K33: 7.416753382 | L33: 7.02797803 | M33: 7.24372205
A34: Y56 | B34: LONDON COMMISSIONING REGION | C34: QMJ | D34: NHS NORTH CENTRAL LONDON ICB - 93C | E34: TAF | F34: CAMDEN AND ISLINGTON NHS FOUNDATION TRUST | G34: Mental Health & Learning Disability and Mental Health, Learning Disability & Community Trusts | H34: 85 | I34: 2562 | J34: 5.751633987 | K34: 5.323529412 | L34: 5.666666667 | M34: 6.264705882
A35: Y58 | B35: SOUTH WEST COMMISSIONING REGION | C35: QVV | D35: NHS DORSET ICB - 11J | E35: R0D | F35: UNIVERSITY HOSPITALS DORSET NHS FOUNDATION TRUST | G35: Acute and Acute & Community Trusts | H35: 990 | I35: 9659 | J35: 6.159371493 | K35: 5.888888889 | L35: 6.198653199 | M35: 6.390572391
A36: Y58 | B36: SOUTH WEST COMMISSIONING REGION | C36: QUY | D36: NHS BRISTOL, NORTH SOMERSET AND SOUTH GLOUCESTERSHIRE ICB - 15C | E36: RA7 | F36: UNIVERSITY HOSPITALS BRISTOL AND WESTON NHS FOUNDATION TRUST | G36: Acute and Acute & Community Trusts | H36: 857 | I36: 12869 | J36: 6.86697783 | K36: 7.095488137 | L36: 6.671528588 | M36: 6.833916764
A37: Y58 | B37: SOUTH WEST COMMISSIONING REGION | C37: QJK | D37: NHS DEVON ICB - 15N | E37: RA9 | F37: TORBAY AND SOUTH DEVON NHS FOUNDATION TRUST | G37: Acute and Acute & Community Trusts | H37: 308 | I37: 7174 | J37: 6.004601097 | K37: 5.717741935 | L37: 6.125541126 | M37: 6.170520231
A38: Y58 | B38: SOUTH WEST COMMISSIONING REGION | C38: QVV | D38: NHS DORSET ICB - 11J | E38: RBD | F38: DORSET COUNTY HOSPITAL NHS FOUNDATION TRUST | G38: Acute and Acute & Community Trusts | H38: 225 | I38: 3465 | J38: 6.42345679 | K38: 6.596296296 | L38: 6.114814815 | M38: 6.559259259
A39: Y58 | B39: SOUTH WEST COMMISSIONING REGION | C39: QOX | D39: NHS BATH AND NORTH EAST SOMERSET, SWINDON AND WILTSHIRE ICB - 92G | E39: RD1 | F39: ROYAL UNITED HOSPITALS BATH NHS FOUNDATION TRUST | G39: Acute and Acute & Community Trusts | H39: 1132 | I39: 6582 | J39: 6.716372874 | K39: 6.7954947 | L39: 6.580359733 | M39: 6.773264189
A40: Y58 | B40: SOUTH WEST COMMISSIONING REGION | C40: QVV | D40: NHS DORSET ICB - 11J | E40: RDY | F40: DORSET HEALTHCARE UNIVERSITY NHS FOUNDATION TRUST | G40: Mental Health & Learning Disability and Mental Health, Learning Disability & Community Trusts | H40: 596 | I40: 6869 | J40: 6.602815063 | K40: 6.63310962 | L40: 6.3450783 | M40: 6.830257271
A41: Y58 | B41: SOUTH WEST COMMISSIONING REGION | C41: QT6 | D41: NHS CORNWALL AND THE ISLES OF SCILLY ICB - 11N | E41: REF | F41: ROYAL CORNWALL HOSPITALS NHS TRUST | G41: Acute and Acute & Community Trusts | H41: 834 | I41: 7222 | J41: 6.536437517 | K41: 6.252997602 | L41: 6.70363709 | M41: 6.652677858
A42: Y58 | B42: SOUTH WEST COMMISSIONING REGION | C42: QSL | D42: NHS SOMERSET ICB - 11X | E42: RH5 | F42: SOMERSET NHS FOUNDATION TRUST | G42: Acute and Acute & Community Trusts | H42: 719 | I42: 13308 | J42: 6.802271674 | K42: 6.768660176 | L42: 6.663189615 | M42: 6.974965229
A43: Y58 | B43: SOUTH WEST COMMISSIONING REGION | C43: QJK | D43: NHS DEVON ICB - 15N | E43: RH8 | F43: ROYAL DEVON UNIVERSITY HEALTHCARE NHS FOUNDATION TRUST | G43: Acute and Acute & Community Trusts | H43: 2311 | I43: 13192 | J43: 6.705921584 | K43: 6.772486772 | L43: 6.601083547 | M43: 6.744194432
A44: Y58 | B44: SOUTH WEST COMMISSIONING REGION | C44: QT6 | D44: NHS CORNWALL AND THE ISLES OF SCILLY ICB - 11N | E44: RJ8 | F44: CORNWALL PARTNERSHIP NHS FOUNDATION TRUST | G44: Mental Health & Learning Disability and Mental Health, Learning Disability & Community Trusts | H44: 11 | I44: 4926 | J44: 6.742424242 | K44: 6.818181818 | L44: 6.666666667 | M44: 6.742424242
A45: Y58 | B45: SOUTH WEST COMMISSIONING REGION | C45: QJK | D45: NHS DEVON ICB - 15N | E45: RK9 | F45: UNIVERSITY HOSPITALS PLYMOUTH NHS TRUST | G45: Acute and Acute & Community Trusts | H45: 1135 | I45: 10600 | J45: 6.402000051 | K45: 6.36123348 | L45: 6.166373239 | M45: 6.678393433
A46: Y58 | B46: SOUTH WEST COMMISSIONING REGION | C46: QOX | D46: NHS BATH AND NORTH EAST SOMERSET, SWINDON AND WILTSHIRE ICB - 92G | E46: RN3 | F46: GREAT WESTERN HOSPITALS NHS FOUNDATION TRUST | G46: Acute and Acute & Community Trusts | H46: 1278 | I46: 5705 | J46: 6.698438886 | K46: 6.663406364 | L46: 6.459623323 | M46: 6.972286972
A47: Y58 | B47: SOUTH WEST COMMISSIONING REGION | C47: QR1 | D47: NHS GLOUCESTERSHIRE ICB - 11M | E47: RTE | F47: GLOUCESTERSHIRE HOSPITALS NHS FOUNDATION TRUST | G47: Acute and Acute & Community Trusts | H47: 748 | I47: 8924 | J47: 6.245871066 | K47: 5.534625045 | L47: 6.779188948 | M47: 6.423799205
A48: Y58 | B48: SOUTH WEST COMMISSIONING REGION | C48: QR1 | D48: NHS GLOUCESTERSHIRE ICB - 11M | E48: RTQ | F48: GLOUCESTERSHIRE HEALTH AND CARE NHS FOUNDATION TRUST | G48: Mental Health & Learning Disability and Mental Health, Learning Disability & Community Trusts | H48: 288 | I48: 4799 | J48: 6.921296296 | K48: 6.892361111 | L48: 6.956018519 | M48: 6.915509259
A49: Y58 | B49: SOUTH WEST COMMISSIONING REGION | C49: QUY | D49: NHS BRISTOL, NORTH SOMERSET AND SOUTH GLOUCESTERSHIRE ICB - 15C | E49: RVJ | F49: NORTH BRISTOL NHS TRUST | G49: Acute and Acute & Community Trusts | H49: 117 | I49: 10025 | J49: 6.168091168 | K49: 6.417378917 | L49: 5.897435897 | M49: 6.189458689
A50: Y58 | B50: SOUTH WEST COMMISSIONING REGION | C50: QOX | D50: NHS BATH AND NORTH EAST SOMERSET, SWINDON AND WILTSHIRE ICB - 92G | E50: RVN | F50: AVON AND WILTSHIRE MENTAL HEALTH PARTNERSHIP NHS TRUST | G50: Mental Health & Learning Disability and Mental Health, Learning Disability & Community Trusts | H50: 139 | I50: 4836 | J50: 5.819344524 | K50: 5.401678657 | L50: 5.95323741 | M50: 6.103117506
A51: Y58 | B51: SOUTH WEST COMMISSIONING REGION | C51: QJK | D51: NHS DEVON ICB - 15N | E51: RWV | F51: DEVON PARTNERSHIP NHS TRUST | G51: Mental Health & Learning Disability and Mental Health, Learning Disability & Community Trusts | H51: 155 | I51: 3794 | J51: 6.258064516 | K51: 5.827956989 | L51: 6.532258065 | M51: 6.413978495
A52: Y59 | B52: SOUTH EAST COMMISSIONING REGION | C52: QRL | D52: NHS HAMPSHIRE AND ISLE OF WIGHT ICB - D9Y0V | E52: R1C | F52: SOLENT NHS TRUST | G52: Mental Health & Learning Disability and Mental Health, Learning Disability & Community Trusts | H52: 47 | I52: 4205 | J52: 7.281323877 | K52: 7.234042553 | L52: 7.304964539 | M52: 7.304964539
A53: Y59 | B53: SOUTH EAST COMMISSIONING REGION | C53: QRL | D53: NHS HAMPSHIRE AND ISLE OF WIGHT ICB - D9Y0V | E53: R1F | F53: ISLE OF WIGHT NHS TRUST | G53: Acute and Acute & Community Trusts | H53: 455 | I53: 4116 | J53: 6.242979243 | K53: 5.703296703 | L53: 6.371794872 | M53: 6.653846154
A54: Y59 | B54: SOUTH EAST COMMISSIONING REGION | C54: QNX | D54: NHS SUSSEX ICB - 09D | E54: RDR | F54: SUSSEX COMMUNITY NHS FOUNDATION TRUST | G54: Community Trusts | H54: 638 | I54: 5519 | J54: 7.061999303 | K54: 7.360240334 | L54: 6.690177638 | M54: 7.135579937
A55: Y59 | B55: SOUTH EAST COMMISSIONING REGION | C55: QNQ | D55: NHS FRIMLEY ICB - D4U1Y | E55: RDU | F55: FRIMLEY HEALTH NHS FOUNDATION TRUST | G55: Acute and Acute & Community Trusts | H55: 2130 | I55: 10689 | J55: 6.913532189 | K55: 7.049295775 | L55: 6.608356503 | M55: 7.082944289
A56: Y59 | B56: SOUTH EAST COMMISSIONING REGION | C56: QRL | D56: NHS HAMPSHIRE AND ISLE OF WIGHT ICB - D9Y0V | E56: RHM | F56: UNIVERSITY HOSPITAL SOUTHAMPTON NHS FOUNDATION TRUST | G56: Acute and Acute & Community Trusts | H56: 3323 | I56: 13536 | J56: 6.832555604 | K56: 7.097502257 | L56: 6.65625 | M56: 6.743914555
A57: Y59 | B57: SOUTH EAST COMMISSIONING REGION | C57: QRL | D57: NHS HAMPSHIRE AND ISLE OF WIGHT ICB - D9Y0V | E57: RHU | F57: PORTSMOUTH HOSPITALS UNIVERSITY NATIONAL HEALTH SERVICE TRUST | G57: Acute and Acute & Community Trusts | H57: 630 | I57: 8774 | J57: 6.352833188 | K57: 6.090956887 | L57: 6.226190476 | M57: 6.741352201
A58: Y59 | B58: SOUTH EAST COMMISSIONING REGION | C58: QU9 | D58: NHS BUCKINGHAMSHIRE, OXFORDSHIRE AND BERKSHIRE WEST ICB - 10Q | E58: RHW | F58: ROYAL BERKSHIRE NHS FOUNDATION TRUST | G58: Acute and Acute & Community Trusts | H58: 42 | I58: 6379 | J58: 6.362433862 | K58: 6.547619048 | L58: 6.28968254 | M58: 6.25
A59: Y59 | B59: SOUTH EAST COMMISSIONING REGION | C59: QRL | D59: NHS HAMPSHIRE AND ISLE OF WIGHT ICB - D9Y0V | E59: RN5 | F59: HAMPSHIRE HOSPITALS NHS FOUNDATION TRUST | G59: Acute and Acute & Community Trusts | H59: 197 | I59: 7641 | J59: 6.669486746 | K59: 6.4678511 | L59: 6.590524535 | M59: 6.950084602
A60: Y59 | B60: SOUTH EAST COMMISSIONING REGION | C60: QKS | D60: NHS KENT AND MEDWAY ICB - 91Q | E60: RN7 | F60: DARTFORD AND GRAVESHAM NHS TRUST | G60: Acute and Acute & Community Trusts | H60: 164 | I60: 4349 | J60: 6.593834688 | K60: 6.458333333 | L60: 6.473577236 | M60: 6.849593496
A61: Y59 | B61: SOUTH EAST COMMISSIONING REGION | C61: QU9 | D61: NHS BUCKINGHAMSHIRE, OXFORDSHIRE AND BERKSHIRE WEST ICB - 10Q | E61: RNU | F61: OXFORD HEALTH NHS FOUNDATION TRUST | G61: Mental Health & Learning Disability and Mental Health, Learning Disability & Community Trusts | H61: 467 | I61: 6496 | J61: 6.645848204 | K61: 6.529264811 | L61: 6.582798001 | M61: 6.825481799
A62: Y59 | B62: SOUTH EAST COMMISSIONING REGION | C62: QKS | D62: NHS KENT AND MEDWAY ICB - 91Q | E62: RPA | F62: MEDWAY NHS FOUNDATION TRUST | G62: Acute and Acute & Community Trusts | H62: 80 | I62: 5187 | J62: 5.75 | K62: 5.239583333 | L62: 5.78125 | M62: 6.229166667
A63: Y59 | B63: SOUTH EAST COMMISSIONING REGION | C63: QNX | D63: NHS SUSSEX ICB - 09D | E63: RPC | F63: QUEEN VICTORIA HOSPITAL NHS FOUNDATION TRUST | G63: Acute Specialist Trusts | H63: 158 | I63: 1142 | J63: 7.413853727 | K63: 8.064345992 | L63: 6.814345992 | M63: 7.362869198
A64: Y59 | B64: SOUTH EAST COMMISSIONING REGION | C64: QU9 | D64: NHS BUCKINGHAMSHIRE, OXFORDSHIRE AND BERKSHIRE WEST ICB - 10Q | E64: RTH | F64: OXFORD UNIVERSITY HOSPITALS NHS FOUNDATION TRUST | G64: Acute and Acute & Community Trusts | H64: 2549 | I64: 14228 | J64: 6.876997294 | K64: 7.081535243 | L64: 6.636835279 | M64: 6.912621359
A65: Y59 | B65: SOUTH EAST COMMISSIONING REGION | C65: QKS | D65: NHS KENT AND MEDWAY ICB - 91Q | E65: RVV | F65: EAST KENT HOSPITALS UNIVERSITY NHS FOUNDATION TRUST | G65: Acute and Acute & Community Trusts | H65: 2187 | I65: 11409 | J65: 6.136473662 | K65: 5.699588477 | L65: 6.104712436 | M65: 6.605120072
A66: Y59 | B66: SOUTH EAST COMMISSIONING REGION | C66: QRL | D66: NHS HAMPSHIRE AND ISLE OF WIGHT ICB - D9Y0V | E66: RW1 | F66: SOUTHERN HEALTH NHS FOUNDATION TRUST | G66: Mental Health & Learning Disability and Mental Health, Learning Disability & Community Trusts | H66: 668 | I66: 6774 | J66: 6.593063872 | K66: 6.427145709 | L66: 6.659181637 | M66: 6.692864271
A67: Y59 | B67: SOUTH EAST COMMISSIONING REGION | C67: QKS | D67: NHS KENT AND MEDWAY ICB - 91Q | E67: RWF | F67: MAIDSTONE AND TUNBRIDGE WELLS NHS TRUST | G67: Acute and Acute & Community Trusts | H67: 717 | I67: 7439 | J67: 6.469766713 | K67: 6.710832171 | L67: 6.068941504 | M67: 6.629526462
A68: Y59 | B68: SOUTH EAST COMMISSIONING REGION | C68: QNQ | D68: NHS FRIMLEY ICB - D4U1Y | E68: RWX | F68: BERKSHIRE HEALTHCARE NHS FOUNDATION TRUST | G68: Mental Health & Learning Disability and Mental Health, Learning Disability & Community Trusts | H68: 1575 | I68: 4977 | J68: 7.429127231 | K68: 7.760846561 | L68: 7.251360972 | M68: 7.275174161
A69: Y59 | B69: SOUTH EAST COMMISSIONING REGION | C69: QNX | D69: NHS SUSSEX ICB - 09D | E69: RX2 | F69: SUSSEX PARTNERSHIP NHS FOUNDATION TRUST | G69: Mental Health & Learning Disability and Mental Health, Learning Disability & Community Trusts | H69: 231 | I69: 5895 | J69: 5.674603175 | K69: 4.794372294 | L69: 5.95959596 | M69: 6.26984127
A70: Y59 | B70: SOUTH EAST COMMISSIONING REGION | C70: QNX | D70: NHS SUSSEX ICB - 09D | E70: RXC | F70: EAST SUSSEX HEALTHCARE NHS TRUST | G70: Acute and Acute & Community Trusts | H70: 367 | I70: 8366 | J70: 5.985467757 | K70: 5.794732062 | L70: 5.851498638 | M70: 6.31017257
A71: Y59 | B71: SOUTH EAST COMMISSIONING REGION | C71: QU9 | D71: NHS BUCKINGHAMSHIRE, OXFORDSHIRE AND BERKSHIRE WEST ICB - 10Q | E71: RXQ | F71: BUCKINGHAMSHIRE HEALTHCARE NHS TRUST | G71: Acute and Acute & Community Trusts | H71: 821 | I71: 6875 | J71: 6.598998511 | K71: 6.427121397 | L71: 6.505278116 | M71: 6.864596021
A72: Y59 | B72: SOUTH EAST COMMISSIONING REGION | C72: QXU | D72: NHS SURREY HEARTLANDS ICB - 92A | E72: RXX | F72: SURREY AND BORDERS PARTNERSHIP NHS FOUNDATION TRUST | G72: Mental Health & Learning Disability and Mental Health, Learning Disability & Community Trusts | H72: 108 | I72: 3314 | J72: 6.646090535 | K72: 6.442901235 | L72: 6.651234568 | M72: 6.844135802
A73: Y59 | B73: SOUTH EAST COMMISSIONING REGION | C73: QNX | D73: NHS SUSSEX ICB - 09D | E73: RYD | F73: SOUTH EAST COAST AMBULANCE SERVICE NHS FOUNDATION TRUST | G73: Ambulance Trusts | H73: 574 | I73: 4604 | J73: 5.27245451 | K73: 5.254065041 | L73: 4.756097561 | M73: 5.807200929
A74: Y59 | B74: SOUTH EAST COMMISSIONING REGION | C74: QU9 | D74: NHS BUCKINGHAMSHIRE, OXFORDSHIRE AND BERKSHIRE WEST ICB - 10Q | E74: RYE | F74: SOUTH CENTRAL AMBULANCE SERVICE NHS FOUNDATION TRUST | G74: Ambulance Trusts | H74: 262 | I74: 4615 | J74: 5.170695505 | K74: 5.165394402 | L74: 4.780534351 | M74: 5.566157761
A75: Y59 | B75: SOUTH EAST COMMISSIONING REGION | C75: QNX | D75: NHS SUSSEX ICB - 09D | E75: RYR | F75: UNIVERSITY HOSPITALS SUSSEX NHS FOUNDATION TRUST | G75: Acute and Acute & Community Trusts | H75: 562 | I75: 16851 | J75: 5.751285093 | K75: 5.412218268 | L75: 5.78143535 | M75: 6.060201661
A76: Y59 | B76: SOUTH EAST COMMISSIONING REGION | C76: QKS | D76: NHS KENT AND MEDWAY ICB - 91Q | E76: RYY | F76: KENT COMMUNITY HEALTH NHS FOUNDATION TRUST | G76: Community Trusts | H76: 873 | I76: 5217 | J76: 7.057719231 | K76: 7.285223368 | L76: 6.896716304 | M76: 6.991218022
A77: Y60 | B77: MIDLANDS COMMISSIONING REGION | C77: QOC | D77: NHS SHROPSHIRE, TELFORD AND WREKIN ICB - M2L0M | E77: R1D | F77: SHROPSHIRE COMMUNITY HEALTH NHS TRUST | G77: Community Trusts | H77: 10 | I77: 1661 | J77: 5.388888889 | K77: 4.333333333 | L77: 6 | M77: 5.833333333
A78: Y60 | B78: MIDLANDS COMMISSIONING REGION | C78: QUA | D78: NHS BLACK COUNTRY ICB - D2P2L | E78: RBK | F78: WALSALL HEALTHCARE NHS TRUST | G78: Acute and Acute & Community Trusts | H78: 1094 | I78: 5165 | J78: 6.393205363 | K78: 6.315508836 | L78: 6.307129799 | M78: 6.556977453
A79: Y60 | B79: MIDLANDS COMMISSIONING REGION | C79: QT1 | D79: NHS NOTTINGHAM AND NOTTINGHAMSHIRE ICB - 52R | E79: RHA | F79: NOTTINGHAMSHIRE HEALTHCARE NHS FOUNDATION TRUST | G79: Mental Health & Learning Disability and Mental Health, Learning Disability & Community Trusts | H79: 793 | I79: 9343 | J79: 6.175560012 | K79: 6.029844472 | L79: 6.240554156 | M79: 6.256281407
A80: Y60 | B80: MIDLANDS COMMISSIONING REGION | C80: QWU | D80: NHS COVENTRY AND WARWICKSHIRE ICB - B2M3M | E80: RJC | F80: SOUTH WARWICKSHIRE UNIVERSITY NHS FOUNDATION TRUST | G80: Acute and Acute & Community Trusts | H80: 55 | I80: 5443 | J80: 6.772727273 | K80: 7.015151515 | L80: 6.621212121 | M80: 6.681818182
A81: Y60 | B81: MIDLANDS COMMISSIONING REGION | C81: QNC | D81: NHS STAFFORDSHIRE AND STOKE-ON-TRENT ICB - 05W | E81: RJE | F81: UNIVERSITY HOSPITALS OF NORTH MIDLANDS NHS TRUST | G81: Acute and Acute & Community Trusts | H81: 12 | I81: 11957 | J81: 5.185185185 | K81: 5.625 | L81: 4.444444444 | M81: 5.486111111
A82: Y60 | B82: MIDLANDS COMMISSIONING REGION | C82: QT1 | D82: NHS NOTTINGHAM AND NOTTINGHAMSHIRE ICB - 52R | E82: RK5 | F82: SHERWOOD FOREST HOSPITALS NHS FOUNDATION TRUST | G82: Acute and Acute & Community Trusts | H82: 740 | I82: 6051 | J82: 6.860954028 | K82: 7.288041053 | L82: 6.586711712 | M82: 6.708109319
A83: Y60 | B83: MIDLANDS COMMISSIONING REGION | C83: QWU | D83: NHS COVENTRY AND WARWICKSHIRE ICB - B2M3M | E83: RKB | F83: UNIVERSITY HOSPITALS COVENTRY AND WARWICKSHIRE NHS TRUST | G83: Acute and Acute & Community Trusts | H83: 235 | I83: 9720 | J83: 6.294326241 | K83: 6.15248227 | L83: 6.365248227 | M83: 6.365248227
A84: Y60 | B84: MIDLANDS COMMISSIONING REGION | C84: QUA | D84: NHS BLACK COUNTRY ICB - D2P2L | E84: RL4 | F84: THE ROYAL WOLVERHAMPTON NHS TRUST | G84: Acute and Acute & Community Trusts | H84: 459 | I84: 11342 | J84: 6.298111837 | K84: 6.381626725 | L84: 6.145606391 | M84: 6.367102397
A85: Y60 | B85: MIDLANDS COMMISSIONING REGION | C85: QGH | D85: NHS HEREFORDSHIRE AND WORCESTERSHIRE ICB - 18C | E85: RLQ | F85: WYE VALLEY NHS TRUST | G85: Acute and Acute & Community Trusts | H85: 28 | I85: 3981 | J85: 6.676587302 | K85: 6.398809524 | L85: 6.636904762 | M85: 6.994047619
A86: Y60 | B86: MIDLANDS COMMISSIONING REGION | C86: QWU | D86: NHS COVENTRY AND WARWICKSHIRE ICB - B2M3M | E86: RLT | F86: GEORGE ELIOT HOSPITAL NHS TRUST | G86: Acute and Acute & Community Trusts | H86: 54 | I86: 2924 | J86: 6.58436214 | K86: 6.203703704 | L86: 6.74382716 | M86: 6.805555556
A87: Y60 | B87: MIDLANDS COMMISSIONING REGION | C87: QNC | D87: NHS STAFFORDSHIRE AND STOKE-ON-TRENT ICB - 05W | E87: RLY | F87: NORTH STAFFORDSHIRE COMBINED HEALTHCARE NHS TRUST | G87: Mental Health & Learning Disability and Mental Health, Learning Disability & Community Trusts | H87: 87 | I87: 1792 | J87: 6.465517241 | K87: 6.465517241 | L87: 6.340996169 | M87: 6.590038314
A88: Y60 | B88: MIDLANDS COMMISSIONING REGION | C88: QUA | D88: NHS BLACK COUNTRY ICB - D2P2L | E88: RNA | F88: THE DUDLEY GROUP NHS FOUNDATION TRUST | G88: Acute and Acute & Community Trusts | H88: 381 | I88: 6133 | J88: 6.469816273 | K88: 6.237970254 | L88: 6.428258968 | M88: 6.743219598
A89: Y60 | B89: MIDLANDS COMMISSIONING REGION | C89: QPM | D89: NHS NORTHAMPTONSHIRE ICB - 78H | E89: RNQ | F89: KETTERING GENERAL HOSPITAL NHS FOUNDATION TRUST | G89: Acute and Acute & Community Trusts | H89: 445 | I89: 4820 | J89: 5.858302122 | K89: 5.45505618 | L89: 5.900749064 | M89: 6.219101124
A90: Y60 | B90: MIDLANDS COMMISSIONING REGION | C90: QPM | D90: NHS NORTHAMPTONSHIRE ICB - 78H | E90: RNS | F90: NORTHAMPTON GENERAL HOSPITAL NHS TRUST | G90: Acute and Acute & Community Trusts | H90: 446 | I90: 5856 | J90: 6.109242651 | K90: 5.795964126 | L90: 6.089312407 | M90: 6.44245142
A91: Y60 | B91: MIDLANDS COMMISSIONING REGION | C91: QPM | D91: NHS NORTHAMPTONSHIRE ICB - 78H | E91: RP1 | F91: NORTHAMPTONSHIRE HEALTHCARE NHS FOUNDATION TRUST | G91: Mental Health & Learning Disability and Mental Health, Learning Disability & Community Trusts | H91: 1834 | I91: 4849 | J91: 7.228149155 | K91: 7.472282806 | L91: 7.015928101 | M91: 7.196236559
A92: Y60 | B92: MIDLANDS COMMISSIONING REGION | C92: QJM | D92: NHS LINCOLNSHIRE ICB - 71E | E92: RP7 | F92: LINCOLNSHIRE PARTNERSHIP NHS FOUNDATION TRUST | G92: Mental Health & Learning Disability and Mental Health, Learning Disability & Community Trusts | H92: 946 | I92: 2733 | J92: 7.291827387 | K92: 7.469168428 | L92: 7.125566005 | M92: 7.280747729
A93: Y60 | B93: MIDLANDS COMMISSIONING REGION | C93: QHL | D93: NHS BIRMINGHAM AND SOLIHULL ICB - 15E | E93: RQ3 | F93: BIRMINGHAM WOMEN'S AND CHILDREN'S NHS FOUNDATION TRUST | G93: Acute and Acute & Community Trusts | H93: 49 | I93: 6407 | J93: 5.89569161 | K93: 6.411564626 | L93: 5.612244898 | M93: 5.663265306
A94: Y60 | B94: MIDLANDS COMMISSIONING REGION | C94: QNC | D94: NHS STAFFORDSHIRE AND STOKE-ON-TRENT ICB - 05W | E94: RRE | F94: MIDLANDS PARTNERSHIP NHS FOUNDATION TRUST | G94: Mental Health & Learning Disability and Mental Health, Learning Disability & Community Trusts | H94: 255 | I94: 10018 | J94: 7.660130719 | K94: 7.803921569 | L94: 7.591503268 | M94: 7.58496732
A95: Y60 | B95: MIDLANDS COMMISSIONING REGION | C95: QHL | D95: NHS BIRMINGHAM AND SOLIHULL ICB - 15E | E95: RRJ | F95: THE ROYAL ORTHOPAEDIC HOSPITAL NHS FOUNDATION TRUST | G95: Acute Specialist Trusts | H95: 221 | I95: 1330 | J95: 7.222111248 | K95: 7.740740741 | L95: 6.870286576 | M95: 7.055306428
A96: Y60 | B96: MIDLANDS COMMISSIONING REGION | C96: QHL | D96: NHS BIRMINGHAM AND SOLIHULL ICB - 15E | E96: RRK | F96: UNIVERSITY HOSPITALS BIRMINGHAM NHS FOUNDATION TRUST | G96: Acute and Acute & Community Trusts | H96: 562 | I96: 23861 | J96: 5.76018189 | K96: 5.496737841 | L96: 5.716192171 | M96: 6.067615658
A97: Y60 | B97: MIDLANDS COMMISSIONING REGION | C97: QK1 | D97: NHS LEICESTER, LEICESTERSHIRE AND RUTLAND ICB - 03W | E97: RT5 | F97: LEICESTERSHIRE PARTNERSHIP NHS TRUST | G97: Mental Health & Learning Disability and Mental Health, Learning Disability & Community Trusts | H97: 340 | I97: 6305 | J97: 6.727124183 | K97: 6.419117647 | L97: 6.710784314 | M97: 7.051470588
A98: Y60 | B98: MIDLANDS COMMISSIONING REGION | C98: QJ2 | D98: NHS DERBY AND DERBYSHIRE ICB - 15M | E98: RTG | F98: UNIVERSITY HOSPITALS OF DERBY AND BURTON NHS FOUNDATION TRUST | G98: Acute and Acute & Community Trusts | H98: 1425 | I98: 14404 | J98: 6.393957115 | K98: 6.467836257 | L98: 6.056140351 | M98: 6.657894737
A99: Y60 | B99: MIDLANDS COMMISSIONING REGION | C99: QJM | D99: NHS LINCOLNSHIRE ICB - 71E | E99: RWD | F99: UNITED LINCOLNSHIRE HOSPITALS NHS TRUST | G99: Acute and Acute & Community Trusts | H99: 2209 | I99: 9295 | J99: 6.383984415 | K99: 6.092500377 | L99: 6.289505069 | M99: 6.7699478
A100: Y60 | B100: MIDLANDS COMMISSIONING REGION | C100: QGH | D100: NHS HEREFORDSHIRE AND WORCESTERSHIRE ICB - 18C | E100: RWP | F100: WORCESTERSHIRE ACUTE HOSPITALS NHS TRUST | G100: Acute and Acute & Community Trusts | H100: 1210 | I100: 7109 | J100: 6.601996892 | K100: 6.38292011 | L100: 6.562414827 | M100: 6.860655738
A101: Y60 | B101: MIDLANDS COMMISSIONING REGION | C101: QT1 | D101: NHS NOTTINGHAM AND NOTTINGHAMSHIRE ICB - 52R | E101: RX1 | F101: NOTTINGHAM UNIVERSITY HOSPITALS NHS TRUST | G101: Acute and Acute & Community Trusts | H101: 2117 | I101: 19481 | J101: 6.471684249 | K101: 6.382853094 | L101: 6.430483388 | M101: 6.601716265
A102: Y60 | B102: MIDLANDS COMMISSIONING REGION | C102: QT1 | D102: NHS NOTTINGHAM AND NOTTINGHAMSHIRE ICB - 52R | E102: RX9 | F102: EAST MIDLANDS AMBULANCE SERVICE NHS TRUST | G102: Ambulance Trusts | H102: 326 | I102: 4234 | J102: 5.501022495 | K102: 5.552147239 | L102: 4.979550102 | M102: 5.971370143
A103: Y60 | B103: MIDLANDS COMMISSIONING REGION | C103: QHL | D103: NHS BIRMINGHAM AND SOLIHULL ICB - 15E | E103: RXK | F103: SANDWELL AND WEST BIRMINGHAM HOSPITALS NHS TRUST | G103: Acute and Acute & Community Trusts | H103: 3151 | I103: 7631 | J103: 6.870131746 | K103: 6.792069934 | L103: 6.707355243 | M103: 7.110970062
A104: Y60 | B104: MIDLANDS COMMISSIONING REGION | C104: QJ2 | D104: NHS DERBY AND DERBYSHIRE ICB - 15M | E104: RXM | F104: DERBYSHIRE HEALTHCARE NHS FOUNDATION TRUST | G104: Mental Health & Learning Disability and Mental Health, Learning Disability & Community Trusts | H104: 875 | I104: 3199 | J104: 7.020859288 | K104: 7.085235921 | L104: 6.899246704 | M104: 7.078095238
A105: Y60 | B105: MIDLANDS COMMISSIONING REGION | C105: QHL | D105: NHS BIRMINGHAM AND SOLIHULL ICB - 15E | E105: RXT | F105: BIRMINGHAM AND SOLIHULL MENTAL HEALTH NHS FOUNDATION TRUST | G105: Mental Health & Learning Disability and Mental Health, Learning Disability & Community Trusts | H105: 218 | I105: 4840 | J105: 6.020642202 | K105: 5.573394495 | L105: 6.028287462 | M105: 6.460244648
A106: Y60 | B106: MIDLANDS COMMISSIONING REGION | C106: QOC | D106: NHS SHROPSHIRE, TELFORD AND WREKIN ICB - M2L0M | E106: RXW | F106: THE SHREWSBURY AND TELFORD HOSPITAL NHS TRUST | G106: Acute and Acute & Community Trusts | H106: 903 | I106: 7779 | J106: 6.172019195 | K106: 5.635843485 | L106: 6.15448505 | M106: 6.725729051
A107: Y60 | B107: MIDLANDS COMMISSIONING REGION | C107: QJM | D107: NHS LINCOLNSHIRE ICB - 71E | E107: RY5 | F107: LINCOLNSHIRE COMMUNITY HEALTH SERVICES NHS TRUST | G107: Community Trusts | H107: 760 | I107: 2420 | J107: 6.995796491 | K107: 7.234649123 | L107: 6.747941049 | M107: 7.004799302
A108: Y60 | B108: MIDLANDS COMMISSIONING REGION | C108: QJ2 | D108: NHS DERBY AND DERBYSHIRE ICB - 15M | E108: RY8 | F108: DERBYSHIRE COMMUNITY HEALTH SERVICES NHS FOUNDATION TRUST | G108: Community Trusts | H108: 743 | I108: 4410 | J108: 7.309058641 | K108: 7.711675579 | L108: 7.076648841 | M108: 7.138851503
A109: Y60 | B109: MIDLANDS COMMISSIONING REGION | C109: QUA | D109: NHS BLACK COUNTRY ICB - D2P2L | E109: RYA | F109: WEST MIDLANDS AMBULANCE SERVICE UNIVERSITY NHS FOUNDATION TRUST | G109: Ambulance Trusts | H109: 510 | I109: 6661 | J109: 4.711328976 | K109: 4.72875817 | L109: 4.220588235 | M109: 5.184640523
A110: Y60 | B110: MIDLANDS COMMISSIONING REGION | C110: QWU | D110: NHS COVENTRY AND WARWICKSHIRE ICB - B2M3M | E110: RYG | F110: COVENTRY AND WARWICKSHIRE PARTNERSHIP NHS TRUST | G110: Mental Health & Learning Disability and Mental Health, Learning Disability & Community Trusts | H110: 335 | I110: 4289 | J110: 6.352404643 | K110: 5.888059701 | L110: 6.47761194 | M110: 6.691542289
A111: Y60 | B111: MIDLANDS COMMISSIONING REGION | C111: QUA | D111: NHS BLACK COUNTRY ICB - D2P2L | E111: RYK | F111: DUDLEY INTEGRATED HEALTH AND CARE NHS TRUST | G111: Community Trusts | H111: 36 | I111: 478 | J111: 5.99537037 | K111: 6.064814815 | L111: 5.37037037 | M111: 6.550925926
A112: Y60 | B112: MIDLANDS COMMISSIONING REGION | C112: QHL | D112: NHS BIRMINGHAM AND SOLIHULL ICB - 15E | E112: RYW | F112: BIRMINGHAM COMMUNITY HEALTHCARE NHS FOUNDATION TRUST | G112: Community Trusts | H112: 107 | I112: 5198 | J112: 6.588785047 | K112: 6.643302181 | L112: 6.323987539 | M112: 6.799065421
A113: Y60 | B113: MIDLANDS COMMISSIONING REGION | C113: QUA | D113: NHS BLACK COUNTRY ICB - D2P2L | E113: TAJ | F113: BLACK COUNTRY HEALTHCARE NHS FOUNDATION TRUST | G113: Mental Health & Learning Disability and Mental Health, Learning Disability & Community Trusts | H113: 522 | I113: 3956 | J113: 5.954129417 | K113: 5.603448276 | L113: 5.933908046 | M113: 6.325031928
A114: Y61 | B114: EAST OF ENGLAND COMMISSIONING REGION | C114: QH8 | D114: NHS MID AND SOUTH ESSEX ICB - 06Q | E114: R1L | F114: ESSEX PARTNERSHIP UNIVERSITY NHS FOUNDATION TRUST | G114: Mental Health & Learning Disability and Mental Health, Learning Disability & Community Trusts | H114: 527 | I114: 6557 | J114: 6.258697027 | K114: 5.882352941 | L114: 6.347248577 | M114: 6.546489564
A115: Y61 | B115: EAST OF ENGLAND COMMISSIONING REGION | C115: QMM | D115: NHS NORFOLK AND WAVENEY ICB - 26A | E115: RCX | F115: THE QUEEN ELIZABETH HOSPITAL, KING'S LYNN, NHS FOUNDATION TRUST | G115: Acute and Acute & Community Trusts | H115: 313 | I115: 3941 | J115: 6.001952432 | K115: 5.447284345 | L115: 6.041001065 | M115: 6.517571885
A116: Y61 | B116: EAST OF ENGLAND COMMISSIONING REGION | C116: QHG | D116: NHS BEDFORDSHIRE, LUTON AND MILTON KEYNES ICB - M1J4Y | E116: RD8 | F116: MILTON KEYNES UNIVERSITY HOSPITAL NHS FOUNDATION TRUST | G116: Acute and Acute & Community Trusts | H116: 92 | I116: 4192 | J116: 5.960144928 | K116: 5.960144928 | L116: 5.561594203 | M116: 6.358695652
A117: Y61 | B117: EAST OF ENGLAND COMMISSIONING REGION | C117: QUE | D117: NHS CAMBRIDGESHIRE AND PETERBOROUGH ICB - 06H | E117: RGN | F117: NORTH WEST ANGLIA NHS FOUNDATION TRUST | G117: Acute and Acute & Community Trusts | H117: 133 | I117: 7330 | J117: 6.315789474 | K117: 5.789473684 | L117: 6.466165414 | M117: 6.691729323
A118: Y61 | B118: EAST OF ENGLAND COMMISSIONING REGION | C118: QJG | D118: NHS SUFFOLK AND NORTH EAST ESSEX ICB - 07K | E118: RGR | F118: WEST SUFFOLK NHS FOUNDATION TRUST | G118: Acute and Acute & Community Trusts | H118: 1438 | I118: 5267 | J118: 6.915822276 | K118: 7.070004636 | L118: 6.699156407 | M118: 6.978305785
A119: Y61 | B119: EAST OF ENGLAND COMMISSIONING REGION | C119: QUE | D119: NHS CAMBRIDGESHIRE AND PETERBOROUGH ICB - 06H | E119: RGT | F119: CAMBRIDGE UNIVERSITY HOSPITALS NHS FOUNDATION TRUST | G119: Acute and Acute & Community Trusts | H119: 2880 | I119: 12276 | J119: 6.891671447 | K119: 7.300347222 | L119: 6.501604768 | M119: 6.873062349
A120: Y61 | B120: EAST OF ENGLAND COMMISSIONING REGION | C120: QMM | D120: NHS NORFOLK AND WAVENEY ICB - 26A | E120: RM1 | F120: NORFOLK AND NORWICH UNIVERSITY HOSPITALS NHS FOUNDATION TRUST | G120: Acute and Acute & Community Trusts | H120: 388 | I120: 9383 | J120: 6.099656357 | K120: 5.814003436 | L120: 5.99871134 | M120: 6.486254296
A121: Y61 | B121: EAST OF ENGLAND COMMISSIONING REGION | C121: QMM | D121: NHS NORFOLK AND WAVENEY ICB - 26A | E121: RMY | F121: NORFOLK AND SUFFOLK NHS FOUNDATION TRUST | G121: Mental Health & Learning Disability and Mental Health, Learning Disability & Community Trusts | H121: 22 | I121: 5055 | J121: 5.151515152 | K121: 4.772727273 | L121: 5.037878788 | M121: 5.643939394
A122: Y61 | B122: EAST OF ENGLAND COMMISSIONING REGION | C122: QM7 | D122: NHS HERTFORDSHIRE AND WEST ESSEX ICB - 07H | E122: RQW | F122: THE PRINCESS ALEXANDRA HOSPITAL NHS TRUST | G122: Acute and Acute & Community Trusts | H122: 103 | I122: 3990 | J122: 5.685005394 | K122: 5.177993528 | L122: 5.776699029 | M122: 6.100323625
A123: Y61 | B123: EAST OF ENGLAND COMMISSIONING REGION | C123: QUE | D123: NHS CAMBRIDGESHIRE AND PETERBOROUGH ICB - 06H | E123: RT1 | F123: CAMBRIDGESHIRE AND PETERBOROUGH NHS FOUNDATION TRUST | G123: Mental Health & Learning Disability and Mental Health, Learning Disability & Community Trusts | H123: 2429 | I123: 4789 | J123: 7.390215452 | K123: 7.412858515 | L123: 7.289693976 | M123: 7.468093866
A124: Y61 | B124: EAST OF ENGLAND COMMISSIONING REGION | C124: QM7 | D124: NHS HERTFORDSHIRE AND WEST ESSEX ICB - 07H | E124: RWG | F124: WEST HERTFORDSHIRE TEACHING HOSPITALS NHS TRUST | G124: Acute and Acute & Community Trusts | H124: 486 | I124: 5589 | J124: 5.883058985 | K124: 5.332647462 | L124: 5.860768176 | M124: 6.455761317
A125: Y61 | B125: EAST OF ENGLAND COMMISSIONING REGION | C125: QM7 | D125: NHS HERTFORDSHIRE AND WEST ESSEX ICB - 07H | E125: RWR | F125: HERTFORDSHIRE PARTNERSHIP UNIVERSITY NHS FOUNDATION TRUST | G125: Mental Health & Learning Disability and Mental Health, Learning Disability & Community Trusts | H125: 945 | I125: 4182 | J125: 7.254809449 | K125: 7.492945326 | L125: 7.061677062 | M125: 7.20980596
A126: Y61 | B126: EAST OF ENGLAND COMMISSIONING REGION | C126: QMM | D126: NHS NORFOLK AND WAVENEY ICB - 26A | E126: RY3 | F126: NORFOLK COMMUNITY HEALTH AND CARE NHS TRUST | G126: Community Trusts | H126: 510 | I126: 2474 | J126: 7.290305011 | K126: 7.454248366 | L126: 7.091503268 | M126: 7.325163399
A127: Y61 | B127: EAST OF ENGLAND COMMISSIONING REGION | C127: QM7 | D127: NHS HERTFORDSHIRE AND WEST ESSEX ICB - 07H | E127: RY4 | F127: HERTFORDSHIRE COMMUNITY NHS TRUST | G127: Community Trusts | H127: 264 | I127: 2422 | J127: 7.248526936 | K127: 7.307449495 | L127: 6.976010101 | M127: 7.462121212
A128: Y61 | B128: EAST OF ENGLAND COMMISSIONING REGION | C128: QUE | D128: NHS CAMBRIDGESHIRE AND PETERBOROUGH ICB - 06H | E128: RYC | F128: EAST OF ENGLAND AMBULANCE SERVICE NHS TRUST | G128: Ambulance Trusts | H128: 1451 | I128: 6007 | J128: 5.82055573 | K128: 5.971169309 | L128: 5.205635083 | M128: 6.284862798
A129: Y61 | B129: EAST OF ENGLAND COMMISSIONING REGION | C129: QUE | D129: NHS CAMBRIDGESHIRE AND PETERBOROUGH ICB - 06H | E129: RYV | F129: CAMBRIDGESHIRE COMMUNITY SERVICES NHS TRUST | G129: Community Trusts | H129: 41 | I129: 2637 | J129: 6.775067751 | K129: 7.134146341 | L129: 6.280487805 | M129: 6.910569106
A130: Y62 | B130: NORTH WEST COMMISSIONING REGION | C130: QOP | D130: NHS GREATER MANCHESTER ICB - 00T | E130: R0A | F130: MANCHESTER UNIVERSITY NHS FOUNDATION TRUST | G130: Acute and Acute & Community Trusts | H130: 3328 | I130: 29187 | J130: 6.570221232 | K130: 6.527283511 | L130: 6.468135795 | M130: 6.715244391
A131: Y62 | B131: NORTH WEST COMMISSIONING REGION | C131: QYG | D131: NHS CHESHIRE AND MERSEYSIDE ICB - 01J | E131: RBL | F131: WIRRAL UNIVERSITY TEACHING HOSPITAL NHS FOUNDATION TRUST | G131: Acute and Acute & Community Trusts | H131: 748 | I131: 6784 | J131: 6.3283571 | K131: 6.076203209 | L131: 6.169786096 | M131: 6.739081996
A132: Y62 | B132: NORTH WEST COMMISSIONING REGION | C132: QYG | D132: NHS CHESHIRE AND MERSEYSIDE ICB - 01J | E132: RBN | F132: MERSEY AND WEST LANCASHIRE TEACHING HOSPITALS NHS TRUST | G132: Acute and Acute & Community Trusts | H132: 196 | I132: 10855 | J132: 6.380385488 | K132: 6.386054422 | L132: 6.203231293 | M132: 6.551870748
A133: Y62 | B133: NORTH WEST COMMISSIONING REGION | C133: QYG | D133: NHS CHESHIRE AND MERSEYSIDE ICB - 01J | E133: RBQ | F133: LIVERPOOL HEART AND CHEST HOSPITAL NHS FOUNDATION TRUST | G133: Acute Specialist Trusts | H133: 166 | I133: 1952 | J133: 7.394578313 | K133: 8.077309237 | L133: 7.043172691 | M133: 7.063253012
A134: Y62 | B134: NORTH WEST COMMISSIONING REGION | C134: QYG | D134: NHS CHESHIRE AND MERSEYSIDE ICB - 01J | E134: RBT | F134: MID CHESHIRE HOSPITALS NHS FOUNDATION TRUST | G134: Acute and Acute & Community Trusts | H134: 807 | I134: 5629 | J134: 6.840492909 | K134: 6.907269723 | L134: 6.631557208 | M134: 6.982651797
A135: Y62 | B135: NORTH WEST COMMISSIONING REGION | C135: QOP | D135: NHS GREATER MANCHESTER ICB - 00T | E135: RBV | F135: THE CHRISTIE NHS FOUNDATION TRUST | G135: Acute Specialist Trusts | H135: 112 | I135: 3633 | J135: 7.041170635 | K135: 7.44047619 | L135: 7.016369048 | M135: 6.666666667
A136: Y62 | B136: NORTH WEST COMMISSIONING REGION | C136: QYG | D136: NHS CHESHIRE AND MERSEYSIDE ICB - 01J | E136: REM | F136: LIVERPOOL UNIVERSITY HOSPITALS NHS FOUNDATION TRUST | G136: Acute and Acute & Community Trusts | H136: 1341 | I136: 15194 | J136: 6.061811252 | K136: 5.979990057 | L136: 5.901690281 | M136: 6.303753418
A137: Y62 | B137: NORTH WEST COMMISSIONING REGION | C137: QYG | D137: NHS CHESHIRE AND MERSEYSIDE ICB - 01J | E137: REN | F137: THE CLATTERBRIDGE CANCER CENTRE NHS FOUNDATION TRUST | G137: Acute Specialist Trusts | H137: 547 | I137: 1840 | J137: 7.365427585 | K137: 7.953991469 | L137: 7.155697745 | M137: 6.986593541
A138: Y62 | B138: NORTH WEST COMMISSIONING REGION | C138: QYG | D138: NHS CHESHIRE AND MERSEYSIDE ICB - 01J | E138: REP | F138: LIVERPOOL WOMEN'S NHS FOUNDATION TRUST | G138: Acute Specialist Trusts | H138: 82 | I138: 1803 | J138: 6.68699187 | K138: 6.849593496 | L138: 6.321138211 | M138: 6.890243902
A139: Y62 | B139: NORTH WEST COMMISSIONING REGION | C139: QYG | D139: NHS CHESHIRE AND MERSEYSIDE ICB - 01J | E139: RET | F139: THE WALTON CENTRE NHS FOUNDATION TRUST | G139: Acute Specialist Trusts | H139: 104 | I139: 1573 | J139: 7.307692308 | K139: 7.692307692 | L139: 7.03525641 | M139: 7.195512821
A140: Y62 | B140: NORTH WEST COMMISSIONING REGION | C140: QYG | D140: NHS CHESHIRE AND MERSEYSIDE ICB - 01J | E140: RJN | F140: EAST CHESHIRE NHS TRUST | G140: Acute and Acute & Community Trusts | H140: 39 | I140: 2753 | J140: 6.595441595 | K140: 6.388888889 | L140: 6.452991453 | M140: 6.944444444
A141: Y62 | B141: NORTH WEST COMMISSIONING REGION | C141: QYG | D141: NHS CHESHIRE AND MERSEYSIDE ICB - 01J | E141: RJR | F141: COUNTESS OF CHESTER HOSPITAL NHS FOUNDATION TRUST | G141: Acute and Acute & Community Trusts | H141: 87 | I141: 4968 | J141: 5.782247765 | K141: 5.191570881 | L141: 5.737547893 | M141: 6.417624521
A142: Y62 | B142: NORTH WEST COMMISSIONING REGION | C142: QOP | D142: NHS GREATER MANCHESTER ICB - 00T | E142: RM3 | F142: NORTHERN CARE ALLIANCE NHS FOUNDATION TRUST | G142: Acute and Acute & Community Trusts | H142: 1514 | I142: 20832 | J142: 5.973139586 | K142: 5.768383972 | L142: 5.96873624 | M142: 6.182298547
A143: Y62 | B143: NORTH WEST COMMISSIONING REGION | C143: QOP | D143: NHS GREATER MANCHESTER ICB - 00T | E143: RMC | F143: BOLTON NHS FOUNDATION TRUST | G143: Acute and Acute & Community Trusts | H143: 149 | I143: 6800 | J143: 6.120432513 | K143: 5.81655481 | L143: 6.062639821 | M143: 6.482102908
A144: Y62 | B144: NORTH WEST COMMISSIONING REGION | C144: QOP | D144: NHS GREATER MANCHESTER ICB - 00T | E144: RMP | F144: TAMESIDE AND GLOSSOP INTEGRATED CARE NHS FOUNDATION TRUST | G144: Acute and Acute & Community Trusts | H144: 91 | I144: 4557 | J144: 6.578144078 | K144: 6.3003663 | L144: 6.611721612 | M144: 6.822344322
A145: Y62 | B145: NORTH WEST COMMISSIONING REGION | C145: QOP | D145: NHS GREATER MANCHESTER ICB - 00T | E145: RRF | F145: WRIGHTINGTON, WIGAN AND LEIGH NHS FOUNDATION TRUST | G145: Acute and Acute & Community Trusts | H145: 37 | I145: 7264 | J145: 6.253753754 | K145: 6.261261261 | L145: 6.509009009 | M145: 5.990990991
A146: Y62 | B146: NORTH WEST COMMISSIONING REGION | C146: QOP | D146: NHS GREATER MANCHESTER ICB - 00T | E146: RT2 | F146: PENNINE CARE NHS FOUNDATION TRUST | G146: Mental Health & Learning Disability and Mental Health, Learning Disability & Community Trusts | H146: 80 | I146: 4019 | J146: 6.25 | K146: 6.135416667 | L146: 6.166666667 | M146: 6.447916667
A147: Y62 | B147: NORTH WEST COMMISSIONING REGION | C147: QE1 | D147: NHS LANCASHIRE AND SOUTH CUMBRIA ICB - 01E | E147: RTX | F147: UNIVERSITY HOSPITALS OF MORECAMBE BAY NHS FOUNDATION TRUST | G147: Acute and Acute & Community Trusts | H147: 44 | I147: 7524 | J147: 6.306818182 | K147: 6.306818182 | L147: 6.306818182 | M147: 6.306818182
A148: Y62 | B148: NORTH WEST COMMISSIONING REGION | C148: QYG | D148: NHS CHESHIRE AND MERSEYSIDE ICB - 01J | E148: RW4 | F148: MERSEY CARE NHS FOUNDATION TRUST | G148: Mental Health & Learning Disability and Mental Health, Learning Disability & Community Trusts | H148: 1362 | I148: 11102 | J148: 6.877549356 | K148: 6.734581498 | L148: 6.806167401 | M148: 7.091899168
A149: Y62 | B149: NORTH WEST COMMISSIONING REGION | C149: QE1 | D149: NHS LANCASHIRE AND SOUTH CUMBRIA ICB - 01E | E149: RW5 | F149: LANCASHIRE & SOUTH CUMBRIA NHS FOUNDATION TRUST | G149: Mental Health & Learning Disability and Mental Health, Learning Disability & Community Trusts | H149: 1195 | I149: 7660 | J149: 6.839144584 | K149: 6.709205021 | L149: 6.80125523 | M149: 7.006973501
A150: Y62 | B150: NORTH WEST COMMISSIONING REGION | C150: QOP | D150: NHS GREATER MANCHESTER ICB - 00T | E150: RWJ | F150: STOCKPORT NHS FOUNDATION TRUST | G150: Acute and Acute & Community Trusts | H150: 90 | I150: 6242 | J150: 5.987654321 | K150: 5.462962963 | L150: 6.157407407 | M150: 6.342592593
A151: Y62 | B151: NORTH WEST COMMISSIONING REGION | C151: QYG | D151: NHS CHESHIRE AND MERSEYSIDE ICB - 01J | E151: RWW | F151: WARRINGTON AND HALTON TEACHING HOSPITALS NHS FOUNDATION TRUST | G151: Acute and Acute & Community Trusts | H151: 91 | I151: 4664 | J151: 6.645299145 | K151: 6.492673993 | L151: 6.593406593 | M151: 6.84981685
A152: Y62 | B152: NORTH WEST COMMISSIONING REGION | C152: QOP | D152: NHS GREATER MANCHESTER ICB - 00T | E152: RX7 | F152: NORTH WEST AMBULANCE SERVICE NHS TRUST | G152: Ambulance Trusts | H152: 1103 | I152: 7179 | J152: 6.343439674 | K152: 6.714264128 | L152: 5.904017857 | M152: 6.412037037
A153: Y62 | B153: NORTH WEST COMMISSIONING REGION | C153: QYG | D153: NHS CHESHIRE AND MERSEYSIDE ICB - 01J | E153: RXA | F153: CHESHIRE AND WIRRAL PARTNERSHIP NHS FOUNDATION TRUST | G153: Mental Health & Learning Disability and Mental Health, Learning Disability & Community Trusts | H153: 601 | I153: 4345 | J153: 7.021116391 | K153: 7.115066225 | L153: 6.866333888 | M153: 7.081949059
A154: Y62 | B154: NORTH WEST COMMISSIONING REGION | C154: QE1 | D154: NHS LANCASHIRE AND SOUTH CUMBRIA ICB - 01E | E154: RXL | F154: BLACKPOOL TEACHING HOSPITALS NHS FOUNDATION TRUST | G154: Acute and Acute & Community Trusts | H154: 360 | I154: 8309 | J154: 6.739197531 | K154: 6.583333333 | L154: 6.800925926 | M154: 6.833333333
A155: Y62 | B155: NORTH WEST COMMISSIONING REGION | C155: QE1 | D155: NHS LANCASHIRE AND SOUTH CUMBRIA ICB - 01E | E155: RXN | F155: LANCASHIRE TEACHING HOSPITALS NHS FOUNDATION TRUST | G155: Acute and Acute & Community Trusts | H155: 1501 | I155: 10291 | J155: 6.606507303 | K155: 6.425161004 | L155: 6.585579663 | M155: 6.808781243
A156: Y62 | B156: NORTH WEST COMMISSIONING REGION | C156: QE1 | D156: NHS LANCASHIRE AND SOUTH CUMBRIA ICB - 01E | E156: RXR | F156: EAST LANCASHIRE HOSPITALS NHS TRUST | G156: Acute and Acute & Community Trusts | H156: 35 | I156: 10213 | J156: 6.507936508 | K156: 6.214285714 | L156: 6.80952381 | M156: 6.5
A157: Y62 | B157: NORTH WEST COMMISSIONING REGION | C157: QOP | D157: NHS GREATER MANCHESTER ICB - 00T | E157: RXV | F157: GREATER MANCHESTER MENTAL HEALTH NHS FOUNDATION TRUST | G157: Mental Health & Learning Disability and Mental Health, Learning Disability & Community Trusts | H157: 1486 | I157: 6861 | J157: 6.608062926 | K157: 6.33243607 | L157: 6.760555556 | M157: 6.731197152
A158: Y62 | B158: NORTH WEST COMMISSIONING REGION | C158: QYG | D158: NHS CHESHIRE AND MERSEYSIDE ICB - 01J | E158: RY2 | F158: BRIDGEWATER COMMUNITY HEALTHCARE NHS FOUNDATION TRUST | G158: Community Trusts | H158: 205 | I158: 1579 | J158: 6.894308943 | K158: 7.024390244 | L158: 6.68699187 | M158: 6.971544715
A159: Y62 | B159: NORTH WEST COMMISSIONING REGION | C159: QYG | D159: NHS CHESHIRE AND MERSEYSIDE ICB - 01J | E159: RY7 | F159: WIRRAL COMMUNITY HEALTH AND CARE NHS FOUNDATION TRUST | G159: Community Trusts | H159: 354 | I159: 1757 | J159: 7.164155681 | K159: 7.332862524 | L159: 6.916195857 | M159: 7.243408663
A160: Y63 | B160: NORTH EAST AND YORKSHIRE COMMISSIONING REGION | C160: QHM | D160: NHS NORTH EAST AND NORTH CUMBRIA ICB - 00L | E160: R0B | F160: SOUTH TYNESIDE AND SUNDERLAND NHS FOUNDATION TRUST | G160: Acute and Acute & Community Trusts | H160: 160 | I160: 9548 | J160: 5.545138889 | K160: 5.338541667 | L160: 5.421875 | M160: 5.875
A161: Y63 | B161: NORTH EAST AND YORKSHIRE COMMISSIONING REGION | C161: QWO | D161: NHS WEST YORKSHIRE ICB - 02T | E161: RAE | F161: BRADFORD TEACHING HOSPITALS NHS FOUNDATION TRUST | G161: Acute and Acute & Community Trusts | H161: 77 | I161: 6767 | J161: 6.392496392 | K161: 6.19047619 | L161: 6.471861472 | M161: 6.515151515
A162: Y63 | B162: NORTH EAST AND YORKSHIRE COMMISSIONING REGION | C162: QOQ | D162: NHS HUMBER AND NORTH YORKSHIRE ICB - 02Y | E162: RCB | F162: YORK AND SCARBOROUGH TEACHING HOSPITALS NHS FOUNDATION TRUST | G162: Acute and Acute & Community Trusts | H162: 318 | I162: 10211 | J162: 5.942522711 | K162: 5.382599581 | L162: 6.111111111 | M162: 6.333857442
A163: Y63 | B163: NORTH EAST AND YORKSHIRE COMMISSIONING REGION | C163: QOQ | D163: NHS HUMBER AND NORTH YORKSHIRE ICB - 02Y | E163: RCD | F163: HARROGATE AND DISTRICT NHS FOUNDATION TRUST | G163: Acute and Acute & Community Trusts | H163: 1332 | I163: 5180 | J163: 7.145095899 | K163: 7.14527027 | L163: 6.956684093 | M163: 7.333333333
A164: Y63 | B164: NORTH EAST AND YORKSHIRE COMMISSIONING REGION | C164: QWO | D164: NHS WEST YORKSHIRE ICB - 02T | E164: RCF | F164: AIREDALE NHS FOUNDATION TRUST | G164: Acute and Acute & Community Trusts | H164: 299 | I164: 3762 | J164: 6.385172798 | K164: 6.24303233 | L164: 6.315496098 | M164: 6.596989967
A165: Y63 | B165: NORTH EAST AND YORKSHIRE COMMISSIONING REGION | C165: QF7 | D165: NHS SOUTH YORKSHIRE ICB - 02P | E165: RCU | F165: SHEFFIELD CHILDREN'S NHS FOUNDATION TRUST | G165: Acute and Acute & Community Trusts | H165: 427 | I165: 3944 | J165: 7.057637263 | K165: 7.408274785 | L165: 6.953551913 | M165: 6.81108509
A166: Y63 | B166: NORTH EAST AND YORKSHIRE COMMISSIONING REGION | C166: QF7 | D166: NHS SOUTH YORKSHIRE ICB - 02P | E166: RFF | F166: BARNSLEY HOSPITAL NHS FOUNDATION TRUST | G166: Acute and Acute & Community Trusts | H166: 147 | I166: 4369 | J166: 6.517384732 | K166: 6.286848073 | L166: 6.337868481 | M166: 6.927437642
A167: Y63 | B167: NORTH EAST AND YORKSHIRE COMMISSIONING REGION | C167: QF7 | D167: NHS SOUTH YORKSHIRE ICB - 02P | E167: RFR | F167: THE ROTHERHAM NHS FOUNDATION TRUST | G167: Acute and Acute & Community Trusts | H167: 62 | I167: 4865 | J167: 6.052867384 | K167: 5.725806452 | L167: 6.008064516 | M167: 6.424731183
A168: Y63 | B168: NORTH EAST AND YORKSHIRE COMMISSIONING REGION | C168: QWO | D168: NHS WEST YORKSHIRE ICB - 02T | E168: RGD | F168: LEEDS AND YORK PARTNERSHIP NHS FOUNDATION TRUST | G168: Mental Health & Learning Disability and Mental Health, Learning Disability & Community Trusts | H168: 296 | I168: 3126 | J168: 7.192192192 | K168: 7.043918919 | L168: 7.342342342 | M168: 7.190315315
A169: Y63 | B169: NORTH EAST AND YORKSHIRE COMMISSIONING REGION | C169: QF7 | D169: NHS SOUTH YORKSHIRE ICB - 02P | E169: RHQ | F169: SHEFFIELD TEACHING HOSPITALS NHS FOUNDATION TRUST | G169: Acute and Acute & Community Trusts | H169: 1129 | I169: 17944 | J169: 6.377817144 | K169: 6.526424565 | L169: 6.226749336 | M169: 6.380277532
A170: Y63 | B170: NORTH EAST AND YORKSHIRE COMMISSIONING REGION | C170: QOQ | D170: NHS HUMBER AND NORTH YORKSHIRE ICB - 02Y | E170: RJL | F170: NORTHERN LINCOLNSHIRE AND GOOLE NHS FOUNDATION TRUST | G170: Acute and Acute & Community Trusts | H170: 142 | I170: 7085 | J170: 5.330594679 | K170: 4.800469484 | L170: 5.36971831 | M170: 5.821596244
A171: Y63 | B171: NORTH EAST AND YORKSHIRE COMMISSIONING REGION | C171: QHM | D171: NHS NORTH EAST AND NORTH CUMBRIA ICB - 00L | E171: RNN | F171: NORTH CUMBRIA INTEGRATED CARE NHS FOUNDATION TRUST | G171: Acute and Acute & Community Trusts | H171: 396 | I171: 7353 | J171: 5.897166105 | K171: 5.326178451 | L171: 6.069023569 | M171: 6.296296296
A172: Y63 | B172: NORTH EAST AND YORKSHIRE COMMISSIONING REGION | C172: QHM | D172: NHS NORTH EAST AND NORTH CUMBRIA ICB - 00L | E172: RR7 | F172: GATESHEAD HEALTH NHS FOUNDATION TRUST | G172: Acute and Acute & Community Trusts | H172: 95 | I172: 5359 | J172: 6.640350877 | K172: 6.842105263 | L172: 6.570175439 | M172: 6.50877193
A173: Y63 | B173: NORTH EAST AND YORKSHIRE COMMISSIONING REGION | C173: QWO | D173: NHS WEST YORKSHIRE ICB - 02T | E173: RR8 | F173: LEEDS TEACHING HOSPITALS NHS TRUST | G173: Acute and Acute & Community Trusts | H173: 1543 | I173: 20689 | J173: 6.742817023 | K173: 6.882696047 | L173: 6.539749406 | M173: 6.806005617
A174: Y63 | B174: NORTH EAST AND YORKSHIRE COMMISSIONING REGION | C174: QHM | D174: NHS NORTH EAST AND NORTH CUMBRIA ICB - 00L | E174: RTF | F174: NORTHUMBRIA HEALTHCARE NHS FOUNDATION TRUST | G174: Acute and Acute & Community Trusts | H174: 4114 | I174: 9211 | J174: 7.197914979 | K174: 7.733349538 | L174: 6.811902447 | M174: 7.048492951
A175: Y63 | B175: NORTH EAST AND YORKSHIRE COMMISSIONING REGION | C175: QHM | D175: NHS NORTH EAST AND NORTH CUMBRIA ICB - 00L | E175: RVW | F175: NORTH TEES AND HARTLEPOOL NHS FOUNDATION TRUST | G175: Acute and Acute & Community Trusts | H175: 51 | I175: 5934 | J175: 6.715686275 | K175: 6.486928105 | L175: 6.911764706 | M175: 6.748366013
A176: Y63 | B176: NORTH EAST AND YORKSHIRE COMMISSIONING REGION | C176: QOQ | D176: NHS HUMBER AND NORTH YORKSHIRE ICB - 02Y | E176: RWA | F176: HULL UNIVERSITY TEACHING HOSPITALS NHS TRUST | G176: Acute and Acute & Community Trusts | H176: 1893 | I176: 9682 | J176: 6.463285894 | K176: 6.3699595 | L176: 6.336206897 | M176: 6.683691287
A177: Y63 | B177: NORTH EAST AND YORKSHIRE COMMISSIONING REGION | C177: QWO | D177: NHS WEST YORKSHIRE ICB - 02T | E177: RWY | F177: CALDERDALE AND HUDDERSFIELD NHS FOUNDATION TRUST | G177: Acute and Acute & Community Trusts | H177: 282 | I177: 6698 | J177: 6.305161545 | K177: 6.391843972 | L177: 6.329787234 | M177: 6.193853428
A178: Y63 | B178: NORTH EAST AND YORKSHIRE COMMISSIONING REGION | C178: QHM | D178: NHS NORTH EAST AND NORTH CUMBRIA ICB - 00L | E178: RX3 | F178: TEES, ESK AND WEAR VALLEYS NHS FOUNDATION TRUST | G178: Mental Health & Learning Disability and Mental Health, Learning Disability & Community Trusts | H178: 823 | I178: 7998 | J178: 6.700756042 | K178: 6.404414743 | L178: 6.777035237 | M178: 6.920818145
A179: Y63 | B179: NORTH EAST AND YORKSHIRE COMMISSIONING REGION | C179: QHM | D179: NHS NORTH EAST AND NORTH CUMBRIA ICB - 00L | E179: RX4 | F179: CUMBRIA, NORTHUMBERLAND, TYNE AND WEAR NHS FOUNDATION TRUST | G179: Mental Health & Learning Disability and Mental Health, Learning Disability & Community Trusts | H179: 549 | I179: 8284 | J179: 6.796195102 | K179: 6.809350334 | L179: 6.686399514 | M179: 6.892835458
A180: Y63 | B180: NORTH EAST AND YORKSHIRE COMMISSIONING REGION | C180: QHM | D180: NHS NORTH EAST AND NORTH CUMBRIA ICB - 00L | E180: RX6 | F180: NORTH EAST AMBULANCE SERVICE NHS FOUNDATION TRUST | G180: Ambulance Trusts | H180: 66 | I180: 3264 | J180: 4.654882155 | K180: 4.532828283 | L180: 3.75 | M180: 5.681818182
A181: Y63 | B181: NORTH EAST AND YORKSHIRE COMMISSIONING REGION | C181: QWO | D181: NHS WEST YORKSHIRE ICB - 02T | E181: RX8 | F181: YORKSHIRE AMBULANCE SERVICE NHS TRUST | G181: Ambulance Trusts | H181: 919 | I181: 6251 | J181: 5.943054044 | K181: 6.171563293 | L181: 5.383569097 | M181: 6.274029742
A182: Y63 | B182: NORTH EAST AND YORKSHIRE COMMISSIONING REGION | C182: QF7 | D182: NHS SOUTH YORKSHIRE ICB - 02P | E182: RXE | F182: ROTHERHAM DONCASTER AND SOUTH HUMBER NHS FOUNDATION TRUST | G182: Mental Health & Learning Disability and Mental Health, Learning Disability & Community Trusts | H182: 58 | I182: 3856 | J182: 6.005747126 | K182: 5.804597701 | L182: 6.063218391 | M182: 6.149425287
A183: Y63 | B183: NORTH EAST AND YORKSHIRE COMMISSIONING REGION | C183: QWO | D183: NHS WEST YORKSHIRE ICB - 02T | E183: RXF | F183: MID YORKSHIRE TEACHING NHS TRUST | G183: Acute and Acute & Community Trusts | H183: 1741 | I183: 9757 | J183: 6.435596358 | K183: 6.299061842 | L183: 6.314102564 | M183: 6.693624669
A184: Y63 | B184: NORTH EAST AND YORKSHIRE COMMISSIONING REGION | C184: QWO | D184: NHS WEST YORKSHIRE ICB - 02T | E184: RXG | F184: SOUTH WEST YORKSHIRE PARTNERSHIP NHS FOUNDATION TRUST | G184: Mental Health & Learning Disability and Mental Health, Learning Disability & Community Trusts | H184: 127 | I184: 4839 | J184: 7.077865267 | K184: 7.139107612 | L184: 7.020997375 | M184: 7.073490814
A185: Y63 | B185: NORTH EAST AND YORKSHIRE COMMISSIONING REGION | C185: QHM | D185: NHS NORTH EAST AND NORTH CUMBRIA ICB - 00L | E185: RXP | F185: COUNTY DURHAM AND DARLINGTON NHS FOUNDATION TRUST | G185: Acute and Acute & Community Trusts | H185: 726 | I185: 8337 | J185: 6.147076829 | K185: 5.850550964 | L185: 6.030762167 | M185: 6.559917355
A186: Y63 | B186: NORTH EAST AND YORKSHIRE COMMISSIONING REGION | C186: QWO | D186: NHS WEST YORKSHIRE ICB - 02T | E186: RY6 | F186: LEEDS COMMUNITY HEALTHCARE NHS TRUST | G186: Community Trusts | H186: 767 | I186: 3377 | J186: 6.991217879 | K186: 7.151789564 | L186: 6.815127872 | M186: 7.006736202
A187: Y63 | B187: NORTH EAST AND YORKSHIRE COMMISSIONING REGION | C187: QWO | D187: NHS WEST YORKSHIRE ICB - 02T | E187: TAD | F187: BRADFORD DISTRICT CARE NHS FOUNDATION TRUST | G187: Mental Health & Learning Disability and Mental Health, Learning Disability & Community Trusts | H187: 370 | I187: 3287 | J187: 7.065440778 | K187: 7.168918919 | L187: 7.014824798 | M187: 7.012578616
A188: Y63 | B188: NORTH EAST AND YORKSHIRE COMMISSIONING REGION | C188: QF7 | D188: NHS SOUTH YORKSHIRE ICB - 02P | E188: TAH | F188: SHEFFIELD HEALTH & SOCIAL CARE NHS FOUNDATION TRUST | G188: Mental Health & Learning Disability and Mental Health, Learning Disability & Community Trusts | H188: 318 | I188: 2592 | J188: 6.064814815 | K188: 5.602725367 | L188: 6.451781971 | M188: 6.139937107

Sheet Engagement Score
X3: Avg Motivation: | Y3: =AVERAGE(T4,Y4,AD4) -> 6.774623304 | AM3: Avg Involvement: | AN3: =AVERAGE(AI4,AN4,AS4) -> 6.482307748 | BB3: Avg Advocacy: | BC3: =AVERAGE(AX4,BC4,BH4) -> 6.645001642
T4: =IF($H$10=0,"-",((K$10*0)+(L$10*2.5)+(M$10*5)+(N$10*7.5)+(O$10*10))/$BF$10) -> 6.083748663 | Y4: =IF($H$10=0,"-",((P$10*0)+(Q$10*2.5)+(R$10*5)+(S$10*7.5)+(T$10*10))/$BF$10) -> 6.922800929 | AD4: =IF($H$10=0,"-",((U$10*0)+(V$10*2.5)+(W$10*5)+(X$10*7.5)+(Y$10*10))/$BF$10) -> 7.317320321 | AI4: =IF($H$10=0,"-",((Z$10*0)+(AA$10*2.5)+(AB$10*5)+(AC$10*7.5)+(AD$10*10))/$BE$10) -> 6.652120026 | AN4: =IF($H$10=0,"-",((AE$10*0)+(AF$10*2.5)+(AG$10*5)+(AH$10*7.5)+(AI$10*10))/$BE$10) -> 6.685431616 | AS4: =IF($H$10=0,"-",((AJ$10*0)+(AK$10*2.5)+(AL$10*5)+(AM$10*7.5)+(AN$10*10))/$BE$10) -> 6.109371603 | AX4: =IF($H$10=0,"-",((AO$10*0)+(AP$10*2.5)+(AQ$10*5)+(AR$10*7.5)+(AS$10*10))/$BD$10) -> 7.111119345 | BC4: =IF($H$10=0,"-",((AT$10*0)+(AU$10*2.5)+(AV$10*5)+(AW$10*7.5)+(AX$10*10))/$BD$10) -> 6.211366945 | BH4: =IF($H$10=0,"-",((AY$10*0)+(AZ$10*2.5)+(BA$10*5)+(BB$10*7.5)+(BC$10*10))/$BD$10) -> 6.612518635
A7: Region Code | B7: Region Name | C7: ICB Code | D7: ICB Name | E7: Org Code | F7: Org Name | G7: Care Setting | H7: Total Responses (Average across Theme) | I7: HSCIC Workforce Headcount | J7: Engagement Score | K7: Weighted Breakdown of Responses - Motivation Q1 | P7: Weighted Breakdown of Responses - Motivation Q2 | U7: Weighted Breakdown of Responses - Motivation Q3 | Z7: Weighted Breakdown of Responses - Involvement Q4 | AE7: Weighted Breakdown of Responses - Involvement Q5 | AJ7: Weighted Breakdown of Responses - Involvement Q6 | AO7: Weighted Breakdown of Responses - Advocacy Q7 | AT7: Weighted Breakdown of Responses - Advocacy Q8 | AY7: Weighted Breakdown of Responses - Advocacy Q9 | BD7: Minimum headcounts
K8: Strongly Disagree | L8: Disagree | M8: Neither Disagree nor Agree | N8: Agree | O8: Strongly Agree | P8: Strongly Disagree | Q8: Disagree | R8: Neither Disagree nor Agree | S8: Agree | T8: Strongly Agree | U8: Strongly Disagree | V8: Disagree | W8: Neither Disagree nor Agree | X8: Agree | Y8: Strongly Agree | Z8: Strongly Disagree | AA8: Disagree | AB8: Neither Disagree nor Agree | AC8: Agree | AD8: Strongly Agree | AE8: Strongly Disagree | AF8: Disagree | AG8: Neither Disagree nor Agree | AH8: Agree | AI8: Strongly Agree | AJ8: Strongly Disagree | AK8: Disagree | AL8: Neither Disagree nor Agree | AM8: Agree | AN8: Strongly Agree | AO8: Strongly Disagree | AP8: Disagree | AQ8: Neither Disagree nor Agree | AR8: Agree | AS8: Strongly Agree | AT8: Strongly Disagree | AU8: Disagree | AV8: Neither Disagree nor Agree | AW8: Agree | AX8: Strongly Agree | AY8: Strongly Disagree | AZ8: Disagree | BA8: Neither Disagree nor Agree | BB8: Agree | BC8: Strongly Agree | BD8: Min Advocacy Headcount | BE8: Min involvement Headcount | BF8: Min motivation Headcount
G9: England | H9: 114335 | I9: 1258006 | J9: 6.633977565 | K9: 4802 | L9: 15064 | M9: 37894 | N9: 42567 | O9: 15306 | P9: 2496 | Q9: 9029 | R9: 29354 | S9: 45886 | T9: 28242 | U9: 2498 | V9: 6341 | W9: 25989 | X9: 42589 | Y9: 37605 | Z9: 5399 | AA9: 12046 | AB9: 22152 | AC9: 53323 | AD9: 22403 | AE9: 6011 | AF9: 11298 | AG9: 20638 | AH9: 53767 | AI9: 23397 | AJ9: 7349 | AK9: 15766 | AL9: 28952 | AM9: 45244 | AN9: 17892 | AO9: 4313 | AP9: 9161 | AQ9: 19687 | AR9: 48770 | AS9: 32854 | AT9: 8386 | AU9: 13578 | AV9: 27947 | AW9: 43968 | AX9: 20901 | AY9: 5298 | AZ9: 10254 | BA9: 27008 | BB9: 49677 | BC9: 22521 | BD9: 114701 | BE9: 114975 | BF9: 114969
G10: Selection (excluding suppressed data) | H10: =SUBTOTAL(9,H11:H1002) -> 114335 | I10: =SUBTOTAL(9,I11:I1002) -> 1258006 | J10: =AVERAGE(Y3,AN3,BC3) -> 6.633977565 | K10: =SUBTOTAL(9,K11:K1002) -> 4802 | L10: =SUBTOTAL(9,L11:L1002) -> 15064 | M10: 37894 | N10: 42567 | O10: 15306 | P10: 2496 | Q10: 9029 | R10: 29354 | S10: 45886 | T10: 28242 | U10: 2498 | V10: 6341 | W10: 25989 | X10: 42589 | Y10: 37605 | Z10: 5399 | AA10: 12046 | AB10: 22152 | AC10: 53323 | AD10: 22403 | AE10: 6011 | AF10: 11298 | AG10: 20638 | AH10: 53767 | AI10: 23397 | AJ10: 7349 | AK10: 15766 | AL10: 28952 | AM10: 45244 | AN10: 17892 | AO10: 4313 | AP10: 9161 | AQ10: 19687 | AR10: 48770 | AS10: 32854 | AT10: 8386 | AU10: 13578 | AV10: 27947 | AW10: 43968 | AX10: 20901 | AY10: 5298 | AZ10: 10254 | BA10: 27008 | BB10: 49677 | BC10: 22521 | BD10: 114701 | BE10: 114975 | BF10: 114969
A11: Y56 | B11: LONDON COMMISSIONING REGION | C11: QMF | D11: NHS NORTH EAST LONDON ICB - A3A8R | E11: R1H | F11: BARTS HEALTH NHS TRUST | G11: Acute and Acute & Community Trusts | H11: 835 | I11: 20029 | J11: 6.090818363 | K11: 52 | L11: 160 | M11: 280 | N11: 230 | O11: 113 | P11: 34 | Q11: 91 | R11: 251 | S11: 274 | T11: 185 | U11: 34 | V11: 56 | W11: 197 | X11: 248 | Y11: 300 | Z11: 71 | AA11: 102 | AB11: 190 | AC11: 328 | AD11: 144 | AE11: 73 | AF11: 114 | AG11: 173 | AH11: 327 | AI11: 148 | AJ11: 82 | AK11: 143 | AL11: 213 | AM11: 270 | AN11: 127 | AO11: 70 | AP11: 72 | AQ11: 177 | AR11: 343 | AS11: 173 | AT11: 117 | AU11: 125 | AV11: 227 | AW11: 260 | AX11: 106 | AY11: 68 | AZ11: 84 | BA11: 248 | BB11: 314 | BC11: 121 | BD11: 835 | BE11: 835 | BF11: 835
A12: Y56 | B12: LONDON COMMISSIONING REGION | C12: QMJ | D12: NHS NORTH CENTRAL LONDON ICB - 93C | E12: RAL | F12: ROYAL FREE LONDON NHS FOUNDATION TRUST | G12: Acute and Acute & Community Trusts | H12: 112 | I12: 11731 | J12: 6.321924603 | K12: 5 | L12: 21 | M12: 39 | N12: 30 | O12: 17 | P12: 3 | Q12: 13 | R12: 22 | S12: 38 | T12: 36 | U12: 3 | V12: 6 | W12: 23 | X12: 42 | Y12: 38 | Z12: 3 | AA12: 23 | AB12: 24 | AC12: 47 | AD12: 15 | AE12: 3 | AF12: 20 | AG12: 20 | AH12: 48 | AI12: 21 | AJ12: 9 | AK12: 20 | AL12: 20 | AM12: 47 | AN12: 16 | AO12: 7 | AP12: 17 | AQ12: 19 | AR12: 38 | AS12: 31 | AT12: 11 | AU12: 16 | AV12: 30 | AW12: 38 | AX12: 17 | AY12: 9 | AZ12: 17 | BA12: 23 | BB12: 44 | BC12: 19 | BD12: 112 | BE12: 112 | BF12: 112
A13: Y56 | B13: LONDON COMMISSIONING REGION | C13: QRV | D13: NHS NORTH WEST LONDON ICB - W2U3Z | E13: RAN | F13: ROYAL NATIONAL ORTHOPAEDIC HOSPITAL NHS TRUST | G13: Acute Specialist Trusts | H13: 45 | I13: 1686 | J13: 7.148148148 | K13: 2 | L13: 6 | M13: 9 | N13: 21 | O13: 7 | P13: 2 | Q13: 5 | R13: 6 | S13: 19 | T13: 13 | U13: 0 | V13: 4 | W13: 6 | X13: 18 | Y13: 17 | Z13: 4 | AA13: 1 | AB13: 6 | AC13: 18 | AD13: 16 | AE13: 4 | AF13: 1 | AG13: 6 | AH13: 21 | AI13: 13 | AJ13: 4 | AK13: 1 | AL13: 11 | AM13: 20 | AN13: 9 | AO13: 1 | AP13: 2 | AQ13: 6 | AR13: 21 | AS13: 15 | AT13: 2 | AU13: 4 | AV13: 9 | AW13: 19 | AX13: 11 | AY13: 1 | AZ13: 0 | BA13: 9 | BB13: 17 | BC13: 18 | BD13: 45 | BE13: 45 | BF13: 45
A14: Y56 | B14: LONDON COMMISSIONING REGION | C14: QMJ | D14: NHS NORTH CENTRAL LONDON ICB - 93C | E14: RAP | F14: NORTH MIDDLESEX UNIVERSITY HOSPITAL NHS TRUST | G14: Acute and Acute & Community Trusts | H14: 1086 | I14: 4597 | J14: 6.722945289 | K14: 33 | L14: 97 | M14: 350 | N14: 386 | O14: 240 | P14: 14 | Q14: 71 | R14: 282 | S14: 399 | T14: 322 | U14: 19 | V14: 54 | W14: 247 | X14: 360 | Y14: 406 | Z14: 50 | AA14: 79 | AB14: 254 | AC14: 521 | AD14: 195 | AE14: 53 | AF14: 72 | AG14: 237 | AH14: 538 | AI14: 199 | AJ14: 62 | AK14: 95 | AL14: 303 | AM14: 470 | AN14: 172 | AO14: 33 | AP14: 73 | AQ14: 181 | AR14: 476 | AS14: 330 | AT14: 70 | AU14: 132 | AV14: 312 | AW14: 399 | AX14: 181 | AY14: 76 | AZ14: 127 | BA14: 347 | BB14: 392 | BC14: 153 | BD14: 1093 | BE14: 1099 | BF14: 1086
A15: Y56 | B15: LONDON COMMISSIONING REGION | C15: QMF | D15: NHS NORTH EAST LONDON ICB - A3A8R | E15: RAT | F15: NORTH EAST LONDON NHS FOUNDATION TRUST | G15: Mental Health & Learning Disability and Mental Health, Learning Disability & Community Trusts | H15: 87 | I15: 7175 | J15: 6.736909323 | K15: 5 | L15: 9 | M15: 35 | N15: 24 | O15: 14 | P15: 3 | Q15: 6 | R15: 25 | S15: 35 | T15: 18 | U15: 3 | V15: 2 | W15: 17 | X15: 35 | Y15: 30 | Z15: 4 | AA15: 9 | AB15: 14 | AC15: 44 | AD15: 16 | AE15: 5 | AF15: 8 | AG15: 11 | AH15: 44 | AI15: 19 | AJ15: 3 | AK15: 11 | AL15: 23 | AM15: 34 | AN15: 16 | AO15: 2 | AP15: 5 | AQ15: 14 | AR15: 32 | AS15: 34 | AT15: 5 | AU15: 5 | AV15: 27 | AW15: 31 | AX15: 19 | AY15: 4 | AZ15: 7 | BA15: 27 | BB15: 35 | BC15: 14 | BD15: 87 | BE15: 87 | BF15: 87
A16: Y56 | B16: LONDON COMMISSIONING REGION | C16: QKK | D16: NHS SOUTH EAST LONDON ICB - 72Q | E16: RJ1 | F16: GUY'S AND ST THOMAS' NHS FOUNDATION TRUST | G16: Acute and Acute & Community Trusts | H16: 1608 | I16: 23017 | J16: 6.721975401 | K16: 69 | L16: 211 | M16: 560 | N16: 585 | O16: 208 | P16: 52 | Q16: 142 | R16: 457 | S16: 607 | T16: 355 | U16: 41 | V16: 95 | W16: 353 | X16: 592 | Y16: 527 | Z16: 98 | AA16: 190 | AB16: 309 | AC16: 721 | AD16: 317 | AE16: 103 | AF16: 176 | AG16: 315 | AH16: 717 | AI16: 324 | AJ16: 128 | AK16: 221 | AL16: 395 | AM16: 630 | AN16: 250 | AO16: 42 | AP16: 107 | AQ16: 238 | AR16: 698 | AS16: 551 | AT16: 91 | AU16: 205 | AV16: 341 | AW16: 620 | AX16: 378 | AY16: 30 | AZ16: 95 | BA16: 263 | BB16: 777 | BC16: 470 | BD16: 1635 | BE16: 1624 | BF16: 1608
A17: Y56 | B17: LONDON COMMISSIONING REGION | C17: QKK | D17: NHS SOUTH EAST LONDON ICB - 72Q | E17: RJ2 | F17: LEWISHAM AND GREENWICH NHS TRUST | G17: Acute and Acute & Community Trusts | H17: 88 | I17: 7311 | J17: 6.34469697 | K17: 4 | L17: 17 | M17: 26 | N17: 31 | O17: 10 | P17: 3 | Q17: 13 | R17: 21 | S17: 31 | T17: 20 | U17: 1 | V17: 9 | W17: 18 | X17: 29 | Y17: 31 | Z17: 5 | AA17: 11 | AB17: 16 | AC17: 34 | AD17: 22 | AE17: 6 | AF17: 8 | AG17: 12 | AH17: 40 | AI17: 22 | AJ17: 4 | AK17: 13 | AL17: 22 | AM17: 31 | AN17: 18 | AO17: 1 | AP17: 8 | AQ17: 29 | AR17: 30 | AS17: 20 | AT17: 9 | AU17: 15 | AV17: 28 | AW17: 24 | AX17: 12 | AY17: 5 | AZ17: 14 | BA17: 27 | BB17: 34 | BC17: 8 | BD17: 88 | BE17: 88 | BF17: 88
A18: Y56 | B18: LONDON COMMISSIONING REGION | C18: QWE | D18: NHS SOUTH WEST LONDON ICB - 36L | E18: RJ7 | F18: ST GEORGE'S UNIVERSITY HOSPITALS NHS FOUNDATION TRUST | G18: Acute and Acute & Community Trusts | H18: 12 | I18: 9885 | J18: 5.740740741 | K18: 1 | L18: 4 | M18: 4 | N18: 2 | O18: 1 | P18: 0 | Q18: 3 | R18: 3 | S18: 5 | T18: 1 | U18: 0 | V18: 3 | W18: 1 | X18: 2 | Y18: 6 | Z18: 1 | AA18: 3 | AB18: 0 | AC18: 6 | AD18: 2 | AE18: 1 | AF18: 2 | AG18: 1 | AH18: 6 | AI18: 2 | AJ18: 1 | AK18: 4 | AL18: 3 | AM18: 2 | AN18: 2 | AO18: 1 | AP18: 2 | AQ18: 3 | AR18: 2 | AS18: 4 | AT18: 3 | AU18: 2 | AV18: 4 | AW18: 0 | AX18: 3 | AY18: 1 | AZ18: 2 | BA18: 3 | BB18: 4 | BC18: 2 | BD18: 12 | BE18: 12 | BF18: 12
A19: Y56 | B19: LONDON COMMISSIONING REGION | C19: QKK | D19: NHS SOUTH EAST LONDON ICB - 72Q | E19: RJZ | F19: KING'S COLLEGE HOSPITAL NHS FOUNDATION TRUST | G19: Acute and Acute & Community Trusts | H19: 55 | I19: 14383 | J19: 6.106060606 | K19: 5 | L19: 5 | M19: 23 | N19: 16 | O19: 6 | P19: 3 | Q19: 5 | R19: 16 | S19: 20 | T19: 11 | U19: 3 | V19: 3 | W19: 7 | X19: 25 | Y19: 17 | Z19: 5 | AA19: 1 | AB19: 11 | AC19: 28 | AD19: 10 | AE19: 4 | AF19: 4 | AG19: 11 | AH19: 26 | AI19: 10 | AJ19: 5 | AK19: 7 | AL19: 18 | AM19: 16 | AN19: 9 | AO19: 5 | AP19: 7 | AQ19: 14 | AR19: 22 | AS19: 7 | AT19: 10 | AU19: 10 | AV19: 17 | AW19: 14 | AX19: 4 | AY19: 3 | AZ19: 4 | BA19: 16 | BB19: 28 | BC19: 4 | BD19: 55 | BE19: 55 | BF19: 55
A20: Y56 | B20: LONDON COMMISSIONING REGION | C20: QMJ | D20: NHS NORTH CENTRAL LONDON ICB - 93C | E20: RKE | F20: WHITTINGTON HEALTH NHS TRUST | G20: Acute and Acute & Community Trusts | H20: 411 | I20: 4929 | J20: 6.664639092 | K20: 24 | L20: 49 | M20: 126 | N20: 146 | O20: 66 | P20: 12 | Q20: 27 | R20: 103 | S20: 153 | T20: 116 | U20: 12 | V20: 16 | W20: 70 | X20: 144 | Y20: 169 | Z20: 30 | AA20: 33 | AB20: 66 | AC20: 196 | AD20: 86 | AE20: 32 | AF20: 30 | AG20: 63 | AH20: 189 | AI20: 97 | AJ20: 35 | AK20: 41 | AL20: 87 | AM20: 185 | AN20: 63 | AO20: 23 | AP20: 25 | AQ20: 71 | AR20: 170 | AS20: 122 | AT20: 45 | AU20: 43 | AV20: 95 | AW20: 155 | AX20: 73 | AY20: 35 | AZ20: 29 | BA20: 91 | BB20: 182 | BC20: 74 | BD20: 411 | BE20: 411 | BF20: 411
A21: Y56 | B21: LONDON COMMISSIONING REGION | C21: QMJ | D21: NHS NORTH CENTRAL LONDON ICB - 93C | E21: RNK | F21: TAVISTOCK AND PORTMAN NHS FOUNDATION TRUST | G21: Mental Health & Learning Disability and Mental Health, Learning Disability & Community Trusts | H21: 21 | I21: 819 | J21: 5.489417989 | K21: 3 | L21: 6 | M21: 5 | N21: 6 | O21: 1 | P21: 1 | Q21: 4 | R21: 6 | S21: 6 | T21: 4 | U21: 1 | V21: 4 | W21: 5 | X21: 5 | Y21: 6 | Z21: 3 | AA21: 6 | AB21: 1 | AC21: 8 | AD21: 3 | AE21: 3 | AF21: 4 | AG21: 1 | AH21: 10 | AI21: 3 | AJ21: 3 | AK21: 4 | AL21: 5 | AM21: 8 | AN21: 1 | AO21: 2 | AP21: 3 | AQ21: 5 | AR21: 8 | AS21: 3 | AT21: 4 | AU21: 3 | AV21: 8 | AW21: 4 | AX21: 2 | AY21: 2 | AZ21: 1 | BA21: 7 | BB21: 7 | BC21: 4 | BD21: 21 | BE21: 21 | BF21: 21
A22: Y56 | B22: LONDON COMMISSIONING REGION | C22: QMJ | D22: NHS NORTH CENTRAL LONDON ICB - 93C | E22: RP4 | F22: GREAT ORMOND STREET HOSPITAL FOR CHILDREN NHS FOUNDATION TRUST | G22: Acute Specialist Trusts | H22: 788 | I22: 5718 | J22: 6.984325382 | K22: 33 | L22: 92 | M22: 238 | N22: 341 | O22: 90 | P22: 22 | Q22: 60 | R22: 167 | S22: 360 | T22: 180 | U22: 12 | V22: 37 | W22: 153 | X22: 355 | Y22: 231 | Z22: 37 | AA22: 87 | AB22: 128 | AC22: 371 | AD22: 170 | AE22: 40 | AF22: 78 | AG22: 134 | AH22: 359 | AI22: 182 | AJ22: 50 | AK22: 109 | AL22: 185 | AM22: 304 | AN22: 142 | AO22: 17 | AP22: 56 | AQ22: 69 | AR22: 365 | AS22: 288 | AT22: 48 | AU22: 73 | AV22: 146 | AW22: 320 | AX22: 204 | AY22: 18 | AZ22: 21 | BA22: 59 | BB22: 364 | BC22: 330 | BD22: 791 | BE22: 790 | BF22: 788
A23: Y56 | B23: LONDON COMMISSIONING REGION | C23: QMJ | D23: NHS NORTH CENTRAL LONDON ICB - 93C | E23: RP6 | F23: MOORFIELDS EYE HOSPITAL NHS FOUNDATION TRUST | G23: Acute Specialist Trusts | H23: 36 | I23: 2484 | J23: 5.586419753 | K23: 6 | L23: 3 | M23: 7 | N23: 14 | O23: 6 | P23: 3 | Q23: 3 | R23: 7 | S23: 10 | T23: 13 | U23: 3 | V23: 2 | W23: 5 | X23: 14 | Y23: 12 | Z23: 6 | AA23: 10 | AB23: 8 | AC23: 7 | AD23: 5 | AE23: 7 | AF23: 7 | AG23: 10 | AH23: 8 | AI23: 4 | AJ23: 7 | AK23: 7 | AL23: 12 | AM23: 5 | AN23: 5 | AO23: 4 | AP23: 6 | AQ23: 5 | AR23: 16 | AS23: 5 | AT23: 9 | AU23: 5 | AV23: 10 | AW23: 7 | AX23: 5 | AY23: 3 | AZ23: 4 | BA23: 9 | BB23: 12 | BC23: 8 | BD23: 36 | BE23: 36 | BF23: 36
A24: Y56 | B24: LONDON COMMISSIONING REGION | C24: QRV | D24: NHS NORTH WEST LONDON ICB - W2U3Z | E24: RPY | F24: THE ROYAL MARSDEN NHS FOUNDATION TRUST | G24: Acute Specialist Trusts | H24: 163 | I24: 4612 | J24: 6.615541922 | K24: 12 | L24: 26 | M24: 52 | N24: 59 | O24: 14 | P24: 8 | Q24: 14 | R24: 45 | S24: 58 | T24: 38 | U24: 8 | V24: 6 | W24: 44 | X24: 57 | Y24: 48 | Z24: 13 | AA24: 12 | AB24: 34 | AC24: 81 | AD24: 23 | AE24: 13 | AF24: 17 | AG24: 27 | AH24: 75 | AI24: 31 | AJ24: 14 | AK24: 22 | AL24: 47 | AM24: 59 | AN24: 21 | AO24: 5 | AP24: 4 | AQ24: 31 | AR24: 59 | AS24: 64 | AT24: 12 | AU24: 23 | AV24: 38 | AW24: 61 | AX24: 29 | AY24: 6 | AZ24: 4 | BA24: 17 | BB24: 59 | BC24: 77 | BD24: 163 | BE24: 163 | BF24: 163
A25: Y56 | B25: LONDON COMMISSIONING REGION | C25: QMF | D25: NHS NORTH EAST LONDON ICB - A3A8R | E25: RQX | F25: HOMERTON HEALTHCARE NHS FOUNDATION TRUST | G25: Acute and Acute & Community Trusts | H25: 607 | I25: 4208 | J25: 7.055642351 | K25: 24 | L25: 66 | M25: 222 | N25: 227 | O25: 92 | P25: 16 | Q25: 38 | R25: 170 | S25: 236 | T25: 160 | U25: 13 | V25: 28 | W25: 141 | X25: 224 | Y25: 214 | Z25: 26 | AA25: 39 | AB25: 114 | AC25: 297 | AD25: 147 | AE25: 25 | AF25: 47 | AG25: 100 | AH25: 304 | AI25: 145 | AJ25: 31 | AK25: 75 | AL25: 136 | AM25: 265 | AN25: 114 | AO25: 9 | AP25: 18 | AQ25: 68 | AR25: 280 | AS25: 234 | AT25: 29 | AU25: 40 | AV25: 124 | AW25: 238 | AX25: 176 | AY25: 15 | AZ25: 24 | BA25: 119 | BB25: 264 | BC25: 186 | BD25: 607 | BE25: 621 | BF25: 620
A26: Y56 | B26: LONDON COMMISSIONING REGION | C26: QWE | D26: NHS SOUTH WEST LONDON ICB - 36L | E26: RQY | F26: SOUTH WEST LONDON AND ST GEORGE'S MENTAL HEALTH NHS TRUST | G26: Mental Health & Learning Disability and Mental Health, Learning Disability & Community Trusts | H26: 75 | I26: 2923 | J26: 6.185185185 | K26: 2 | L26: 13 | M26: 27 | N26: 30 | O26: 3 | P26: 1 | Q26: 7 | R26: 23 | S26: 33 | T26: 11 | U26: 3 | V26: 4 | W26: 19 | X26: 27 | Y26: 22 | Z26: 5 | AA26: 11 | AB26: 12 | AC26: 32 | AD26: 15 | AE26: 4 | AF26: 12 | AG26: 14 | AH26: 30 | AI26: 15 | AJ26: 6 | AK26: 14 | AL26: 18 | AM26: 23 | AN26: 14 | AO26: 5 | AP26: 6 | AQ26: 9 | AR26: 39 | AS26: 16 | AT26: 6 | AU26: 13 | AV26: 25 | AW26: 27 | AX26: 4 | AY26: 5 | AZ26: 11 | BA26: 20 | BB26: 34 | BC26: 5 | BD26: 75 | BE26: 75 | BF26: 75
A27: Y56 | B27: LONDON COMMISSIONING REGION | C27: QMJ | D27: NHS NORTH CENTRAL LONDON ICB - 93C | E27: RRP | F27: BARNET, ENFIELD AND HARINGEY MENTAL HEALTH NHS TRUST | G27: Mental Health & Learning Disability and Mental Health, Learning Disability & Community Trusts | H27: 85 | I27: 3066 | J27: 6.153594771 | K27: 7 | L27: 10 | M27: 28 | N27: 25 | O27: 15 | P27: 4 | Q27: 12 | R27: 19 | S27: 33 | T27: 17 | U27: 6 | V27: 6 | W27: 22 | X27: 21 | Y27: 30 | Z27: 8 | AA27: 5 | AB27: 19 | AC27: 35 | AD27: 18 | AE27: 7 | AF27: 6 | AG27: 14 | AH27: 38 | AI27: 20 | AJ27: 6 | AK27: 11 | AL27: 22 | AM27: 30 | AN27: 16 | AO27: 6 | AP27: 10 | AQ27: 24 | AR27: 27 | AS27: 18 | AT27: 10 | AU27: 15 | AV27: 24 | AW27: 24 | AX27: 12 | AY27: 10 | AZ27: 12 | BA27: 32 | BB27: 19 | BC27: 12 | BD27: 85 | BE27: 85 | BF27: 85
A28: Y56 | B28: LONDON COMMISSIONING REGION | C28: QKK | D28: NHS SOUTH EAST LONDON ICB - 72Q | E28: RRU | F28: LONDON AMBULANCE SERVICE NHS TRUST | G28: Ambulance Trusts | H28: 86 | I28: 7665 | J28: 5.9625323 | K28: 5 | L28: 13 | M28: 28 | N28: 31 | O28: 9 | P28: 3 | Q28: 7 | R28: 24 | S28: 35 | T28: 17 | U28: 4 | V28: 7 | W28: 28 | X28: 30 | Y28: 17 | Z28: 7 | AA28: 16 | AB28: 22 | AC28: 32 | AD28: 9 | AE28: 9 | AF28: 8 | AG28: 18 | AH28: 37 | AI28: 14 | AJ28: 13 | AK28: 13 | AL28: 24 | AM28: 26 | AN28: 10 | AO28: 8 | AP28: 8 | AQ28: 17 | AR28: 35 | AS28: 18 | AT28: 14 | AU28: 11 | AV28: 20 | AW28: 30 | AX28: 11 | AY28: 8 | AZ28: 9 | BA28: 18 | BB28: 36 | BC28: 15 | BD28: 86 | BE28: 86 | BF28: 86
A29: Y56 | B29: LONDON COMMISSIONING REGION | C29: QMJ | D29: NHS NORTH CENTRAL LONDON ICB - 93C | E29: RRV | F29: UNIVERSITY COLLEGE LONDON HOSPITALS NHS FOUNDATION TRUST | G29: Acute and Acute & Community Trusts | H29: 514 | I29: 10939 | J29: 7.207090359 | K29: 14 | L29: 57 | M29: 171 | N29: 199 | O29: 73 | P29: 11 | Q29: 42 | R29: 127 | S29: 202 | T29: 132 | U29: 6 | V29: 28 | W29: 107 | X29: 182 | Y29: 191 | Z29: 25 | AA29: 34 | AB29: 77 | AC29: 240 | AD29: 138 | AE29: 24 | AF29: 34 | AG29: 66 | AH29: 240 | AI29: 150 | AJ29: 31 | AK29: 47 | AL29: 105 | AM29: 216 | AN29: 115 | AO29: 17 | AP29: 18 | AQ29: 59 | AR29: 216 | AS29: 204 | AT29: 23 | AU29: 22 | AV29: 94 | AW29: 204 | AX29: 171 | AY29: 11 | AZ29: 12 | BA29: 56 | BB29: 215 | BC29: 220 | BD29: 514 | BE29: 514 | BF29: 514
A30: Y56 | B30: LONDON COMMISSIONING REGION | C30: QMJ | D30: NHS NORTH CENTRAL LONDON ICB - 93C | E30: RV3 | F30: CENTRAL AND NORTH WEST LONDON NHS FOUNDATION TRUST | G30: Mental Health & Learning Disability and Mental Health, Learning Disability & Community Trusts | H30: 35 | I30: 8539 | J30: 5.515873016 | K30: 3 | L30: 11 | M30: 10 | N30: 11 | O30: 0 | P30: 2 | Q30: 4 | R30: 15 | S30: 12 | T30: 2 | U30: 1 | V30: 1 | W30: 10 | X30: 11 | Y30: 12 | Z30: 4 | AA30: 2 | AB30: 10 | AC30: 14 | AD30: 5 | AE30: 7 | AF30: 2 | AG30: 6 | AH30: 15 | AI30: 5 | AJ30: 5 | AK30: 6 | AL30: 10 | AM30: 12 | AN30: 2 | AO30: 2 | AP30: 6 | AQ30: 7 | AR30: 9 | AS30: 11 | AT30: 6 | AU30: 10 | AV30: 9 | AW30: 9 | AX30: 1 | AY30: 4 | AZ30: 6 | BA30: 14 | BB30: 10 | BC30: 1 | BD30: 35 | BE30: 35 | BF30: 35
A31: Y56 | B31: LONDON COMMISSIONING REGION | C31: QWE | D31: NHS SOUTH WEST LONDON ICB - 36L | E31: RVR | F31: EPSOM AND ST HELIER UNIVERSITY HOSPITALS NHS TRUST | G31: Acute and Acute & Community Trusts | H31: 231 | I31: 7102 | J31: 5.505050505 | K31: 22 | L31: 53 | M31: 85 | N31: 56 | O31: 15 | P31: 12 | Q31: 34 | R31: 78 | S31: 73 | T31: 34 | U31: 11 | V31: 20 | W31: 58 | X31: 79 | Y31: 63 | Z31: 25 | AA31: 36 | AB31: 52 | AC31: 98 | AD31: 20 | AE31: 26 | AF31: 34 | AG31: 44 | AH31: 100 | AI31: 27 | AJ31: 31 | AK31: 45 | AL31: 56 | AM31: 80 | AN31: 19 | AO31: 24 | AP31: 31 | AQ31: 61 | AR31: 74 | AS31: 41 | AT31: 50 | AU31: 36 | AV31: 67 | AW31: 70 | AX31: 8 | AY31: 27 | AZ31: 34 | BA31: 71 | BB31: 83 | BC31: 16 | BD31: 231 | BE31: 231 | BF31: 231
A32: Y56 | B32: LONDON COMMISSIONING REGION | C32: QMF | D32: NHS NORTH EAST LONDON ICB - A3A8R | E32: RWK | F32: EAST LONDON NHS FOUNDATION TRUST | G32: Mental Health & Learning Disability and Mental Health, Learning Disability & Community Trusts | H32: 948 | I32: 7300 | J32: 7.049508468 | K32: 22 | L32: 98 | M32: 338 | N32: 362 | O32: 146 | P32: 13 | Q32: 64 | R32: 248 | S32: 410 | T32: 227 | U32: 11 | V32: 46 | W32: 231 | X32: 358 | Y32: 314 | Z32: 22 | AA32: 65 | AB32: 167 | AC32: 498 | AD32: 212 | AE32: 22 | AF32: 68 | AG32: 151 | AH32: 485 | AI32: 234 | AJ32: 31 | AK32: 104 | AL32: 216 | AM32: 423 | AN32: 187 | AO32: 13 | AP32: 34 | AQ32: 117 | AR32: 419 | AS32: 366 | AT32: 38 | AU32: 71 | AV32: 194 | AW32: 405 | AX32: 240 | AY32: 30 | AZ32: 63 | BA32: 233 | BB32: 420 | BC32: 203 | BD32: 948 | BE32: 960 | BF32: 960
A33: Y56 | B33: LONDON COMMISSIONING REGION | C33: QRV | D33: NHS NORTH WEST LONDON ICB - W2U3Z | E33: RYJ | F33: IMPERIAL COLLEGE HEALTHCARE NHS TRUST | G33: Acute and Acute & Community Trusts | H33: 96 | I33: 13870 | J33: 6.527777778 | K33: 6 | L33: 15 | M33: 29 | N33: 37 | O33: 9 | P33: 5 | Q33: 8 | R33: 21 | S33: 42 | T33: 20 | U33: 2 | V33: 6 | W33: 16 | X33: 33 | Y33: 39 | Z33: 6 | AA33: 18 | AB33: 14 | AC33: 35 | AD33: 23 | AE33: 8 | AF33: 15 | AG33: 14 | AH33: 37 | AI33: 22 | AJ33: 8 | AK33: 13 | AL33: 26 | AM33: 32 | AN33: 17 | AO33: 5 | AP33: 8 | AQ33: 12 | AR33: 37 | AS33: 34 | AT33: 10 | AU33: 12 | AV33: 21 | AW33: 31 | AX33: 22 | AY33: 6 | AZ33: 9 | BA33: 17 | BB33: 40 | BC33: 24 | BD33: 96 | BE33: 96 | BF33: 96
A34: Y56 | B34: LONDON COMMISSIONING REGION | C34: QRV | D34: NHS NORTH WEST LONDON ICB - W2U3Z | E34: RYX | F34: CENTRAL LONDON COMMUNITY HEALTHCARE NHS TRUST | G34: Community Trusts | H34: 961 | I34: 4806 | J34: 7.229484487 | K34: 23 | L34: 91 | M34: 306 | N34: 386 | O34: 182 | P34: 14 | Q34: 54 | R34: 228 | S34: 367 | T34: 306 | U34: 10 | V34: 43 | W34: 203 | X34: 306 | Y34: 408 | Z34: 28 | AA34: 69 | AB34: 160 | AC34: 485 | AD34: 233 | AE34: 31 | AF34: 55 | AG34: 154 | AH34: 487 | AI34: 246 | AJ34: 32 | AK34: 96 | AL34: 218 | AM34: 427 | AN34: 198 | AO34: 12 | AP34: 42 | AQ34: 102 | AR34: 414 | AS34: 393 | AT34: 43 | AU34: 71 | AV34: 199 | AW34: 373 | AX34: 276 | AY34: 20 | AZ34: 40 | BA34: 208 | BB34: 427 | BC34: 266 | BD34: 961 | BE34: 971 | BF34: 969
A35: Y56 | B35: LONDON COMMISSIONING REGION | C35: QMJ | D35: NHS NORTH CENTRAL LONDON ICB - 93C | E35: TAF | F35: CAMDEN AND ISLINGTON NHS FOUNDATION TRUST | G35: Mental Health & Learning Disability and Mental Health, Learning Disability & Community Trusts | H35: 85 | I35: 2562 | J35: 5.751633987 | K35: 2 | L35: 20 | M35: 30 | N35: 26 | O35: 7 | P35: 4 | Q35: 13 | R35: 27 | S35: 26 | T35: 15 | U35: 1 | V35: 6 | W35: 21 | X35: 28 | Y35: 29 | Z35: 7 | AA35: 14 | AB35: 17 | AC35: 37 | AD35: 10 | AE35: 10 | AF35: 8 | AG35: 19 | AH35: 39 | AI35: 9 | AJ35: 12 | AK35: 10 | AL35: 26 | AM35: 30 | AN35: 7 | AO35: 6 | AP35: 9 | AQ35: 27 | AR35: 33 | AS35: 10 | AT35: 16 | AU35: 17 | AV35: 24 | AW35: 21 | AX35: 7 | AY35: 9 | AZ35: 12 | BA35: 27 | BB35: 29 | BC35: 8 | BD35: 85 | BE35: 85 | BF35: 85
A36: Y58 | B36: SOUTH WEST COMMISSIONING REGION | C36: QVV | D36: NHS DORSET ICB - 11J | E36: R0D | F36: UNIVERSITY HOSPITALS DORSET NHS FOUNDATION TRUST | G36: Acute and Acute & Community Trusts | H36: 990 | I36: 9659 | J36: 6.159371493 | K36: 48 | L36: 194 | M36: 340 | N36: 310 | O36: 98 | P36: 28 | Q36: 108 | R36: 303 | S36: 357 | T36: 194 | U36: 31 | V36: 71 | W36: 225 | X36: 338 | Y36: 325 | Z36: 59 | AA36: 125 | AB36: 194 | AC36: 439 | AD36: 173 | AE36: 62 | AF36: 123 | AG36: 168 | AH36: 445 | AI36: 192 | AJ36: 73 | AK36: 171 | AL36: 259 | AM36: 357 | AN36: 130 | AO36: 65 | AP36: 136 | AQ36: 223 | AR36: 402 | AS36: 164 | AT36: 86 | AU36: 167 | AV36: 319 | AW36: 312 | AX36: 106 | AY36: 54 | AZ36: 127 | BA36: 289 | BB36: 398 | BC36: 122 | BD36: 990 | BE36: 990 | BF36: 990
A37: Y58 | B37: SOUTH WEST COMMISSIONING REGION | C37: QUY | D37: NHS BRISTOL, NORTH SOMERSET AND SOUTH GLOUCESTERSHIRE ICB - 15C | E37: RA7 | F37: UNIVERSITY HOSPITALS BRISTOL AND WESTON NHS FOUNDATION TRUST | G37: Acute and Acute & Community Trusts | H37: 857 | I37: 12869 | J37: 6.86697783 | K37: 25 | L37: 96 | M37: 281 | N37: 339 | O37: 116 | P37: 14 | Q37: 51 | R37: 240 | S37: 364 | T37: 188 | U37: 15 | V37: 43 | W37: 199 | X37: 327 | Y37: 273 | Z37: 32 | AA37: 95 | AB37: 143 | AC37: 381 | AD37: 206 | AE37: 30 | AF37: 93 | AG37: 144 | AH37: 373 | AI37: 217 | AJ37: 40 | AK37: 134 | AL37: 184 | AM37: 353 | AN37: 146 | AO37: 11 | AP37: 44 | AQ37: 128 | AR37: 380 | AS37: 294 | AT37: 45 | AU37: 84 | AV37: 185 | AW37: 375 | AX37: 168 | AY37: 16 | AZ37: 42 | BA37: 191 | BB37: 426 | BC37: 182 | BD37: 857 | BE37: 857 | BF37: 857
A38: Y58 | B38: SOUTH WEST COMMISSIONING REGION | C38: QJK | D38: NHS DEVON ICB - 15N | E38: RA9 | F38: TORBAY AND SOUTH DEVON NHS FOUNDATION TRUST | G38: Acute and Acute & Community Trusts | H38: 308 | I38: 7174 | J38: 6.004601097 | K38: 13 | L38: 69 | M38: 135 | N38: 105 | O38: 24 | P38: 9 | Q38: 42 | R38: 114 | S38: 118 | T38: 63 | U38: 9 | V38: 32 | W38: 97 | X38: 122 | Y38: 86 | Z38: 21 | AA38: 51 | AB38: 52 | AC38: 130 | AD38: 55 | AE38: 20 | AF38: 34 | AG38: 52 | AH38: 138 | AI38: 65 | AJ38: 30 | AK38: 64 | AL38: 71 | AM38: 91 | AN38: 52 | AO38: 14 | AP38: 46 | AQ38: 76 | AR38: 134 | AS38: 40 | AT38: 30 | AU38: 68 | AV38: 83 | AW38: 103 | AX38: 26 | AY38: 12 | AZ38: 56 | BA38: 93 | BB38: 118 | BC38: 31 | BD38: 310 | BE38: 308 | BF38: 346
A39: Y58 | B39: SOUTH WEST COMMISSIONING REGION | C39: QVV | D39: NHS DORSET ICB - 11J | E39: RBD | F39: DORSET COUNTY HOSPITAL NHS FOUNDATION TRUST | G39: Acute and Acute & Community Trusts | H39: 225 | I39: 3465 | J39: 6.42345679 | K39: 9 | L39: 39 | M39: 77 | N39: 76 | O39: 24 | P39: 2 | Q39: 22 | R39: 61 | S39: 82 | T39: 58 | U39: 5 | V39: 16 | W39: 60 | X39: 80 | Y39: 64 | Z39: 14 | AA39: 28 | AB39: 38 | AC39: 107 | AD39: 38 | AE39: 18 | AF39: 33 | AG39: 28 | AH39: 106 | AI39: 40 | AJ39: 21 | AK39: 43 | AL39: 47 | AM39: 86 | AN39: 28 | AO39: 6 | AP39: 19 | AQ39: 42 | AR39: 101 | AS39: 57 | AT39: 18 | AU39: 27 | AV39: 56 | AW39: 78 | AX39: 46 | AY39: 9 | AZ39: 22 | BA39: 53 | BB39: 102 | BC39: 39 | BD39: 225 | BE39: 225 | BF39: 225
A40: Y58 | B40: SOUTH WEST COMMISSIONING REGION | C40: QOX | D40: NHS BATH AND NORTH EAST SOMERSET, SWINDON AND WILTSHIRE ICB - 92G | E40: RD1 | F40: ROYAL UNITED HOSPITALS BATH NHS FOUNDATION TRUST | G40: Acute and Acute & Community Trusts | H40: 1132 | I40: 6582 | J40: 6.716372874 | K40: 40 | L40: 134 | M40: 424 | N40: 452 | O40: 115 | P40: 13 | Q40: 90 | R40: 326 | S40: 473 | T40: 255 | U40: 14 | V40: 48 | W40: 269 | X40: 469 | Y40: 358 | Z40: 35 | AA40: 105 | AB40: 193 | AC40: 611 | AD40: 207 | AE40: 45 | AF40: 98 | AG40: 173 | AH40: 616 | AI40: 219 | AJ40: 67 | AK40: 169 | AL40: 285 | AM40: 498 | AN40: 130 | AO40: 21 | AP40: 87 | AQ40: 187 | AR40: 548 | AS40: 291 | AT40: 59 | AU40: 124 | AV40: 282 | AW40: 497 | AX40: 171 | AY40: 25 | AZ40: 81 | BA40: 266 | BB40: 554 | BC40: 206 | BD40: 1132 | BE40: 1149 | BF40: 1157
A41: Y58 | B41: SOUTH WEST COMMISSIONING REGION | C41: QVV | D41: NHS DORSET ICB - 11J | E41: RDY | F41: DORSET HEALTHCARE UNIVERSITY NHS FOUNDATION TRUST | G41: Mental Health & Learning Disability and Mental Health, Learning Disability & Community Trusts | H41: 596 | I41: 6869 | J41: 6.602815063 | K41: 21 | L41: 77 | M41: 196 | N41: 219 | O41: 83 | P41: 12 | Q41: 40 | R41: 166 | S41: 226 | T41: 152 | U41: 11 | V41: 39 | W41: 111 | X41: 232 | Y41: 203 | Z41: 33 | AA41: 75 | AB41: 101 | AC41: 278 | AD41: 109 | AE41: 38 | AF41: 58 | AG41: 106 | AH41: 274 | AI41: 120 | AJ41: 36 | AK41: 92 | AL41: 167 | AM41: 211 | AN41: 90 | AO41: 16 | AP41: 54 | AQ41: 116 | AR41: 269 | AS41: 141 | AT41: 42 | AU41: 72 | AV41: 150 | AW41: 232 | AX41: 100 | AY41: 12 | AZ41: 50 | BA41: 145 | BB41: 277 | BC41: 112 | BD41: 596 | BE41: 596 | BF41: 596
A42: Y58 | B42: SOUTH WEST COMMISSIONING REGION | C42: QT6 | D42: NHS CORNWALL AND THE ISLES OF SCILLY ICB - 11N | E42: REF | F42: ROYAL CORNWALL HOSPITALS NHS TRUST | G42: Acute and Acute & Community Trusts | H42: 834 | I42: 7222 | J42: 6.536437517 | K42: 44 | L42: 126 | M42: 231 | N42: 362 | O42: 71 | P42: 29 | Q42: 77 | R42: 175 | S42: 410 | T42: 143 | U42: 15 | V42: 50 | W42: 157 | X42: 345 | Y42: 268 | Z42: 41 | AA42: 73 | AB42: 132 | AC42: 371 | AD42: 217 | AE42: 47 | AF42: 66 | AG42: 129 | AH42: 381 | AI42: 212 | AJ42: 58 | AK42: 111 | AL42: 181 | AM42: 333 | AN42: 151 | AO42: 32 | AP42: 78 | AQ42: 176 | AR42: 388 | AS42: 160 | AT42: 62 | AU42: 94 | AV42: 230 | AW42: 349 | AX42: 99 | AY42: 51 | AZ42: 101 | BA42: 222 | BB42: 362 | BC42: 99 | BD42: 834 | BE42: 834 | BF42: 834
A43: Y58 | B43: SOUTH WEST COMMISSIONING REGION | C43: QSL | D43: NHS SOMERSET ICB - 11X | E43: RH5 | F43: SOMERSET NHS FOUNDATION TRUST | G43: Acute and Acute & Community Trusts | H43: 719 | I43: 13308 | J43: 6.802271674 | K43: 22 | L43: 92 | M43: 213 | N43: 289 | O43: 103 | P43: 9 | Q43: 47 | R43: 186 | S43: 281 | T43: 196 | U43: 13 | V43: 31 | W43: 141 | X43: 274 | Y43: 260 | Z43: 31 | AA43: 66 | AB43: 125 | AC43: 345 | AD43: 152 | AE43: 32 | AF43: 60 | AG43: 125 | AH43: 340 | AI43: 162 | AJ43: 41 | AK43: 88 | AL43: 179 | AM43: 278 | AN43: 133 | AO43: 29 | AP43: 54 | AQ43: 123 | AR43: 297 | AS43: 216 | AT43: 48 | AU43: 77 | AV43: 163 | AW43: 290 | AX43: 141 | AY43: 39 | AZ43: 50 | BA43: 151 | BB43: 320 | BC43: 159 | BD43: 719 | BE43: 719 | BF43: 719
A44: Y58 | B44: SOUTH WEST COMMISSIONING REGION | C44: QJK | D44: NHS DEVON ICB - 15N | E44: RH8 | F44: ROYAL DEVON UNIVERSITY HEALTHCARE NHS FOUNDATION TRUST | G44: Acute and Acute & Community Trusts | H44: 2311 | I44: 13192 | J44: 6.705921584 | K44: 80 | L44: 284 | M44: 781 | N44: 952 | O44: 239 | P44: 27 | Q44: 175 | R44: 627 | S44: 1026 | T44: 458 | U44: 29 | V44: 127 | W44: 554 | X44: 933 | Y44: 668 | Z44: 74 | AA44: 239 | AB44: 424 | AC44: 1175 | AD44: 430 | AE44: 89 | AF44: 202 | AG44: 415 | AH44: 1185 | AI44: 447 | AJ44: 116 | AK44: 292 | AL44: 597 | AM44: 1013 | AN44: 322 | AO44: 69 | AP44: 179 | AQ44: 400 | AR44: 1026 | AS44: 663 | AT44: 139 | AU44: 295 | AV44: 538 | AW44: 1051 | AX44: 313 | AY44: 69 | AZ44: 151 | BA44: 459 | BB44: 1218 | BC44: 434 | BD44: 2331 | BE44: 2338 | BF44: 2311
A45: Y58 | B45: SOUTH WEST COMMISSIONING REGION | C45: QT6 | D45: NHS CORNWALL AND THE ISLES OF SCILLY ICB - 11N | E45: RJ8 | F45: CORNWALL PARTNERSHIP NHS FOUNDATION TRUST | G45: Mental Health & Learning Disability and Mental Health, Learning Disability & Community Trusts | H45: 11 | I45: 4926 | J45: 6.742424242 | K45: 1 | L45: 1 | M45: 3 | N45: 5 | O45: 1 | P45: 0 | Q45: 0 | R45: 3 | S45: 6 | T45: 2 | U45: 0 | V45: 0 | W45: 3 | X45: 7 | Y45: 1 | Z45: 0 | AA45: 1 | AB45: 4 | AC45: 4 | AD45: 2 | AE45: 0 | AF45: 1 | AG45: 0 | AH45: 8 | AI45: 2 | AJ45: 0 | AK45: 3 | AL45: 2 | AM45: 5 | AN45: 1 | AO45: 0 | AP45: 0 | AQ45: 3 | AR45: 5 | AS45: 3 | AT45: 0 | AU45: 2 | AV45: 2 | AW45: 5 | AX45: 2 | AY45: 0 | AZ45: 2 | BA45: 3 | BB45: 4 | BC45: 2 | BD45: 11 | BE45: 11 | BF45: 11
A46: Y58 | B46: SOUTH WEST COMMISSIONING REGION | C46: QJK | D46: NHS DEVON ICB - 15N | E46: RK9 | F46: UNIVERSITY HOSPITALS PLYMOUTH NHS TRUST | G46: Acute and Acute & Community Trusts | H46: 1135 | I46: 10600 | J46: 6.402000051 | K46: 75 | L46: 180 | M46: 335 | N46: 385 | O46: 163 | P46: 36 | Q46: 107 | R46: 269 | S46: 405 | T46: 320 | U46: 27 | V46: 59 | W46: 258 | X46: 432 | Y46: 361 | Z46: 91 | AA46: 132 | AB46: 213 | AC46: 485 | AD46: 216 | AE46: 96 | AF46: 114 | AG46: 200 | AH46: 498 | AI46: 228 | AJ46: 114 | AK46: 180 | AL46: 263 | AM46: 421 | AN46: 160 | AO46: 49 | AP46: 122 | AQ46: 203 | AR46: 475 | AS46: 287 | AT46: 105 | AU46: 147 | AV46: 248 | AW46: 478 | AX46: 160 | AY46: 58 | AZ46: 143 | BA46: 270 | BB46: 493 | BC46: 171 | BD46: 1135 | BE46: 1136 | BF46: 1137
A47: Y58 | B47: SOUTH WEST COMMISSIONING REGION | C47: QOX | D47: NHS BATH AND NORTH EAST SOMERSET, SWINDON AND WILTSHIRE ICB - 92G | E47: RN3 | F47: GREAT WESTERN HOSPITALS NHS FOUNDATION TRUST | G47: Acute and Acute & Community Trusts | H47: 1278 | I47: 5705 | J47: 6.698438886 | K47: 34 | L47: 152 | M47: 427 | N47: 486 | O47: 197 | P47: 16 | Q47: 93 | R47: 323 | S47: 509 | T47: 346 | U47: 16 | V47: 66 | W47: 264 | X47: 492 | Y47: 449 | Z47: 42 | AA47: 142 | AB47: 276 | AC47: 625 | AD47: 211 | AE47: 48 | AF47: 125 | AG47: 263 | AH47: 630 | AI47: 228 | AJ47: 60 | AK47: 178 | AL47: 366 | AM47: 513 | AN47: 175 | AO47: 26 | AP47: 88 | AQ47: 232 | AR47: 589 | AS47: 345 | AT47: 52 | AU47: 151 | AV47: 362 | AW47: 518 | AX47: 198 | AY47: 42 | AZ47: 123 | BA47: 355 | BB47: 566 | BC47: 192 | BD47: 1278 | BE47: 1292 | BF47: 1287
A48: Y58 | B48: SOUTH WEST COMMISSIONING REGION | C48: QR1 | D48: NHS GLOUCESTERSHIRE ICB - 11M | E48: RTE | F48: GLOUCESTERSHIRE HOSPITALS NHS FOUNDATION TRUST | G48: Acute and Acute & Community Trusts | H48: 748 | I48: 8924 | J48: 6.245871066 | K48: 50 | L48: 149 | M48: 323 | N48: 307 | O48: 104 | P48: 25 | Q48: 102 | R48: 273 | S48: 339 | T48: 184 | U48: 27 | V48: 64 | W48: 254 | X48: 330 | Y48: 255 | Z48: 66 | AA48: 128 | AB48: 223 | AC48: 380 | AD48: 137 | AE48: 82 | AF48: 131 | AG48: 19 | AH48: 381 | AI48: 135 | AJ48: 102 | AK48: 173 | AL48: 253 | AM48: 308 | AN48: 92 | AO48: 84 | AP48: 116 | AQ48: 203 | AR48: 345 | AS48: 183 | AT48: 123 | AU48: 181 | AV48: 252 | AW48: 283 | AX48: 90 | AY48: 107 | AZ48: 157 | BA48: 284 | BB48: 286 | BC48: 101 | BD48: 929 | BE48: 748 | BF48: 923
A49: Y58 | B49: SOUTH WEST COMMISSIONING REGION | C49: QR1 | D49: NHS GLOUCESTERSHIRE ICB - 11M | E49: RTQ | F49: GLOUCESTERSHIRE HEALTH AND CARE NHS FOUNDATION TRUST | G49: Mental Health & Learning Disability and Mental Health, Learning Disability & Community Trusts | H49: 288 | I49: 4799 | J49: 6.921296296 | K49: 9 | L49: 30 | M49: 101 | N49: 113 | O49: 35 | P49: 5 | Q49: 13 | R49: 77 | S49: 127 | T49: 66 | U49: 3 | V49: 10 | W49: 67 | X49: 109 | Y49: 99 | Z49: 5 | AA49: 28 | AB49: 49 | AC49: 143 | AD49: 63 | AE49: 6 | AF49: 15 | AG49: 48 | AH49: 146 | AI49: 73 | AJ49: 8 | AK49: 29 | AL49: 77 | AM49: 123 | AN49: 51 | AO49: 7 | AP49: 25 | AQ49: 48 | AR49: 143 | AS49: 65 | AT49: 14 | AU49: 24 | AV49: 71 | AW49: 119 | AX49: 60 | AY49: 6 | AZ49: 19 | BA49: 60 | BB49: 142 | BC49: 61 | BD49: 288 | BE49: 288 | BF49: 288
A50: Y58 | B50: SOUTH WEST COMMISSIONING REGION | C50: QUY | D50: NHS BRISTOL, NORTH SOMERSET AND SOUTH GLOUCESTERSHIRE ICB - 15C | E50: RVJ | F50: NORTH BRISTOL NHS TRUST | G50: Acute and Acute & Community Trusts | H50: 117 | I50: 10025 | J50: 6.168091168 | K50: 10 | L50: 22 | M50: 39 | N50: 32 | O50: 14 | P50: 5 | Q50: 17 | R50: 26 | S50: 44 | T50: 25 | U50: 6 | V50: 11 | W50: 24 | X50: 47 | Y50: 29 | Z50: 10 | AA50: 12 | AB50: 26 | AC50: 53 | AD50: 16 | AE50: 12 | AF50: 15 | AG50: 19 | AH50: 56 | AI50: 15 | AJ50: 15 | AK50: 19 | AL50: 20 | AM50: 51 | AN50: 12 | AO50: 1 | AP50: 8 | AQ50: 27 | AR50: 53 | AS50: 28 | AT50: 15 | AU50: 11 | AV50: 34 | AW50: 44 | AX50: 13 | AY50: 4 | AZ50: 8 | BA50: 32 | BB50: 59 | BC50: 14 | BD50: 117 | BE50: 117 | BF50: 117
A51: Y58 | B51: SOUTH WEST COMMISSIONING REGION | C51: QOX | D51: NHS BATH AND NORTH EAST SOMERSET, SWINDON AND WILTSHIRE ICB - 92G | E51: RVN | F51: AVON AND WILTSHIRE MENTAL HEALTH PARTNERSHIP NHS TRUST | G51: Mental Health & Learning Disability and Mental Health, Learning Disability & Community Trusts | H51: 139 | I51: 4836 | J51: 5.819344524 | K51: 11 | L51: 28 | M51: 52 | N51: 36 | O51: 12 | P51: 7 | Q51: 18 | R51: 45 | S51: 43 | T51: 26 | U51: 6 | V51: 5 | W51: 40 | X51: 48 | Y51: 40 | Z51: 17 | AA51: 17 | AB51: 23 | AC51: 52 | AD51: 30 | AE51: 16 | AF51: 17 | AG51: 21 | AH51: 53 | AI51: 32 | AJ51: 19 | AK51: 22 | AL51: 26 | AM51: 54 | AN51: 18 | AO51: 14 | AP51: 17 | AQ51: 38 | AR51: 43 | AS51: 27 | AT51: 24 | AU51: 22 | AV51: 42 | AW51: 34 | AX51: 17 | AY51: 15 | AZ51: 21 | BA51: 49 | BB51: 40 | BC51: 14 | BD51: 139 | BE51: 139 | BF51: 139
A52: Y58 | B52: SOUTH WEST COMMISSIONING REGION | C52: QJK | D52: NHS DEVON ICB - 15N | E52: RWV | F52: DEVON PARTNERSHIP NHS TRUST | G52: Mental Health & Learning Disability and Mental Health, Learning Disability & Community Trusts | H52: 155 | I52: 3794 | J52: 6.258064516 | K52: 7 | L52: 21 | M52: 58 | N52: 55 | O52: 14 | P52: 3 | Q52: 14 | R52: 57 | S52: 57 | T52: 24 | U52: 0 | V52: 8 | W52: 43 | X52: 70 | Y52: 34 | Z52: 4 | AA52: 20 | AB52: 30 | AC52: 73 | AD52: 28 | AE52: 3 | AF52: 18 | AG52: 30 | AH52: 76 | AI52: 28 | AJ52: 6 | AK52: 23 | AL52: 42 | AM52: 57 | AN52: 27 | AO52: 7 | AP52: 22 | AQ52: 33 | AR52: 56 | AS52: 37 | AT52: 14 | AU52: 27 | AV52: 49 | AW52: 45 | AX52: 20 | AY52: 14 | AZ52: 26 | BA52: 48 | BB52: 50 | BC52: 17 | BD52: 155 | BE52: 155 | BF52: 155
A53: Y59 | B53: SOUTH EAST COMMISSIONING REGION | C53: QRL | D53: NHS HAMPSHIRE AND ISLE OF WIGHT ICB - D9Y0V | E53: R1C | F53: SOLENT NHS TRUST | G53: Mental Health & Learning Disability and Mental Health, Learning Disability & Community Trusts | H53: 47 | I53: 4205 | J53: 7.281323877 | K53: 1 | L53: 4 | M53: 13 | N53: 23 | O53: 6 | P53: 0 | Q53: 3 | R53: 8 | S53: 25 | T53: 11 | U53: 1 | V53: 0 | W53: 9 | X53: 15 | Y53: 22 | Z53: 1 | AA53: 3 | AB53: 4 | AC53: 25 | AD53: 14 | AE53: 1 | AF53: 3 | AG53: 3 | AH53: 29 | AI53: 11 | AJ53: 1 | AK53: 4 | AL53: 10 | AM53: 22 | AN53: 10 | AO53: 2 | AP53: 2 | AQ53: 8 | AR53: 16 | AS53: 19 | AT53: 2 | AU53: 4 | AV53: 10 | AW53: 19 | AX53: 12 | AY53: 1 | AZ53: 4 | BA53: 7 | BB53: 21 | BC53: 14 | BD53: 47 | BE53: 47 | BF53: 47
A54: Y59 | B54: SOUTH EAST COMMISSIONING REGION | C54: QRL | D54: NHS HAMPSHIRE AND ISLE OF WIGHT ICB - D9Y0V | E54: R1F | F54: ISLE OF WIGHT NHS TRUST | G54: Acute and Acute & Community Trusts | H54: 455 | I54: 4116 | J54: 6.242979243 | K54: 19 | L54: 71 | M54: 164 | N54: 152 | O54: 49 | P54: 8 | Q54: 45 | R54: 127 | S54: 150 | T54: 125 | U54: 5 | V54: 30 | W54: 111 | X54: 155 | Y54: 154 | Z54: 21 | AA54: 50 | AB54: 95 | AC54: 203 | AD54: 86 | AE54: 26 | AF54: 48 | AG54: 73 | AH54: 219 | AI54: 89 | AJ54: 28 | AK54: 79 | AL54: 106 | AM54: 180 | AN54: 62 | AO54: 23 | AP54: 60 | AQ54: 117 | AR54: 160 | AS54: 95 | AT54: 41 | AU54: 71 | AV54: 164 | AW54: 134 | AX54: 45 | AY54: 43 | AZ54: 75 | BA54: 147 | BB54: 150 | BC54: 40 | BD54: 455 | BE54: 455 | BF54: 455
A55: Y59 | B55: SOUTH EAST COMMISSIONING REGION | C55: QNX | D55: NHS SUSSEX ICB - 09D | E55: RDR | F55: SUSSEX COMMUNITY NHS FOUNDATION TRUST | G55: Community Trusts | H55: 638 | I55: 5519 | J55: 7.061999303 | K55: 11 | L55: 65 | M55: 206 | N55: 260 | O55: 96 | P55: 7 | Q55: 37 | R55: 146 | S55: 278 | T55: 170 | U55: 5 | V55: 22 | W55: 122 | X55: 243 | Y55: 246 | Z55: 20 | AA55: 63 | AB55: 140 | AC55: 287 | AD55: 128 | AE55: 20 | AF55: 40 | AG55: 130 | AH55: 305 | AI55: 143 | AJ55: 24 | AK55: 68 | AL55: 193 | AM55: 247 | AN55: 106 | AO55: 14 | AP55: 27 | AQ55: 92 | AR55: 273 | AS55: 232 | AT55: 20 | AU55: 46 | AV55: 140 | AW55: 271 | AX55: 161 | AY55: 13 | AZ55: 23 | BA55: 117 | BB55: 303 | BC55: 182 | BD55: 638 | BE55: 638 | BF55: 638
A56: Y59 | B56: SOUTH EAST COMMISSIONING REGION | C56: QNQ | D56: NHS FRIMLEY ICB - D4U1Y | E56: RDU | F56: FRIMLEY HEALTH NHS FOUNDATION TRUST | G56: Acute and Acute & Community Trusts | H56: 2130 | I56: 10689 | J56: 6.913532189 | K56: 50 | L56: 209 | M56: 694 | N56: 859 | O56: 369 | P56: 30 | Q56: 120 | R56: 537 | S56: 864 | T56: 591 | U56: 36 | V56: 94 | W56: 468 | X56: 800 | Y56: 744 | Z56: 65 | AA56: 190 | AB56: 481 | AC56: 1069 | AD56: 361 | AE56: 65 | AF56: 170 | AG56: 467 | AH56: 1079 | AI56: 382 | AJ56: 77 | AK56: 234 | AL56: 629 | AM56: 923 | AN56: 295 | AO56: 36 | AP56: 113 | AQ56: 308 | AR56: 996 | AS56: 677 | AT56: 102 | AU56: 193 | AV56: 518 | AW56: 940 | AX56: 385 | AY56: 51 | AZ56: 126 | BA56: 443 | BB56: 1072 | BC56: 444 | BD56: 2130 | BE56: 2158 | BF56: 2142
A57: Y59 | B57: SOUTH EAST COMMISSIONING REGION | C57: QRL | D57: NHS HAMPSHIRE AND ISLE OF WIGHT ICB - D9Y0V | E57: RHM | F57: UNIVERSITY HOSPITAL SOUTHAMPTON NHS FOUNDATION TRUST | G57: Acute and Acute & Community Trusts | H57: 3323 | I57: 13536 | J57: 6.832555604 | K57: 110 | L57: 398 | M57: 1183 | N57: 1303 | O57: 396 | P57: 49 | Q57: 247 | R57: 907 | S57: 1463 | T57: 690 | U57: 53 | V57: 166 | W57: 846 | X57: 1334 | Y57: 956 | Z57: 86 | AA57: 299 | AB57: 654 | AC57: 1714 | AD57: 614 | AE57: 108 | AF57: 258 | AG57: 631 | AH57: 1748 | AI57: 617 | AJ57: 151 | AK57: 413 | AL57: 880 | AM57: 1436 | AN57: 480 | AO57: 80 | AP57: 243 | AQ57: 422 | AR57: 1548 | AS57: 1030 | AT57: 137 | AU57: 325 | AV57: 768 | AW57: 1433 | AX57: 661 | AY57: 52 | AZ57: 156 | BA57: 648 | BB57: 1673 | BC57: 794 | BD57: 3323 | BE57: 3360 | BF57: 3355
A58: Y59 | B58: SOUTH EAST COMMISSIONING REGION | C58: QRL | D58: NHS HAMPSHIRE AND ISLE OF WIGHT ICB - D9Y0V | E58: RHU | F58: PORTSMOUTH HOSPITALS UNIVERSITY NATIONAL HEALTH SERVICE TRUST | G58: Acute and Acute & Community Trusts | H58: 630 | I58: 8774 | J58: 6.352833188 | K58: 13 | L58: 89 | M58: 230 | N58: 232 | O58: 72 | P58: 4 | Q58: 46 | R58: 183 | S58: 256 | T58: 148 | U58: 16 | V58: 36 | W58: 145 | X58: 246 | Y58: 194 | Z58: 36 | AA58: 86 | AB58: 124 | AC58: 277 | AD58: 107 | AE58: 43 | AF58: 64 | AG58: 128 | AH58: 278 | AI58: 118 | AJ58: 43 | AK58: 105 | AL58: 165 | AM58: 235 | AN58: 87 | AO58: 36 | AP58: 66 | AQ58: 113 | AR58: 249 | AS58: 170 | AT58: 58 | AU58: 110 | AV58: 166 | AW58: 234 | AX58: 69 | AY58: 44 | AZ58: 88 | BA58: 173 | BB58: 259 | BC58: 71 | BD58: 634 | BE58: 630 | BF58: 636
A59: Y59 | B59: SOUTH EAST COMMISSIONING REGION | C59: QU9 | D59: NHS BUCKINGHAMSHIRE, OXFORDSHIRE AND BERKSHIRE WEST ICB - 10Q | E59: RHW | F59: ROYAL BERKSHIRE NHS FOUNDATION TRUST | G59: Acute and Acute & Community Trusts | H59: 42 | I59: 6379 | J59: 6.362433862 | K59: 3 | L59: 6 | M59: 15 | N59: 10 | O59: 8 | P59: 2 | Q59: 5 | R59: 17 | S59: 10 | T59: 8 | U59: 0 | V59: 3 | W59: 14 | X59: 15 | Y59: 10 | Z59: 2 | AA59: 7 | AB59: 6 | AC59: 16 | AD59: 11 | AE59: 1 | AF59: 6 | AG59: 12 | AH59: 12 | AI59: 11 | AJ59: 2 | AK59: 11 | AL59: 9 | AM59: 13 | AN59: 7 | AO59: 2 | AP59: 3 | AQ59: 8 | AR59: 16 | AS59: 13 | AT59: 5 | AU59: 7 | AV59: 11 | AW59: 12 | AX59: 7 | AY59: 1 | AZ59: 6 | BA59: 5 | BB59: 18 | BC59: 12 | BD59: 42 | BE59: 42 | BF59: 42
A60: Y59 | B60: SOUTH EAST COMMISSIONING REGION | C60: QRL | D60: NHS HAMPSHIRE AND ISLE OF WIGHT ICB - D9Y0V | E60: RN5 | F60: HAMPSHIRE HOSPITALS NHS FOUNDATION TRUST | G60: Acute and Acute & Community Trusts | H60: 197 | I60: 7641 | J60: 6.669486746 | K60: 8 | L60: 18 | M60: 60 | N60: 88 | O60: 23 | P60: 4 | Q60: 14 | R60: 43 | S60: 78 | T60: 58 | U60: 5 | V60: 14 | W60: 38 | X60: 67 | Y60: 73 | Z60: 11 | AA60: 19 | AB60: 34 | AC60: 97 | AD60: 36 | AE60: 8 | AF60: 19 | AG60: 24 | AH60: 103 | AI60: 43 | AJ60: 13 | AK60: 25 | AL60: 44 | AM60: 85 | AN60: 30 | AO60: 10 | AP60: 14 | AQ60: 39 | AR60: 85 | AS60: 49 | AT60: 12 | AU60: 28 | AV60: 54 | AW60: 75 | AX60: 28 | AY60: 7 | AZ60: 15 | BA60: 59 | BB60: 84 | BC60: 32 | BD60: 197 | BE60: 197 | BF60: 197
A61: Y59 | B61: SOUTH EAST COMMISSIONING REGION | C61: QKS | D61: NHS KENT AND MEDWAY ICB - 91Q | E61: RN7 | F61: DARTFORD AND GRAVESHAM NHS TRUST | G61: Acute and Acute & Community Trusts | H61: 164 | I61: 4349 | J61: 6.593834688 | K61: 7 | L61: 20 | M61: 48 | N61: 63 | O61: 26 | P61: 4 | Q61: 14 | R61: 41 | S61: 56 | T61: 49 | U61: 4 | V61: 13 | W61: 37 | X61: 48 | Y61: 62 | Z61: 14 | AA61: 17 | AB61: 31 | AC61: 57 | AD61: 45 | AE61: 13 | AF61: 18 | AG61: 24 | AH61: 66 | AI61: 43 | AJ61: 11 | AK61: 22 | AL61: 41 | AM61: 56 | AN61: 34 | AO61: 6 | AP61: 16 | AQ61: 34 | AR61: 61 | AS61: 47 | AT61: 15 | AU61: 24 | AV61: 38 | AW61: 57 | AX61: 30 | AY61: 3 | AZ61: 19 | BA61: 47 | BB61: 68 | BC61: 27 | BD61: 164 | BE61: 164 | BF61: 164
A62: Y59 | B62: SOUTH EAST COMMISSIONING REGION | C62: QU9 | D62: NHS BUCKINGHAMSHIRE, OXFORDSHIRE AND BERKSHIRE WEST ICB - 10Q | E62: RNU | F62: OXFORD HEALTH NHS FOUNDATION TRUST | G62: Mental Health & Learning Disability and Mental Health, Learning Disability & Community Trusts | H62: 467 | I62: 6496 | J62: 6.645848204 | K62: 16 | L62: 71 | M62: 163 | N62: 151 | O62: 66 | P62: 7 | Q62: 34 | R62: 131 | S62: 169 | T62: 126 | U62: 10 | V62: 21 | W62: 89 | X62: 183 | Y62: 164 | Z62: 23 | AA62: 50 | AB62: 76 | AC62: 205 | AD62: 113 | AE62: 27 | AF62: 35 | AG62: 79 | AH62: 216 | AI62: 110 | AJ62: 34 | AK62: 70 | AL62: 104 | AM62: 175 | AN62: 84 | AO62: 19 | AP62: 34 | AQ62: 85 | AR62: 191 | AS62: 138 | AT62: 56 | AU62: 53 | AV62: 104 | AW62: 160 | AX62: 94 | AY62: 34 | AZ62: 36 | BA62: 106 | BB62: 199 | BC62: 92 | BD62: 467 | BE62: 467 | BF62: 467
A63: Y59 | B63: SOUTH EAST COMMISSIONING REGION | C63: QKS | D63: NHS KENT AND MEDWAY ICB - 91Q | E63: RPA | F63: MEDWAY NHS FOUNDATION TRUST | G63: Acute and Acute & Community Trusts | H63: 80 | I63: 5187 | J63: 5.75 | K63: 10 | L63: 10 | M63: 29 | N63: 22 | O63: 9 | P63: 6 | Q63: 9 | R63: 22 | S63: 23 | T63: 20 | U63: 7 | V63: 5 | W63: 14 | X63: 23 | Y63: 31 | Z63: 12 | AA63: 6 | AB63: 16 | AC63: 29 | AD63: 17 | AE63: 12 | AF63: 12 | AG63: 10 | AH63: 33 | AI63: 13 | AJ63: 13 | AK63: 9 | AL63: 17 | AM63: 28 | AN63: 13 | AO63: 13 | AP63: 6 | AQ63: 10 | AR63: 30 | AS63: 21 | AT63: 17 | AU63: 12 | AV63: 19 | AW63: 24 | AX63: 8 | AY63: 20 | AZ63: 8 | BA63: 22 | BB63: 23 | BC63: 7 | BD63: 80 | BE63: 80 | BF63: 80
A64: Y59 | B64: SOUTH EAST COMMISSIONING REGION | C64: QNX | D64: NHS SUSSEX ICB - 09D | E64: RPC | F64: QUEEN VICTORIA HOSPITAL NHS FOUNDATION TRUST | G64: Acute Specialist Trusts | H64: 158 | I64: 1142 | J64: 7.413853727 | K64: 2 | L64: 15 | M64: 42 | N64: 69 | O64: 30 | P64: 1 | Q64: 10 | R64: 28 | S64: 69 | T64: 50 | U64: 1 | V64: 6 | W64: 23 | X64: 67 | Y64: 61 | Z64: 3 | AA64: 19 | AB64: 27 | AC64: 68 | AD64: 41 | AE64: 6 | AF64: 15 | AG64: 26 | AH64: 67 | AI64: 44 | AJ64: 7 | AK64: 24 | AL64: 26 | AM64: 73 | AN64: 28 | AO64: 1 | AP64: 10 | AQ64: 12 | AR64: 50 | AS64: 85 | AT64: 5 | AU64: 11 | AV64: 24 | AW64: 69 | AX64: 49 | AY64: 1 | AZ64: 2 | BA64: 7 | BB64: 65 | BC64: 83 | BD64: 158 | BE64: 158 | BF64: 158
A65: Y59 | B65: SOUTH EAST COMMISSIONING REGION | C65: QU9 | D65: NHS BUCKINGHAMSHIRE, OXFORDSHIRE AND BERKSHIRE WEST ICB - 10Q | E65: RTH | F65: OXFORD UNIVERSITY HOSPITALS NHS FOUNDATION TRUST | G65: Acute and Acute & Community Trusts | H65: 2549 | I65: 14228 | J65: 6.876997294 | K65: 87 | L65: 275 | M65: 831 | N65: 991 | O65: 409 | P65: 53 | Q65: 153 | R65: 678 | S65: 1034 | T65: 657 | U65: 44 | V65: 120 | W65: 593 | X65: 1007 | Y65: 812 | Z65: 97 | AA65: 224 | AB65: 477 | AC65: 1262 | AD65: 510 | AE65: 113 | AF65: 222 | AG65: 457 | AH65: 1262 | AI65: 522 | AJ65: 140 | AK65: 294 | AL65: 670 | AM65: 1080 | AN65: 395 | AO65: 59 | AP65: 138 | AQ65: 354 | AR65: 1175 | AS65: 825 | AT65: 141 | AU65: 264 | AV65: 613 | AW65: 1032 | AX65: 502 | AY65: 49 | AZ65: 136 | BA65: 462 | BB65: 1272 | BC65: 630 | BD65: 2549 | BE65: 2570 | BF65: 2575
A66: Y59 | B66: SOUTH EAST COMMISSIONING REGION | C66: QKS | D66: NHS KENT AND MEDWAY ICB - 91Q | E66: RVV | F66: EAST KENT HOSPITALS UNIVERSITY NHS FOUNDATION TRUST | G66: Acute and Acute & Community Trusts | H66: 2187 | I66: 11409 | J66: 6.136473662 | K66: 96 | L66: 316 | M66: 772 | N66: 778 | O66: 263 | P66: 41 | Q66: 223 | R66: 612 | S66: 806 | T66: 525 | U66: 46 | V66: 140 | W66: 577 | X66: 804 | Y66: 644 | Z66: 110 | AA66: 272 | AB66: 512 | AC66: 1028 | AD66: 292 | AE66: 129 | AF66: 246 | AG66: 463 | AH66: 1071 | AI66: 307 | AJ66: 166 | AK66: 354 | AL66: 624 | AM66: 832 | AN66: 240 | AO66: 141 | AP66: 299 | AQ66: 468 | AR66: 815 | AS66: 464 | AT66: 256 | AU66: 422 | AV66: 597 | AW66: 673 | AX66: 242 | AY66: 200 | AZ66: 370 | BA66: 641 | BB66: 749 | BC66: 230 | BD66: 2187 | BE66: 2214 | BF66: 2207
A67: Y59 | B67: SOUTH EAST COMMISSIONING REGION | C67: QRL | D67: NHS HAMPSHIRE AND ISLE OF WIGHT ICB - D9Y0V | E67: RW1 | F67: SOUTHERN HEALTH NHS FOUNDATION TRUST | G67: Mental Health & Learning Disability and Mental Health, Learning Disability & Community Trusts | H67: 668 | I67: 6774 | J67: 6.593063872 | K67: 18 | L67: 92 | M67: 242 | N67: 231 | O67: 85 | P67: 8 | Q67: 58 | R67: 179 | S67: 282 | T67: 141 | U67: 14 | V67: 44 | W67: 143 | X67: 268 | Y67: 199 | Z67: 24 | AA67: 52 | AB67: 126 | AC67: 360 | AD67: 106 | AE67: 23 | AF67: 56 | AG67: 95 | AH67: 370 | AI67: 124 | AJ67: 31 | AK67: 87 | AL67: 160 | AM67: 289 | AN67: 101 | AO67: 13 | AP67: 55 | AQ67: 149 | AR67: 293 | AS67: 158 | AT67: 50 | AU67: 80 | AV67: 186 | AW67: 252 | AX67: 100 | AY67: 34 | AZ67: 68 | BA67: 187 | BB67: 278 | BC67: 101 | BD67: 668 | BE67: 668 | BF67: 668
A68: Y59 | B68: SOUTH EAST COMMISSIONING REGION | C68: QKS | D68: NHS KENT AND MEDWAY ICB - 91Q | E68: RWF | F68: MAIDSTONE AND TUNBRIDGE WELLS NHS TRUST | G68: Acute and Acute & Community Trusts | H68: 717 | I68: 7439 | J68: 6.469766713 | K68: 45 | L68: 108 | M68: 169 | N68: 313 | O68: 83 | P68: 31 | Q68: 78 | R68: 109 | S68: 334 | T68: 166 | U68: 23 | V68: 51 | W68: 144 | X68: 306 | Y68: 194 | Z68: 47 | AA68: 98 | AB68: 147 | AC68: 301 | AD68: 125 | AE68: 47 | AF68: 96 | AG68: 146 | AH68: 314 | AI68: 115 | AJ68: 53 | AK68: 124 | AL68: 196 | AM68: 252 | AN68: 93 | AO68: 22 | AP68: 61 | AQ68: 110 | AR68: 340 | AS68: 185 | AT68: 48 | AU68: 77 | AV68: 182 | AW68: 315 | AX68: 95 | AY68: 29 | AZ68: 41 | BA68: 147 | BB68: 368 | BC68: 132 | BD68: 717 | BE68: 718 | BF68: 718
A69: Y59 | B69: SOUTH EAST COMMISSIONING REGION | C69: QNQ | D69: NHS FRIMLEY ICB - D4U1Y | E69: RWX | F69: BERKSHIRE HEALTHCARE NHS FOUNDATION TRUST | G69: Mental Health & Learning Disability and Mental Health, Learning Disability & Community Trusts | H69: 1575 | I69: 4977 | J69: 7.429127231 | K69: 28 | L69: 121 | M69: 486 | N69: 719 | O69: 248 | P69: 12 | Q69: 60 | R69: 368 | S69: 723 | T69: 416 | U69: 15 | V69: 50 | W69: 289 | X69: 618 | Y69: 608 | Z69: 29 | AA69: 96 | AB69: 248 | AC69: 828 | AD69: 396 | AE69: 24 | AF69: 76 | AG69: 239 | AH69: 800 | AI69: 454 | AJ69: 34 | AK69: 111 | AL69: 365 | AM69: 746 | AN69: 336 | AO69: 13 | AP69: 28 | AQ69: 134 | AR69: 712 | AS69: 690 | AT69: 35 | AU69: 90 | AV69: 246 | AW69: 703 | AX69: 501 | AY69: 25 | AZ69: 47 | BA69: 261 | BB69: 756 | BC69: 486 | BD69: 1575 | BE69: 1592 | BF69: 1579
A70: Y59 | B70: SOUTH EAST COMMISSIONING REGION | C70: QNX | D70: NHS SUSSEX ICB - 09D | E70: RX2 | F70: SUSSEX PARTNERSHIP NHS FOUNDATION TRUST | G70: Mental Health & Learning Disability and Mental Health, Learning Disability & Community Trusts | H70: 231 | I70: 5895 | J70: 5.674603175 | K70: 16 | L70: 39 | M70: 93 | N70: 68 | O70: 15 | P70: 8 | Q70: 28 | R70: 71 | S70: 78 | T70: 46 | U70: 4 | V70: 17 | W70: 58 | X70: 80 | Y70: 72 | Z70: 13 | AA70: 39 | AB70: 39 | AC70: 106 | AD70: 34 | AE70: 18 | AF70: 32 | AG70: 40 | AH70: 107 | AI70: 34 | AJ70: 22 | AK70: 40 | AL70: 60 | AM70: 84 | AN70: 25 | AO70: 33 | AP70: 34 | AQ70: 53 | AR70: 86 | AS70: 25 | AT70: 51 | AU70: 47 | AV70: 74 | AW70: 40 | AX70: 19 | AY70: 37 | AZ70: 39 | BA70: 78 | BB70: 63 | BC70: 14 | BD70: 231 | BE70: 231 | BF70: 231
A71: Y59 | B71: SOUTH EAST COMMISSIONING REGION | C71: QNX | D71: NHS SUSSEX ICB - 09D | E71: RXC | F71: EAST SUSSEX HEALTHCARE NHS TRUST | G71: Acute and Acute & Community Trusts | H71: 367 | I71: 8366 | J71: 5.985467757 | K71: 19 | L71: 67 | M71: 144 | N71: 93 | O71: 44 | P71: 13 | Q71: 44 | R71: 114 | S71: 121 | T71: 75 | U71: 12 | V71: 21 | W71: 95 | X71: 133 | Y71: 106 | Z71: 30 | AA71: 47 | AB71: 89 | AC71: 137 | AD71: 64 | AE71: 32 | AF71: 43 | AG71: 86 | AH71: 149 | AI71: 57 | AJ71: 38 | AK71: 60 | AL71: 114 | AM71: 113 | AN71: 42 | AO71: 22 | AP71: 42 | AQ71: 103 | AR71: 140 | AS71: 60 | AT71: 37 | AU71: 62 | AV71: 120 | AW71: 113 | AX71: 35 | AY71: 27 | AZ71: 44 | BA71: 101 | BB71: 163 | BC71: 32 | BD71: 367 | BE71: 367 | BF71: 367
A72: Y59 | B72: SOUTH EAST COMMISSIONING REGION | C72: QU9 | D72: NHS BUCKINGHAMSHIRE, OXFORDSHIRE AND BERKSHIRE WEST ICB - 10Q | E72: RXQ | F72: BUCKINGHAMSHIRE HEALTHCARE NHS TRUST | G72: Acute and Acute & Community Trusts | H72: 821 | I72: 6875 | J72: 6.598998511 | K72: 29 | L72: 94 | M72: 264 | N72: 334 | O72: 100 | P72: 16 | Q72: 64 | R72: 192 | S72: 352 | T72: 197 | U72: 21 | V72: 43 | W72: 157 | X72: 310 | Y72: 290 | Z72: 34 | AA72: 67 | AB72: 186 | AC72: 407 | AD72: 127 | AE72: 31 | AF72: 71 | AG72: 162 | AH72: 402 | AI72: 155 | AJ72: 37 | AK72: 108 | AL72: 223 | AM72: 346 | AN72: 107 | AO72: 34 | AP72: 57 | AQ72: 153 | AR72: 374 | AS72: 203 | AT72: 63 | AU72: 94 | AV72: 224 | AW72: 313 | AX72: 127 | AY72: 54 | AZ72: 72 | BA72: 226 | BB72: 354 | BC72: 115 | BD72: 821 | BE72: 821 | BF72: 821
A73: Y59 | B73: SOUTH EAST COMMISSIONING REGION | C73: QXU | D73: NHS SURREY HEARTLANDS ICB - 92A | E73: RXX | F73: SURREY AND BORDERS PARTNERSHIP NHS FOUNDATION TRUST | G73: Mental Health & Learning Disability and Mental Health, Learning Disability & Community Trusts | H73: 108 | I73: 3314 | J73: 6.646090535 | K73: 4 | L73: 12 | M73: 34 | N73: 38 | O73: 20 | P73: 4 | Q73: 5 | R73: 32 | S73: 38 | T73: 29 | U73: 3 | V73: 2 | W73: 32 | X73: 36 | Y73: 35 | Z73: 5 | AA73: 10 | AB73: 22 | AC73: 46 | AD73: 25 | AE73: 7 | AF73: 9 | AG73: 19 | AH73: 49 | AI73: 24 | AJ73: 7 | AK73: 12 | AL73: 23 | AM73: 42 | AN73: 24 | AO73: 5 | AP73: 9 | AQ73: 22 | AR73: 37 | AS73: 35 | AT73: 7 | AU73: 11 | AV73: 37 | AW73: 32 | AX73: 21 | AY73: 6 | AZ73: 12 | BA73: 36 | BB73: 34 | BC73: 20 | BD73: 108 | BE73: 108 | BF73: 108
A74: Y59 | B74: SOUTH EAST COMMISSIONING REGION | C74: QNX | D74: NHS SUSSEX ICB - 09D | E74: RYD | F74: SOUTH EAST COAST AMBULANCE SERVICE NHS FOUNDATION TRUST | G74: Ambulance Trusts | H74: 574 | I74: 4604 | J74: 5.27245451 | K74: 46 | L74: 103 | M74: 206 | N74: 174 | O74: 45 | P74: 24 | Q74: 84 | R74: 148 | S74: 207 | T74: 111 | U74: 40 | V74: 70 | W74: 192 | X74: 204 | Y74: 68 | Z74: 69 | AA74: 112 | AB74: 126 | AC74: 219 | AD74: 48 | AE74: 88 | AF74: 126 | AG74: 139 | AH74: 183 | AI74: 38 | AJ74: 106 | AK74: 159 | AL74: 160 | AM74: 117 | AN74: 32 | AO74: 72 | AP74: 74 | AQ74: 138 | AR74: 204 | AS74: 86 | AT74: 132 | AU74: 119 | AV74: 136 | AW74: 150 | AX74: 37 | AY74: 48 | AZ74: 79 | BA74: 148 | BB74: 247 | BC74: 52 | BD74: 574 | BE74: 574 | BF74: 574
A75: Y59 | B75: SOUTH EAST COMMISSIONING REGION | C75: QU9 | D75: NHS BUCKINGHAMSHIRE, OXFORDSHIRE AND BERKSHIRE WEST ICB - 10Q | E75: RYE | F75: SOUTH CENTRAL AMBULANCE SERVICE NHS FOUNDATION TRUST | G75: Ambulance Trusts | H75: 262 | I75: 4615 | J75: 5.170695505 | K75: 22 | L75: 56 | M75: 101 | N75: 62 | O75: 21 | P75: 12 | Q75: 46 | R75: 76 | S75: 82 | T75: 46 | U75: 13 | V75: 54 | W75: 79 | X75: 82 | Y75: 34 | Z75: 39 | AA75: 49 | AB75: 62 | AC75: 96 | AD75: 16 | AE75: 34 | AF75: 51 | AG75: 68 | AH75: 87 | AI75: 22 | AJ75: 53 | AK75: 68 | AL75: 66 | AM75: 58 | AN75: 17 | AO75: 30 | AP75: 51 | AQ75: 61 | AR75: 82 | AS75: 38 | AT75: 53 | AU75: 56 | AV75: 79 | AW75: 57 | AX75: 17 | AY75: 28 | AZ75: 31 | BA75: 65 | BB75: 113 | BC75: 25 | BD75: 262 | BE75: 262 | BF75: 262
A76: Y59 | B76: SOUTH EAST COMMISSIONING REGION | C76: QNX | D76: NHS SUSSEX ICB - 09D | E76: RYR | F76: UNIVERSITY HOSPITALS SUSSEX NHS FOUNDATION TRUST | G76: Acute and Acute & Community Trusts | H76: 562 | I76: 16851 | J76: 5.751285093 | K76: 27 | L76: 122 | M76: 234 | N76: 138 | O76: 41 | P76: 17 | Q76: 86 | R76: 178 | S76: 191 | T76: 90 | U76: 17 | V76: 51 | W76: 146 | X76: 191 | Y76: 157 | Z76: 42 | AA76: 92 | AB76: 110 | AC76: 232 | AD76: 86 | AE76: 42 | AF76: 81 | AG76: 107 | AH76: 242 | AI76: 90 | AJ76: 56 | AK76: 132 | AL76: 153 | AM76: 156 | AN76: 65 | AO76: 45 | AP76: 73 | AQ76: 131 | AR76: 219 | AS76: 94 | AT76: 79 | AU76: 115 | AV76: 189 | AW76: 142 | AX76: 37 | AY76: 49 | AZ76: 92 | BA76: 187 | BB76: 187 | BC76: 47 | BD76: 562 | BE76: 562 | BF76: 562
A77: Y59 | B77: SOUTH EAST COMMISSIONING REGION | C77: QKS | D77: NHS KENT AND MEDWAY ICB - 91Q | E77: RYY | F77: KENT COMMUNITY HEALTH NHS FOUNDATION TRUST | G77: Community Trusts | H77: 873 | I77: 5217 | J77: 7.057719231 | K77: 39 | L77: 107 | M77: 268 | N77: 358 | O77: 101 | P77: 24 | Q77: 53 | R77: 184 | S77: 388 | T77: 224 | U77: 21 | V77: 24 | W77: 153 | X77: 308 | Y77: 367 | Z77: 46 | AA77: 75 | AB77: 134 | AC77: 390 | AD77: 228 | AE77: 45 | AF77: 58 | AG77: 117 | AH77: 406 | AI77: 247 | AJ77: 48 | AK77: 90 | AL77: 184 | AM77: 360 | AN77: 191 | AO77: 28 | AP77: 44 | AQ77: 113 | AR77: 363 | AS77: 325 | AT77: 58 | AU77: 55 | AV77: 180 | AW77: 341 | AX77: 239 | AY77: 29 | AZ77: 31 | BA77: 144 | BB77: 416 | BC77: 253 | BD77: 873 | BE77: 873 | BF77: 873
A78: Y60 | B78: MIDLANDS COMMISSIONING REGION | C78: QOC | D78: NHS SHROPSHIRE, TELFORD AND WREKIN ICB - M2L0M | E78: R1D | F78: SHROPSHIRE COMMUNITY HEALTH NHS TRUST | G78: Community Trusts | H78: 10 | I78: 1661 | J78: 5.388888889 | K78: 0 | L78: 2 | M78: 6 | N78: 2 | O78: 0 | P78: 0 | Q78: 1 | R78: 5 | S78: 3 | T78: 1 | U78: 0 | V78: 2 | W78: 3 | X78: 2 | Y78: 3 | Z78: 0 | AA78: 1 | AB78: 3 | AC78: 4 | AD78: 2 | AE78: 1 | AF78: 2 | AG78: 1 | AH78: 4 | AI78: 2 | AJ78: 1 | AK78: 4 | AL78: 0 | AM78: 3 | AN78: 2 | AO78: 2 | AP78: 2 | AQ78: 2 | AR78: 4 | AS78: 0 | AT78: 5 | AU78: 1 | AV78: 2 | AW78: 2 | AX78: 0 | AY78: 0 | AZ78: 1 | BA78: 5 | BB78: 4 | BC78: 0 | BD78: 10 | BE78: 10 | BF78: 10
A79: Y60 | B79: MIDLANDS COMMISSIONING REGION | C79: QUA | D79: NHS BLACK COUNTRY ICB - D2P2L | E79: RBK | F79: WALSALL HEALTHCARE NHS TRUST | G79: Acute and Acute & Community Trusts | H79: 1094 | I79: 5165 | J79: 6.393205363 | K79: 73 | L79: 157 | M79: 322 | N79: 402 | O79: 140 | P79: 58 | Q79: 99 | R79: 191 | S79: 513 | T79: 233 | U79: 54 | V79: 72 | W79: 187 | X79: 481 | Y79: 300 | Z79: 73 | AA79: 107 | AB79: 238 | AC79: 482 | AD79: 194 | AE79: 80 | AF79: 103 | AG79: 196 | AH79: 513 | AI79: 202 | AJ79: 87 | AK79: 122 | AL79: 297 | AM79: 435 | AN79: 153 | AO79: 58 | AP79: 91 | AQ79: 188 | AR79: 447 | AS79: 310 | AT79: 93 | AU79: 118 | AV79: 308 | AW79: 415 | AX79: 160 | AY79: 62 | AZ79: 129 | BA79: 336 | BB79: 445 | BC79: 122 | BD79: 1094 | BE79: 1094 | BF79: 1094
A80: Y60 | B80: MIDLANDS COMMISSIONING REGION | C80: QT1 | D80: NHS NOTTINGHAM AND NOTTINGHAMSHIRE ICB - 52R | E80: RHA | F80: NOTTINGHAMSHIRE HEALTHCARE NHS FOUNDATION TRUST | G80: Mental Health & Learning Disability and Mental Health, Learning Disability & Community Trusts | H80: 793 | I80: 9343 | J80: 6.175560012 | K80: 53 | L80: 171 | M80: 213 | N80: 275 | O80: 85 | P80: 30 | Q80: 128 | R80: 169 | S80: 351 | T80: 119 | U80: 22 | V80: 86 | W80: 127 | X80: 365 | Y80: 196 | Z80: 49 | AA80: 105 | AB80: 135 | AC80: 377 | AD80: 128 | AE80: 46 | AF80: 75 | AG80: 141 | AH80: 400 | AI80: 135 | AJ80: 64 | AK80: 119 | AL80: 228 | AM80: 288 | AN80: 98 | AO80: 42 | AP80: 75 | AQ80: 141 | AR80: 314 | AS80: 221 | AT80: 93 | AU80: 136 | AV80: 205 | AW80: 259 | AX80: 104 | AY80: 63 | AZ80: 120 | BA80: 235 | BB80: 274 | BC80: 101 | BD80: 793 | BE80: 794 | BF80: 796
A81: Y60 | B81: MIDLANDS COMMISSIONING REGION | C81: QWU | D81: NHS COVENTRY AND WARWICKSHIRE ICB - B2M3M | E81: RJC | F81: SOUTH WARWICKSHIRE UNIVERSITY NHS FOUNDATION TRUST | G81: Acute and Acute & Community Trusts | H81: 55 | I81: 5443 | J81: 6.772727273 | K81: 2 | L81: 9 | M81: 14 | N81: 22 | O81: 8 | P81: 2 | Q81: 8 | R81: 10 | S81: 19 | T81: 16 | U81: 1 | V81: 3 | W81: 19 | X81: 12 | Y81: 20 | Z81: 3 | AA81: 7 | AB81: 11 | AC81: 21 | AD81: 13 | AE81: 4 | AF81: 5 | AG81: 6 | AH81: 26 | AI81: 14 | AJ81: 3 | AK81: 8 | AL81: 12 | AM81: 18 | AN81: 14 | AO81: 4 | AP81: 1 | AQ81: 7 | AR81: 22 | AS81: 21 | AT81: 6 | AU81: 4 | AV81: 12 | AW81: 19 | AX81: 14 | AY81: 2 | AZ81: 3 | BA81: 12 | BB81: 22 | BC81: 16 | BD81: 55 | BE81: 55 | BF81: 55
A82: Y60 | B82: MIDLANDS COMMISSIONING REGION | C82: QNC | D82: NHS STAFFORDSHIRE AND STOKE-ON-TRENT ICB - 05W | E82: RJE | F82: UNIVERSITY HOSPITALS OF NORTH MIDLANDS NHS TRUST | G82: Acute and Acute & Community Trusts | H82: 12 | I82: 11957 | J82: 5.185185185 | K82: 0 | L82: 4 | M82: 4 | N82: 3 | O82: 1 | P82: 0 | Q82: 3 | R82: 5 | S82: 3 | T82: 1 | U82: 0 | V82: 2 | W82: 5 | X82: 4 | Y82: 1 | Z82: 3 | AA82: 3 | AB82: 1 | AC82: 5 | AD82: 0 | AE82: 3 | AF82: 1 | AG82: 3 | AH82: 5 | AI82: 0 | AJ82: 3 | AK82: 1 | AL82: 3 | AM82: 5 | AN82: 0 | AO82: 1 | AP82: 1 | AQ82: 2 | AR82: 6 | AS82: 2 | AT82: 2 | AU82: 3 | AV82: 3 | AW82: 2 | AX82: 2 | AY82: 2 | AZ82: 0 | BA82: 4 | BB82: 5 | BC82: 1 | BD82: 12 | BE82: 12 | BF82: 12
A83: Y60 | B83: MIDLANDS COMMISSIONING REGION | C83: QT1 | D83: NHS NOTTINGHAM AND NOTTINGHAMSHIRE ICB - 52R | E83: RK5 | F83: SHERWOOD FOREST HOSPITALS NHS FOUNDATION TRUST | G83: Acute and Acute & Community Trusts | H83: 740 | I83: 6051 | J83: 6.860954028 | K83: 32 | L83: 113 | M83: 208 | N83: 308 | O83: 83 | P83: 22 | Q83: 76 | R83: 156 | S83: 353 | T83: 140 | U83: 11 | V83: 49 | W83: 122 | X83: 344 | Y83: 218 | Z83: 34 | AA83: 87 | AB83: 138 | AC83: 330 | AD83: 151 | AE83: 35 | AF83: 79 | AG83: 120 | AH83: 345 | AI83: 167 | AJ83: 40 | AK83: 98 | AL83: 168 | AM83: 320 | AN83: 119 | AO83: 15 | AP83: 53 | AQ83: 108 | AR83: 354 | AS83: 217 | AT83: 26 | AU83: 57 | AV83: 105 | AW83: 388 | AX83: 173 | AY83: 6 | AZ83: 45 | BA83: 102 | BB83: 422 | BC83: 174 | BD83: 747 | BE83: 740 | BF83: 744
A84: Y60 | B84: MIDLANDS COMMISSIONING REGION | C84: QWU | D84: NHS COVENTRY AND WARWICKSHIRE ICB - B2M3M | E84: RKB | F84: UNIVERSITY HOSPITALS COVENTRY AND WARWICKSHIRE NHS TRUST | G84: Acute and Acute & Community Trusts | H84: 235 | I84: 9720 | J84: 6.294326241 | K84: 22 | L84: 42 | M84: 70 | N84: 76 | O84: 25 | P84: 13 | Q84: 29 | R84: 53 | S84: 83 | T84: 57 | U84: 13 | V84: 16 | W84: 47 | X84: 73 | Y84: 86 | Z84: 15 | AA84: 27 | AB84: 48 | AC84: 100 | AD84: 45 | AE84: 16 | AF84: 22 | AG84: 44 | AH84: 98 | AI84: 55 | AJ84: 18 | AK84: 32 | AL84: 60 | AM84: 84 | AN84: 41 | AO84: 14 | AP84: 20 | AQ84: 54 | AR84: 100 | AS84: 47 | AT84: 32 | AU84: 21 | AV84: 63 | AW84: 90 | AX84: 29 | AY84: 21 | AZ84: 17 | BA84: 56 | BB84: 107 | BC84: 34 | BD84: 235 | BE84: 235 | BF84: 235
A85: Y60 | B85: MIDLANDS COMMISSIONING REGION | C85: QUA | D85: NHS BLACK COUNTRY ICB - D2P2L | E85: RL4 | F85: THE ROYAL WOLVERHAMPTON NHS TRUST | G85: Acute and Acute & Community Trusts | H85: 459 | I85: 11342 | J85: 6.298111837 | K85: 28 | L85: 89 | M85: 150 | N85: 144 | O85: 48 | P85: 16 | Q85: 42 | R85: 134 | S85: 173 | T85: 94 | U85: 23 | V85: 34 | W85: 105 | X85: 143 | Y85: 154 | Z85: 23 | AA85: 65 | AB85: 86 | AC85: 194 | AD85: 91 | AE85: 35 | AF85: 62 | AG85: 75 | AH85: 196 | AI85: 91 | AJ85: 43 | AK85: 80 | AL85: 118 | AM85: 150 | AN85: 68 | AO85: 22 | AP85: 44 | AQ85: 94 | AR85: 192 | AS85: 107 | AT85: 38 | AU85: 63 | AV85: 122 | AW85: 158 | AX85: 78 | AY85: 20 | AZ85: 48 | BA85: 114 | BB85: 198 | BC85: 79 | BD85: 459 | BE85: 459 | BF85: 459
A86: Y60 | B86: MIDLANDS COMMISSIONING REGION | C86: QGH | D86: NHS HEREFORDSHIRE AND WORCESTERSHIRE ICB - 18C | E86: RLQ | F86: WYE VALLEY NHS TRUST | G86: Acute and Acute & Community Trusts | H86: 28 | I86: 3981 | J86: 6.676587302 | K86: 0 | L86: 5 | M86: 12 | N86: 8 | O86: 3 | P86: 0 | Q86: 1 | R86: 8 | S86: 13 | T86: 6 | U86: 0 | V86: 0 | W86: 5 | X86: 12 | Y86: 11 | Z86: 1 | AA86: 1 | AB86: 7 | AC86: 13 | AD86: 6 | AE86: 0 | AF86: 1 | AG86: 5 | AH86: 16 | AI86: 6 | AJ86: 2 | AK86: 3 | AL86: 12 | AM86: 9 | AN86: 2 | AO86: 0 | AP86: 1 | AQ86: 5 | AR86: 16 | AS86: 6 | AT86: 0 | AU86: 3 | AV86: 14 | AW86: 7 | AX86: 4 | AY86: 0 | AZ86: 6 | BA86: 10 | BB86: 10 | BC86: 2 | BD86: 28 | BE86: 28 | BF86: 28
A87: Y60 | B87: MIDLANDS COMMISSIONING REGION | C87: QWU | D87: NHS COVENTRY AND WARWICKSHIRE ICB - B2M3M | E87: RLT | F87: GEORGE ELIOT HOSPITAL NHS TRUST | G87: Acute and Acute & Community Trusts | H87: 54 | I87: 2924 | J87: 6.58436214 | K87: 3 | L87: 6 | M87: 18 | N87: 18 | O87: 9 | P87: 2 | Q87: 2 | R87: 14 | S87: 19 | T87: 17 | U87: 1 | V87: 4 | W87: 11 | X87: 24 | Y87: 14 | Z87: 5 | AA87: 2 | AB87: 12 | AC87: 20 | AD87: 15 | AE87: 4 | AF87: 5 | AG87: 8 | AH87: 17 | AI87: 20 | AJ87: 4 | AK87: 7 | AL87: 12 | AM87: 16 | AN87: 15 | AO87: 1 | AP87: 9 | AQ87: 5 | AR87: 26 | AS87: 13 | AT87: 7 | AU87: 6 | AV87: 13 | AW87: 21 | AX87: 7 | AY87: 6 | AZ87: 5 | BA87: 12 | BB87: 23 | BC87: 8 | BD87: 54 | BE87: 54 | BF87: 54
A88: Y60 | B88: MIDLANDS COMMISSIONING REGION | C88: QNC | D88: NHS STAFFORDSHIRE AND STOKE-ON-TRENT ICB - 05W | E88: RLY | F88: NORTH STAFFORDSHIRE COMBINED HEALTHCARE NHS TRUST | G88: Mental Health & Learning Disability and Mental Health, Learning Disability & Community Trusts | H88: 87 | I88: 1792 | J88: 6.465517241 | K88: 4 | L88: 13 | M88: 29 | N88: 31 | O88: 10 | P88: 1 | Q88: 8 | R88: 24 | S88: 30 | T88: 24 | U88: 3 | V88: 6 | W88: 20 | X88: 36 | Y88: 22 | Z88: 4 | AA88: 18 | AB88: 12 | AC88: 29 | AD88: 24 | AE88: 5 | AF88: 13 | AG88: 13 | AH88: 34 | AI88: 22 | AJ88: 7 | AK88: 17 | AL88: 16 | AM88: 29 | AN88: 18 | AO88: 6 | AP88: 8 | AQ88: 11 | AR88: 39 | AS88: 23 | AT88: 8 | AU88: 8 | AV88: 23 | AW88: 25 | AX88: 23 | AY88: 4 | AZ88: 14 | BA88: 25 | BB88: 25 | BC88: 19 | BD88: 87 | BE88: 87 | BF88: 87
A89: Y60 | B89: MIDLANDS COMMISSIONING REGION | C89: QUA | D89: NHS BLACK COUNTRY ICB - D2P2L | E89: RNA | F89: THE DUDLEY GROUP NHS FOUNDATION TRUST | G89: Acute and Acute & Community Trusts | H89: 381 | I89: 6133 | J89: 6.469816273 | K89: 21 | L89: 66 | M89: 113 | N89: 133 | O89: 48 | P89: 12 | Q89: 35 | R89: 89 | S89: 141 | T89: 104 | U89: 7 | V89: 26 | W89: 74 | X89: 122 | Y89: 152 | Z89: 23 | AA89: 40 | AB89: 75 | AC89: 168 | AD89: 75 | AE89: 17 | AF89: 47 | AG89: 61 | AH89: 176 | AI89: 80 | AJ89: 28 | AK89: 57 | AL89: 80 | AM89: 153 | AN89: 63 | AO89: 17 | AP89: 40 | AQ89: 70 | AR89: 159 | AS89: 95 | AT89: 35 | AU89: 44 | AV89: 111 | AW89: 134 | AX89: 57 | AY89: 27 | AZ89: 44 | BA89: 108 | BB89: 149 | BC89: 53 | BD89: 381 | BE89: 381 | BF89: 381
A90: Y60 | B90: MIDLANDS COMMISSIONING REGION | C90: QPM | D90: NHS NORTHAMPTONSHIRE ICB - 78H | E90: RNQ | F90: KETTERING GENERAL HOSPITAL NHS FOUNDATION TRUST | G90: Acute and Acute & Community Trusts | H90: 445 | I90: 4820 | J90: 5.858302122 | K90: 35 | L90: 80 | M90: 153 | N90: 128 | O90: 49 | P90: 21 | Q90: 59 | R90: 119 | S90: 148 | T90: 98 | U90: 20 | V90: 32 | W90: 122 | X90: 138 | Y90: 133 | Z90: 34 | AA90: 76 | AB90: 97 | AC90: 175 | AD90: 63 | AE90: 35 | AF90: 58 | AG90: 78 | AH90: 204 | AI90: 70 | AJ90: 44 | AK90: 73 | AL90: 112 | AM90: 163 | AN90: 53 | AO90: 31 | AP90: 74 | AQ90: 95 | AR90: 168 | AS90: 77 | AT90: 66 | AU90: 74 | AV90: 131 | AW90: 132 | AX90: 42 | AY90: 56 | AZ90: 74 | BA90: 121 | BB90: 155 | BC90: 39 | BD90: 445 | BE90: 445 | BF90: 445
A91: Y60 | B91: MIDLANDS COMMISSIONING REGION | C91: QPM | D91: NHS NORTHAMPTONSHIRE ICB - 78H | E91: RNS | F91: NORTHAMPTON GENERAL HOSPITAL NHS TRUST | G91: Acute and Acute & Community Trusts | H91: 446 | I91: 5856 | J91: 6.109242651 | K91: 27 | L91: 70 | M91: 163 | N91: 141 | O91: 45 | P91: 14 | Q91: 46 | R91: 134 | S91: 153 | T91: 99 | U91: 15 | V91: 25 | W91: 110 | X91: 149 | Y91: 147 | Z91: 32 | AA91: 59 | AB91: 92 | AC91: 178 | AD91: 85 | AE91: 31 | AF91: 63 | AG91: 83 | AH91: 182 | AI91: 87 | AJ91: 41 | AK91: 75 | AL91: 118 | AM91: 140 | AN91: 72 | AO91: 27 | AP91: 50 | AQ91: 101 | AR91: 178 | AS91: 90 | AT91: 57 | AU91: 74 | AV91: 124 | AW91: 142 | AX91: 49 | AY91: 46 | AZ91: 64 | BA91: 109 | BB91: 178 | BC91: 49 | BD91: 446 | BE91: 446 | BF91: 446
A92: Y60 | B92: MIDLANDS COMMISSIONING REGION | C92: QPM | D92: NHS NORTHAMPTONSHIRE ICB - 78H | E92: RP1 | F92: NORTHAMPTONSHIRE HEALTHCARE NHS FOUNDATION TRUST | G92: Mental Health & Learning Disability and Mental Health, Learning Disability & Community Trusts | H92: 1834 | I92: 4849 | J92: 7.228149155 | K92: 32 | L92: 153 | M92: 591 | N92: 813 | O92: 290 | P92: 18 | Q92: 77 | R92: 438 | S92: 817 | T92: 510 | U92: 15 | V92: 60 | W92: 397 | X92: 726 | Y92: 663 | Z92: 27 | AA92: 121 | AB92: 328 | AC92: 985 | AD92: 415 | AE92: 29 | AF92: 129 | AG92: 318 | AH92: 958 | AI92: 441 | AJ92: 44 | AK92: 182 | AL92: 477 | AM92: 842 | AN92: 328 | AO92: 15 | AP92: 68 | AQ92: 215 | AR92: 825 | AS92: 712 | AT92: 44 | AU92: 136 | AV92: 355 | AW92: 798 | AX92: 501 | AY92: 25 | AZ92: 96 | BA92: 383 | BB92: 818 | BC92: 516 | BD92: 1834 | BE92: 1873 | BF92: 1860
A93: Y60 | B93: MIDLANDS COMMISSIONING REGION | C93: QJM | D93: NHS LINCOLNSHIRE ICB - 71E | E93: RP7 | F93: LINCOLNSHIRE PARTNERSHIP NHS FOUNDATION TRUST | G93: Mental Health & Learning Disability and Mental Health, Learning Disability & Community Trusts | H93: 946 | I93: 2733 | J93: 7.291827387 | K93: 22 | L93: 65 | M93: 256 | N93: 464 | O93: 152 | P93: 10 | Q93: 42 | R93: 189 | S93: 418 | T93: 295 | U93: 12 | V93: 43 | W93: 185 | X93: 369 | Y93: 346 | Z93: 20 | AA93: 67 | AB93: 127 | AC93: 498 | AD93: 245 | AE93: 20 | AF93: 61 | AG93: 134 | AH93: 497 | AI93: 245 | AJ93: 36 | AK93: 81 | AL93: 222 | AM93: 413 | AN93: 206 | AO93: 14 | AP93: 41 | AQ93: 116 | AR93: 387 | AS93: 388 | AT93: 24 | AU93: 54 | AV93: 160 | AW93: 401 | AX93: 308 | AY93: 29 | AZ93: 63 | BA93: 197 | BB93: 405 | BC93: 253 | BD93: 946 | BE93: 957 | BF93: 954
A94: Y60 | B94: MIDLANDS COMMISSIONING REGION | C94: QHL | D94: NHS BIRMINGHAM AND SOLIHULL ICB - 15E | E94: RQ3 | F94: BIRMINGHAM WOMEN'S AND CHILDREN'S NHS FOUNDATION TRUST | G94: Acute and Acute & Community Trusts | H94: 49 | I94: 6407 | J94: 5.89569161 | K94: 6 | L94: 10 | M94: 16 | N94: 15 | O94: 2 | P94: 3 | Q94: 9 | R94: 14 | S94: 17 | T94: 6 | U94: 2 | V94: 5 | W94: 17 | X94: 13 | Y94: 12 | Z94: 9 | AA94: 7 | AB94: 9 | AC94: 16 | AD94: 8 | AE94: 10 | AF94: 2 | AG94: 5 | AH94: 21 | AI94: 11 | AJ94: 8 | AK94: 7 | AL94: 10 | AM94: 17 | AN94: 7 | AO94: 2 | AP94: 7 | AQ94: 13 | AR94: 15 | AS94: 12 | AT94: 4 | AU94: 8 | AV94: 14 | AW94: 14 | AX94: 9 | AY94: 1 | AZ94: 3 | BA94: 13 | BB94: 20 | BC94: 12 | BD94: 49 | BE94: 49 | BF94: 49
A95: Y60 | B95: MIDLANDS COMMISSIONING REGION | C95: QNC | D95: NHS STAFFORDSHIRE AND STOKE-ON-TRENT ICB - 05W | E95: RRE | F95: MIDLANDS PARTNERSHIP NHS FOUNDATION TRUST | G95: Mental Health & Learning Disability and Mental Health, Learning Disability & Community Trusts | H95: 255 | I95: 10018 | J95: 7.660130719 | K95: 2 | L95: 9 | M95: 64 | N95: 133 | O95: 47 | P95: 2 | Q95: 9 | R95: 42 | S95: 123 | T95: 79 | U95: 1 | V95: 9 | W95: 38 | X95: 94 | Y95: 113 | Z95: 3 | AA95: 14 | AB95: 39 | AC95: 95 | AD95: 104 | AE95: 6 | AF95: 14 | AG95: 35 | AH95: 87 | AI95: 113 | AJ95: 5 | AK95: 20 | AL95: 59 | AM95: 89 | AN95: 82 | AO95: 3 | AP95: 7 | AQ95: 29 | AR95: 91 | AS95: 125 | AT95: 5 | AU95: 17 | AV95: 41 | AW95: 93 | AX95: 99 | AY95: 3 | AZ95: 16 | BA95: 38 | BB95: 108 | BC95: 90 | BD95: 255 | BE95: 255 | BF95: 255
A96: Y60 | B96: MIDLANDS COMMISSIONING REGION | C96: QHL | D96: NHS BIRMINGHAM AND SOLIHULL ICB - 15E | E96: RRJ | F96: THE ROYAL ORTHOPAEDIC HOSPITAL NHS FOUNDATION TRUST | G96: Acute Specialist Trusts | H96: 221 | I96: 1330 | J96: 7.222111248 | K96: 5 | L96: 24 | M96: 61 | N96: 92 | O96: 43 | P96: 5 | Q96: 15 | R96: 45 | S96: 88 | T96: 70 | U96: 5 | V96: 16 | W96: 53 | X96: 77 | Y96: 73 | Z96: 6 | AA96: 22 | AB96: 39 | AC96: 108 | AD96: 50 | AE96: 11 | AF96: 20 | AG96: 36 | AH96: 98 | AI96: 56 | AJ96: 15 | AK96: 23 | AL96: 39 | AM96: 101 | AN96: 46 | AO96: 7 | AP96: 8 | AQ96: 29 | AR96: 94 | AS96: 87 | AT96: 6 | AU96: 15 | AV96: 35 | AW96: 96 | AX96: 73 | AY96: 4 | AZ96: 2 | BA96: 26 | BB96: 97 | BC96: 96 | BD96: 225 | BE96: 221 | BF96: 223
A97: Y60 | B97: MIDLANDS COMMISSIONING REGION | C97: QHL | D97: NHS BIRMINGHAM AND SOLIHULL ICB - 15E | E97: RRK | F97: UNIVERSITY HOSPITALS BIRMINGHAM NHS FOUNDATION TRUST | G97: Acute and Acute & Community Trusts | H97: 562 | I97: 23861 | J97: 5.76018189 | K97: 42 | L97: 104 | M97: 209 | N97: 162 | O97: 45 | P97: 24 | Q97: 68 | R97: 182 | S97: 182 | T97: 106 | U97: 26 | V97: 55 | W97: 148 | X97: 181 | Y97: 152 | Z97: 43 | AA97: 83 | AB97: 119 | AC97: 239 | AD97: 78 | AE97: 58 | AF97: 84 | AG97: 110 | AH97: 225 | AI97: 85 | AJ97: 71 | AK97: 110 | AL97: 130 | AM97: 188 | AN97: 63 | AO97: 43 | AP97: 74 | AQ97: 132 | AR97: 227 | AS97: 86 | AT97: 75 | AU97: 134 | AV97: 158 | AW97: 149 | AX97: 46 | AY97: 47 | AZ97: 91 | BA97: 159 | BB97: 206 | BC97: 59 | BD97: 562 | BE97: 562 | BF97: 562
A98: Y60 | B98: MIDLANDS COMMISSIONING REGION | C98: QK1 | D98: NHS LEICESTER, LEICESTERSHIRE AND RUTLAND ICB - 03W | E98: RT5 | F98: LEICESTERSHIRE PARTNERSHIP NHS TRUST | G98: Mental Health & Learning Disability and Mental Health, Learning Disability & Community Trusts | H98: 340 | I98: 6305 | J98: 6.727124183 | K98: 11 | L98: 49 | M98: 101 | N98: 122 | O98: 57 | P98: 4 | Q98: 27 | R98: 81 | S98: 125 | T98: 103 | U98: 4 | V98: 16 | W98: 57 | X98: 126 | Y98: 137 | Z98: 13 | AA98: 32 | AB98: 49 | AC98: 163 | AD98: 83 | AE98: 15 | AF98: 30 | AG98: 57 | AH98: 160 | AI98: 78 | AJ98: 22 | AK98: 42 | AL98: 79 | AM98: 137 | AN98: 60 | AO98: 18 | AP98: 29 | AQ98: 61 | AR98: 127 | AS98: 105 | AT98: 32 | AU98: 31 | AV98: 96 | AW98: 122 | AX98: 59 | AY98: 21 | AZ98: 33 | BA98: 100 | BB98: 135 | BC98: 51 | BD98: 340 | BE98: 340 | BF98: 340
A99: Y60 | B99: MIDLANDS COMMISSIONING REGION | C99: QJ2 | D99: NHS DERBY AND DERBYSHIRE ICB - 15M | E99: RTG | F99: UNIVERSITY HOSPITALS OF DERBY AND BURTON NHS FOUNDATION TRUST | G99: Acute and Acute & Community Trusts | H99: 1425 | I99: 14404 | J99: 6.393957115 | K99: 64 | L99: 214 | M99: 467 | N99: 508 | O99: 172 | P99: 35 | Q99: 132 | R99: 398 | S99: 524 | T99: 336 | U99: 21 | V99: 74 | W99: 337 | X99: 539 | Y99: 454 | Z99: 76 | AA99: 185 | AB99: 345 | AC99: 608 | AD99: 211 | AE99: 83 | AF99: 162 | AG99: 321 | AH99: 638 | AI99: 221 | AJ99: 101 | AK99: 244 | AL99: 426 | AM99: 501 | AN99: 153 | AO99: 55 | AP99: 122 | AQ99: 243 | AR99: 737 | AS99: 268 | AT99: 83 | AU99: 188 | AV99: 365 | AW99: 620 | AX99: 169 | AY99: 37 | AZ99: 120 | BA99: 369 | BB99: 739 | BC99: 160 | BD99: 1425 | BE99: 1425 | BF99: 1425
A100: Y60 | B100: MIDLANDS COMMISSIONING REGION | C100: QJM | D100: NHS LINCOLNSHIRE ICB - 71E | E100: RWD | F100: UNITED LINCOLNSHIRE HOSPITALS NHS TRUST | G100: Acute and Acute & Community Trusts | H100: 2209 | I100: 9295 | J100: 6.383984415 | K100: 112 | L100: 284 | M100: 719 | N100: 809 | O100: 337 | P100: 55 | Q100: 182 | R100: 586 | S100: 831 | T100: 581 | U100: 49 | V100: 126 | W100: 524 | X100: 837 | Y100: 701 | Z100: 104 | AA100: 249 | AB100: 505 | AC100: 998 | AD100: 385 | AE100: 111 | AF100: 244 | AG100: 510 | AH100: 981 | AI100: 394 | AJ100: 143 | AK100: 326 | AL100: 628 | AM100: 838 | AN100: 301 | AO100: 83 | AP100: 225 | AQ100: 446 | AR100: 889 | AS100: 566 | AT100: 190 | AU100: 314 | AV100: 653 | AW100: 765 | AX100: 295 | AY100: 190 | AZ100: 304 | BA100: 703 | BB100: 771 | BC100: 246 | BD100: 2209 | BE100: 2236 | BF100: 2235
A101: Y60 | B101: MIDLANDS COMMISSIONING REGION | C101: QGH | D101: NHS HEREFORDSHIRE AND WORCESTERSHIRE ICB - 18C | E101: RWP | F101: WORCESTERSHIRE ACUTE HOSPITALS NHS TRUST | G101: Acute and Acute & Community Trusts | H101: 1210 | I101: 7109 | J101: 6.601996892 | K101: 38 | L101: 166 | M101: 416 | N101: 447 | O101: 165 | P101: 19 | Q101: 72 | R101: 337 | S101: 497 | T101: 295 | U101: 19 | V101: 64 | W101: 273 | X101: 454 | Y101: 414 | Z101: 43 | AA101: 122 | AB101: 257 | AC101: 580 | AD101: 230 | AE101: 43 | AF101: 133 | AG101: 223 | AH101: 578 | AI101: 249 | AJ101: 64 | AK101: 171 | AL101: 295 | AM101: 507 | AN101: 186 | AO101: 31 | AP101: 122 | AQ101: 213 | AR101: 542 | AS101: 302 | AT101: 73 | AU101: 162 | AV101: 338 | AW101: 485 | AX101: 154 | AY101: 52 | AZ101: 153 | BA101: 341 | BB101: 518 | BC101: 147 | BD101: 1210 | BE101: 1223 | BF101: 1220
A102: Y60 | B102: MIDLANDS COMMISSIONING REGION | C102: QT1 | D102: NHS NOTTINGHAM AND NOTTINGHAMSHIRE ICB - 52R | E102: RX1 | F102: NOTTINGHAM UNIVERSITY HOSPITALS NHS TRUST | G102: Acute and Acute & Community Trusts | H102: 2117 | I102: 19481 | J102: 6.471684249 | K102: 85 | L102: 324 | M102: 747 | N102: 728 | O102: 233 | P102: 33 | Q102: 184 | R102: 584 | S102: 843 | T102: 473 | U102: 42 | V102: 134 | W102: 509 | X102: 816 | Y102: 616 | Z102: 76 | AA102: 257 | AB102: 366 | AC102: 988 | AD102: 430 | AE102: 86 | AF102: 237 | AG102: 383 | AH102: 1000 | AI102: 411 | AJ102: 135 | AK102: 342 | AL102: 547 | AM102: 792 | AN102: 301 | AO102: 65 | AP102: 193 | AQ102: 445 | AR102: 843 | AS102: 571 | AT102: 150 | AU102: 345 | AV102: 563 | AW102: 804 | AX102: 255 | AY102: 73 | AZ102: 237 | BA102: 534 | BB102: 981 | BC102: 292 | BD102: 2117 | BE102: 2117 | BF102: 2117
A103: Y60 | B103: MIDLANDS COMMISSIONING REGION | C103: QT1 | D103: NHS NOTTINGHAM AND NOTTINGHAMSHIRE ICB - 52R | E103: RX9 | F103: EAST MIDLANDS AMBULANCE SERVICE NHS TRUST | G103: Ambulance Trusts | H103: 326 | I103: 4234 | J103: 5.501022495 | K103: 24 | L103: 70 | M103: 98 | N103: 100 | O103: 34 | P103: 16 | Q103: 32 | R103: 108 | S103: 99 | T103: 71 | U103: 21 | V103: 33 | W103: 107 | X103: 102 | Y103: 63 | Z103: 25 | AA103: 63 | AB103: 77 | AC103: 119 | AD103: 42 | AE103: 48 | AF103: 74 | AG103: 75 | AH103: 97 | AI103: 32 | AJ103: 61 | AK103: 92 | AL103: 77 | AM103: 67 | AN103: 29 | AO103: 48 | AP103: 58 | AQ103: 62 | AR103: 99 | AS103: 59 | AT103: 49 | AU103: 62 | AV103: 83 | AW103: 90 | AX103: 42 | AY103: 25 | AZ103: 38 | BA103: 81 | BB103: 137 | BC103: 45 | BD103: 326 | BE103: 326 | BF103: 326
A104: Y60 | B104: MIDLANDS COMMISSIONING REGION | C104: QHL | D104: NHS BIRMINGHAM AND SOLIHULL ICB - 15E | E104: RXK | F104: SANDWELL AND WEST BIRMINGHAM HOSPITALS NHS TRUST | G104: Acute and Acute & Community Trusts | H104: 3151 | I104: 7631 | J104: 6.870131746 | K104: 104 | L104: 313 | M104: 1010 | N104: 1191 | O104: 600 | P104: 75 | Q104: 179 | R104: 711 | S104: 1227 | T104: 967 | U104: 75 | V104: 141 | W104: 693 | X104: 1063 | Y104: 1179 | Z104: 129 | AA104: 267 | AB104: 604 | AC104: 1535 | AD104: 688 | AE104: 162 | AF104: 246 | AG104: 597 | AH104: 1521 | AI104: 674 | AJ104: 171 | AK104: 332 | AL104: 806 | AM104: 1303 | AN104: 583 | AO104: 93 | AP104: 217 | AQ104: 542 | AR104: 1440 | AS104: 929 | AT104: 151 | AU104: 293 | AV104: 775 | AW104: 1335 | AX104: 649 | AY104: 142 | AZ104: 273 | BA104: 892 | BB104: 1332 | BC104: 568 | BD104: 3203 | BE104: 3195 | BF104: 3151
A105: Y60 | B105: MIDLANDS COMMISSIONING REGION | C105: QJ2 | D105: NHS DERBY AND DERBYSHIRE ICB - 15M | E105: RXM | F105: DERBYSHIRE HEALTHCARE NHS FOUNDATION TRUST | G105: Mental Health & Learning Disability and Mental Health, Learning Disability & Community Trusts | H105: 875 | I105: 3199 | J105: 7.020859288 | K105: 23 | L105: 84 | M105: 304 | N105: 380 | O105: 99 | P105: 0 | Q105: 44 | R105: 222 | S105: 378 | T105: 232 | U105: 0 | V105: 41 | W105: 195 | X105: 333 | Y105: 306 | Z105: 19 | AA105: 59 | AB105: 153 | AC105: 454 | AD105: 200 | AE105: 26 | AF105: 58 | AG105: 164 | AH105: 447 | AI105: 192 | AJ105: 35 | AK105: 84 | AL105: 227 | AM105: 397 | AN105: 144 | AO105: 13 | AP105: 56 | AQ105: 125 | AR105: 409 | AS105: 274 | AT105: 21 | AU105: 71 | AV105: 185 | AW105: 410 | AX105: 189 | AY105: 22 | AZ105: 62 | BA105: 215 | BB105: 412 | BC105: 166 | BD105: 876 | BE105: 885 | BF105: 875
A106: Y60 | B106: MIDLANDS COMMISSIONING REGION | C106: QHL | D106: NHS BIRMINGHAM AND SOLIHULL ICB - 15E | E106: RXT | F106: BIRMINGHAM AND SOLIHULL MENTAL HEALTH NHS FOUNDATION TRUST | G106: Mental Health & Learning Disability and Mental Health, Learning Disability & Community Trusts | H106: 218 | I106: 4840 | J106: 6.020642202 | K106: 12 | L106: 36 | M106: 87 | N106: 56 | O106: 27 | P106: 5 | Q106: 18 | R106: 69 | S106: 74 | T106: 52 | U106: 4 | V106: 16 | W106: 63 | X106: 64 | Y106: 71 | Z106: 13 | AA106: 27 | AB106: 51 | AC106: 88 | AD106: 39 | AE106: 19 | AF106: 30 | AG106: 37 | AH106: 94 | AI106: 38 | AJ106: 21 | AK106: 43 | AL106: 49 | AM106: 71 | AN106: 34 | AO106: 14 | AP106: 21 | AQ106: 56 | AR106: 76 | AS106: 51 | AT106: 21 | AU106: 44 | AV106: 76 | AW106: 58 | AX106: 19 | AY106: 22 | AZ106: 45 | BA106: 73 | BB106: 56 | BC106: 22 | BD106: 218 | BE106: 218 | BF106: 218
A107: Y60 | B107: MIDLANDS COMMISSIONING REGION | C107: QOC | D107: NHS SHROPSHIRE, TELFORD AND WREKIN ICB - M2L0M | E107: RXW | F107: THE SHREWSBURY AND TELFORD HOSPITAL NHS TRUST | G107: Acute and Acute & Community Trusts | H107: 903 | I107: 7779 | J107: 6.172019195 | K107: 59 | L107: 127 | M107: 301 | N107: 295 | O107: 121 | P107: 24 | Q107: 69 | R107: 228 | S107: 340 | T107: 242 | U107: 19 | V107: 54 | W107: 192 | X107: 313 | Y107: 325 | Z107: 56 | AA107: 111 | AB107: 193 | AC107: 399 | AD107: 144 | AE107: 57 | AF107: 108 | AG107: 168 | AH107: 419 | AI107: 151 | AJ107: 72 | AK107: 134 | AL107: 243 | AM107: 342 | AN107: 112 | AO107: 53 | AP107: 105 | AQ107: 233 | AR107: 325 | AS107: 187 | AT107: 104 | AU107: 142 | AV107: 287 | AW107: 271 | AX107: 99 | AY107: 102 | AZ107: 162 | BA107: 286 | BB107: 258 | BC107: 95 | BD107: 903 | BE107: 903 | BF107: 903
A108: Y60 | B108: MIDLANDS COMMISSIONING REGION | C108: QJM | D108: NHS LINCOLNSHIRE ICB - 71E | E108: RY5 | F108: LINCOLNSHIRE COMMUNITY HEALTH SERVICES NHS TRUST | G108: Community Trusts | H108: 760 | I108: 2420 | J108: 6.995796491 | K108: 18 | L108: 97 | M108: 251 | N108: 323 | O108: 89 | P108: 0 | Q108: 53 | R108: 202 | S108: 317 | T108: 192 | U108: 0 | V108: 33 | W108: 171 | X108: 293 | Y108: 267 | Z108: 21 | AA108: 79 | AB108: 131 | AC108: 366 | AD108: 172 | AE108: 24 | AF108: 78 | AG108: 112 | AH108: 385 | AI108: 170 | AJ108: 30 | AK108: 103 | AL108: 178 | AM108: 328 | AN108: 130 | AO108: 13 | AP108: 44 | AQ108: 107 | AR108: 342 | AS108: 255 | AT108: 25 | AU108: 76 | AV108: 175 | AW108: 317 | AX108: 167 | AY108: 12 | AZ108: 42 | BA108: 133 | BB108: 359 | BC108: 216 | BD108: 760 | BE108: 769 | BF108: 764
A109: Y60 | B109: MIDLANDS COMMISSIONING REGION | C109: QJ2 | D109: NHS DERBY AND DERBYSHIRE ICB - 15M | E109: RY8 | F109: DERBYSHIRE COMMUNITY HEALTH SERVICES NHS FOUNDATION TRUST | G109: Community Trusts | H109: 743 | I109: 4410 | J109: 7.309058641 | K109: 23 | L109: 73 | M109: 246 | N109: 304 | O109: 106 | P109: 11 | Q109: 41 | R109: 176 | S109: 322 | T109: 196 | U109: 12 | V109: 28 | W109: 127 | X109: 265 | Y109: 311 | Z109: 27 | AA109: 55 | AB109: 119 | AC109: 345 | AD109: 207 | AE109: 28 | AF109: 46 | AG109: 109 | AH109: 344 | AI109: 223 | AJ109: 37 | AK109: 63 | AL109: 166 | AM109: 315 | AN109: 167 | AO109: 8 | AP109: 28 | AQ109: 95 | AR109: 333 | AS109: 288 | AT109: 26 | AU109: 39 | AV109: 130 | AW109: 320 | AX109: 234 | AY109: 11 | AZ109: 22 | BA109: 81 | BB109: 362 | BC109: 272 | BD109: 748 | BE109: 748 | BF109: 743
A110: Y60 | B110: MIDLANDS COMMISSIONING REGION | C110: QUA | D110: NHS BLACK COUNTRY ICB - D2P2L | E110: RYA | F110: WEST MIDLANDS AMBULANCE SERVICE UNIVERSITY NHS FOUNDATION TRUST | G110: Ambulance Trusts | H110: 510 | I110: 6661 | J110: 4.711328976 | K110: 69 | L110: 126 | M110: 178 | N110: 97 | O110: 40 | P110: 27 | Q110: 102 | R110: 174 | S110: 130 | T110: 77 | U110: 46 | V110: 83 | W110: 195 | X110: 125 | Y110: 61 | Z110: 74 | AA110: 130 | AB110: 123 | AC110: 139 | AD110: 44 | AE110: 91 | AF110: 138 | AG110: 138 | AH110: 113 | AI110: 30 | AJ110: 107 | AK110: 181 | AL110: 127 | AM110: 74 | AN110: 21 | AO110: 100 | AP110: 101 | AQ110: 107 | AR110: 133 | AS110: 69 | AT110: 119 | AU110: 120 | AV110: 124 | AW110: 115 | AX110: 32 | AY110: 55 | AZ110: 91 | BA110: 163 | BB110: 158 | BC110: 43 | BD110: 510 | BE110: 510 | BF110: 510
A111: Y60 | B111: MIDLANDS COMMISSIONING REGION | C111: QWU | D111: NHS COVENTRY AND WARWICKSHIRE ICB - B2M3M | E111: RYG | F111: COVENTRY AND WARWICKSHIRE PARTNERSHIP NHS TRUST | G111: Mental Health & Learning Disability and Mental Health, Learning Disability & Community Trusts | H111: 335 | I111: 4289 | J111: 6.352404643 | K111: 16 | L111: 45 | M111: 114 | N111: 122 | O111: 38 | P111: 4 | Q111: 34 | R111: 89 | S111: 139 | T111: 69 | U111: 6 | V111: 18 | W111: 70 | X111: 128 | Y111: 113 | Z111: 10 | AA111: 37 | AB111: 73 | AC111: 154 | AD111: 61 | AE111: 12 | AF111: 42 | AG111: 49 | AH111: 156 | AI111: 76 | AJ111: 19 | AK111: 53 | AL111: 97 | AM111: 108 | AN111: 58 | AO111: 22 | AP111: 36 | AQ111: 80 | AR111: 125 | AS111: 72 | AT111: 41 | AU111: 54 | AV111: 89 | AW111: 107 | AX111: 44 | AY111: 25 | AZ111: 37 | BA111: 116 | BB111: 118 | BC111: 39 | BD111: 335 | BE111: 335 | BF111: 335
A112: Y60 | B112: MIDLANDS COMMISSIONING REGION | C112: QUA | D112: NHS BLACK COUNTRY ICB - D2P2L | E112: RYK | F112: DUDLEY INTEGRATED HEALTH AND CARE NHS TRUST | G112: Community Trusts | H112: 36 | I112: 478 | J112: 5.99537037 | K112: 3 | L112: 7 | M112: 11 | N112: 8 | O112: 7 | P112: 2 | Q112: 2 | R112: 11 | S112: 8 | T112: 13 | U112: 1 | V112: 2 | W112: 11 | X112: 10 | Y112: 12 | Z112: 6 | AA112: 6 | AB112: 7 | AC112: 11 | AD112: 6 | AE112: 5 | AF112: 5 | AG112: 6 | AH112: 15 | AI112: 5 | AJ112: 7 | AK112: 5 | AL112: 8 | AM112: 12 | AN112: 4 | AO112: 0 | AP112: 5 | AQ112: 10 | AR112: 11 | AS112: 10 | AT112: 2 | AU112: 5 | AV112: 16 | AW112: 11 | AX112: 2 | AY112: 2 | AZ112: 1 | BA112: 17 | BB112: 13 | BC112: 3 | BD112: 36 | BE112: 36 | BF112: 36
A113: Y60 | B113: MIDLANDS COMMISSIONING REGION | C113: QHL | D113: NHS BIRMINGHAM AND SOLIHULL ICB - 15E | E113: RYW | F113: BIRMINGHAM COMMUNITY HEALTHCARE NHS FOUNDATION TRUST | G113: Community Trusts | H113: 107 | I113: 5198 | J113: 6.588785047 | K113: 5 | L113: 15 | M113: 37 | N113: 44 | O113: 6 | P113: 3 | Q113: 8 | R113: 26 | S113: 46 | T113: 24 | U113: 3 | V113: 1 | W113: 21 | X113: 37 | Y113: 45 | Z113: 10 | AA113: 10 | AB113: 20 | AC113: 48 | AD113: 19 | AE113: 8 | AF113: 13 | AG113: 11 | AH113: 50 | AI113: 25 | AJ113: 7 | AK113: 20 | AL113: 21 | AM113: 41 | AN113: 18 | AO113: 4 | AP113: 8 | AQ113: 20 | AR113: 49 | AS113: 26 | AT113: 6 | AU113: 15 | AV113: 28 | AW113: 43 | AX113: 15 | AY113: 2 | AZ113: 7 | BA113: 27 | BB113: 51 | BC113: 20 | BD113: 107 | BE113: 107 | BF113: 107
A114: Y60 | B114: MIDLANDS COMMISSIONING REGION | C114: QUA | D114: NHS BLACK COUNTRY ICB - D2P2L | E114: TAJ | F114: BLACK COUNTRY HEALTHCARE NHS FOUNDATION TRUST | G114: Mental Health & Learning Disability and Mental Health, Learning Disability & Community Trusts | H114: 522 | I114: 3956 | J114: 5.954129417 | K114: 34 | L114: 105 | M114: 180 | N114: 142 | O114: 61 | P114: 21 | Q114: 57 | R114: 158 | S114: 181 | T114: 105 | U114: 19 | V114: 32 | W114: 122 | X114: 181 | Y114: 168 | Z114: 44 | AA114: 64 | AB114: 117 | AC114: 206 | AD114: 91 | AE114: 42 | AF114: 66 | AG114: 115 | AH114: 211 | AI114: 88 | AJ114: 50 | AK114: 94 | AL114: 138 | AM114: 174 | AN114: 66 | AO114: 38 | AP114: 67 | AQ114: 121 | AR114: 187 | AS114: 109 | AT114: 67 | AU114: 94 | AV114: 150 | AW114: 149 | AX114: 62 | AY114: 61 | AZ114: 76 | BA114: 173 | BB114: 155 | BC114: 57 | BD114: 522 | BE114: 522 | BF114: 522
A115: Y61 | B115: EAST OF ENGLAND COMMISSIONING REGION | C115: QH8 | D115: NHS MID AND SOUTH ESSEX ICB - 06Q | E115: R1L | F115: ESSEX PARTNERSHIP UNIVERSITY NHS FOUNDATION TRUST | G115: Mental Health & Learning Disability and Mental Health, Learning Disability & Community Trusts | H115: 527 | I115: 6557 | J115: 6.258697027 | K115: 29 | L115: 89 | M115: 167 | N115: 183 | O115: 59 | P115: 18 | Q115: 40 | R115: 146 | S115: 185 | T115: 138 | U115: 20 | V115: 31 | W115: 127 | X115: 188 | Y115: 161 | Z115: 25 | AA115: 55 | AB115: 105 | AC115: 256 | AD115: 86 | AE115: 28 | AF115: 55 | AG115: 95 | AH115: 260 | AI115: 89 | AJ115: 31 | AK115: 89 | AL115: 119 | AM115: 223 | AN115: 65 | AO115: 24 | AP115: 46 | AQ115: 125 | AR115: 206 | AS115: 126 | AT115: 49 | AU115: 92 | AV115: 159 | AW115: 164 | AX115: 63 | AY115: 56 | AZ115: 82 | BA115: 163 | BB115: 164 | BC115: 62 | BD115: 527 | BE115: 527 | BF115: 527
A116: Y61 | B116: EAST OF ENGLAND COMMISSIONING REGION | C116: QMM | D116: NHS NORFOLK AND WAVENEY ICB - 26A | E116: RCX | F116: THE QUEEN ELIZABETH HOSPITAL, KING'S LYNN, NHS FOUNDATION TRUST | G116: Acute and Acute & Community Trusts | H116: 313 | I116: 3941 | J116: 6.001952432 | K116: 28 | L116: 44 | M116: 101 | N116: 96 | O116: 44 | P116: 12 | Q116: 32 | R116: 77 | S116: 108 | T116: 84 | U116: 10 | V116: 20 | W116: 78 | X116: 104 | Y116: 101 | Z116: 21 | AA116: 42 | AB116: 63 | AC116: 140 | AD116: 47 | AE116: 20 | AF116: 40 | AG116: 63 | AH116: 134 | AI116: 56 | AJ116: 29 | AK116: 59 | AL116: 70 | AM116: 118 | AN116: 37 | AO116: 25 | AP116: 47 | AQ116: 65 | AR116: 116 | AS116: 60 | AT116: 55 | AU116: 46 | AV116: 86 | AW116: 85 | AX116: 41 | AY116: 41 | AZ116: 59 | BA116: 86 | BB116: 95 | BC116: 32 | BD116: 313 | BE116: 313 | BF116: 313
A117: Y61 | B117: EAST OF ENGLAND COMMISSIONING REGION | C117: QHG | D117: NHS BEDFORDSHIRE, LUTON AND MILTON KEYNES ICB - M1J4Y | E117: RD8 | F117: MILTON KEYNES UNIVERSITY HOSPITAL NHS FOUNDATION TRUST | G117: Acute and Acute & Community Trusts | H117: 92 | I117: 4192 | J117: 5.960144928 | K117: 8 | L117: 14 | M117: 30 | N117: 32 | O117: 8 | P117: 6 | Q117: 9 | R117: 22 | S117: 35 | T117: 20 | U117: 1 | V117: 8 | W117: 28 | X117: 22 | Y117: 33 | Z117: 9 | AA117: 15 | AB117: 21 | AC117: 33 | AD117: 14 | AE117: 10 | AF117: 19 | AG117: 10 | AH117: 40 | AI117: 13 | AJ117: 11 | AK117: 20 | AL117: 21 | AM117: 31 | AN117: 9 | AO117: 6 | AP117: 11 | AQ117: 18 | AR117: 37 | AS117: 20 | AT117: 9 | AU117: 17 | AV117: 26 | AW117: 29 | AX117: 11 | AY117: 4 | AZ117: 12 | BA117: 28 | BB117: 40 | BC117: 8 | BD117: 92 | BE117: 92 | BF117: 92
A118: Y61 | B118: EAST OF ENGLAND COMMISSIONING REGION | C118: QUE | D118: NHS CAMBRIDGESHIRE AND PETERBOROUGH ICB - 06H | E118: RGN | F118: NORTH WEST ANGLIA NHS FOUNDATION TRUST | G118: Acute and Acute & Community Trusts | H118: 133 | I118: 7330 | J118: 6.315789474 | K118: 7 | L118: 23 | M118: 53 | N118: 37 | O118: 13 | P118: 0 | Q118: 13 | R118: 36 | S118: 48 | T118: 36 | U118: 2 | V118: 9 | W118: 22 | X118: 50 | Y118: 50 | Z118: 5 | AA118: 18 | AB118: 29 | AC118: 58 | AD118: 23 | AE118: 7 | AF118: 11 | AG118: 26 | AH118: 64 | AI118: 25 | AJ118: 6 | AK118: 18 | AL118: 31 | AM118: 57 | AN118: 21 | AO118: 6 | AP118: 15 | AQ118: 30 | AR118: 52 | AS118: 30 | AT118: 17 | AU118: 21 | AV118: 40 | AW118: 44 | AX118: 11 | AY118: 12 | AZ118: 17 | BA118: 46 | BB118: 45 | BC118: 13 | BD118: 133 | BE118: 133 | BF118: 133
A119: Y61 | B119: EAST OF ENGLAND COMMISSIONING REGION | C119: QJG | D119: NHS SUFFOLK AND NORTH EAST ESSEX ICB - 07K | E119: RGR | F119: WEST SUFFOLK NHS FOUNDATION TRUST | G119: Acute and Acute & Community Trusts | H119: 1438 | I119: 5267 | J119: 6.915822276 | K119: 41 | L119: 152 | M119: 480 | N119: 630 | O119: 176 | P119: 24 | Q119: 88 | R119: 350 | S119: 645 | T119: 345 | U119: 18 | V119: 59 | W119: 318 | X119: 589 | Y119: 472 | Z119: 39 | AA119: 116 | AB119: 289 | AC119: 737 | AD119: 281 | AE119: 47 | AF119: 115 | AG119: 301 | AH119: 712 | AI119: 287 | AJ119: 62 | AK119: 157 | AL119: 405 | AM119: 600 | AN119: 239 | AO119: 25 | AP119: 81 | AQ119: 225 | AR119: 696 | AS119: 413 | AT119: 48 | AU119: 131 | AV119: 322 | AW119: 663 | AX119: 276 | AY119: 31 | AZ119: 96 | BA119: 289 | BB119: 701 | BC119: 321 | BD119: 1438 | BE119: 1462 | BF119: 1452
A120: Y61 | B120: EAST OF ENGLAND COMMISSIONING REGION | C120: QUE | D120: NHS CAMBRIDGESHIRE AND PETERBOROUGH ICB - 06H | E120: RGT | F120: CAMBRIDGE UNIVERSITY HOSPITALS NHS FOUNDATION TRUST | G120: Acute and Acute & Community Trusts | H120: 2880 | I120: 12276 | J120: 6.891671447 | K120: 91 | L120: 320 | M120: 972 | N120: 1136 | O120: 416 | P120: 47 | Q120: 187 | R120: 755 | S120: 1214 | T120: 700 | U120: 51 | V120: 150 | W120: 683 | X120: 1144 | Y120: 880 | Z120: 106 | AA120: 294 | AB120: 582 | AC120: 1381 | AD120: 548 | AE120: 112 | AF120: 280 | AG120: 579 | AH120: 1382 | AI120: 556 | AJ120: 173 | AK120: 381 | AL120: 769 | AM120: 1172 | AN120: 413 | AO120: 58 | AP120: 142 | AQ120: 359 | AR120: 1388 | AS120: 933 | AT120: 117 | AU120: 242 | AV120: 593 | AW120: 1296 | AX120: 638 | AY120: 59 | AZ120: 149 | BA120: 407 | BB120: 1425 | BC120: 842 | BD120: 2880 | BE120: 2908 | BF120: 2903
A121: Y61 | B121: EAST OF ENGLAND COMMISSIONING REGION | C121: QMM | D121: NHS NORFOLK AND WAVENEY ICB - 26A | E121: RM1 | F121: NORFOLK AND NORWICH UNIVERSITY HOSPITALS NHS FOUNDATION TRUST | G121: Acute and Acute & Community Trusts | H121: 388 | I121: 9383 | J121: 6.099656357 | K121: 26 | L121: 56 | M121: 142 | N121: 126 | O121: 38 | P121: 15 | Q121: 37 | R121: 111 | S121: 146 | T121: 79 | U121: 11 | V121: 23 | W121: 77 | X121: 148 | Y121: 129 | Z121: 31 | AA121: 42 | AB121: 91 | AC121: 160 | AD121: 64 | AE121: 29 | AF121: 46 | AG121: 66 | AH121: 183 | AI121: 64 | AJ121: 42 | AK121: 66 | AL121: 99 | AM121: 138 | AN121: 43 | AO121: 26 | AP121: 53 | AQ121: 88 | AR121: 148 | AS121: 73 | AT121: 42 | AU121: 75 | AV121: 111 | AW121: 122 | AX121: 38 | AY121: 27 | AZ121: 45 | BA121: 108 | BB121: 166 | BC121: 42 | BD121: 388 | BE121: 388 | BF121: 388
A122: Y61 | B122: EAST OF ENGLAND COMMISSIONING REGION | C122: QMM | D122: NHS NORFOLK AND WAVENEY ICB - 26A | E122: RMY | F122: NORFOLK AND SUFFOLK NHS FOUNDATION TRUST | G122: Mental Health & Learning Disability and Mental Health, Learning Disability & Community Trusts | H122: 22 | I122: 5055 | J122: 5.151515152 | K122: 3 | L122: 5 | M122: 6 | N122: 7 | O122: 1 | P122: 1 | Q122: 3 | R122: 9 | S122: 5 | T122: 4 | U122: 1 | V122: 3 | W122: 7 | X122: 6 | Y122: 5 | Z122: 4 | AA122: 4 | AB122: 5 | AC122: 7 | AD122: 2 | AE122: 2 | AF122: 5 | AG122: 4 | AH122: 9 | AI122: 2 | AJ122: 4 | AK122: 5 | AL122: 4 | AM122: 7 | AN122: 2 | AO122: 4 | AP122: 2 | AQ122: 5 | AR122: 8 | AS122: 3 | AT122: 8 | AU122: 2 | AV122: 4 | AW122: 6 | AX122: 2 | AY122: 6 | AZ122: 3 | BA122: 4 | BB122: 5 | BC122: 4 | BD122: 22 | BE122: 22 | BF122: 22
A123: Y61 | B123: EAST OF ENGLAND COMMISSIONING REGION | C123: QM7 | D123: NHS HERTFORDSHIRE AND WEST ESSEX ICB - 07H | E123: RQW | F123: THE PRINCESS ALEXANDRA HOSPITAL NHS TRUST | G123: Acute and Acute & Community Trusts | H123: 103 | I123: 3990 | J123: 5.685005394 | K123: 12 | L123: 14 | M123: 41 | N123: 27 | O123: 9 | P123: 5 | Q123: 16 | R123: 26 | S123: 38 | T123: 18 | U123: 4 | V123: 8 | W123: 26 | X123: 33 | Y123: 32 | Z123: 13 | AA123: 18 | AB123: 13 | AC123: 36 | AD123: 23 | AE123: 13 | AF123: 10 | AG123: 16 | AH123: 42 | AI123: 22 | AJ123: 17 | AK123: 23 | AL123: 10 | AM123: 41 | AN123: 12 | AO123: 10 | AP123: 14 | AQ123: 22 | AR123: 40 | AS123: 17 | AT123: 18 | AU123: 21 | AV123: 28 | AW123: 27 | AX123: 9 | AY123: 13 | AZ123: 18 | BA123: 42 | BB123: 22 | BC123: 8 | BD123: 103 | BE123: 103 | BF123: 103
A124: Y61 | B124: EAST OF ENGLAND COMMISSIONING REGION | C124: QUE | D124: NHS CAMBRIDGESHIRE AND PETERBOROUGH ICB - 06H | E124: RT1 | F124: CAMBRIDGESHIRE AND PETERBOROUGH NHS FOUNDATION TRUST | G124: Mental Health & Learning Disability and Mental Health, Learning Disability & Community Trusts | H124: 2429 | I124: 4789 | J124: 7.390215452 | K124: 30 | L124: 162 | M124: 683 | N124: 1046 | O124: 508 | P124: 18 | Q124: 80 | R124: 482 | S124: 1014 | T124: 835 | U124: 20 | V124: 76 | W124: 434 | X124: 896 | Y124: 1003 | Z124: 32 | AA124: 119 | AB124: 429 | AC124: 1180 | AD124: 669 | AE124: 32 | AF124: 108 | AG124: 404 | AH124: 1194 | AI124: 691 | AJ124: 43 | AK124: 166 | AL124: 588 | AM124: 1077 | AN124: 555 | AO124: 24 | AP124: 90 | AQ124: 345 | AR124: 974 | AS124: 996 | AT124: 83 | AU124: 153 | AV124: 558 | AW124: 977 | AX124: 658 | AY124: 57 | AZ124: 117 | BA124: 495 | BB124: 1058 | BC124: 702 | BD124: 2429 | BE124: 2429 | BF124: 2429
A125: Y61 | B125: EAST OF ENGLAND COMMISSIONING REGION | C125: QM7 | D125: NHS HERTFORDSHIRE AND WEST ESSEX ICB - 07H | E125: RWG | F125: WEST HERTFORDSHIRE TEACHING HOSPITALS NHS TRUST | G125: Acute and Acute & Community Trusts | H125: 486 | I125: 5589 | J125: 5.883058985 | K125: 30 | L125: 86 | M125: 164 | N125: 148 | O125: 58 | P125: 16 | Q125: 53 | R125: 135 | S125: 184 | T125: 98 | U125: 16 | V125: 23 | W125: 111 | X125: 181 | Y125: 155 | Z125: 33 | AA125: 63 | AB125: 117 | AC125: 216 | AD125: 57 | AE125: 36 | AF125: 54 | AG125: 111 | AH125: 228 | AI125: 57 | AJ125: 45 | AK125: 81 | AL125: 139 | AM125: 186 | AN125: 35 | AO125: 41 | AP125: 68 | AQ125: 102 | AR125: 201 | AS125: 74 | AT125: 66 | AU125: 91 | AV125: 146 | AW125: 152 | AX125: 31 | AY125: 59 | AZ125: 81 | BA125: 167 | BB125: 155 | BC125: 24 | BD125: 486 | BE125: 486 | BF125: 486
A126: Y61 | B126: EAST OF ENGLAND COMMISSIONING REGION | C126: QM7 | D126: NHS HERTFORDSHIRE AND WEST ESSEX ICB - 07H | E126: RWR | F126: HERTFORDSHIRE PARTNERSHIP UNIVERSITY NHS FOUNDATION TRUST | G126: Mental Health & Learning Disability and Mental Health, Learning Disability & Community Trusts | H126: 945 | I126: 4182 | J126: 7.254809449 | K126: 15 | L126: 85 | M126: 282 | N126: 415 | O126: 169 | P126: 10 | Q126: 57 | R126: 213 | S126: 415 | T126: 267 | U126: 11 | V126: 32 | W126: 197 | X126: 369 | Y126: 356 | Z126: 24 | AA126: 58 | AB126: 156 | AC126: 493 | AD126: 231 | AE126: 25 | AF126: 56 | AG126: 165 | AH126: 483 | AI126: 235 | AJ126: 28 | AK126: 90 | AL126: 221 | AM126: 424 | AN126: 200 | AO126: 12 | AP126: 32 | AQ126: 103 | AR126: 381 | AS126: 417 | AT126: 29 | AU126: 77 | AV126: 172 | AW126: 363 | AX126: 307 | AY126: 20 | AZ126: 67 | BA126: 195 | BB126: 411 | BC126: 255 | BD126: 945 | BE126: 962 | BF126: 962
A127: Y61 | B127: EAST OF ENGLAND COMMISSIONING REGION | C127: QMM | D127: NHS NORFOLK AND WAVENEY ICB - 26A | E127: RY3 | F127: NORFOLK COMMUNITY HEALTH AND CARE NHS TRUST | G127: Community Trusts | H127: 510 | I127: 2474 | J127: 7.290305011 | K127: 7 | L127: 52 | M127: 155 | N127: 216 | O127: 80 | P127: 1 | Q127: 26 | R127: 102 | S127: 231 | T127: 150 | U127: 2 | V127: 14 | W127: 82 | X127: 196 | Y127: 216 | Z127: 16 | AA127: 30 | AB127: 72 | AC127: 265 | AD127: 127 | AE127: 16 | AF127: 28 | AG127: 80 | AH127: 234 | AI127: 152 | AJ127: 16 | AK127: 51 | AL127: 125 | AM127: 208 | AN127: 110 | AO127: 11 | AP127: 22 | AQ127: 71 | AR127: 223 | AS127: 183 | AT127: 18 | AU127: 25 | AV127: 105 | AW127: 201 | AX127: 161 | AY127: 12 | AZ127: 31 | BA127: 76 | BB127: 232 | BC127: 159 | BD127: 510 | BE127: 510 | BF127: 510
A128: Y61 | B128: EAST OF ENGLAND COMMISSIONING REGION | C128: QM7 | D128: NHS HERTFORDSHIRE AND WEST ESSEX ICB - 07H | E128: RY4 | F128: HERTFORDSHIRE COMMUNITY NHS TRUST | G128: Community Trusts | H128: 264 | I128: 2422 | J128: 7.248526936 | K128: 3 | L128: 34 | M128: 62 | N128: 120 | O128: 45 | P128: 0 | Q128: 19 | R128: 57 | S128: 99 | T128: 89 | U128: 1 | V128: 7 | W128: 35 | X128: 81 | Y128: 140 | Z128: 12 | AA128: 24 | AB128: 39 | AC128: 112 | AD128: 77 | AE128: 11 | AF128: 19 | AG128: 28 | AH128: 132 | AI128: 74 | AJ128: 12 | AK128: 34 | AL128: 52 | AM128: 105 | AN128: 61 | AO128: 7 | AP128: 14 | AQ128: 33 | AR128: 107 | AS128: 103 | AT128: 15 | AU128: 26 | AV128: 45 | AW128: 98 | AX128: 80 | AY128: 12 | AZ128: 7 | BA128: 53 | BB128: 109 | BC128: 83 | BD128: 264 | BE128: 264 | BF128: 264
A129: Y61 | B129: EAST OF ENGLAND COMMISSIONING REGION | C129: QUE | D129: NHS CAMBRIDGESHIRE AND PETERBOROUGH ICB - 06H | E129: RYC | F129: EAST OF ENGLAND AMBULANCE SERVICE NHS TRUST | G129: Ambulance Trusts | H129: 1451 | I129: 6007 | J129: 5.82055573 | K129: 75 | L129: 206 | M129: 504 | N129: 535 | O129: 169 | P129: 42 | Q129: 147 | R129: 406 | S129: 558 | T129: 329 | U129: 68 | V129: 145 | W129: 493 | X129: 510 | Y129: 268 | Z129: 125 | AA129: 259 | AB129: 324 | AC129: 594 | AD129: 165 | AE129: 181 | AF129: 308 | AG129: 358 | AH129: 460 | AI129: 168 | AJ129: 223 | AK129: 366 | AL129: 415 | AM129: 337 | AN129: 133 | AO129: 84 | AP129: 193 | AQ129: 272 | AR129: 608 | AS129: 294 | AT129: 186 | AU129: 285 | AV129: 377 | AW129: 467 | AX129: 139 | AY129: 83 | AZ129: 166 | BA129: 345 | BB129: 632 | BC129: 228 | BD129: 1451 | BE129: 1467 | BF129: 1482
A130: Y61 | B130: EAST OF ENGLAND COMMISSIONING REGION | C130: QUE | D130: NHS CAMBRIDGESHIRE AND PETERBOROUGH ICB - 06H | E130: RYV | F130: CAMBRIDGESHIRE COMMUNITY SERVICES NHS TRUST | G130: Community Trusts | H130: 41 | I130: 2637 | J130: 6.775067751 | K130: 2 | L130: 5 | M130: 16 | N130: 12 | O130: 6 | P130: 1 | Q130: 4 | R130: 11 | S130: 14 | T130: 11 | U130: 0 | V130: 0 | W130: 9 | X130: 15 | Y130: 17 | Z130: 3 | AA130: 5 | AB130: 7 | AC130: 16 | AD130: 10 | AE130: 3 | AF130: 3 | AG130: 10 | AH130: 17 | AI130: 8 | AJ130: 4 | AK130: 7 | AL130: 9 | AM130: 13 | AN130: 8 | AO130: 1 | AP130: 5 | AQ130: 2 | AR130: 22 | AS130: 11 | AT130: 3 | AU130: 2 | AV130: 9 | AW130: 17 | AX130: 10 | AY130: 0 | AZ130: 3 | BA130: 6 | BB130: 22 | BC130: 10 | BD130: 41 | BE130: 41 | BF130: 41
A131: Y62 | B131: NORTH WEST COMMISSIONING REGION | C131: QOP | D131: NHS GREATER MANCHESTER ICB - 00T | E131: R0A | F131: MANCHESTER UNIVERSITY NHS FOUNDATION TRUST | G131: Acute and Acute & Community Trusts | H131: 3328 | I131: 29187 | J131: 6.570221232 | K131: 161 | L131: 479 | M131: 1124 | N131: 1179 | O131: 440 | P131: 86 | Q131: 288 | R131: 829 | S131: 1358 | T131: 773 | U131: 88 | V131: 174 | W131: 771 | X131: 1214 | Y131: 1081 | Z131: 191 | AA131: 365 | AB131: 634 | AC131: 1575 | AD131: 617 | AE131: 195 | AF131: 341 | AG131: 562 | AH131: 1579 | AI131: 695 | AJ131: 224 | AK131: 460 | AL131: 772 | AM131: 1356 | AN131: 546 | AO131: 144 | AP131: 311 | AQ131: 616 | AR131: 1409 | AS131: 909 | AT131: 248 | AU131: 459 | AV131: 859 | AW131: 1235 | AX131: 577 | AY131: 157 | AZ131: 328 | BA131: 785 | BB131: 1490 | BC131: 612 | BD131: 3372 | BE131: 3358 | BF131: 3328
A132: Y62 | B132: NORTH WEST COMMISSIONING REGION | C132: QYG | D132: NHS CHESHIRE AND MERSEYSIDE ICB - 01J | E132: RBL | F132: WIRRAL UNIVERSITY TEACHING HOSPITAL NHS FOUNDATION TRUST | G132: Acute and Acute & Community Trusts | H132: 748 | I132: 6784 | J132: 6.3283571 | K132: 41 | L132: 120 | M132: 260 | N132: 232 | O132: 95 | P132: 19 | Q132: 63 | R132: 190 | S132: 263 | T132: 213 | U132: 22 | V132: 44 | W132: 144 | X132: 235 | Y132: 303 | Z132: 46 | AA132: 83 | AB132: 174 | AC132: 314 | AD132: 131 | AE132: 53 | AF132: 86 | AG132: 156 | AH132: 312 | AI132: 141 | AJ132: 61 | AK132: 109 | AL132: 204 | AM132: 270 | AN132: 104 | AO132: 60 | AP132: 84 | AQ132: 140 | AR132: 295 | AS132: 169 | AT132: 89 | AU132: 99 | AV132: 208 | AW132: 257 | AX132: 95 | AY132: 43 | AZ132: 93 | BA132: 178 | BB132: 322 | BC132: 112 | BD132: 748 | BE132: 748 | BF132: 748
A133: Y62 | B133: NORTH WEST COMMISSIONING REGION | C133: QYG | D133: NHS CHESHIRE AND MERSEYSIDE ICB - 01J | E133: RBN | F133: MERSEY AND WEST LANCASHIRE TEACHING HOSPITALS NHS TRUST | G133: Acute and Acute & Community Trusts | H133: 196 | I133: 10855 | J133: 6.380385488 | K133: 19 | L133: 24 | M133: 66 | N133: 62 | O133: 25 | P133: 9 | Q133: 18 | R133: 46 | S133: 56 | T133: 67 | U133: 9 | V133: 13 | W133: 47 | X133: 62 | Y133: 65 | Z133: 19 | AA133: 24 | AB133: 32 | AC133: 78 | AD133: 43 | AE133: 15 | AF133: 28 | AG133: 38 | AH133: 72 | AI133: 43 | AJ133: 15 | AK133: 28 | AL133: 48 | AM133: 71 | AN133: 34 | AO133: 11 | AP133: 21 | AQ133: 37 | AR133: 66 | AS133: 61 | AT133: 21 | AU133: 36 | AV133: 44 | AW133: 55 | AX133: 40 | AY133: 11 | AZ133: 24 | BA133: 42 | BB133: 68 | BC133: 51 | BD133: 196 | BE133: 196 | BF133: 196
A134: Y62 | B134: NORTH WEST COMMISSIONING REGION | C134: QYG | D134: NHS CHESHIRE AND MERSEYSIDE ICB - 01J | E134: RBQ | F134: LIVERPOOL HEART AND CHEST HOSPITAL NHS FOUNDATION TRUST | G134: Acute Specialist Trusts | H134: 166 | I134: 1952 | J134: 7.394578313 | K134: 5 | L134: 19 | M134: 49 | N134: 61 | O134: 32 | P134: 3 | Q134: 12 | R134: 33 | S134: 67 | T134: 51 | U134: 2 | V134: 7 | W134: 44 | X134: 51 | Y134: 62 | Z134: 7 | AA134: 17 | AB134: 24 | AC134: 69 | AD134: 49 | AE134: 4 | AF134: 17 | AG134: 19 | AH134: 74 | AI134: 52 | AJ134: 5 | AK134: 21 | AL134: 40 | AM134: 51 | AN134: 49 | AO134: 6 | AP134: 5 | AQ134: 8 | AR134: 66 | AS134: 81 | AT134: 7 | AU134: 11 | AV134: 26 | AW134: 51 | AX134: 71 | AY134: 3 | AZ134: 4 | BA134: 8 | BB134: 58 | BC134: 93 | BD134: 166 | BE134: 166 | BF134: 166
A135: Y62 | B135: NORTH WEST COMMISSIONING REGION | C135: QYG | D135: NHS CHESHIRE AND MERSEYSIDE ICB - 01J | E135: RBT | F135: MID CHESHIRE HOSPITALS NHS FOUNDATION TRUST | G135: Acute and Acute & Community Trusts | H135: 807 | I135: 5629 | J135: 6.840492909 | K135: 33 | L135: 96 | M135: 271 | N135: 288 | O135: 119 | P135: 15 | Q135: 57 | R135: 178 | S135: 315 | T135: 242 | U135: 19 | V135: 33 | W135: 158 | X135: 279 | Y135: 318 | Z135: 43 | AA135: 70 | AB135: 150 | AC135: 373 | AD135: 171 | AE135: 45 | AF135: 65 | AG135: 132 | AH135: 380 | AI135: 185 | AJ135: 44 | AK135: 96 | AL135: 199 | AM135: 326 | AN135: 142 | AO135: 29 | AP135: 45 | AQ135: 125 | AR135: 352 | AS135: 256 | AT135: 44 | AU135: 72 | AV135: 212 | AW135: 313 | AX135: 166 | AY135: 27 | AZ135: 52 | BA135: 185 | BB135: 379 | BC135: 164 | BD135: 807 | BE135: 807 | BF135: 807
A136: Y62 | B136: NORTH WEST COMMISSIONING REGION | C136: QOP | D136: NHS GREATER MANCHESTER ICB - 00T | E136: RBV | F136: THE CHRISTIE NHS FOUNDATION TRUST | G136: Acute Specialist Trusts | H136: 112 | I136: 3633 | J136: 7.041170635 | K136: 6 | L136: 20 | M136: 32 | N136: 37 | O136: 17 | P136: 1 | Q136: 11 | R136: 31 | S136: 43 | T136: 26 | U136: 4 | V136: 8 | W136: 22 | X136: 37 | Y136: 41 | Z136: 5 | AA136: 7 | AB136: 12 | AC136: 59 | AD136: 29 | AE136: 6 | AF136: 7 | AG136: 13 | AH136: 47 | AI136: 39 | AJ136: 8 | AK136: 12 | AL136: 20 | AM136: 51 | AN136: 21 | AO136: 1 | AP136: 7 | AQ136: 15 | AR136: 51 | AS136: 38 | AT136: 9 | AU136: 11 | AV136: 16 | AW136: 52 | AX136: 24 | AY136: 1 | AZ136: 5 | BA136: 12 | BB136: 42 | BC136: 52 | BD136: 112 | BE136: 112 | BF136: 112
A137: Y62 | B137: NORTH WEST COMMISSIONING REGION | C137: QYG | D137: NHS CHESHIRE AND MERSEYSIDE ICB - 01J | E137: REM | F137: LIVERPOOL UNIVERSITY HOSPITALS NHS FOUNDATION TRUST | G137: Acute and Acute & Community Trusts | H137: 1341 | I137: 15194 | J137: 6.061811252 | K137: 98 | L137: 250 | M137: 466 | N137: 384 | O137: 143 | P137: 62 | Q137: 145 | R137: 387 | S137: 450 | T137: 297 | U137: 51 | V137: 93 | W137: 305 | X137: 490 | Y137: 402 | Z137: 106 | AA137: 188 | AB137: 303 | AC137: 565 | AD137: 179 | AE137: 109 | AF137: 171 | AG137: 270 | AH137: 586 | AI137: 205 | AJ137: 123 | AK137: 218 | AL137: 373 | AM137: 469 | AN137: 158 | AO137: 106 | AP137: 124 | AQ137: 291 | AR137: 520 | AS137: 300 | AT137: 194 | AU137: 192 | AV137: 400 | AW137: 388 | AX137: 167 | AY137: 101 | AZ137: 116 | BA137: 370 | BB137: 539 | BC137: 215 | BD137: 1341 | BE137: 1341 | BF137: 1341
A138: Y62 | B138: NORTH WEST COMMISSIONING REGION | C138: QYG | D138: NHS CHESHIRE AND MERSEYSIDE ICB - 01J | E138: REN | F138: THE CLATTERBRIDGE CANCER CENTRE NHS FOUNDATION TRUST | G138: Acute Specialist Trusts | H138: 547 | I138: 1840 | J138: 7.365427585 | K138: 16 | L138: 59 | M138: 136 | N138: 264 | O138: 72 | P138: 6 | Q138: 46 | R138: 83 | S138: 300 | T138: 112 | U138: 9 | V138: 37 | W138: 73 | X138: 280 | Y138: 148 | Z138: 9 | AA138: 49 | AB138: 66 | AC138: 281 | AD138: 142 | AE138: 8 | AF138: 47 | AG138: 60 | AH138: 277 | AI138: 155 | AJ138: 10 | AK138: 61 | AL138: 113 | AM138: 252 | AN138: 111 | AO138: 1 | AP138: 22 | AQ138: 54 | AR138: 213 | AS138: 257 | AT138: 17 | AU138: 28 | AV138: 101 | AW138: 230 | AX138: 171 | AY138: 1 | AZ138: 13 | BA138: 42 | BB138: 241 | BC138: 250 | BD138: 547 | BE138: 547 | BF138: 547
A139: Y62 | B139: NORTH WEST COMMISSIONING REGION | C139: QYG | D139: NHS CHESHIRE AND MERSEYSIDE ICB - 01J | E139: REP | F139: LIVERPOOL WOMEN'S NHS FOUNDATION TRUST | G139: Acute Specialist Trusts | H139: 82 | I139: 1803 | J139: 6.68699187 | K139: 6 | L139: 7 | M139: 22 | N139: 36 | O139: 11 | P139: 5 | Q139: 2 | R139: 20 | S139: 33 | T139: 22 | U139: 4 | V139: 3 | W139: 12 | X139: 33 | Y139: 30 | Z139: 5 | AA139: 13 | AB139: 16 | AC139: 29 | AD139: 19 | AE139: 4 | AF139: 12 | AG139: 13 | AH139: 31 | AI139: 22 | AJ139: 6 | AK139: 15 | AL139: 21 | AM139: 22 | AN139: 18 | AO139: 3 | AP139: 5 | AQ139: 15 | AR139: 31 | AS139: 28 | AT139: 8 | AU139: 13 | AV139: 18 | AW139: 22 | AX139: 21 | AY139: 4 | AZ139: 2 | BA139: 17 | BB139: 37 | BC139: 22 | BD139: 82 | BE139: 82 | BF139: 82
A140: Y62 | B140: NORTH WEST COMMISSIONING REGION | C140: QYG | D140: NHS CHESHIRE AND MERSEYSIDE ICB - 01J | E140: RET | F140: THE WALTON CENTRE NHS FOUNDATION TRUST | G140: Acute Specialist Trusts | H140: 104 | I140: 1573 | J140: 7.307692308 | K140: 2 | L140: 11 | M140: 29 | N140: 46 | O140: 16 | P140: 0 | Q140: 12 | R140: 17 | S140: 45 | T140: 30 | U140: 0 | V140: 7 | W140: 18 | X140: 33 | Y140: 46 | Z140: 2 | AA140: 12 | AB140: 19 | AC140: 40 | AD140: 31 | AE140: 4 | AF140: 7 | AG140: 14 | AH140: 49 | AI140: 30 | AJ140: 4 | AK140: 14 | AL140: 18 | AM140: 40 | AN140: 28 | AO140: 1 | AP140: 2 | AQ140: 16 | AR140: 44 | AS140: 41 | AT140: 5 | AU140: 9 | AV140: 20 | AW140: 41 | AX140: 29 | AY140: 1 | AZ140: 1 | BA140: 15 | BB140: 37 | BC140: 50 | BD140: 104 | BE140: 104 | BF140: 104
A141: Y62 | B141: NORTH WEST COMMISSIONING REGION | C141: QYG | D141: NHS CHESHIRE AND MERSEYSIDE ICB - 01J | E141: RJN | F141: EAST CHESHIRE NHS TRUST | G141: Acute and Acute & Community Trusts | H141: 39 | I141: 2753 | J141: 6.595441595 | K141: 0 | L141: 10 | M141: 12 | N141: 10 | O141: 7 | P141: 0 | Q141: 4 | R141: 11 | S141: 11 | T141: 13 | U141: 1 | V141: 1 | W141: 6 | X141: 15 | Y141: 16 | Z141: 3 | AA141: 2 | AB141: 6 | AC141: 19 | AD141: 9 | AE141: 4 | AF141: 3 | AG141: 4 | AH141: 19 | AI141: 9 | AJ141: 6 | AK141: 3 | AL141: 11 | AM141: 10 | AN141: 9 | AO141: 1 | AP141: 3 | AQ141: 7 | AR141: 18 | AS141: 10 | AT141: 4 | AU141: 4 | AV141: 15 | AW141: 11 | AX141: 5 | AY141: 1 | AZ141: 4 | BA141: 14 | BB141: 11 | BC141: 9 | BD141: 39 | BE141: 39 | BF141: 39
A142: Y62 | B142: NORTH WEST COMMISSIONING REGION | C142: QYG | D142: NHS CHESHIRE AND MERSEYSIDE ICB - 01J | E142: RJR | F142: COUNTESS OF CHESTER HOSPITAL NHS FOUNDATION TRUST | G142: Acute and Acute & Community Trusts | H142: 87 | I142: 4968 | J142: 5.782247765 | K142: 7 | L142: 16 | M142: 29 | N142: 27 | O142: 8 | P142: 4 | Q142: 8 | R142: 26 | S142: 30 | T142: 19 | U142: 4 | V142: 3 | W142: 16 | X142: 34 | Y142: 30 | Z142: 11 | AA142: 10 | AB142: 15 | AC142: 35 | AD142: 16 | AE142: 10 | AF142: 14 | AG142: 14 | AH142: 34 | AI142: 15 | AJ142: 13 | AK142: 12 | AL142: 23 | AM142: 28 | AN142: 11 | AO142: 9 | AP142: 13 | AQ142: 22 | AR142: 29 | AS142: 14 | AT142: 16 | AU142: 17 | AV142: 25 | AW142: 24 | AX142: 5 | AY142: 9 | AZ142: 14 | BA142: 28 | BB142: 31 | BC142: 5 | BD142: 87 | BE142: 87 | BF142: 87
A143: Y62 | B143: NORTH WEST COMMISSIONING REGION | C143: QOP | D143: NHS GREATER MANCHESTER ICB - 00T | E143: RM3 | F143: NORTHERN CARE ALLIANCE NHS FOUNDATION TRUST | G143: Acute and Acute & Community Trusts | H143: 1514 | I143: 20832 | J143: 5.973139586 | K143: 127 | L143: 290 | M143: 513 | N143: 428 | O143: 156 | P143: 79 | Q143: 191 | R143: 430 | S143: 508 | T143: 306 | U143: 53 | V143: 123 | W143: 377 | X143: 512 | Y143: 449 | Z143: 125 | AA143: 211 | AB143: 324 | AC143: 624 | AD143: 230 | AE143: 118 | AF143: 190 | AG143: 304 | AH143: 647 | AI143: 255 | AJ143: 133 | AK143: 257 | AL143: 408 | AM143: 503 | AN143: 213 | AO143: 125 | AP143: 196 | AQ143: 330 | AR143: 560 | AS143: 303 | AT143: 230 | AU143: 240 | AV143: 418 | AW143: 455 | AX143: 171 | AY143: 107 | AZ143: 182 | BA143: 451 | BB143: 573 | BC143: 201 | BD143: 1514 | BE143: 1514 | BF143: 1514
A144: Y62 | B144: NORTH WEST COMMISSIONING REGION | C144: QOP | D144: NHS GREATER MANCHESTER ICB - 00T | E144: RMC | F144: BOLTON NHS FOUNDATION TRUST | G144: Acute and Acute & Community Trusts | H144: 149 | I144: 6800 | J144: 6.120432513 | K144: 12 | L144: 25 | M144: 40 | N144: 48 | O144: 24 | P144: 5 | Q144: 18 | R144: 42 | S144: 39 | T144: 45 | U144: 8 | V144: 8 | W144: 34 | X144: 57 | Y144: 42 | Z144: 15 | AA144: 18 | AB144: 28 | AC144: 56 | AD144: 32 | AE144: 14 | AF144: 16 | AG144: 21 | AH144: 65 | AI144: 33 | AJ144: 18 | AK144: 26 | AL144: 34 | AM144: 49 | AN144: 22 | AO144: 11 | AP144: 17 | AQ144: 27 | AR144: 60 | AS144: 34 | AT144: 27 | AU144: 17 | AV144: 40 | AW144: 46 | AX144: 19 | AY144: 19 | AZ144: 15 | BA144: 44 | BB144: 45 | BC144: 26 | BD144: 149 | BE144: 149 | BF144: 149
A145: Y62 | B145: NORTH WEST COMMISSIONING REGION | C145: QOP | D145: NHS GREATER MANCHESTER ICB - 00T | E145: RMP | F145: TAMESIDE AND GLOSSOP INTEGRATED CARE NHS FOUNDATION TRUST | G145: Acute and Acute & Community Trusts | H145: 91 | I145: 4557 | J145: 6.578144078 | K145: 5 | L145: 17 | M145: 33 | N145: 24 | O145: 12 | P145: 1 | Q145: 6 | R145: 26 | S145: 31 | T145: 27 | U145: 2 | V145: 2 | W145: 20 | X145: 27 | Y145: 40 | Z145: 3 | AA145: 12 | AB145: 10 | AC145: 44 | AD145: 22 | AE145: 6 | AF145: 3 | AG145: 20 | AH145: 42 | AI145: 20 | AJ145: 4 | AK145: 11 | AL145: 32 | AM145: 30 | AN145: 14 | AO145: 2 | AP145: 10 | AQ145: 15 | AR145: 42 | AS145: 22 | AT145: 6 | AU145: 9 | AV145: 33 | AW145: 32 | AX145: 11 | AY145: 2 | AZ145: 17 | BA145: 25 | BB145: 36 | BC145: 11 | BD145: 91 | BE145: 91 | BF145: 91
A146: Y62 | B146: NORTH WEST COMMISSIONING REGION | C146: QOP | D146: NHS GREATER MANCHESTER ICB - 00T | E146: RRF | F146: WRIGHTINGTON, WIGAN AND LEIGH NHS FOUNDATION TRUST | G146: Acute and Acute & Community Trusts | H146: 37 | I146: 7264 | J146: 6.253753754 | K146: 3 | L146: 8 | M146: 11 | N146: 12 | O146: 3 | P146: 2 | Q146: 4 | R146: 13 | S146: 13 | T146: 5 | U146: 1 | V146: 3 | W146: 11 | X146: 14 | Y146: 8 | Z146: 2 | AA146: 4 | AB146: 11 | AC146: 9 | AD146: 11 | AE146: 2 | AF146: 3 | AG146: 9 | AH146: 13 | AI146: 10 | AJ146: 2 | AK146: 5 | AL146: 10 | AM146: 13 | AN146: 7 | AO146: 1 | AP146: 6 | AQ146: 4 | AR146: 17 | AS146: 9 | AT146: 4 | AU146: 3 | AV146: 11 | AW146: 13 | AX146: 6 | AY146: 3 | AZ146: 3 | BA146: 12 | BB146: 14 | BC146: 5 | BD146: 37 | BE146: 37 | BF146: 37
A147: Y62 | B147: NORTH WEST COMMISSIONING REGION | C147: QOP | D147: NHS GREATER MANCHESTER ICB - 00T | E147: RT2 | F147: PENNINE CARE NHS FOUNDATION TRUST | G147: Mental Health & Learning Disability and Mental Health, Learning Disability & Community Trusts | H147: 80 | I147: 4019 | J147: 6.25 | K147: 7 | L147: 12 | M147: 18 | N147: 29 | O147: 14 | P147: 4 | Q147: 10 | R147: 17 | S147: 26 | T147: 23 | U147: 6 | V147: 8 | W147: 19 | X147: 20 | Y147: 27 | Z147: 6 | AA147: 11 | AB147: 10 | AC147: 34 | AD147: 19 | AE147: 6 | AF147: 9 | AG147: 16 | AH147: 34 | AI147: 15 | AJ147: 8 | AK147: 15 | AL147: 20 | AM147: 23 | AN147: 14 | AO147: 5 | AP147: 6 | AQ147: 15 | AR147: 34 | AS147: 20 | AT147: 11 | AU147: 10 | AV147: 18 | AW147: 27 | AX147: 14 | AY147: 9 | AZ147: 8 | BA147: 21 | BB147: 30 | BC147: 12 | BD147: 80 | BE147: 80 | BF147: 80
A148: Y62 | B148: NORTH WEST COMMISSIONING REGION | C148: QE1 | D148: NHS LANCASHIRE AND SOUTH CUMBRIA ICB - 01E | E148: RTX | F148: UNIVERSITY HOSPITALS OF MORECAMBE BAY NHS FOUNDATION TRUST | G148: Acute and Acute & Community Trusts | H148: 44 | I148: 7524 | J148: 6.306818182 | K148: 3 | L148: 5 | M148: 19 | N148: 10 | O148: 7 | P148: 1 | Q148: 4 | R148: 17 | S148: 14 | T148: 8 | U148: 2 | V148: 3 | W148: 13 | X148: 13 | Y148: 13 | Z148: 1 | AA148: 7 | AB148: 8 | AC148: 20 | AD148: 8 | AE148: 1 | AF148: 7 | AG148: 5 | AH148: 26 | AI148: 5 | AJ148: 1 | AK148: 10 | AL148: 11 | AM148: 17 | AN148: 5 | AO148: 2 | AP148: 3 | AQ148: 12 | AR148: 15 | AS148: 12 | AT148: 3 | AU148: 5 | AV148: 16 | AW148: 14 | AX148: 6 | AY148: 2 | AZ148: 5 | BA148: 12 | BB148: 19 | BC148: 6 | BD148: 44 | BE148: 44 | BF148: 44
A149: Y62 | B149: NORTH WEST COMMISSIONING REGION | C149: QYG | D149: NHS CHESHIRE AND MERSEYSIDE ICB - 01J | E149: RW4 | F149: MERSEY CARE NHS FOUNDATION TRUST | G149: Mental Health & Learning Disability and Mental Health, Learning Disability & Community Trusts | H149: 1362 | I149: 11102 | J149: 6.877549356 | K149: 55 | L149: 159 | M149: 422 | N149: 516 | O149: 210 | P149: 25 | Q149: 98 | R149: 287 | S149: 524 | T149: 428 | U149: 27 | V149: 60 | W149: 232 | X149: 452 | Y149: 591 | Z149: 67 | AA149: 118 | AB149: 203 | AC149: 660 | AD149: 314 | AE149: 72 | AF149: 95 | AG149: 181 | AH149: 684 | AI149: 330 | AJ149: 74 | AK149: 152 | AL149: 295 | AM149: 571 | AN149: 270 | AO149: 53 | AP149: 88 | AQ149: 259 | AR149: 535 | AS149: 427 | AT149: 115 | AU149: 153 | AV149: 331 | AW149: 485 | AX149: 278 | AY149: 60 | AZ149: 87 | BA149: 333 | BB149: 575 | BC149: 307 | BD149: 1362 | BE149: 1362 | BF149: 1362
A150: Y62 | B150: NORTH WEST COMMISSIONING REGION | C150: QE1 | D150: NHS LANCASHIRE AND SOUTH CUMBRIA ICB - 01E | E150: RW5 | F150: LANCASHIRE & SOUTH CUMBRIA NHS FOUNDATION TRUST | G150: Mental Health & Learning Disability and Mental Health, Learning Disability & Community Trusts | H150: 1195 | I150: 7660 | J150: 6.839144584 | K150: 29 | L150: 142 | M150: 405 | N150: 470 | O150: 149 | P150: 13 | Q150: 62 | R150: 273 | S150: 505 | T150: 342 | U150: 12 | V150: 46 | W150: 279 | X150: 437 | Y150: 421 | Z150: 48 | AA150: 83 | AB150: 216 | AC150: 578 | AD150: 270 | AE150: 52 | AF150: 88 | AG150: 192 | AH150: 580 | AI150: 283 | AJ150: 55 | AK150: 128 | AL150: 289 | AM150: 518 | AN150: 205 | AO150: 36 | AP150: 81 | AQ150: 222 | AR150: 522 | AS150: 334 | AT150: 73 | AU150: 116 | AV150: 274 | AW150: 500 | AX150: 232 | AY150: 45 | AZ150: 107 | BA150: 324 | BB150: 529 | BC150: 190 | BD150: 1195 | BE150: 1195 | BF150: 1195
A151: Y62 | B151: NORTH WEST COMMISSIONING REGION | C151: QOP | D151: NHS GREATER MANCHESTER ICB - 00T | E151: RWJ | F151: STOCKPORT NHS FOUNDATION TRUST | G151: Acute and Acute & Community Trusts | H151: 90 | I151: 6242 | J151: 5.987654321 | K151: 7 | L151: 21 | M151: 31 | N151: 20 | O151: 11 | P151: 2 | Q151: 13 | R151: 23 | S151: 32 | T151: 20 | U151: 4 | V151: 8 | W151: 17 | X151: 23 | Y151: 38 | Z151: 8 | AA151: 12 | AB151: 16 | AC151: 35 | AD151: 19 | AE151: 7 | AF151: 12 | AG151: 15 | AH151: 36 | AI151: 20 | AJ151: 9 | AK151: 12 | AL151: 23 | AM151: 32 | AN151: 14 | AO151: 10 | AP151: 12 | AQ151: 19 | AR151: 30 | AS151: 19 | AT151: 13 | AU151: 20 | AV151: 24 | AW151: 23 | AX151: 10 | AY151: 11 | AZ151: 14 | BA151: 21 | BB151: 35 | BC151: 9 | BD151: 90 | BE151: 90 | BF151: 90
A152: Y62 | B152: NORTH WEST COMMISSIONING REGION | C152: QYG | D152: NHS CHESHIRE AND MERSEYSIDE ICB - 01J | E152: RWW | F152: WARRINGTON AND HALTON TEACHING HOSPITALS NHS FOUNDATION TRUST | G152: Acute and Acute & Community Trusts | H152: 91 | I152: 4664 | J152: 6.645299145 | K152: 2 | L152: 18 | M152: 23 | N152: 36 | O152: 12 | P152: 0 | Q152: 11 | R152: 26 | S152: 29 | T152: 25 | U152: 1 | V152: 4 | W152: 19 | X152: 32 | Y152: 35 | Z152: 2 | AA152: 16 | AB152: 19 | AC152: 31 | AD152: 23 | AE152: 4 | AF152: 11 | AG152: 13 | AH152: 39 | AI152: 24 | AJ152: 4 | AK152: 15 | AL152: 20 | AM152: 32 | AN152: 20 | AO152: 0 | AP152: 11 | AQ152: 13 | AR152: 40 | AS152: 27 | AT152: 4 | AU152: 17 | AV152: 23 | AW152: 31 | AX152: 16 | AY152: 8 | AZ152: 8 | BA152: 23 | BB152: 38 | BC152: 14 | BD152: 91 | BE152: 91 | BF152: 91
A153: Y62 | B153: NORTH WEST COMMISSIONING REGION | C153: QOP | D153: NHS GREATER MANCHESTER ICB - 00T | E153: RX7 | F153: NORTH WEST AMBULANCE SERVICE NHS TRUST | G153: Ambulance Trusts | H153: 1103 | I153: 7179 | J153: 6.343439674 | K153: 44 | L153: 175 | M153: 367 | N153: 403 | O153: 137 | P153: 23 | Q153: 113 | R153: 306 | S153: 439 | T153: 235 | U153: 30 | V153: 108 | W153: 332 | X153: 417 | Y153: 229 | Z153: 69 | AA153: 172 | AB153: 205 | AC153: 471 | AD153: 203 | AE153: 109 | AF153: 174 | AG153: 217 | AH153: 416 | AI153: 205 | AJ153: 137 | AK153: 195 | AL153: 281 | AM153: 333 | AN153: 174 | AO153: 41 | AP153: 104 | AQ153: 200 | AR153: 441 | AS153: 317 | AT153: 90 | AU153: 143 | AV153: 244 | AW153: 416 | AX153: 210 | AY153: 34 | AZ153: 78 | BA153: 230 | BB153: 513 | BC153: 249 | BD153: 1103 | BE153: 1120 | BF153: 1116
A154: Y62 | B154: NORTH WEST COMMISSIONING REGION | C154: QYG | D154: NHS CHESHIRE AND MERSEYSIDE ICB - 01J | E154: RXA | F154: CHESHIRE AND WIRRAL PARTNERSHIP NHS FOUNDATION TRUST | G154: Mental Health & Learning Disability and Mental Health, Learning Disability & Community Trusts | H154: 601 | I154: 4345 | J154: 7.021116391 | K154: 16 | L154: 57 | M154: 176 | N154: 279 | O154: 77 | P154: 6 | Q154: 33 | R154: 150 | S154: 253 | T154: 160 | U154: 11 | V154: 21 | W154: 120 | X154: 235 | Y154: 216 | Z154: 23 | AA154: 42 | AB154: 115 | AC154: 281 | AD154: 143 | AE154: 31 | AF154: 36 | AG154: 86 | AH154: 300 | AI154: 151 | AJ154: 38 | AK154: 60 | AL154: 137 | AM154: 245 | AN154: 121 | AO154: 12 | AP154: 28 | AQ154: 91 | AR154: 296 | AS154: 178 | AT154: 24 | AU154: 50 | AV154: 125 | AW154: 270 | AX154: 137 | AY154: 13 | AZ154: 39 | BA154: 134 | BB154: 290 | BC154: 128 | BD154: 604 | BE154: 601 | BF154: 602
A155: Y62 | B155: NORTH WEST COMMISSIONING REGION | C155: QE1 | D155: NHS LANCASHIRE AND SOUTH CUMBRIA ICB - 01E | E155: RXL | F155: BLACKPOOL TEACHING HOSPITALS NHS FOUNDATION TRUST | G155: Acute and Acute & Community Trusts | H155: 360 | I155: 8309 | J155: 6.739197531 | K155: 16 | L155: 52 | M155: 110 | N155: 143 | O155: 39 | P155: 5 | Q155: 26 | R155: 97 | S155: 133 | T155: 99 | U155: 4 | V155: 17 | W155: 92 | X155: 109 | Y155: 138 | Z155: 14 | AA155: 32 | AB155: 72 | AC155: 160 | AD155: 82 | AE155: 12 | AF155: 25 | AG155: 59 | AH155: 177 | AI155: 87 | AJ155: 18 | AK155: 43 | AL155: 78 | AM155: 151 | AN155: 70 | AO155: 9 | AP155: 24 | AQ155: 71 | AR155: 155 | AS155: 101 | AT155: 21 | AU155: 29 | AV155: 108 | AW155: 146 | AX155: 56 | AY155: 20 | AZ155: 36 | BA155: 101 | BB155: 148 | BC155: 55 | BD155: 360 | BE155: 360 | BF155: 360
A156: Y62 | B156: NORTH WEST COMMISSIONING REGION | C156: QE1 | D156: NHS LANCASHIRE AND SOUTH CUMBRIA ICB - 01E | E156: RXN | F156: LANCASHIRE TEACHING HOSPITALS NHS FOUNDATION TRUST | G156: Acute and Acute & Community Trusts | H156: 1501 | I156: 10291 | J156: 6.606507303 | K156: 51 | L156: 179 | M156: 554 | N156: 565 | O156: 184 | P156: 24 | Q156: 102 | R156: 409 | S156: 654 | T156: 318 | U156: 22 | V156: 72 | W156: 348 | X156: 595 | Y156: 472 | Z156: 46 | AA156: 142 | AB156: 289 | AC156: 779 | AD156: 268 | AE156: 47 | AF156: 135 | AG156: 271 | AH156: 801 | AI156: 271 | AJ156: 89 | AK156: 192 | AL156: 382 | AM156: 661 | AN156: 197 | AO156: 48 | AP156: 128 | AQ156: 266 | AR156: 676 | AS156: 383 | AT156: 100 | AU156: 174 | AV156: 436 | AW156: 578 | AX156: 215 | AY156: 74 | AZ156: 183 | BA156: 417 | BB156: 612 | BC156: 215 | BD156: 1501 | BE156: 1521 | BF156: 1507
A157: Y62 | B157: NORTH WEST COMMISSIONING REGION | C157: QE1 | D157: NHS LANCASHIRE AND SOUTH CUMBRIA ICB - 01E | E157: RXR | F157: EAST LANCASHIRE HOSPITALS NHS TRUST | G157: Acute and Acute & Community Trusts | H157: 35 | I157: 10213 | J157: 6.507936508 | K157: 4 | L157: 6 | M157: 10 | N157: 9 | O157: 6 | P157: 2 | Q157: 3 | R157: 12 | S157: 9 | T157: 9 | U157: 1 | V157: 2 | W157: 6 | X157: 12 | Y157: 14 | Z157: 1 | AA157: 4 | AB157: 5 | AC157: 15 | AD157: 10 | AE157: 1 | AF157: 3 | AG157: 3 | AH157: 18 | AI157: 10 | AJ157: 1 | AK157: 8 | AL157: 9 | AM157: 10 | AN157: 7 | AO157: 1 | AP157: 1 | AQ157: 6 | AR157: 16 | AS157: 11 | AT157: 9 | AU157: 2 | AV157: 9 | AW157: 9 | AX157: 6 | AY157: 2 | AZ157: 8 | BA157: 6 | BB157: 11 | BC157: 8 | BD157: 35 | BE157: 35 | BF157: 35
A158: Y62 | B158: NORTH WEST COMMISSIONING REGION | C158: QOP | D158: NHS GREATER MANCHESTER ICB - 00T | E158: RXV | F158: GREATER MANCHESTER MENTAL HEALTH NHS FOUNDATION TRUST | G158: Mental Health & Learning Disability and Mental Health, Learning Disability & Community Trusts | H158: 1486 | I158: 6861 | J158: 6.608062926 | K158: 53 | L158: 188 | M158: 558 | N158: 547 | O158: 169 | P158: 29 | Q158: 92 | R158: 408 | S158: 645 | T158: 325 | U158: 26 | V158: 81 | W158: 348 | X158: 613 | Y158: 430 | Z158: 42 | AA158: 118 | AB158: 269 | AC158: 762 | AD158: 310 | AE158: 52 | AF158: 124 | AG158: 252 | AH158: 774 | AI158: 299 | AJ158: 62 | AK158: 174 | AL158: 356 | AM158: 677 | AN158: 231 | AO158: 50 | AP158: 120 | AQ158: 284 | AR158: 637 | AS158: 398 | AT158: 110 | AU158: 210 | AV158: 382 | AW158: 538 | AX158: 249 | AY158: 116 | AZ158: 204 | BA158: 410 | BB158: 531 | BC158: 225 | BD158: 1486 | BE158: 1500 | BF158: 1498
A159: Y62 | B159: NORTH WEST COMMISSIONING REGION | C159: QYG | D159: NHS CHESHIRE AND MERSEYSIDE ICB - 01J | E159: RY2 | F159: BRIDGEWATER COMMUNITY HEALTHCARE NHS FOUNDATION TRUST | G159: Community Trusts | H159: 205 | I159: 1579 | J159: 6.894308943 | K159: 5 | L159: 28 | M159: 59 | N159: 87 | O159: 26 | P159: 4 | Q159: 16 | R159: 46 | S159: 76 | T159: 63 | U159: 3 | V159: 9 | W159: 44 | X159: 77 | Y159: 72 | Z159: 13 | AA159: 22 | AB159: 36 | AC159: 89 | AD159: 45 | AE159: 9 | AF159: 18 | AG159: 31 | AH159: 96 | AI159: 51 | AJ159: 9 | AK159: 24 | AL159: 45 | AM159: 90 | AN159: 37 | AO159: 12 | AP159: 15 | AQ159: 24 | AR159: 90 | AS159: 64 | AT159: 14 | AU159: 26 | AV159: 45 | AW159: 68 | AX159: 52 | AY159: 2 | AZ159: 15 | BA159: 31 | BB159: 94 | BC159: 63 | BD159: 205 | BE159: 205 | BF159: 205
A160: Y62 | B160: NORTH WEST COMMISSIONING REGION | C160: QYG | D160: NHS CHESHIRE AND MERSEYSIDE ICB - 01J | E160: RY7 | F160: WIRRAL COMMUNITY HEALTH AND CARE NHS FOUNDATION TRUST | G160: Community Trusts | H160: 354 | I160: 1757 | J160: 7.164155681 | K160: 13 | L160: 42 | M160: 100 | N160: 136 | O160: 63 | P160: 4 | Q160: 23 | R160: 79 | S160: 137 | T160: 111 | U160: 2 | V160: 15 | W160: 52 | X160: 120 | Y160: 165 | Z160: 8 | AA160: 33 | AB160: 75 | AC160: 149 | AD160: 89 | AE160: 11 | AF160: 26 | AG160: 59 | AH160: 165 | AI160: 93 | AJ160: 13 | AK160: 34 | AL160: 91 | AM160: 139 | AN160: 77 | AO160: 8 | AP160: 18 | AQ160: 55 | AR160: 140 | AS160: 133 | AT160: 16 | AU160: 37 | AV160: 78 | AW160: 124 | AX160: 99 | AY160: 5 | AZ160: 12 | BA160: 61 | BB160: 164 | BC160: 112 | BD160: 354 | BE160: 354 | BF160: 354
A161: Y63 | B161: NORTH EAST AND YORKSHIRE COMMISSIONING REGION | C161: QHM | D161: NHS NORTH EAST AND NORTH CUMBRIA ICB - 00L | E161: R0B | F161: SOUTH TYNESIDE AND SUNDERLAND NHS FOUNDATION TRUST | G161: Acute and Acute & Community Trusts | H161: 160 | I161: 9548 | J161: 5.545138889 | K161: 20 | L161: 32 | M161: 67 | N161: 27 | O161: 14 | P161: 8 | Q161: 23 | R161: 53 | S161: 42 | T161: 34 | U161: 8 | V161: 13 | W161: 44 | X161: 47 | Y161: 48 | Z161: 10 | AA161: 29 | AB161: 45 | AC161: 57 | AD161: 19 | AE161: 16 | AF161: 28 | AG161: 37 | AH161: 58 | AI161: 21 | AJ161: 18 | AK161: 44 | AL161: 36 | AM161: 49 | AN161: 13 | AO161: 7 | AP161: 22 | AQ161: 46 | AR161: 53 | AS161: 32 | AT161: 33 | AU161: 32 | AV161: 45 | AW161: 33 | AX161: 17 | AY161: 19 | AZ161: 30 | BA161: 45 | BB161: 49 | BC161: 17 | BD161: 160 | BE161: 160 | BF161: 160
A162: Y63 | B162: NORTH EAST AND YORKSHIRE COMMISSIONING REGION | C162: QWO | D162: NHS WEST YORKSHIRE ICB - 02T | E162: RAE | F162: BRADFORD TEACHING HOSPITALS NHS FOUNDATION TRUST | G162: Acute and Acute & Community Trusts | H162: 77 | I162: 6767 | J162: 6.392496392 | K162: 6 | L162: 11 | M162: 27 | N162: 26 | O162: 7 | P162: 2 | Q162: 5 | R162: 21 | S162: 34 | T162: 15 | U162: 1 | V162: 6 | W162: 17 | X162: 30 | Y162: 23 | Z162: 5 | AA162: 7 | AB162: 11 | AC162: 33 | AD162: 21 | AE162: 5 | AF162: 13 | AG162: 9 | AH162: 33 | AI162: 17 | AJ162: 6 | AK162: 13 | AL162: 15 | AM162: 27 | AN162: 16 | AO162: 4 | AP162: 6 | AQ162: 17 | AR162: 32 | AS162: 18 | AT162: 9 | AU162: 10 | AV162: 22 | AW162: 22 | AX162: 14 | AY162: 8 | AZ162: 6 | BA162: 21 | BB162: 28 | BC162: 14 | BD162: 77 | BE162: 77 | BF162: 77
A163: Y63 | B163: NORTH EAST AND YORKSHIRE COMMISSIONING REGION | C163: QOQ | D163: NHS HUMBER AND NORTH YORKSHIRE ICB - 02Y | E163: RCB | F163: YORK AND SCARBOROUGH TEACHING HOSPITALS NHS FOUNDATION TRUST | G163: Acute and Acute & Community Trusts | H163: 318 | I163: 10211 | J163: 5.942522711 | K163: 18 | L163: 68 | M163: 110 | N163: 96 | O163: 26 | P163: 6 | Q163: 39 | R163: 90 | S163: 131 | T163: 52 | U163: 7 | V163: 18 | W163: 87 | X163: 99 | Y163: 107 | Z163: 22 | AA163: 37 | AB163: 58 | AC163: 146 | AD163: 55 | AE163: 28 | AF163: 34 | AG163: 49 | AH163: 153 | AI163: 54 | AJ163: 31 | AK163: 58 | AL163: 75 | AM163: 110 | AN163: 44 | AO163: 15 | AP163: 46 | AQ163: 85 | AR163: 122 | AS163: 50 | AT163: 43 | AU163: 61 | AV163: 101 | AW163: 88 | AX163: 25 | AY163: 31 | AZ163: 61 | BA163: 117 | BB163: 86 | BC163: 23 | BD163: 318 | BE163: 318 | BF163: 318
A164: Y63 | B164: NORTH EAST AND YORKSHIRE COMMISSIONING REGION | C164: QOQ | D164: NHS HUMBER AND NORTH YORKSHIRE ICB - 02Y | E164: RCD | F164: HARROGATE AND DISTRICT NHS FOUNDATION TRUST | G164: Acute and Acute & Community Trusts | H164: 1332 | I164: 5180 | J164: 7.145095899 | K164: 36 | L164: 124 | M164: 436 | N164: 533 | O164: 218 | P164: 10 | Q164: 60 | R164: 299 | S164: 588 | T164: 388 | U164: 9 | V164: 35 | W164: 204 | X164: 436 | Y164: 661 | Z164: 43 | AA164: 122 | AB164: 250 | AC164: 537 | AD164: 391 | AE164: 48 | AF164: 83 | AG164: 229 | AH164: 588 | AI164: 394 | AJ164: 50 | AK164: 147 | AL164: 351 | AM164: 513 | AN164: 278 | AO164: 24 | AP164: 86 | AQ164: 211 | AR164: 580 | AS164: 436 | AT164: 48 | AU164: 116 | AV164: 298 | AW164: 566 | AX164: 305 | AY164: 17 | AZ164: 71 | BA164: 288 | BB164: 672 | BC164: 284 | BD164: 1332 | BE164: 1339 | BF164: 1345
A165: Y63 | B165: NORTH EAST AND YORKSHIRE COMMISSIONING REGION | C165: QWO | D165: NHS WEST YORKSHIRE ICB - 02T | E165: RCF | F165: AIREDALE NHS FOUNDATION TRUST | G165: Acute and Acute & Community Trusts | H165: 299 | I165: 3762 | J165: 6.385172798 | K165: 13 | L165: 59 | M165: 96 | N165: 96 | O165: 35 | P165: 7 | Q165: 32 | R165: 81 | S165: 111 | T165: 68 | U165: 8 | V165: 15 | W165: 66 | X165: 98 | Y165: 112 | Z165: 17 | AA165: 29 | AB165: 71 | AC165: 123 | AD165: 59 | AE165: 21 | AF165: 34 | AG165: 43 | AH165: 136 | AI165: 65 | AJ165: 26 | AK165: 50 | AL165: 68 | AM165: 104 | AN165: 51 | AO165: 12 | AP165: 40 | AQ165: 58 | AR165: 128 | AS165: 61 | AT165: 33 | AU165: 31 | AV165: 73 | AW165: 114 | AX165: 48 | AY165: 18 | AZ165: 39 | BA165: 67 | BB165: 128 | BC165: 47 | BD165: 299 | BE165: 299 | BF165: 299
A166: Y63 | B166: NORTH EAST AND YORKSHIRE COMMISSIONING REGION | C166: QF7 | D166: NHS SOUTH YORKSHIRE ICB - 02P | E166: RCU | F166: SHEFFIELD CHILDREN'S NHS FOUNDATION TRUST | G166: Acute and Acute & Community Trusts | H166: 427 | I166: 3944 | J166: 7.057637263 | K166: 17 | L166: 43 | M166: 151 | N166: 167 | O166: 49 | P166: 9 | Q166: 27 | R166: 107 | S166: 183 | T166: 101 | U166: 10 | V166: 16 | W166: 101 | X166: 164 | Y166: 136 | Z166: 15 | AA166: 35 | AB166: 56 | AC166: 212 | AD166: 109 | AE166: 15 | AF166: 31 | AG166: 56 | AH166: 215 | AI166: 110 | AJ166: 17 | AK166: 50 | AL166: 91 | AM166: 192 | AN166: 77 | AO166: 11 | AP166: 12 | AQ166: 63 | AR166: 192 | AS166: 149 | AT166: 21 | AU166: 27 | AV166: 91 | AW166: 175 | AX166: 113 | AY166: 16 | AZ166: 12 | BA166: 50 | BB166: 208 | BC166: 141 | BD166: 427 | BE166: 427 | BF166: 427
A167: Y63 | B167: NORTH EAST AND YORKSHIRE COMMISSIONING REGION | C167: QF7 | D167: NHS SOUTH YORKSHIRE ICB - 02P | E167: RFF | F167: BARNSLEY HOSPITAL NHS FOUNDATION TRUST | G167: Acute and Acute & Community Trusts | H167: 147 | I167: 4369 | J167: 6.517384732 | K167: 6 | L167: 21 | M167: 47 | N167: 50 | O167: 23 | P167: 2 | Q167: 10 | R167: 36 | S167: 57 | T167: 42 | U167: 2 | V167: 6 | W167: 29 | X167: 60 | Y167: 50 | Z167: 6 | AA167: 22 | AB167: 19 | AC167: 67 | AD167: 33 | AE167: 9 | AF167: 15 | AG167: 24 | AH167: 71 | AI167: 28 | AJ167: 10 | AK167: 28 | AL167: 37 | AM167: 53 | AN167: 19 | AO167: 9 | AP167: 14 | AQ167: 29 | AR167: 58 | AS167: 37 | AT167: 9 | AU167: 22 | AV167: 38 | AW167: 54 | AX167: 24 | AY167: 9 | AZ167: 20 | BA167: 35 | BB167: 63 | BC167: 20 | BD167: 147 | BE167: 147 | BF167: 147
A168: Y63 | B168: NORTH EAST AND YORKSHIRE COMMISSIONING REGION | C168: QF7 | D168: NHS SOUTH YORKSHIRE ICB - 02P | E168: RFR | F168: THE ROTHERHAM NHS FOUNDATION TRUST | G168: Acute and Acute & Community Trusts | H168: 62 | I168: 4865 | J168: 6.052867384 | K168: 4 | L168: 13 | M168: 18 | N168: 21 | O168: 6 | P168: 1 | Q168: 9 | R168: 15 | S168: 26 | T168: 11 | U168: 2 | V168: 7 | W168: 10 | X168: 18 | Y168: 25 | Z168: 4 | AA168: 6 | AB168: 19 | AC168: 20 | AD168: 13 | AE168: 5 | AF168: 9 | AG168: 15 | AH168: 23 | AI168: 10 | AJ168: 5 | AK168: 12 | AL168: 13 | AM168: 23 | AN168: 9 | AO168: 5 | AP168: 4 | AQ168: 16 | AR168: 21 | AS168: 16 | AT168: 8 | AU168: 10 | AV168: 19 | AW168: 16 | AX168: 9 | AY168: 6 | AZ168: 9 | BA168: 23 | BB168: 20 | BC168: 4 | BD168: 62 | BE168: 62 | BF168: 62
A169: Y63 | B169: NORTH EAST AND YORKSHIRE COMMISSIONING REGION | C169: QWO | D169: NHS WEST YORKSHIRE ICB - 02T | E169: RGD | F169: LEEDS AND YORK PARTNERSHIP NHS FOUNDATION TRUST | G169: Mental Health & Learning Disability and Mental Health, Learning Disability & Community Trusts | H169: 296 | I169: 3126 | J169: 7.192192192 | K169: 7 | L169: 22 | M169: 92 | N169: 133 | O169: 42 | P169: 2 | Q169: 14 | R169: 54 | S169: 143 | T169: 83 | U169: 6 | V169: 8 | W169: 55 | X169: 128 | Y169: 99 | Z169: 7 | AA169: 22 | AB169: 31 | AC169: 149 | AD169: 87 | AE169: 5 | AF169: 20 | AG169: 23 | AH169: 156 | AI169: 92 | AJ169: 8 | AK169: 30 | AL169: 45 | AM169: 145 | AN169: 68 | AO169: 5 | AP169: 18 | AQ169: 51 | AR169: 127 | AS169: 95 | AT169: 13 | AU169: 27 | AV169: 59 | AW169: 119 | AX169: 78 | AY169: 13 | AZ169: 24 | BA169: 71 | BB169: 111 | BC169: 77 | BD169: 296 | BE169: 296 | BF169: 296
A170: Y63 | B170: NORTH EAST AND YORKSHIRE COMMISSIONING REGION | C170: QF7 | D170: NHS SOUTH YORKSHIRE ICB - 02P | E170: RHQ | F170: SHEFFIELD TEACHING HOSPITALS NHS FOUNDATION TRUST | G170: Acute and Acute & Community Trusts | H170: 1129 | I170: 17944 | J170: 6.377817144 | K170: 68 | L170: 212 | M170: 409 | N170: 336 | O170: 104 | P170: 30 | Q170: 110 | R170: 331 | S170: 432 | T170: 226 | U170: 31 | V170: 69 | W170: 273 | X170: 421 | Y170: 335 | Z170: 61 | AA170: 125 | AB170: 239 | AC170: 521 | AD170: 183 | AE170: 69 | AF170: 107 | AG170: 232 | AH170: 522 | AI170: 199 | AJ170: 91 | AK170: 173 | AL170: 303 | AM170: 422 | AN170: 140 | AO170: 39 | AP170: 95 | AQ170: 215 | AR170: 498 | AS170: 282 | AT170: 76 | AU170: 165 | AV170: 307 | AW170: 435 | AX170: 146 | AY170: 27 | AZ170: 93 | BA170: 280 | BB170: 542 | BC170: 187 | BD170: 1129 | BE170: 1129 | BF170: 1129
A171: Y63 | B171: NORTH EAST AND YORKSHIRE COMMISSIONING REGION | C171: QOQ | D171: NHS HUMBER AND NORTH YORKSHIRE ICB - 02Y | E171: RJL | F171: NORTHERN LINCOLNSHIRE AND GOOLE NHS FOUNDATION TRUST | G171: Acute and Acute & Community Trusts | H171: 142 | I171: 7085 | J171: 5.330594679 | K171: 15 | L171: 34 | M171: 46 | N171: 35 | O171: 12 | P171: 10 | Q171: 25 | R171: 35 | S171: 43 | T171: 29 | U171: 10 | V171: 12 | W171: 38 | X171: 43 | Y171: 39 | Z171: 14 | AA171: 24 | AB171: 29 | AC171: 60 | AD171: 15 | AE171: 17 | AF171: 26 | AG171: 27 | AH171: 54 | AI171: 18 | AJ171: 19 | AK171: 32 | AL171: 42 | AM171: 33 | AN171: 16 | AO171: 15 | AP171: 22 | AQ171: 42 | AR171: 44 | AS171: 19 | AT171: 35 | AU171: 26 | AV171: 41 | AW171: 35 | AX171: 5 | AY171: 28 | AZ171: 20 | BA171: 43 | BB171: 39 | BC171: 12 | BD171: 142 | BE171: 142 | BF171: 142
A172: Y63 | B172: NORTH EAST AND YORKSHIRE COMMISSIONING REGION | C172: QHM | D172: NHS NORTH EAST AND NORTH CUMBRIA ICB - 00L | E172: RNN | F172: NORTH CUMBRIA INTEGRATED CARE NHS FOUNDATION TRUST | G172: Acute and Acute & Community Trusts | H172: 396 | I172: 7353 | J172: 5.897166105 | K172: 15 | L172: 77 | M172: 149 | N172: 125 | O172: 30 | P172: 11 | Q172: 48 | R172: 117 | S172: 145 | T172: 75 | U172: 11 | V172: 26 | W172: 103 | X172: 151 | Y172: 105 | Z172: 22 | AA172: 65 | AB172: 74 | AC172: 177 | AD172: 58 | AE172: 24 | AF172: 58 | AG172: 61 | AH172: 186 | AI172: 67 | AJ172: 29 | AK172: 73 | AL172: 96 | AM172: 155 | AN172: 43 | AO172: 26 | AP172: 58 | AQ172: 110 | AR172: 142 | AS172: 60 | AT172: 56 | AU172: 79 | AV172: 121 | AW172: 115 | AX172: 25 | AY172: 43 | AZ172: 65 | BA172: 135 | BB172: 126 | BC172: 27 | BD172: 396 | BE172: 396 | BF172: 396
A173: Y63 | B173: NORTH EAST AND YORKSHIRE COMMISSIONING REGION | C173: QHM | D173: NHS NORTH EAST AND NORTH CUMBRIA ICB - 00L | E173: RR7 | F173: GATESHEAD HEALTH NHS FOUNDATION TRUST | G173: Acute and Acute & Community Trusts | H173: 95 | I173: 5359 | J173: 6.640350877 | K173: 7 | L173: 17 | M173: 30 | N173: 30 | O173: 11 | P173: 3 | Q173: 9 | R173: 27 | S173: 36 | T173: 20 | U173: 3 | V173: 4 | W173: 18 | X173: 40 | Y173: 30 | Z173: 4 | AA173: 9 | AB173: 22 | AC173: 39 | AD173: 21 | AE173: 5 | AF173: 9 | AG173: 21 | AH173: 39 | AI173: 21 | AJ173: 5 | AK173: 11 | AL173: 23 | AM173: 38 | AN173: 18 | AO173: 3 | AP173: 6 | AQ173: 15 | AR173: 43 | AS173: 28 | AT173: 4 | AU173: 12 | AV173: 23 | AW173: 37 | AX173: 19 | AY173: 3 | AZ173: 8 | BA173: 22 | BB173: 42 | BC173: 20 | BD173: 95 | BE173: 95 | BF173: 95
A174: Y63 | B174: NORTH EAST AND YORKSHIRE COMMISSIONING REGION | C174: QWO | D174: NHS WEST YORKSHIRE ICB - 02T | E174: RR8 | F174: LEEDS TEACHING HOSPITALS NHS TRUST | G174: Acute and Acute & Community Trusts | H174: 1543 | I174: 20689 | J174: 6.742817023 | K174: 63 | L174: 193 | M174: 491 | N174: 604 | O174: 192 | P174: 27 | Q174: 100 | R174: 408 | S174: 623 | T174: 385 | U174: 23 | V174: 84 | W174: 353 | X174: 600 | Y174: 483 | Z174: 60 | AA174: 169 | AB174: 273 | AC174: 700 | AD174: 341 | AE174: 81 | AF174: 147 | AG174: 265 | AH174: 717 | AI174: 333 | AJ174: 95 | AK174: 221 | AL174: 375 | AM174: 609 | AN174: 243 | AO174: 44 | AP174: 113 | AQ174: 230 | AR174: 647 | AS174: 509 | AT174: 90 | AU174: 177 | AV174: 363 | AW174: 630 | AX174: 283 | AY174: 47 | AZ174: 103 | BA174: 326 | BB174: 754 | BC174: 313 | BD174: 1543 | BE174: 1543 | BF174: 1543
A175: Y63 | B175: NORTH EAST AND YORKSHIRE COMMISSIONING REGION | C175: QHM | D175: NHS NORTH EAST AND NORTH CUMBRIA ICB - 00L | E175: RTF | F175: NORTHUMBRIA HEALTHCARE NHS FOUNDATION TRUST | G175: Acute and Acute & Community Trusts | H175: 4114 | I175: 9211 | J175: 7.197914979 | K175: 133 | L175: 366 | M175: 1348 | N175: 1621 | O175: 646 | P175: 53 | Q175: 198 | R175: 963 | S175: 1736 | T175: 1164 | U175: 59 | V175: 159 | W175: 941 | X175: 1561 | Y175: 1394 | Z175: 109 | AA175: 374 | AB175: 824 | AC175: 2010 | AD175: 797 | AE175: 133 | AF175: 335 | AG175: 694 | AH175: 2089 | AI175: 883 | AJ175: 123 | AK175: 417 | AL175: 983 | AM175: 1880 | AN175: 711 | AO175: 43 | AP175: 117 | AQ175: 459 | AR175: 1865 | AS175: 1630 | AT175: 85 | AU175: 180 | AV175: 655 | AW175: 1931 | AX175: 1263 | AY175: 50 | AZ175: 135 | BA175: 554 | BB175: 2050 | BC175: 1325 | BD175: 4114 | BE175: 4114 | BF175: 4114
A176: Y63 | B176: NORTH EAST AND YORKSHIRE COMMISSIONING REGION | C176: QHM | D176: NHS NORTH EAST AND NORTH CUMBRIA ICB - 00L | E176: RVW | F176: NORTH TEES AND HARTLEPOOL NHS FOUNDATION TRUST | G176: Acute and Acute & Community Trusts | H176: 51 | I176: 5934 | J176: 6.715686275 | K176: 3 | L176: 5 | M176: 19 | N176: 19 | O176: 5 | P176: 4 | Q176: 1 | R176: 9 | S176: 23 | T176: 14 | U176: 1 | V176: 1 | W176: 14 | X176: 20 | Y176: 15 | Z176: 4 | AA176: 4 | AB176: 8 | AC176: 22 | AD176: 13 | AE176: 4 | AF176: 2 | AG176: 5 | AH176: 22 | AI176: 18 | AJ176: 6 | AK176: 2 | AL176: 7 | AM176: 25 | AN176: 11 | AO176: 4 | AP176: 1 | AQ176: 10 | AR176: 21 | AS176: 15 | AT176: 3 | AU176: 7 | AV176: 14 | AW176: 19 | AX176: 8 | AY176: 2 | AZ176: 5 | BA176: 13 | BB176: 26 | BC176: 5 | BD176: 51 | BE176: 51 | BF176: 51
A177: Y63 | B177: NORTH EAST AND YORKSHIRE COMMISSIONING REGION | C177: QOQ | D177: NHS HUMBER AND NORTH YORKSHIRE ICB - 02Y | E177: RWA | F177: HULL UNIVERSITY TEACHING HOSPITALS NHS TRUST | G177: Acute and Acute & Community Trusts | H177: 1893 | I177: 9682 | J177: 6.463285894 | K177: 78 | L177: 262 | M177: 684 | N177: 687 | O177: 217 | P177: 33 | Q177: 138 | R177: 552 | S177: 743 | T177: 443 | U177: 34 | V177: 94 | W177: 523 | X177: 683 | Y177: 580 | Z177: 81 | AA177: 205 | AB177: 410 | AC177: 898 | AD177: 324 | AE177: 90 | AF177: 217 | AG177: 399 | AH177: 897 | AI177: 311 | AJ177: 100 | AK177: 287 | AL177: 532 | AM177: 747 | AN177: 249 | AO177: 66 | AP177: 184 | AQ177: 388 | AR177: 817 | AS177: 438 | AT177: 123 | AU177: 255 | AV177: 496 | AW177: 749 | AX177: 271 | AY177: 96 | AZ177: 212 | BA177: 508 | BB177: 819 | BC177: 261 | BD177: 1893 | BE177: 1914 | BF177: 1909
A178: Y63 | B178: NORTH EAST AND YORKSHIRE COMMISSIONING REGION | C178: QWO | D178: NHS WEST YORKSHIRE ICB - 02T | E178: RWY | F178: CALDERDALE AND HUDDERSFIELD NHS FOUNDATION TRUST | G178: Acute and Acute & Community Trusts | H178: 282 | I178: 6698 | J178: 6.305161545 | K178: 15 | L178: 62 | M178: 98 | N178: 89 | O178: 18 | P178: 4 | Q178: 32 | R178: 81 | S178: 119 | T178: 46 | U178: 11 | V178: 26 | W178: 77 | X178: 88 | Y178: 80 | Z178: 6 | AA178: 46 | AB178: 56 | AC178: 128 | AD178: 46 | AE178: 11 | AF178: 34 | AG178: 55 | AH178: 135 | AI178: 47 | AJ178: 14 | AK178: 48 | AL178: 72 | AM178: 105 | AN178: 43 | AO178: 10 | AP178: 22 | AQ178: 53 | AR178: 125 | AS178: 72 | AT178: 23 | AU178: 40 | AV178: 74 | AW178: 109 | AX178: 36 | AY178: 11 | AZ178: 30 | BA178: 81 | BB178: 119 | BC178: 41 | BD178: 282 | BE178: 282 | BF178: 282
A179: Y63 | B179: NORTH EAST AND YORKSHIRE COMMISSIONING REGION | C179: QHM | D179: NHS NORTH EAST AND NORTH CUMBRIA ICB - 00L | E179: RX3 | F179: TEES, ESK AND WEAR VALLEYS NHS FOUNDATION TRUST | G179: Mental Health & Learning Disability and Mental Health, Learning Disability & Community Trusts | H179: 823 | I179: 7998 | J179: 6.700756042 | K179: 28 | L179: 105 | M179: 248 | N179: 345 | O179: 97 | P179: 8 | Q179: 69 | R179: 194 | S179: 342 | T179: 210 | U179: 14 | V179: 41 | W179: 158 | X179: 309 | Y179: 301 | Z179: 26 | AA179: 76 | AB179: 161 | AC179: 391 | AD179: 169 | AE179: 27 | AF179: 62 | AG179: 142 | AH179: 405 | AI179: 187 | AJ179: 26 | AK179: 91 | AL179: 218 | AM179: 342 | AN179: 146 | AO179: 32 | AP179: 65 | AQ179: 131 | AR179: 359 | AS179: 236 | AT179: 61 | AU179: 103 | AV179: 216 | AW179: 309 | AX179: 134 | AY179: 57 | AZ179: 103 | BA179: 227 | BB179: 322 | BC179: 114 | BD179: 823 | BE179: 823 | BF179: 823
A180: Y63 | B180: NORTH EAST AND YORKSHIRE COMMISSIONING REGION | C180: QHM | D180: NHS NORTH EAST AND NORTH CUMBRIA ICB - 00L | E180: RX4 | F180: CUMBRIA, NORTHUMBERLAND, TYNE AND WEAR NHS FOUNDATION TRUST | G180: Mental Health & Learning Disability and Mental Health, Learning Disability & Community Trusts | H180: 549 | I180: 8284 | J180: 6.796195102 | K180: 19 | L180: 73 | M180: 164 | N180: 229 | O180: 64 | P180: 9 | Q180: 40 | R180: 115 | S180: 236 | T180: 149 | U180: 10 | V180: 31 | W180: 114 | X180: 212 | Y180: 182 | Z180: 24 | AA180: 46 | AB180: 108 | AC180: 251 | AD180: 120 | AE180: 23 | AF180: 52 | AG180: 84 | AH180: 265 | AI180: 125 | AJ180: 28 | AK180: 65 | AL180: 137 | AM180: 220 | AN180: 99 | AO180: 14 | AP180: 36 | AQ180: 83 | AR180: 236 | AS180: 180 | AT180: 39 | AU180: 55 | AV180: 127 | AW180: 223 | AX180: 105 | AY180: 26 | AZ180: 47 | BA180: 127 | BB180: 239 | BC180: 110 | BD180: 549 | BE180: 549 | BF180: 549
A181: Y63 | B181: NORTH EAST AND YORKSHIRE COMMISSIONING REGION | C181: QHM | D181: NHS NORTH EAST AND NORTH CUMBRIA ICB - 00L | E181: RX6 | F181: NORTH EAST AMBULANCE SERVICE NHS FOUNDATION TRUST | G181: Ambulance Trusts | H181: 66 | I181: 3264 | J181: 4.654882155 | K181: 12 | L181: 12 | M181: 14 | N181: 22 | O181: 6 | P181: 6 | Q181: 8 | R181: 13 | S181: 23 | T181: 16 | U181: 7 | V181: 8 | W181: 17 | X181: 25 | Y181: 9 | Z181: 17 | AA181: 15 | AB181: 7 | AC181: 18 | AD181: 9 | AE181: 19 | AF181: 16 | AG181: 14 | AH181: 11 | AI181: 6 | AJ181: 27 | AK181: 19 | AL181: 7 | AM181: 8 | AN181: 5 | AO181: 17 | AP181: 16 | AQ181: 13 | AR181: 13 | AS181: 7 | AT181: 23 | AU181: 12 | AV181: 17 | AW181: 10 | AX181: 4 | AY181: 3 | AZ181: 5 | BA181: 28 | BB181: 23 | BC181: 7 | BD181: 66 | BE181: 66 | BF181: 66
A182: Y63 | B182: NORTH EAST AND YORKSHIRE COMMISSIONING REGION | C182: QWO | D182: NHS WEST YORKSHIRE ICB - 02T | E182: RX8 | F182: YORKSHIRE AMBULANCE SERVICE NHS TRUST | G182: Ambulance Trusts | H182: 919 | I182: 6251 | J182: 5.943054044 | K182: 58 | L182: 170 | M182: 280 | N182: 286 | O182: 125 | P182: 30 | Q182: 94 | R182: 239 | S182: 325 | T182: 231 | U182: 45 | V182: 95 | W182: 274 | X182: 303 | Y182: 202 | Z182: 91 | AA182: 135 | AB182: 200 | AC182: 363 | AD182: 130 | AE182: 108 | AF182: 164 | AG182: 214 | AH182: 301 | AI182: 132 | AJ182: 148 | AK182: 194 | AL182: 256 | AM182: 220 | AN182: 101 | AO182: 77 | AP182: 96 | AQ182: 181 | AR182: 344 | AS182: 221 | AT182: 121 | AU182: 136 | AV182: 216 | AW182: 311 | AX182: 135 | AY182: 48 | AZ182: 86 | BA182: 223 | BB182: 389 | BC182: 173 | BD182: 919 | BE182: 919 | BF182: 919
A183: Y63 | B183: NORTH EAST AND YORKSHIRE COMMISSIONING REGION | C183: QF7 | D183: NHS SOUTH YORKSHIRE ICB - 02P | E183: RXE | F183: ROTHERHAM DONCASTER AND SOUTH HUMBER NHS FOUNDATION TRUST | G183: Mental Health & Learning Disability and Mental Health, Learning Disability & Community Trusts | H183: 58 | I183: 3856 | J183: 6.005747126 | K183: 1 | L183: 14 | M183: 19 | N183: 19 | O183: 5 | P183: 0 | Q183: 8 | R183: 22 | S183: 18 | T183: 10 | U183: 2 | V183: 6 | W183: 14 | X183: 25 | Y183: 11 | Z183: 1 | AA183: 15 | AB183: 12 | AC183: 24 | AD183: 6 | AE183: 1 | AF183: 7 | AG183: 15 | AH183: 27 | AI183: 8 | AJ183: 1 | AK183: 13 | AL183: 15 | AM183: 22 | AN183: 7 | AO183: 3 | AP183: 7 | AQ183: 13 | AR183: 24 | AS183: 11 | AT183: 7 | AU183: 12 | AV183: 12 | AW183: 21 | AX183: 6 | AY183: 6 | AZ183: 6 | BA183: 17 | BB183: 24 | BC183: 5 | BD183: 58 | BE183: 58 | BF183: 58
A184: Y63 | B184: NORTH EAST AND YORKSHIRE COMMISSIONING REGION | C184: QWO | D184: NHS WEST YORKSHIRE ICB - 02T | E184: RXF | F184: MID YORKSHIRE TEACHING NHS TRUST | G184: Acute and Acute & Community Trusts | H184: 1741 | I184: 9757 | J184: 6.435596358 | K184: 83 | L184: 236 | M184: 605 | N184: 636 | O184: 214 | P184: 44 | Q184: 144 | R184: 443 | S184: 706 | T184: 425 | U184: 41 | V184: 104 | W184: 430 | X184: 633 | Y184: 558 | Z184: 91 | AA184: 206 | AB184: 342 | AC184: 829 | AD184: 304 | AE184: 110 | AF184: 191 | AG184: 318 | AH184: 829 | AI184: 325 | AJ184: 123 | AK184: 272 | AL184: 433 | AM184: 709 | AN184: 231 | AO184: 51 | AP184: 169 | AQ184: 367 | AR184: 751 | AS184: 403 | AT184: 137 | AU184: 216 | AV184: 444 | AW184: 693 | AX184: 251 | AY184: 98 | AZ184: 219 | BA184: 510 | BB184: 690 | BC184: 224 | BD184: 1741 | BE184: 1768 | BF184: 1762
A185: Y63 | B185: NORTH EAST AND YORKSHIRE COMMISSIONING REGION | C185: QWO | D185: NHS WEST YORKSHIRE ICB - 02T | E185: RXG | F185: SOUTH WEST YORKSHIRE PARTNERSHIP NHS FOUNDATION TRUST | G185: Mental Health & Learning Disability and Mental Health, Learning Disability & Community Trusts | H185: 127 | I185: 4839 | J185: 7.077865267 | K185: 1 | L185: 9 | M185: 53 | N185: 44 | O185: 20 | P185: 0 | Q185: 5 | R185: 44 | S185: 39 | T185: 39 | U185: 0 | V185: 5 | W185: 29 | X185: 50 | Y185: 43 | Z185: 5 | AA185: 12 | AB185: 17 | AC185: 58 | AD185: 35 | AE185: 3 | AF185: 14 | AG185: 12 | AH185: 60 | AI185: 38 | AJ185: 3 | AK185: 16 | AL185: 28 | AM185: 52 | AN185: 28 | AO185: 2 | AP185: 10 | AQ185: 14 | AR185: 52 | AS185: 49 | AT185: 4 | AU185: 10 | AV185: 30 | AW185: 49 | AX185: 34 | AY185: 7 | AZ185: 7 | BA185: 26 | BB185: 62 | BC185: 25 | BD185: 127 | BE185: 127 | BF185: 127
A186: Y63 | B186: NORTH EAST AND YORKSHIRE COMMISSIONING REGION | C186: QHM | D186: NHS NORTH EAST AND NORTH CUMBRIA ICB - 00L | E186: RXP | F186: COUNTY DURHAM AND DARLINGTON NHS FOUNDATION TRUST | G186: Acute and Acute & Community Trusts | H186: 726 | I186: 8337 | J186: 6.147076829 | K186: 50 | L186: 117 | M186: 262 | N186: 202 | O186: 95 | P186: 23 | Q186: 63 | R186: 212 | S186: 236 | T186: 192 | U186: 24 | V186: 35 | W186: 174 | X186: 230 | Y186: 263 | Z186: 49 | AA186: 110 | AB186: 133 | AC186: 298 | AD186: 136 | AE186: 58 | AF186: 105 | AG186: 131 | AH186: 292 | AI186: 140 | AJ186: 62 | AK186: 130 | AL186: 203 | AM186: 223 | AN186: 108 | AO186: 58 | AP186: 89 | AQ186: 148 | AR186: 248 | AS186: 183 | AT186: 96 | AU186: 114 | AV186: 197 | AW186: 217 | AX186: 102 | AY186: 75 | AZ186: 102 | BA186: 193 | BB186: 243 | BC186: 113 | BD186: 726 | BE186: 726 | BF186: 726
A187: Y63 | B187: NORTH EAST AND YORKSHIRE COMMISSIONING REGION | C187: QWO | D187: NHS WEST YORKSHIRE ICB - 02T | E187: RY6 | F187: LEEDS COMMUNITY HEALTHCARE NHS TRUST | G187: Community Trusts | H187: 767 | I187: 3377 | J187: 6.991217879 | K187: 22 | L187: 79 | M187: 276 | N187: 315 | O187: 82 | P187: 8 | Q187: 37 | R187: 191 | S187: 353 | T187: 178 | U187: 9 | V187: 24 | W187: 153 | X187: 303 | Y187: 279 | Z187: 27 | AA187: 58 | AB187: 133 | AC187: 401 | AD187: 156 | AE187: 24 | AF187: 57 | AG187: 144 | AH187: 377 | AI187: 175 | AJ187: 31 | AK187: 101 | AL187: 173 | AM187: 341 | AN187: 123 | AO187: 19 | AP187: 39 | AQ187: 93 | AR187: 379 | AS187: 244 | AT187: 24 | AU187: 74 | AV187: 171 | AW187: 327 | AX187: 177 | AY187: 13 | AZ187: 54 | BA187: 167 | BB187: 361 | BC187: 180 | BD187: 773 | BE187: 769 | BF187: 767
A188: Y63 | B188: NORTH EAST AND YORKSHIRE COMMISSIONING REGION | C188: QWO | D188: NHS WEST YORKSHIRE ICB - 02T | E188: TAD | F188: BRADFORD DISTRICT CARE NHS FOUNDATION TRUST | G188: Mental Health & Learning Disability and Mental Health, Learning Disability & Community Trusts | H188: 370 | I188: 3287 | J188: 7.065440778 | K188: 12 | L188: 24 | M188: 58 | N188: 144 | O188: 133 | P188: 22 | Q188: 30 | R188: 77 | S188: 148 | T188: 95 | U188: 14 | V188: 33 | W188: 83 | X188: 153 | Y188: 88 | Z188: 19 | AA188: 33 | AB188: 45 | AC188: 157 | AD188: 117 | AE188: 17 | AF188: 27 | AG188: 52 | AH188: 166 | AI188: 109 | AJ188: 20 | AK188: 33 | AL188: 80 | AM188: 149 | AN188: 89 | AO188: 12 | AP188: 39 | AQ188: 111 | AR188: 155 | AS188: 55 | AT188: 5 | AU188: 20 | AV188: 80 | AW188: 153 | AX188: 112 | AY188: 5 | AZ188: 9 | BA188: 77 | BB188: 133 | BC188: 147 | BD188: 370 | BE188: 371 | BF188: 371
A189: Y63 | B189: NORTH EAST AND YORKSHIRE COMMISSIONING REGION | C189: QF7 | D189: NHS SOUTH YORKSHIRE ICB - 02P | E189: TAH | F189: SHEFFIELD HEALTH & SOCIAL CARE NHS FOUNDATION TRUST | G189: Mental Health & Learning Disability and Mental Health, Learning Disability & Community Trusts | H189: 318 | I189: 2592 | J189: 6.064814815 | K189: 21 | L189: 60 | M189: 120 | N189: 97 | O189: 20 | P189: 12 | Q189: 34 | R189: 101 | S189: 112 | T189: 59 | U189: 9 | V189: 29 | W189: 80 | X189: 125 | Y189: 75 | Z189: 21 | AA189: 31 | AB189: 52 | AC189: 154 | AD189: 60 | AE189: 19 | AF189: 27 | AG189: 50 | AH189: 159 | AI189: 63 | AJ189: 27 | AK189: 39 | AL189: 71 | AM189: 136 | AN189: 45 | AO189: 12 | AP189: 42 | AQ189: 68 | AR189: 124 | AS189: 72 | AT189: 39 | AU189: 72 | AV189: 87 | AW189: 88 | AX189: 32 | AY189: 31 | AZ189: 59 | BA189: 108 | BB189: 93 | BC189: 27 | BD189: 318 | BE189: 318 | BF189: 318

Sheet Advocacy
O5: Avg Advocacy: | P5: =AVERAGE(K6,P6,U6) -> 6.645001642
K6: =IF($H$10=0,"-",((K$10*0)+(L$10*2.5)+(M$10*5)+(N$10*7.5)+(O$10*10))/$H$10) -> 7.111119345 | P6: =IF($H$10=0,"-",((P$10*0)+(Q$10*2.5)+(R$10*5)+(S$10*7.5)+(T$10*10))/$H$10) -> 6.211366945 | U6: =IF($H$10=0,"-",((U$10*0)+(V$10*2.5)+(W$10*5)+(X$10*7.5)+(Y$10*10))/$H$10) -> 6.612518635
A7: Region Code | B7: Region Name | C7: ICB Code | D7: ICB Name | E7: Org Code | F7: Org Name | G7: Care Setting | H7: Total Responses (Average across Theme) | I7: HSCIC Workforce Headcount | J7: Advocacy Score | K7: Weighted Breakdown of Responses - Advocacy Q1 | P7: Weighted Breakdown of Responses - Advocacy Q2 | U7: Weighted Breakdown of Responses - Advocacy Q3
K8: Strongly Disagree | L8: Disagree | M8: Neither Disagree nor Agree | N8: Agree | O8: Strongly Agree | P8: Strongly Disagree | Q8: Disagree | R8: Neither Disagree nor Agree | S8: Agree | T8: Strongly Agree | U8: Strongly Disagree | V8: Disagree | W8: Neither Disagree nor Agree | X8: Agree | Y8: Strongly Agree
F9: England | H9: 114701 | I9: 1258006 | J9: 6.645001642 | K9: 4313 | L9: 9161 | M9: 19687 | N9: 48770 | O9: 32854 | P9: 8386 | Q9: 13578 | R9: 27947 | S9: 43968 | T9: 20901 | U9: 5298 | V9: 10254 | W9: 27008 | X9: 49677 | Y9: 22521
F10: Selection (excluding suppressed data) | H10: =SUBTOTAL(9,H11:H1002) -> 114701 | I10: =SUBTOTAL(9,I11:I1002) -> 1258006 | J10: =IF(H10=0,"-",AVERAGE(((K10*0)+(L10*2.5)+(M10*5)+(N10*7.5)+(O10*10)),((P10*0)+(Q10*2.5)+(R10*5)+(S10*7.5)+(T10*10)),((U10*0)+(V10*2.5)+(W10*5)+(X10*7.5)+(Y10*10)))/H10) -> 6.645001642 | K10: =SUBTOTAL(9,K11:K1002) -> 4313 | L10: =SUBTOTAL(9,L11:L1002) -> 9161 | M10: 19687 | N10: 48770 | O10: 32854 | P10: 8386 | Q10: 13578 | R10: 27947 | S10: 43968 | T10: 20901 | U10: 5298 | V10: 10254 | W10: 27008 | X10: 49677 | Y10: 22521
A11: Y56 | B11: LONDON COMMISSIONING REGION | C11: QMF | D11: NHS NORTH EAST LONDON ICB - A3A8R | E11: R1H | F11: BARTS HEALTH NHS TRUST | G11: Acute and Acute & Community Trusts | H11: 835 | I11: 20029 | J11: 5.924151697 | K11: 70 | L11: 72 | M11: 177 | N11: 343 | O11: 173 | P11: 117 | Q11: 125 | R11: 227 | S11: 260 | T11: 106 | U11: 68 | V11: 84 | W11: 248 | X11: 314 | Y11: 121
A12: Y56 | B12: LONDON COMMISSIONING REGION | C12: QMJ | D12: NHS NORTH CENTRAL LONDON ICB - 93C | E12: RAL | F12: ROYAL FREE LONDON NHS FOUNDATION TRUST | G12: Acute and Acute & Community Trusts | H12: 112 | I12: 11731 | J12: 6.116071429 | K12: 7 | L12: 17 | M12: 19 | N12: 38 | O12: 31 | P12: 11 | Q12: 16 | R12: 30 | S12: 38 | T12: 17 | U12: 9 | V12: 17 | W12: 23 | X12: 44 | Y12: 19
A13: Y56 | B13: LONDON COMMISSIONING REGION | C13: QRV | D13: NHS NORTH WEST LONDON ICB - W2U3Z | E13: RAN | F13: ROYAL NATIONAL ORTHOPAEDIC HOSPITAL NHS TRUST | G13: Acute Specialist Trusts | H13: 45 | I13: 1686 | J13: 7.425925926 | K13: 1 | L13: 2 | M13: 6 | N13: 21 | O13: 15 | P13: 2 | Q13: 4 | R13: 9 | S13: 19 | T13: 11 | U13: 1 | V13: 0 | W13: 9 | X13: 17 | Y13: 18
A14: Y56 | B14: LONDON COMMISSIONING REGION | C14: QMJ | D14: NHS NORTH CENTRAL LONDON ICB - 93C | E14: RAP | F14: NORTH MIDDLESEX UNIVERSITY HOSPITAL NHS TRUST | G14: Acute and Acute & Community Trusts | H14: 1093 | I14: 4597 | J14: 6.456999085 | K14: 33 | L14: 73 | M14: 181 | N14: 476 | O14: 330 | P14: 70 | Q14: 132 | R14: 312 | S14: 399 | T14: 181 | U14: 76 | V14: 127 | W14: 347 | X14: 392 | Y14: 153
A15: Y56 | B15: LONDON COMMISSIONING REGION | C15: QMF | D15: NHS NORTH EAST LONDON ICB - A3A8R | E15: RAT | F15: NORTH EAST LONDON NHS FOUNDATION TRUST | G15: Mental Health & Learning Disability and Mental Health, Learning Disability & Community Trusts | H15: 87 | I15: 7175 | J15: 6.848659004 | K15: 2 | L15: 5 | M15: 14 | N15: 32 | O15: 34 | P15: 5 | Q15: 5 | R15: 27 | S15: 31 | T15: 19 | U15: 4 | V15: 7 | W15: 27 | X15: 35 | Y15: 14
A16: Y56 | B16: LONDON COMMISSIONING REGION | C16: QKK | D16: NHS SOUTH EAST LONDON ICB - 72Q | E16: RJ1 | F16: GUY'S AND ST THOMAS' NHS FOUNDATION TRUST | G16: Acute and Acute & Community Trusts | H16: 1635 | I16: 23017 | J16: 7.121304791 | K16: 42 | L16: 107 | M16: 238 | N16: 698 | O16: 551 | P16: 91 | Q16: 205 | R16: 341 | S16: 620 | T16: 378 | U16: 30 | V16: 95 | W16: 263 | X16: 777 | Y16: 470
A17: Y56 | B17: LONDON COMMISSIONING REGION | C17: QKK | D17: NHS SOUTH EAST LONDON ICB - 72Q | E17: RJ2 | F17: LEWISHAM AND GREENWICH NHS TRUST | G17: Acute and Acute & Community Trusts | H17: 88 | I17: 7311 | J17: 5.956439394 | K17: 1 | L17: 8 | M17: 29 | N17: 30 | O17: 20 | P17: 9 | Q17: 15 | R17: 28 | S17: 24 | T17: 12 | U17: 5 | V17: 14 | W17: 27 | X17: 34 | Y17: 8
A18: Y56 | B18: LONDON COMMISSIONING REGION | C18: QWE | D18: NHS SOUTH WEST LONDON ICB - 36L | E18: RJ7 | F18: ST GEORGE'S UNIVERSITY HOSPITALS NHS FOUNDATION TRUST | G18: Acute and Acute & Community Trusts | H18: 12 | I18: 9885 | J18: 5.555555556 | K18: 1 | L18: 2 | M18: 3 | N18: 2 | O18: 4 | P18: 3 | Q18: 2 | R18: 4 | S18: 0 | T18: 3 | U18: 1 | V18: 2 | W18: 3 | X18: 4 | Y18: 2
A19: Y56 | B19: LONDON COMMISSIONING REGION | C19: QKK | D19: NHS SOUTH EAST LONDON ICB - 72Q | E19: RJZ | F19: KING'S COLLEGE HOSPITAL NHS FOUNDATION TRUST | G19: Acute and Acute & Community Trusts | H19: 55 | I19: 14383 | J19: 5.560606061 | K19: 5 | L19: 7 | M19: 14 | N19: 22 | O19: 7 | P19: 10 | Q19: 10 | R19: 17 | S19: 14 | T19: 4 | U19: 3 | V19: 4 | W19: 16 | X19: 28 | Y19: 4
A20: Y56 | B20: LONDON COMMISSIONING REGION | C20: QMJ | D20: NHS NORTH CENTRAL LONDON ICB - 93C | E20: RKE | F20: WHITTINGTON HEALTH NHS TRUST | G20: Acute and Acute & Community Trusts | H20: 411 | I20: 4929 | J20: 6.504460665 | K20: 23 | L20: 25 | M20: 71 | N20: 170 | O20: 122 | P20: 45 | Q20: 43 | R20: 95 | S20: 155 | T20: 73 | U20: 35 | V20: 29 | W20: 91 | X20: 182 | Y20: 74
A21: Y56 | B21: LONDON COMMISSIONING REGION | C21: QMJ | D21: NHS NORTH CENTRAL LONDON ICB - 93C | E21: RNK | F21: TAVISTOCK AND PORTMAN NHS FOUNDATION TRUST | G21: Mental Health & Learning Disability and Mental Health, Learning Disability & Community Trusts | H21: 21 | I21: 819 | J21: 5.555555556 | K21: 2 | L21: 3 | M21: 5 | N21: 8 | O21: 3 | P21: 4 | Q21: 3 | R21: 8 | S21: 4 | T21: 2 | U21: 2 | V21: 1 | W21: 7 | X21: 7 | Y21: 4
A22: Y56 | B22: LONDON COMMISSIONING REGION | C22: QMJ | D22: NHS NORTH CENTRAL LONDON ICB - 93C | E22: RP4 | F22: GREAT ORMOND STREET HOSPITAL FOR CHILDREN NHS FOUNDATION TRUST | G22: Acute Specialist Trusts | H22: 791 | I22: 5718 | J22: 7.514749263 | K22: 17 | L22: 56 | M22: 69 | N22: 365 | O22: 288 | P22: 48 | Q22: 73 | R22: 146 | S22: 320 | T22: 204 | U22: 18 | V22: 21 | W22: 59 | X22: 364 | Y22: 330
A23: Y56 | B23: LONDON COMMISSIONING REGION | C23: QMJ | D23: NHS NORTH CENTRAL LONDON ICB - 93C | E23: RP6 | F23: MOORFIELDS EYE HOSPITAL NHS FOUNDATION TRUST | G23: Acute Specialist Trusts | H23: 36 | I23: 2484 | J23: 5.555555556 | K23: 4 | L23: 6 | M23: 5 | N23: 16 | O23: 5 | P23: 9 | Q23: 5 | R23: 10 | S23: 7 | T23: 5 | U23: 3 | V23: 4 | W23: 9 | X23: 12 | Y23: 8
A24: Y56 | B24: LONDON COMMISSIONING REGION | C24: QRV | D24: NHS NORTH WEST LONDON ICB - W2U3Z | E24: RPY | F24: THE ROYAL MARSDEN NHS FOUNDATION TRUST | G24: Acute Specialist Trusts | H24: 163 | I24: 4612 | J24: 7.259713701 | K24: 5 | L24: 4 | M24: 31 | N24: 59 | O24: 64 | P24: 12 | Q24: 23 | R24: 38 | S24: 61 | T24: 29 | U24: 6 | V24: 4 | W24: 17 | X24: 59 | Y24: 77
A25: Y56 | B25: LONDON COMMISSIONING REGION | C25: QMF | D25: NHS NORTH EAST LONDON ICB - A3A8R | E25: RQX | F25: HOMERTON HEALTHCARE NHS FOUNDATION TRUST | G25: Acute and Acute & Community Trusts | H25: 607 | I25: 4208 | J25: 7.460186711 | K25: 9 | L25: 18 | M25: 68 | N25: 280 | O25: 234 | P25: 29 | Q25: 40 | R25: 124 | S25: 238 | T25: 176 | U25: 15 | V25: 24 | W25: 119 | X25: 264 | Y25: 186
A26: Y56 | B26: LONDON COMMISSIONING REGION | C26: QWE | D26: NHS SOUTH WEST LONDON ICB - 36L | E26: RQY | F26: SOUTH WEST LONDON AND ST GEORGE'S MENTAL HEALTH NHS TRUST | G26: Mental Health & Learning Disability and Mental Health, Learning Disability & Community Trusts | H26: 75 | I26: 2923 | J26: 5.977777778 | K26: 5 | L26: 6 | M26: 9 | N26: 39 | O26: 16 | P26: 6 | Q26: 13 | R26: 25 | S26: 27 | T26: 4 | U26: 5 | V26: 11 | W26: 20 | X26: 34 | Y26: 5
A27: Y56 | B27: LONDON COMMISSIONING REGION | C27: QMJ | D27: NHS NORTH CENTRAL LONDON ICB - 93C | E27: RRP | F27: BARNET, ENFIELD AND HARINGEY MENTAL HEALTH NHS TRUST | G27: Mental Health & Learning Disability and Mental Health, Learning Disability & Community Trusts | H27: 85 | I27: 3066 | J27: 5.637254902 | K27: 6 | L27: 10 | M27: 24 | N27: 27 | O27: 18 | P27: 10 | Q27: 15 | R27: 24 | S27: 24 | T27: 12 | U27: 10 | V27: 12 | W27: 32 | X27: 19 | Y27: 12
A28: Y56 | B28: LONDON COMMISSIONING REGION | C28: QKK | D28: NHS SOUTH EAST LONDON ICB - 72Q | E28: RRU | F28: LONDON AMBULANCE SERVICE NHS TRUST | G28: Ambulance Trusts | H28: 86 | I28: 7665 | J28: 5.978682171 | K28: 8 | L28: 8 | M28: 17 | N28: 35 | O28: 18 | P28: 14 | Q28: 11 | R28: 20 | S28: 30 | T28: 11 | U28: 8 | V28: 9 | W28: 18 | X28: 36 | Y28: 15
A29: Y56 | B29: LONDON COMMISSIONING REGION | C29: QMJ | D29: NHS NORTH CENTRAL LONDON ICB - 93C | E29: RRV | F29: UNIVERSITY COLLEGE LONDON HOSPITALS NHS FOUNDATION TRUST | G29: Acute and Acute & Community Trusts | H29: 514 | I29: 10939 | J29: 7.709143969 | K29: 17 | L29: 18 | M29: 59 | N29: 216 | O29: 204 | P29: 23 | Q29: 22 | R29: 94 | S29: 204 | T29: 171 | U29: 11 | V29: 12 | W29: 56 | X29: 215 | Y29: 220
A30: Y56 | B30: LONDON COMMISSIONING REGION | C30: QMJ | D30: NHS NORTH CENTRAL LONDON ICB - 93C | E30: RV3 | F30: CENTRAL AND NORTH WEST LONDON NHS FOUNDATION TRUST | G30: Mental Health & Learning Disability and Mental Health, Learning Disability & Community Trusts | H30: 35 | I30: 8539 | J30: 5.19047619 | K30: 2 | L30: 6 | M30: 7 | N30: 9 | O30: 11 | P30: 6 | Q30: 10 | R30: 9 | S30: 9 | T30: 1 | U30: 4 | V30: 6 | W30: 14 | X30: 10 | Y30: 1
A31: Y56 | B31: LONDON COMMISSIONING REGION | C31: QWE | D31: NHS SOUTH WEST LONDON ICB - 36L | E31: RVR | F31: EPSOM AND ST HELIER UNIVERSITY HOSPITALS NHS TRUST | G31: Acute and Acute & Community Trusts | H31: 231 | I31: 7102 | J31: 5.194805195 | K31: 24 | L31: 31 | M31: 61 | N31: 74 | O31: 41 | P31: 50 | Q31: 36 | R31: 67 | S31: 70 | T31: 8 | U31: 27 | V31: 34 | W31: 71 | X31: 83 | Y31: 16
A32: Y56 | B32: LONDON COMMISSIONING REGION | C32: QMF | D32: NHS NORTH EAST LONDON ICB - A3A8R | E32: RWK | F32: EAST LONDON NHS FOUNDATION TRUST | G32: Mental Health & Learning Disability and Mental Health, Learning Disability & Community Trusts | H32: 948 | I32: 7300 | J32: 7.229254571 | K32: 13 | L32: 34 | M32: 117 | N32: 419 | O32: 366 | P32: 38 | Q32: 71 | R32: 194 | S32: 405 | T32: 240 | U32: 30 | V32: 63 | W32: 233 | X32: 420 | Y32: 203
A33: Y56 | B33: LONDON COMMISSIONING REGION | C33: QRV | D33: NHS NORTH WEST LONDON ICB - W2U3Z | E33: RYJ | F33: IMPERIAL COLLEGE HEALTHCARE NHS TRUST | G33: Acute and Acute & Community Trusts | H33: 96 | I33: 13870 | J33: 6.710069444 | K33: 5 | L33: 8 | M33: 12 | N33: 37 | O33: 34 | P33: 10 | Q33: 12 | R33: 21 | S33: 31 | T33: 22 | U33: 6 | V33: 9 | W33: 17 | X33: 40 | Y33: 24
A34: Y56 | B34: LONDON COMMISSIONING REGION | C34: QRV | D34: NHS NORTH WEST LONDON ICB - W2U3Z | E34: RYX | F34: CENTRAL LONDON COMMUNITY HEALTHCARE NHS TRUST | G34: Community Trusts | H34: 961 | I34: 4806 | J34: 7.416753382 | K34: 12 | L34: 42 | M34: 102 | N34: 414 | O34: 393 | P34: 43 | Q34: 71 | R34: 199 | S34: 373 | T34: 276 | U34: 20 | V34: 40 | W34: 208 | X34: 427 | Y34: 266
A35: Y56 | B35: LONDON COMMISSIONING REGION | C35: QMJ | D35: NHS NORTH CENTRAL LONDON ICB - 93C | E35: TAF | F35: CAMDEN AND ISLINGTON NHS FOUNDATION TRUST | G35: Mental Health & Learning Disability and Mental Health, Learning Disability & Community Trusts | H35: 85 | I35: 2562 | J35: 5.323529412 | K35: 6 | L35: 9 | M35: 27 | N35: 33 | O35: 10 | P35: 16 | Q35: 17 | R35: 24 | S35: 21 | T35: 7 | U35: 9 | V35: 12 | W35: 27 | X35: 29 | Y35: 8
A36: Y58 | B36: SOUTH WEST COMMISSIONING REGION | C36: QVV | D36: NHS DORSET ICB - 11J | E36: R0D | F36: UNIVERSITY HOSPITALS DORSET NHS FOUNDATION TRUST | G36: Acute and Acute & Community Trusts | H36: 990 | I36: 9659 | J36: 5.888888889 | K36: 65 | L36: 136 | M36: 223 | N36: 402 | O36: 164 | P36: 86 | Q36: 167 | R36: 319 | S36: 312 | T36: 106 | U36: 54 | V36: 127 | W36: 289 | X36: 398 | Y36: 122
A37: Y58 | B37: SOUTH WEST COMMISSIONING REGION | C37: QUY | D37: NHS BRISTOL, NORTH SOMERSET AND SOUTH GLOUCESTERSHIRE ICB - 15C | E37: RA7 | F37: UNIVERSITY HOSPITALS BRISTOL AND WESTON NHS FOUNDATION TRUST | G37: Acute and Acute & Community Trusts | H37: 857 | I37: 12869 | J37: 7.095488137 | K37: 11 | L37: 44 | M37: 128 | N37: 380 | O37: 294 | P37: 45 | Q37: 84 | R37: 185 | S37: 375 | T37: 168 | U37: 16 | V37: 42 | W37: 191 | X37: 426 | Y37: 182
A38: Y58 | B38: SOUTH WEST COMMISSIONING REGION | C38: QJK | D38: NHS DEVON ICB - 15N | E38: RA9 | F38: TORBAY AND SOUTH DEVON NHS FOUNDATION TRUST | G38: Acute and Acute & Community Trusts | H38: 310 | I38: 7174 | J38: 5.717741935 | K38: 14 | L38: 46 | M38: 76 | N38: 134 | O38: 40 | P38: 30 | Q38: 68 | R38: 83 | S38: 103 | T38: 26 | U38: 12 | V38: 56 | W38: 93 | X38: 118 | Y38: 31
A39: Y58 | B39: SOUTH WEST COMMISSIONING REGION | C39: QVV | D39: NHS DORSET ICB - 11J | E39: RBD | F39: DORSET COUNTY HOSPITAL NHS FOUNDATION TRUST | G39: Acute and Acute & Community Trusts | H39: 225 | I39: 3465 | J39: 6.596296296 | K39: 6 | L39: 19 | M39: 42 | N39: 101 | O39: 57 | P39: 18 | Q39: 27 | R39: 56 | S39: 78 | T39: 46 | U39: 9 | V39: 22 | W39: 53 | X39: 102 | Y39: 39
A40: Y58 | B40: SOUTH WEST COMMISSIONING REGION | C40: QOX | D40: NHS BATH AND NORTH EAST SOMERSET, SWINDON AND WILTSHIRE ICB - 92G | E40: RD1 | F40: ROYAL UNITED HOSPITALS BATH NHS FOUNDATION TRUST | G40: Acute and Acute & Community Trusts | H40: 1132 | I40: 6582 | J40: 6.7954947 | K40: 21 | L40: 87 | M40: 187 | N40: 548 | O40: 291 | P40: 59 | Q40: 124 | R40: 282 | S40: 497 | T40: 171 | U40: 25 | V40: 81 | W40: 266 | X40: 554 | Y40: 206
A41: Y58 | B41: SOUTH WEST COMMISSIONING REGION | C41: QVV | D41: NHS DORSET ICB - 11J | E41: RDY | F41: DORSET HEALTHCARE UNIVERSITY NHS FOUNDATION TRUST | G41: Mental Health & Learning Disability and Mental Health, Learning Disability & Community Trusts | H41: 596 | I41: 6869 | J41: 6.63310962 | K41: 16 | L41: 54 | M41: 116 | N41: 269 | O41: 141 | P41: 42 | Q41: 72 | R41: 150 | S41: 232 | T41: 100 | U41: 12 | V41: 50 | W41: 145 | X41: 277 | Y41: 112
A42: Y58 | B42: SOUTH WEST COMMISSIONING REGION | C42: QT6 | D42: NHS CORNWALL AND THE ISLES OF SCILLY ICB - 11N | E42: REF | F42: ROYAL CORNWALL HOSPITALS NHS TRUST | G42: Acute and Acute & Community Trusts | H42: 834 | I42: 7222 | J42: 6.252997602 | K42: 32 | L42: 78 | M42: 176 | N42: 388 | O42: 160 | P42: 62 | Q42: 94 | R42: 230 | S42: 349 | T42: 99 | U42: 51 | V42: 101 | W42: 222 | X42: 362 | Y42: 99
A43: Y58 | B43: SOUTH WEST COMMISSIONING REGION | C43: QSL | D43: NHS SOMERSET ICB - 11X | E43: RH5 | F43: SOMERSET NHS FOUNDATION TRUST | G43: Acute and Acute & Community Trusts | H43: 719 | I43: 13308 | J43: 6.768660176 | K43: 29 | L43: 54 | M43: 123 | N43: 297 | O43: 216 | P43: 48 | Q43: 77 | R43: 163 | S43: 290 | T43: 141 | U43: 39 | V43: 50 | W43: 151 | X43: 320 | Y43: 159
A44: Y58 | B44: SOUTH WEST COMMISSIONING REGION | C44: QJK | D44: NHS DEVON ICB - 15N | E44: RH8 | F44: ROYAL DEVON UNIVERSITY HEALTHCARE NHS FOUNDATION TRUST | G44: Acute and Acute & Community Trusts | H44: 2331 | I44: 13192 | J44: 6.772486772 | K44: 69 | L44: 179 | M44: 400 | N44: 1026 | O44: 663 | P44: 139 | Q44: 295 | R44: 538 | S44: 1051 | T44: 313 | U44: 69 | V44: 151 | W44: 459 | X44: 1218 | Y44: 434
A45: Y58 | B45: SOUTH WEST COMMISSIONING REGION | C45: QT6 | D45: NHS CORNWALL AND THE ISLES OF SCILLY ICB - 11N | E45: RJ8 | F45: CORNWALL PARTNERSHIP NHS FOUNDATION TRUST | G45: Mental Health & Learning Disability and Mental Health, Learning Disability & Community Trusts | H45: 11 | I45: 4926 | J45: 6.818181818 | K45: 0 | L45: 0 | M45: 3 | N45: 5 | O45: 3 | P45: 0 | Q45: 2 | R45: 2 | S45: 5 | T45: 2 | U45: 0 | V45: 2 | W45: 3 | X45: 4 | Y45: 2
A46: Y58 | B46: SOUTH WEST COMMISSIONING REGION | C46: QJK | D46: NHS DEVON ICB - 15N | E46: RK9 | F46: UNIVERSITY HOSPITALS PLYMOUTH NHS TRUST | G46: Acute and Acute & Community Trusts | H46: 1135 | I46: 10600 | J46: 6.36123348 | K46: 49 | L46: 122 | M46: 203 | N46: 475 | O46: 287 | P46: 105 | Q46: 147 | R46: 248 | S46: 478 | T46: 160 | U46: 58 | V46: 143 | W46: 270 | X46: 493 | Y46: 171
A47: Y58 | B47: SOUTH WEST COMMISSIONING REGION | C47: QOX | D47: NHS BATH AND NORTH EAST SOMERSET, SWINDON AND WILTSHIRE ICB - 92G | E47: RN3 | F47: GREAT WESTERN HOSPITALS NHS FOUNDATION TRUST | G47: Acute and Acute & Community Trusts | H47: 1278 | I47: 5705 | J47: 6.663406364 | K47: 26 | L47: 88 | M47: 232 | N47: 589 | O47: 345 | P47: 52 | Q47: 151 | R47: 362 | S47: 518 | T47: 198 | U47: 42 | V47: 123 | W47: 355 | X47: 566 | Y47: 192
A48: Y58 | B48: SOUTH WEST COMMISSIONING REGION | C48: QR1 | D48: NHS GLOUCESTERSHIRE ICB - 11M | E48: RTE | F48: GLOUCESTERSHIRE HOSPITALS NHS FOUNDATION TRUST | G48: Acute and Acute & Community Trusts | H48: 929 | I48: 8924 | J48: 5.534625045 | K48: 84 | L48: 116 | M48: 203 | N48: 345 | O48: 183 | P48: 123 | Q48: 181 | R48: 252 | S48: 283 | T48: 90 | U48: 107 | V48: 157 | W48: 284 | X48: 286 | Y48: 101
A49: Y58 | B49: SOUTH WEST COMMISSIONING REGION | C49: QR1 | D49: NHS GLOUCESTERSHIRE ICB - 11M | E49: RTQ | F49: GLOUCESTERSHIRE HEALTH AND CARE NHS FOUNDATION TRUST | G49: Mental Health & Learning Disability and Mental Health, Learning Disability & Community Trusts | H49: 288 | I49: 4799 | J49: 6.892361111 | K49: 7 | L49: 25 | M49: 48 | N49: 143 | O49: 65 | P49: 14 | Q49: 24 | R49: 71 | S49: 119 | T49: 60 | U49: 6 | V49: 19 | W49: 60 | X49: 142 | Y49: 61
A50: Y58 | B50: SOUTH WEST COMMISSIONING REGION | C50: QUY | D50: NHS BRISTOL, NORTH SOMERSET AND SOUTH GLOUCESTERSHIRE ICB - 15C | E50: RVJ | F50: NORTH BRISTOL NHS TRUST | G50: Acute and Acute & Community Trusts | H50: 117 | I50: 10025 | J50: 6.417378917 | K50: 1 | L50: 8 | M50: 27 | N50: 53 | O50: 28 | P50: 15 | Q50: 11 | R50: 34 | S50: 44 | T50: 13 | U50: 4 | V50: 8 | W50: 32 | X50: 59 | Y50: 14
A51: Y58 | B51: SOUTH WEST COMMISSIONING REGION | C51: QOX | D51: NHS BATH AND NORTH EAST SOMERSET, SWINDON AND WILTSHIRE ICB - 92G | E51: RVN | F51: AVON AND WILTSHIRE MENTAL HEALTH PARTNERSHIP NHS TRUST | G51: Mental Health & Learning Disability and Mental Health, Learning Disability & Community Trusts | H51: 139 | I51: 4836 | J51: 5.401678657 | K51: 14 | L51: 17 | M51: 38 | N51: 43 | O51: 27 | P51: 24 | Q51: 22 | R51: 42 | S51: 34 | T51: 17 | U51: 15 | V51: 21 | W51: 49 | X51: 40 | Y51: 14
A52: Y58 | B52: SOUTH WEST COMMISSIONING REGION | C52: QJK | D52: NHS DEVON ICB - 15N | E52: RWV | F52: DEVON PARTNERSHIP NHS TRUST | G52: Mental Health & Learning Disability and Mental Health, Learning Disability & Community Trusts | H52: 155 | I52: 3794 | J52: 5.827956989 | K52: 7 | L52: 22 | M52: 33 | N52: 56 | O52: 37 | P52: 14 | Q52: 27 | R52: 49 | S52: 45 | T52: 20 | U52: 14 | V52: 26 | W52: 48 | X52: 50 | Y52: 17
A53: Y59 | B53: SOUTH EAST COMMISSIONING REGION | C53: QRL | D53: NHS HAMPSHIRE AND ISLE OF WIGHT ICB - D9Y0V | E53: R1C | F53: SOLENT NHS TRUST | G53: Mental Health & Learning Disability and Mental Health, Learning Disability & Community Trusts | H53: 47 | I53: 4205 | J53: 7.234042553 | K53: 2 | L53: 2 | M53: 8 | N53: 16 | O53: 19 | P53: 2 | Q53: 4 | R53: 10 | S53: 19 | T53: 12 | U53: 1 | V53: 4 | W53: 7 | X53: 21 | Y53: 14
A54: Y59 | B54: SOUTH EAST COMMISSIONING REGION | C54: QRL | D54: NHS HAMPSHIRE AND ISLE OF WIGHT ICB - D9Y0V | E54: R1F | F54: ISLE OF WIGHT NHS TRUST | G54: Acute and Acute & Community Trusts | H54: 455 | I54: 4116 | J54: 5.703296703 | K54: 23 | L54: 60 | M54: 117 | N54: 160 | O54: 95 | P54: 41 | Q54: 71 | R54: 164 | S54: 134 | T54: 45 | U54: 43 | V54: 75 | W54: 147 | X54: 150 | Y54: 40
A55: Y59 | B55: SOUTH EAST COMMISSIONING REGION | C55: QNX | D55: NHS SUSSEX ICB - 09D | E55: RDR | F55: SUSSEX COMMUNITY NHS FOUNDATION TRUST | G55: Community Trusts | H55: 638 | I55: 5519 | J55: 7.360240334 | K55: 14 | L55: 27 | M55: 92 | N55: 273 | O55: 232 | P55: 20 | Q55: 46 | R55: 140 | S55: 271 | T55: 161 | U55: 13 | V55: 23 | W55: 117 | X55: 303 | Y55: 182
A56: Y59 | B56: SOUTH EAST COMMISSIONING REGION | C56: QNQ | D56: NHS FRIMLEY ICB - D4U1Y | E56: RDU | F56: FRIMLEY HEALTH NHS FOUNDATION TRUST | G56: Acute and Acute & Community Trusts | H56: 2130 | I56: 10689 | J56: 7.049295775 | K56: 36 | L56: 113 | M56: 308 | N56: 996 | O56: 677 | P56: 102 | Q56: 193 | R56: 518 | S56: 940 | T56: 385 | U56: 51 | V56: 126 | W56: 443 | X56: 1072 | Y56: 444
A57: Y59 | B57: SOUTH EAST COMMISSIONING REGION | C57: QRL | D57: NHS HAMPSHIRE AND ISLE OF WIGHT ICB - D9Y0V | E57: RHM | F57: UNIVERSITY HOSPITAL SOUTHAMPTON NHS FOUNDATION TRUST | G57: Acute and Acute & Community Trusts | H57: 3323 | I57: 13536 | J57: 7.097502257 | K57: 80 | L57: 243 | M57: 422 | N57: 1548 | O57: 1030 | P57: 137 | Q57: 325 | R57: 768 | S57: 1433 | T57: 661 | U57: 52 | V57: 156 | W57: 648 | X57: 1673 | Y57: 794
A58: Y59 | B58: SOUTH EAST COMMISSIONING REGION | C58: QRL | D58: NHS HAMPSHIRE AND ISLE OF WIGHT ICB - D9Y0V | E58: RHU | F58: PORTSMOUTH HOSPITALS UNIVERSITY NATIONAL HEALTH SERVICE TRUST | G58: Acute and Acute & Community Trusts | H58: 634 | I58: 8774 | J58: 6.090956887 | K58: 36 | L58: 66 | M58: 113 | N58: 249 | O58: 170 | P58: 58 | Q58: 110 | R58: 166 | S58: 234 | T58: 69 | U58: 44 | V58: 88 | W58: 173 | X58: 259 | Y58: 71
A59: Y59 | B59: SOUTH EAST COMMISSIONING REGION | C59: QU9 | D59: NHS BUCKINGHAMSHIRE, OXFORDSHIRE AND BERKSHIRE WEST ICB - 10Q | E59: RHW | F59: ROYAL BERKSHIRE NHS FOUNDATION TRUST | G59: Acute and Acute & Community Trusts | H59: 42 | I59: 6379 | J59: 6.547619048 | K59: 2 | L59: 3 | M59: 8 | N59: 16 | O59: 13 | P59: 5 | Q59: 7 | R59: 11 | S59: 12 | T59: 7 | U59: 1 | V59: 6 | W59: 5 | X59: 18 | Y59: 12
A60: Y59 | B60: SOUTH EAST COMMISSIONING REGION | C60: QRL | D60: NHS HAMPSHIRE AND ISLE OF WIGHT ICB - D9Y0V | E60: RN5 | F60: HAMPSHIRE HOSPITALS NHS FOUNDATION TRUST | G60: Acute and Acute & Community Trusts | H60: 197 | I60: 7641 | J60: 6.4678511 | K60: 10 | L60: 14 | M60: 39 | N60: 85 | O60: 49 | P60: 12 | Q60: 28 | R60: 54 | S60: 75 | T60: 28 | U60: 7 | V60: 15 | W60: 59 | X60: 84 | Y60: 32
A61: Y59 | B61: SOUTH EAST COMMISSIONING REGION | C61: QKS | D61: NHS KENT AND MEDWAY ICB - 91Q | E61: RN7 | F61: DARTFORD AND GRAVESHAM NHS TRUST | G61: Acute and Acute & Community Trusts | H61: 164 | I61: 4349 | J61: 6.458333333 | K61: 6 | L61: 16 | M61: 34 | N61: 61 | O61: 47 | P61: 15 | Q61: 24 | R61: 38 | S61: 57 | T61: 30 | U61: 3 | V61: 19 | W61: 47 | X61: 68 | Y61: 27
A62: Y59 | B62: SOUTH EAST COMMISSIONING REGION | C62: QU9 | D62: NHS BUCKINGHAMSHIRE, OXFORDSHIRE AND BERKSHIRE WEST ICB - 10Q | E62: RNU | F62: OXFORD HEALTH NHS FOUNDATION TRUST | G62: Mental Health & Learning Disability and Mental Health, Learning Disability & Community Trusts | H62: 467 | I62: 6496 | J62: 6.529264811 | K62: 19 | L62: 34 | M62: 85 | N62: 191 | O62: 138 | P62: 56 | Q62: 53 | R62: 104 | S62: 160 | T62: 94 | U62: 34 | V62: 36 | W62: 106 | X62: 199 | Y62: 92
A63: Y59 | B63: SOUTH EAST COMMISSIONING REGION | C63: QKS | D63: NHS KENT AND MEDWAY ICB - 91Q | E63: RPA | F63: MEDWAY NHS FOUNDATION TRUST | G63: Acute and Acute & Community Trusts | H63: 80 | I63: 5187 | J63: 5.239583333 | K63: 13 | L63: 6 | M63: 10 | N63: 30 | O63: 21 | P63: 17 | Q63: 12 | R63: 19 | S63: 24 | T63: 8 | U63: 20 | V63: 8 | W63: 22 | X63: 23 | Y63: 7
A64: Y59 | B64: SOUTH EAST COMMISSIONING REGION | C64: QNX | D64: NHS SUSSEX ICB - 09D | E64: RPC | F64: QUEEN VICTORIA HOSPITAL NHS FOUNDATION TRUST | G64: Acute Specialist Trusts | H64: 158 | I64: 1142 | J64: 8.064345992 | K64: 1 | L64: 10 | M64: 12 | N64: 50 | O64: 85 | P64: 5 | Q64: 11 | R64: 24 | S64: 69 | T64: 49 | U64: 1 | V64: 2 | W64: 7 | X64: 65 | Y64: 83
A65: Y59 | B65: SOUTH EAST COMMISSIONING REGION | C65: QU9 | D65: NHS BUCKINGHAMSHIRE, OXFORDSHIRE AND BERKSHIRE WEST ICB - 10Q | E65: RTH | F65: OXFORD UNIVERSITY HOSPITALS NHS FOUNDATION TRUST | G65: Acute and Acute & Community Trusts | H65: 2549 | I65: 14228 | J65: 7.081535243 | K65: 59 | L65: 138 | M65: 354 | N65: 1175 | O65: 825 | P65: 141 | Q65: 264 | R65: 613 | S65: 1032 | T65: 502 | U65: 49 | V65: 136 | W65: 462 | X65: 1272 | Y65: 630
A66: Y59 | B66: SOUTH EAST COMMISSIONING REGION | C66: QKS | D66: NHS KENT AND MEDWAY ICB - 91Q | E66: RVV | F66: EAST KENT HOSPITALS UNIVERSITY NHS FOUNDATION TRUST | G66: Acute and Acute & Community Trusts | H66: 2187 | I66: 11409 | J66: 5.699588477 | K66: 141 | L66: 299 | M66: 468 | N66: 815 | O66: 464 | P66: 256 | Q66: 422 | R66: 597 | S66: 673 | T66: 242 | U66: 200 | V66: 370 | W66: 641 | X66: 749 | Y66: 230
A67: Y59 | B67: SOUTH EAST COMMISSIONING REGION | C67: QRL | D67: NHS HAMPSHIRE AND ISLE OF WIGHT ICB - D9Y0V | E67: RW1 | F67: SOUTHERN HEALTH NHS FOUNDATION TRUST | G67: Mental Health & Learning Disability and Mental Health, Learning Disability & Community Trusts | H67: 668 | I67: 6774 | J67: 6.427145709 | K67: 13 | L67: 55 | M67: 149 | N67: 293 | O67: 158 | P67: 50 | Q67: 80 | R67: 186 | S67: 252 | T67: 100 | U67: 34 | V67: 68 | W67: 187 | X67: 278 | Y67: 101
A68: Y59 | B68: SOUTH EAST COMMISSIONING REGION | C68: QKS | D68: NHS KENT AND MEDWAY ICB - 91Q | E68: RWF | F68: MAIDSTONE AND TUNBRIDGE WELLS NHS TRUST | G68: Acute and Acute & Community Trusts | H68: 717 | I68: 7439 | J68: 6.710832171 | K68: 22 | L68: 61 | M68: 110 | N68: 340 | O68: 185 | P68: 48 | Q68: 77 | R68: 182 | S68: 315 | T68: 95 | U68: 29 | V68: 41 | W68: 147 | X68: 368 | Y68: 132
A69: Y59 | B69: SOUTH EAST COMMISSIONING REGION | C69: QNQ | D69: NHS FRIMLEY ICB - D4U1Y | E69: RWX | F69: BERKSHIRE HEALTHCARE NHS FOUNDATION TRUST | G69: Mental Health & Learning Disability and Mental Health, Learning Disability & Community Trusts | H69: 1575 | I69: 4977 | J69: 7.760846561 | K69: 13 | L69: 28 | M69: 134 | N69: 712 | O69: 690 | P69: 35 | Q69: 90 | R69: 246 | S69: 703 | T69: 501 | U69: 25 | V69: 47 | W69: 261 | X69: 756 | Y69: 486
A70: Y59 | B70: SOUTH EAST COMMISSIONING REGION | C70: QNX | D70: NHS SUSSEX ICB - 09D | E70: RX2 | F70: SUSSEX PARTNERSHIP NHS FOUNDATION TRUST | G70: Mental Health & Learning Disability and Mental Health, Learning Disability & Community Trusts | H70: 231 | I70: 5895 | J70: 4.794372294 | K70: 33 | L70: 34 | M70: 53 | N70: 86 | O70: 25 | P70: 51 | Q70: 47 | R70: 74 | S70: 40 | T70: 19 | U70: 37 | V70: 39 | W70: 78 | X70: 63 | Y70: 14
A71: Y59 | B71: SOUTH EAST COMMISSIONING REGION | C71: QNX | D71: NHS SUSSEX ICB - 09D | E71: RXC | F71: EAST SUSSEX HEALTHCARE NHS TRUST | G71: Acute and Acute & Community Trusts | H71: 367 | I71: 8366 | J71: 5.794732062 | K71: 22 | L71: 42 | M71: 103 | N71: 140 | O71: 60 | P71: 37 | Q71: 62 | R71: 120 | S71: 113 | T71: 35 | U71: 27 | V71: 44 | W71: 101 | X71: 163 | Y71: 32
A72: Y59 | B72: SOUTH EAST COMMISSIONING REGION | C72: QU9 | D72: NHS BUCKINGHAMSHIRE, OXFORDSHIRE AND BERKSHIRE WEST ICB - 10Q | E72: RXQ | F72: BUCKINGHAMSHIRE HEALTHCARE NHS TRUST | G72: Acute and Acute & Community Trusts | H72: 821 | I72: 6875 | J72: 6.427121397 | K72: 34 | L72: 57 | M72: 153 | N72: 374 | O72: 203 | P72: 63 | Q72: 94 | R72: 224 | S72: 313 | T72: 127 | U72: 54 | V72: 72 | W72: 226 | X72: 354 | Y72: 115
A73: Y59 | B73: SOUTH EAST COMMISSIONING REGION | C73: QXU | D73: NHS SURREY HEARTLANDS ICB - 92A | E73: RXX | F73: SURREY AND BORDERS PARTNERSHIP NHS FOUNDATION TRUST | G73: Mental Health & Learning Disability and Mental Health, Learning Disability & Community Trusts | H73: 108 | I73: 3314 | J73: 6.442901235 | K73: 5 | L73: 9 | M73: 22 | N73: 37 | O73: 35 | P73: 7 | Q73: 11 | R73: 37 | S73: 32 | T73: 21 | U73: 6 | V73: 12 | W73: 36 | X73: 34 | Y73: 20
A74: Y59 | B74: SOUTH EAST COMMISSIONING REGION | C74: QNX | D74: NHS SUSSEX ICB - 09D | E74: RYD | F74: SOUTH EAST COAST AMBULANCE SERVICE NHS FOUNDATION TRUST | G74: Ambulance Trusts | H74: 574 | I74: 4604 | J74: 5.254065041 | K74: 72 | L74: 74 | M74: 138 | N74: 204 | O74: 86 | P74: 132 | Q74: 119 | R74: 136 | S74: 150 | T74: 37 | U74: 48 | V74: 79 | W74: 148 | X74: 247 | Y74: 52
A75: Y59 | B75: SOUTH EAST COMMISSIONING REGION | C75: QU9 | D75: NHS BUCKINGHAMSHIRE, OXFORDSHIRE AND BERKSHIRE WEST ICB - 10Q | E75: RYE | F75: SOUTH CENTRAL AMBULANCE SERVICE NHS FOUNDATION TRUST | G75: Ambulance Trusts | H75: 262 | I75: 4615 | J75: 5.165394402 | K75: 30 | L75: 51 | M75: 61 | N75: 82 | O75: 38 | P75: 53 | Q75: 56 | R75: 79 | S75: 57 | T75: 17 | U75: 28 | V75: 31 | W75: 65 | X75: 113 | Y75: 25
A76: Y59 | B76: SOUTH EAST COMMISSIONING REGION | C76: QNX | D76: NHS SUSSEX ICB - 09D | E76: RYR | F76: UNIVERSITY HOSPITALS SUSSEX NHS FOUNDATION TRUST | G76: Acute and Acute & Community Trusts | H76: 562 | I76: 16851 | J76: 5.412218268 | K76: 45 | L76: 73 | M76: 131 | N76: 219 | O76: 94 | P76: 79 | Q76: 115 | R76: 189 | S76: 142 | T76: 37 | U76: 49 | V76: 92 | W76: 187 | X76: 187 | Y76: 47
A77: Y59 | B77: SOUTH EAST COMMISSIONING REGION | C77: QKS | D77: NHS KENT AND MEDWAY ICB - 91Q | E77: RYY | F77: KENT COMMUNITY HEALTH NHS FOUNDATION TRUST | G77: Community Trusts | H77: 873 | I77: 5217 | J77: 7.285223368 | K77: 28 | L77: 44 | M77: 113 | N77: 363 | O77: 325 | P77: 58 | Q77: 55 | R77: 180 | S77: 341 | T77: 239 | U77: 29 | V77: 31 | W77: 144 | X77: 416 | Y77: 253
A78: Y60 | B78: MIDLANDS COMMISSIONING REGION | C78: QOC | D78: NHS SHROPSHIRE, TELFORD AND WREKIN ICB - M2L0M | E78: R1D | F78: SHROPSHIRE COMMUNITY HEALTH NHS TRUST | G78: Community Trusts | H78: 10 | I78: 1661 | J78: 4.333333333 | K78: 2 | L78: 2 | M78: 2 | N78: 4 | O78: 0 | P78: 5 | Q78: 1 | R78: 2 | S78: 2 | T78: 0 | U78: 0 | V78: 1 | W78: 5 | X78: 4 | Y78: 0
A79: Y60 | B79: MIDLANDS COMMISSIONING REGION | C79: QUA | D79: NHS BLACK COUNTRY ICB - D2P2L | E79: RBK | F79: WALSALL HEALTHCARE NHS TRUST | G79: Acute and Acute & Community Trusts | H79: 1094 | I79: 5165 | J79: 6.315508836 | K79: 58 | L79: 91 | M79: 188 | N79: 447 | O79: 310 | P79: 93 | Q79: 118 | R79: 308 | S79: 415 | T79: 160 | U79: 62 | V79: 129 | W79: 336 | X79: 445 | Y79: 122
A80: Y60 | B80: MIDLANDS COMMISSIONING REGION | C80: QT1 | D80: NHS NOTTINGHAM AND NOTTINGHAMSHIRE ICB - 52R | E80: RHA | F80: NOTTINGHAMSHIRE HEALTHCARE NHS FOUNDATION TRUST | G80: Mental Health & Learning Disability and Mental Health, Learning Disability & Community Trusts | H80: 793 | I80: 9343 | J80: 6.029844472 | K80: 42 | L80: 75 | M80: 141 | N80: 314 | O80: 221 | P80: 93 | Q80: 136 | R80: 205 | S80: 259 | T80: 104 | U80: 63 | V80: 120 | W80: 235 | X80: 274 | Y80: 101
A81: Y60 | B81: MIDLANDS COMMISSIONING REGION | C81: QWU | D81: NHS COVENTRY AND WARWICKSHIRE ICB - B2M3M | E81: RJC | F81: SOUTH WARWICKSHIRE UNIVERSITY NHS FOUNDATION TRUST | G81: Acute and Acute & Community Trusts | H81: 55 | I81: 5443 | J81: 7.015151515 | K81: 4 | L81: 1 | M81: 7 | N81: 22 | O81: 21 | P81: 6 | Q81: 4 | R81: 12 | S81: 19 | T81: 14 | U81: 2 | V81: 3 | W81: 12 | X81: 22 | Y81: 16
A82: Y60 | B82: MIDLANDS COMMISSIONING REGION | C82: QNC | D82: NHS STAFFORDSHIRE AND STOKE-ON-TRENT ICB - 05W | E82: RJE | F82: UNIVERSITY HOSPITALS OF NORTH MIDLANDS NHS TRUST | G82: Acute and Acute & Community Trusts | H82: 12 | I82: 11957 | J82: 5.625 | K82: 1 | L82: 1 | M82: 2 | N82: 6 | O82: 2 | P82: 2 | Q82: 3 | R82: 3 | S82: 2 | T82: 2 | U82: 2 | V82: 0 | W82: 4 | X82: 5 | Y82: 1
A83: Y60 | B83: MIDLANDS COMMISSIONING REGION | C83: QT1 | D83: NHS NOTTINGHAM AND NOTTINGHAMSHIRE ICB - 52R | E83: RK5 | F83: SHERWOOD FOREST HOSPITALS NHS FOUNDATION TRUST | G83: Acute and Acute & Community Trusts | H83: 747 | I83: 6051 | J83: 7.288041053 | K83: 15 | L83: 53 | M83: 108 | N83: 354 | O83: 217 | P83: 26 | Q83: 57 | R83: 105 | S83: 388 | T83: 173 | U83: 6 | V83: 45 | W83: 102 | X83: 422 | Y83: 174
A84: Y60 | B84: MIDLANDS COMMISSIONING REGION | C84: QWU | D84: NHS COVENTRY AND WARWICKSHIRE ICB - B2M3M | E84: RKB | F84: UNIVERSITY HOSPITALS COVENTRY AND WARWICKSHIRE NHS TRUST | G84: Acute and Acute & Community Trusts | H84: 235 | I84: 9720 | J84: 6.15248227 | K84: 14 | L84: 20 | M84: 54 | N84: 100 | O84: 47 | P84: 32 | Q84: 21 | R84: 63 | S84: 90 | T84: 29 | U84: 21 | V84: 17 | W84: 56 | X84: 107 | Y84: 34
A85: Y60 | B85: MIDLANDS COMMISSIONING REGION | C85: QUA | D85: NHS BLACK COUNTRY ICB - D2P2L | E85: RL4 | F85: THE ROYAL WOLVERHAMPTON NHS TRUST | G85: Acute and Acute & Community Trusts | H85: 459 | I85: 11342 | J85: 6.381626725 | K85: 22 | L85: 44 | M85: 94 | N85: 192 | O85: 107 | P85: 38 | Q85: 63 | R85: 122 | S85: 158 | T85: 78 | U85: 20 | V85: 48 | W85: 114 | X85: 198 | Y85: 79
A86: Y60 | B86: MIDLANDS COMMISSIONING REGION | C86: QGH | D86: NHS HEREFORDSHIRE AND WORCESTERSHIRE ICB - 18C | E86: RLQ | F86: WYE VALLEY NHS TRUST | G86: Acute and Acute & Community Trusts | H86: 28 | I86: 3981 | J86: 6.398809524 | K86: 0 | L86: 1 | M86: 5 | N86: 16 | O86: 6 | P86: 0 | Q86: 3 | R86: 14 | S86: 7 | T86: 4 | U86: 0 | V86: 6 | W86: 10 | X86: 10 | Y86: 2
A87: Y60 | B87: MIDLANDS COMMISSIONING REGION | C87: QWU | D87: NHS COVENTRY AND WARWICKSHIRE ICB - B2M3M | E87: RLT | F87: GEORGE ELIOT HOSPITAL NHS TRUST | G87: Acute and Acute & Community Trusts | H87: 54 | I87: 2924 | J87: 6.203703704 | K87: 1 | L87: 9 | M87: 5 | N87: 26 | O87: 13 | P87: 7 | Q87: 6 | R87: 13 | S87: 21 | T87: 7 | U87: 6 | V87: 5 | W87: 12 | X87: 23 | Y87: 8
A88: Y60 | B88: MIDLANDS COMMISSIONING REGION | C88: QNC | D88: NHS STAFFORDSHIRE AND STOKE-ON-TRENT ICB - 05W | E88: RLY | F88: NORTH STAFFORDSHIRE COMBINED HEALTHCARE NHS TRUST | G88: Mental Health & Learning Disability and Mental Health, Learning Disability & Community Trusts | H88: 87 | I88: 1792 | J88: 6.465517241 | K88: 6 | L88: 8 | M88: 11 | N88: 39 | O88: 23 | P88: 8 | Q88: 8 | R88: 23 | S88: 25 | T88: 23 | U88: 4 | V88: 14 | W88: 25 | X88: 25 | Y88: 19
A89: Y60 | B89: MIDLANDS COMMISSIONING REGION | C89: QUA | D89: NHS BLACK COUNTRY ICB - D2P2L | E89: RNA | F89: THE DUDLEY GROUP NHS FOUNDATION TRUST | G89: Acute and Acute & Community Trusts | H89: 381 | I89: 6133 | J89: 6.237970254 | K89: 17 | L89: 40 | M89: 70 | N89: 159 | O89: 95 | P89: 35 | Q89: 44 | R89: 111 | S89: 134 | T89: 57 | U89: 27 | V89: 44 | W89: 108 | X89: 149 | Y89: 53
A90: Y60 | B90: MIDLANDS COMMISSIONING REGION | C90: QPM | D90: NHS NORTHAMPTONSHIRE ICB - 78H | E90: RNQ | F90: KETTERING GENERAL HOSPITAL NHS FOUNDATION TRUST | G90: Acute and Acute & Community Trusts | H90: 445 | I90: 4820 | J90: 5.45505618 | K90: 31 | L90: 74 | M90: 95 | N90: 168 | O90: 77 | P90: 66 | Q90: 74 | R90: 131 | S90: 132 | T90: 42 | U90: 56 | V90: 74 | W90: 121 | X90: 155 | Y90: 39
A91: Y60 | B91: MIDLANDS COMMISSIONING REGION | C91: QPM | D91: NHS NORTHAMPTONSHIRE ICB - 78H | E91: RNS | F91: NORTHAMPTON GENERAL HOSPITAL NHS TRUST | G91: Acute and Acute & Community Trusts | H91: 446 | I91: 5856 | J91: 5.795964126 | K91: 27 | L91: 50 | M91: 101 | N91: 178 | O91: 90 | P91: 57 | Q91: 74 | R91: 124 | S91: 142 | T91: 49 | U91: 46 | V91: 64 | W91: 109 | X91: 178 | Y91: 49
A92: Y60 | B92: MIDLANDS COMMISSIONING REGION | C92: QPM | D92: NHS NORTHAMPTONSHIRE ICB - 78H | E92: RP1 | F92: NORTHAMPTONSHIRE HEALTHCARE NHS FOUNDATION TRUST | G92: Mental Health & Learning Disability and Mental Health, Learning Disability & Community Trusts | H92: 1834 | I92: 4849 | J92: 7.472282806 | K92: 15 | L92: 68 | M92: 215 | N92: 825 | O92: 712 | P92: 44 | Q92: 136 | R92: 355 | S92: 798 | T92: 501 | U92: 25 | V92: 96 | W92: 383 | X92: 818 | Y92: 516
A93: Y60 | B93: MIDLANDS COMMISSIONING REGION | C93: QJM | D93: NHS LINCOLNSHIRE ICB - 71E | E93: RP7 | F93: LINCOLNSHIRE PARTNERSHIP NHS FOUNDATION TRUST | G93: Mental Health & Learning Disability and Mental Health, Learning Disability & Community Trusts | H93: 946 | I93: 2733 | J93: 7.469168428 | K93: 14 | L93: 41 | M93: 116 | N93: 387 | O93: 388 | P93: 24 | Q93: 54 | R93: 160 | S93: 401 | T93: 308 | U93: 29 | V93: 63 | W93: 197 | X93: 405 | Y93: 253
A94: Y60 | B94: MIDLANDS COMMISSIONING REGION | C94: QHL | D94: NHS BIRMINGHAM AND SOLIHULL ICB - 15E | E94: RQ3 | F94: BIRMINGHAM WOMEN'S AND CHILDREN'S NHS FOUNDATION TRUST | G94: Acute and Acute & Community Trusts | H94: 49 | I94: 6407 | J94: 6.411564626 | K94: 2 | L94: 7 | M94: 13 | N94: 15 | O94: 12 | P94: 4 | Q94: 8 | R94: 14 | S94: 14 | T94: 9 | U94: 1 | V94: 3 | W94: 13 | X94: 20 | Y94: 12
A95: Y60 | B95: MIDLANDS COMMISSIONING REGION | C95: QNC | D95: NHS STAFFORDSHIRE AND STOKE-ON-TRENT ICB - 05W | E95: RRE | F95: MIDLANDS PARTNERSHIP NHS FOUNDATION TRUST | G95: Mental Health & Learning Disability and Mental Health, Learning Disability & Community Trusts | H95: 255 | I95: 10018 | J95: 7.803921569 | K95: 3 | L95: 7 | M95: 29 | N95: 91 | O95: 125 | P95: 5 | Q95: 17 | R95: 41 | S95: 93 | T95: 99 | U95: 3 | V95: 16 | W95: 38 | X95: 108 | Y95: 90
A96: Y60 | B96: MIDLANDS COMMISSIONING REGION | C96: QHL | D96: NHS BIRMINGHAM AND SOLIHULL ICB - 15E | E96: RRJ | F96: THE ROYAL ORTHOPAEDIC HOSPITAL NHS FOUNDATION TRUST | G96: Acute Specialist Trusts | H96: 225 | I96: 1330 | J96: 7.740740741 | K96: 7 | L96: 8 | M96: 29 | N96: 94 | O96: 87 | P96: 6 | Q96: 15 | R96: 35 | S96: 96 | T96: 73 | U96: 4 | V96: 2 | W96: 26 | X96: 97 | Y96: 96
A97: Y60 | B97: MIDLANDS COMMISSIONING REGION | C97: QHL | D97: NHS BIRMINGHAM AND SOLIHULL ICB - 15E | E97: RRK | F97: UNIVERSITY HOSPITALS BIRMINGHAM NHS FOUNDATION TRUST | G97: Acute and Acute & Community Trusts | H97: 562 | I97: 23861 | J97: 5.496737841 | K97: 43 | L97: 74 | M97: 132 | N97: 227 | O97: 86 | P97: 75 | Q97: 134 | R97: 158 | S97: 149 | T97: 46 | U97: 47 | V97: 91 | W97: 159 | X97: 206 | Y97: 59
A98: Y60 | B98: MIDLANDS COMMISSIONING REGION | C98: QK1 | D98: NHS LEICESTER, LEICESTERSHIRE AND RUTLAND ICB - 03W | E98: RT5 | F98: LEICESTERSHIRE PARTNERSHIP NHS TRUST | G98: Mental Health & Learning Disability and Mental Health, Learning Disability & Community Trusts | H98: 340 | I98: 6305 | J98: 6.419117647 | K98: 18 | L98: 29 | M98: 61 | N98: 127 | O98: 105 | P98: 32 | Q98: 31 | R98: 96 | S98: 122 | T98: 59 | U98: 21 | V98: 33 | W98: 100 | X98: 135 | Y98: 51
A99: Y60 | B99: MIDLANDS COMMISSIONING REGION | C99: QJ2 | D99: NHS DERBY AND DERBYSHIRE ICB - 15M | E99: RTG | F99: UNIVERSITY HOSPITALS OF DERBY AND BURTON NHS FOUNDATION TRUST | G99: Acute and Acute & Community Trusts | H99: 1425 | I99: 14404 | J99: 6.467836257 | K99: 55 | L99: 122 | M99: 243 | N99: 737 | O99: 268 | P99: 83 | Q99: 188 | R99: 365 | S99: 620 | T99: 169 | U99: 37 | V99: 120 | W99: 369 | X99: 739 | Y99: 160
A100: Y60 | B100: MIDLANDS COMMISSIONING REGION | C100: QJM | D100: NHS LINCOLNSHIRE ICB - 71E | E100: RWD | F100: UNITED LINCOLNSHIRE HOSPITALS NHS TRUST | G100: Acute and Acute & Community Trusts | H100: 2209 | I100: 9295 | J100: 6.092500377 | K100: 83 | L100: 225 | M100: 446 | N100: 889 | O100: 566 | P100: 190 | Q100: 314 | R100: 653 | S100: 765 | T100: 295 | U100: 190 | V100: 304 | W100: 703 | X100: 771 | Y100: 246
A101: Y60 | B101: MIDLANDS COMMISSIONING REGION | C101: QGH | D101: NHS HEREFORDSHIRE AND WORCESTERSHIRE ICB - 18C | E101: RWP | F101: WORCESTERSHIRE ACUTE HOSPITALS NHS TRUST | G101: Acute and Acute & Community Trusts | H101: 1210 | I101: 7109 | J101: 6.38292011 | K101: 31 | L101: 122 | M101: 213 | N101: 542 | O101: 302 | P101: 73 | Q101: 162 | R101: 338 | S101: 485 | T101: 154 | U101: 52 | V101: 153 | W101: 341 | X101: 518 | Y101: 147
A102: Y60 | B102: MIDLANDS COMMISSIONING REGION | C102: QT1 | D102: NHS NOTTINGHAM AND NOTTINGHAMSHIRE ICB - 52R | E102: RX1 | F102: NOTTINGHAM UNIVERSITY HOSPITALS NHS TRUST | G102: Acute and Acute & Community Trusts | H102: 2117 | I102: 19481 | J102: 6.382853094 | K102: 65 | L102: 193 | M102: 445 | N102: 843 | O102: 571 | P102: 150 | Q102: 345 | R102: 563 | S102: 804 | T102: 255 | U102: 73 | V102: 237 | W102: 534 | X102: 981 | Y102: 292
A103: Y60 | B103: MIDLANDS COMMISSIONING REGION | C103: QT1 | D103: NHS NOTTINGHAM AND NOTTINGHAMSHIRE ICB - 52R | E103: RX9 | F103: EAST MIDLANDS AMBULANCE SERVICE NHS TRUST | G103: Ambulance Trusts | H103: 326 | I103: 4234 | J103: 5.552147239 | K103: 48 | L103: 58 | M103: 62 | N103: 99 | O103: 59 | P103: 49 | Q103: 62 | R103: 83 | S103: 90 | T103: 42 | U103: 25 | V103: 38 | W103: 81 | X103: 137 | Y103: 45
A104: Y60 | B104: MIDLANDS COMMISSIONING REGION | C104: QHL | D104: NHS BIRMINGHAM AND SOLIHULL ICB - 15E | E104: RXK | F104: SANDWELL AND WEST BIRMINGHAM HOSPITALS NHS TRUST | G104: Acute and Acute & Community Trusts | H104: 3203 | I104: 7631 | J104: 6.792069934 | K104: 93 | L104: 217 | M104: 542 | N104: 1440 | O104: 929 | P104: 151 | Q104: 293 | R104: 775 | S104: 1335 | T104: 649 | U104: 142 | V104: 273 | W104: 892 | X104: 1332 | Y104: 568
A105: Y60 | B105: MIDLANDS COMMISSIONING REGION | C105: QJ2 | D105: NHS DERBY AND DERBYSHIRE ICB - 15M | E105: RXM | F105: DERBYSHIRE HEALTHCARE NHS FOUNDATION TRUST | G105: Mental Health & Learning Disability and Mental Health, Learning Disability & Community Trusts | H105: 876 | I105: 3199 | J105: 7.085235921 | K105: 13 | L105: 56 | M105: 125 | N105: 409 | O105: 274 | P105: 21 | Q105: 71 | R105: 185 | S105: 410 | T105: 189 | U105: 22 | V105: 62 | W105: 215 | X105: 412 | Y105: 166
A106: Y60 | B106: MIDLANDS COMMISSIONING REGION | C106: QHL | D106: NHS BIRMINGHAM AND SOLIHULL ICB - 15E | E106: RXT | F106: BIRMINGHAM AND SOLIHULL MENTAL HEALTH NHS FOUNDATION TRUST | G106: Mental Health & Learning Disability and Mental Health, Learning Disability & Community Trusts | H106: 218 | I106: 4840 | J106: 5.573394495 | K106: 14 | L106: 21 | M106: 56 | N106: 76 | O106: 51 | P106: 21 | Q106: 44 | R106: 76 | S106: 58 | T106: 19 | U106: 22 | V106: 45 | W106: 73 | X106: 56 | Y106: 22
A107: Y60 | B107: MIDLANDS COMMISSIONING REGION | C107: QOC | D107: NHS SHROPSHIRE, TELFORD AND WREKIN ICB - M2L0M | E107: RXW | F107: THE SHREWSBURY AND TELFORD HOSPITAL NHS TRUST | G107: Acute and Acute & Community Trusts | H107: 903 | I107: 7779 | J107: 5.635843485 | K107: 53 | L107: 105 | M107: 233 | N107: 325 | O107: 187 | P107: 104 | Q107: 142 | R107: 287 | S107: 271 | T107: 99 | U107: 102 | V107: 162 | W107: 286 | X107: 258 | Y107: 95
A108: Y60 | B108: MIDLANDS COMMISSIONING REGION | C108: QJM | D108: NHS LINCOLNSHIRE ICB - 71E | E108: RY5 | F108: LINCOLNSHIRE COMMUNITY HEALTH SERVICES NHS TRUST | G108: Community Trusts | H108: 760 | I108: 2420 | J108: 7.234649123 | K108: 13 | L108: 44 | M108: 107 | N108: 342 | O108: 255 | P108: 25 | Q108: 76 | R108: 175 | S108: 317 | T108: 167 | U108: 12 | V108: 42 | W108: 133 | X108: 359 | Y108: 216
A109: Y60 | B109: MIDLANDS COMMISSIONING REGION | C109: QJ2 | D109: NHS DERBY AND DERBYSHIRE ICB - 15M | E109: RY8 | F109: DERBYSHIRE COMMUNITY HEALTH SERVICES NHS FOUNDATION TRUST | G109: Community Trusts | H109: 748 | I109: 4410 | J109: 7.711675579 | K109: 8 | L109: 28 | M109: 95 | N109: 333 | O109: 288 | P109: 26 | Q109: 39 | R109: 130 | S109: 320 | T109: 234 | U109: 11 | V109: 22 | W109: 81 | X109: 362 | Y109: 272
A110: Y60 | B110: MIDLANDS COMMISSIONING REGION | C110: QUA | D110: NHS BLACK COUNTRY ICB - D2P2L | E110: RYA | F110: WEST MIDLANDS AMBULANCE SERVICE UNIVERSITY NHS FOUNDATION TRUST | G110: Ambulance Trusts | H110: 510 | I110: 6661 | J110: 4.72875817 | K110: 100 | L110: 101 | M110: 107 | N110: 133 | O110: 69 | P110: 119 | Q110: 120 | R110: 124 | S110: 115 | T110: 32 | U110: 55 | V110: 91 | W110: 163 | X110: 158 | Y110: 43
A111: Y60 | B111: MIDLANDS COMMISSIONING REGION | C111: QWU | D111: NHS COVENTRY AND WARWICKSHIRE ICB - B2M3M | E111: RYG | F111: COVENTRY AND WARWICKSHIRE PARTNERSHIP NHS TRUST | G111: Mental Health & Learning Disability and Mental Health, Learning Disability & Community Trusts | H111: 335 | I111: 4289 | J111: 5.888059701 | K111: 22 | L111: 36 | M111: 80 | N111: 125 | O111: 72 | P111: 41 | Q111: 54 | R111: 89 | S111: 107 | T111: 44 | U111: 25 | V111: 37 | W111: 116 | X111: 118 | Y111: 39
A112: Y60 | B112: MIDLANDS COMMISSIONING REGION | C112: QUA | D112: NHS BLACK COUNTRY ICB - D2P2L | E112: RYK | F112: DUDLEY INTEGRATED HEALTH AND CARE NHS TRUST | G112: Community Trusts | H112: 36 | I112: 478 | J112: 6.064814815 | K112: 0 | L112: 5 | M112: 10 | N112: 11 | O112: 10 | P112: 2 | Q112: 5 | R112: 16 | S112: 11 | T112: 2 | U112: 2 | V112: 1 | W112: 17 | X112: 13 | Y112: 3
A113: Y60 | B113: MIDLANDS COMMISSIONING REGION | C113: QHL | D113: NHS BIRMINGHAM AND SOLIHULL ICB - 15E | E113: RYW | F113: BIRMINGHAM COMMUNITY HEALTHCARE NHS FOUNDATION TRUST | G113: Community Trusts | H113: 107 | I113: 5198 | J113: 6.643302181 | K113: 4 | L113: 8 | M113: 20 | N113: 49 | O113: 26 | P113: 6 | Q113: 15 | R113: 28 | S113: 43 | T113: 15 | U113: 2 | V113: 7 | W113: 27 | X113: 51 | Y113: 20
A114: Y60 | B114: MIDLANDS COMMISSIONING REGION | C114: QUA | D114: NHS BLACK COUNTRY ICB - D2P2L | E114: TAJ | F114: BLACK COUNTRY HEALTHCARE NHS FOUNDATION TRUST | G114: Mental Health & Learning Disability and Mental Health, Learning Disability & Community Trusts | H114: 522 | I114: 3956 | J114: 5.603448276 | K114: 38 | L114: 67 | M114: 121 | N114: 187 | O114: 109 | P114: 67 | Q114: 94 | R114: 150 | S114: 149 | T114: 62 | U114: 61 | V114: 76 | W114: 173 | X114: 155 | Y114: 57
A115: Y61 | B115: EAST OF ENGLAND COMMISSIONING REGION | C115: QH8 | D115: NHS MID AND SOUTH ESSEX ICB - 06Q | E115: R1L | F115: ESSEX PARTNERSHIP UNIVERSITY NHS FOUNDATION TRUST | G115: Mental Health & Learning Disability and Mental Health, Learning Disability & Community Trusts | H115: 527 | I115: 6557 | J115: 5.882352941 | K115: 24 | L115: 46 | M115: 125 | N115: 206 | O115: 126 | P115: 49 | Q115: 92 | R115: 159 | S115: 164 | T115: 63 | U115: 56 | V115: 82 | W115: 163 | X115: 164 | Y115: 62
A116: Y61 | B116: EAST OF ENGLAND COMMISSIONING REGION | C116: QMM | D116: NHS NORFOLK AND WAVENEY ICB - 26A | E116: RCX | F116: THE QUEEN ELIZABETH HOSPITAL, KING'S LYNN, NHS FOUNDATION TRUST | G116: Acute and Acute & Community Trusts | H116: 313 | I116: 3941 | J116: 5.447284345 | K116: 25 | L116: 47 | M116: 65 | N116: 116 | O116: 60 | P116: 55 | Q116: 46 | R116: 86 | S116: 85 | T116: 41 | U116: 41 | V116: 59 | W116: 86 | X116: 95 | Y116: 32
A117: Y61 | B117: EAST OF ENGLAND COMMISSIONING REGION | C117: QHG | D117: NHS BEDFORDSHIRE, LUTON AND MILTON KEYNES ICB - M1J4Y | E117: RD8 | F117: MILTON KEYNES UNIVERSITY HOSPITAL NHS FOUNDATION TRUST | G117: Acute and Acute & Community Trusts | H117: 92 | I117: 4192 | J117: 5.960144928 | K117: 6 | L117: 11 | M117: 18 | N117: 37 | O117: 20 | P117: 9 | Q117: 17 | R117: 26 | S117: 29 | T117: 11 | U117: 4 | V117: 12 | W117: 28 | X117: 40 | Y117: 8
A118: Y61 | B118: EAST OF ENGLAND COMMISSIONING REGION | C118: QUE | D118: NHS CAMBRIDGESHIRE AND PETERBOROUGH ICB - 06H | E118: RGN | F118: NORTH WEST ANGLIA NHS FOUNDATION TRUST | G118: Acute and Acute & Community Trusts | H118: 133 | I118: 7330 | J118: 5.789473684 | K118: 6 | L118: 15 | M118: 30 | N118: 52 | O118: 30 | P118: 17 | Q118: 21 | R118: 40 | S118: 44 | T118: 11 | U118: 12 | V118: 17 | W118: 46 | X118: 45 | Y118: 13
A119: Y61 | B119: EAST OF ENGLAND COMMISSIONING REGION | C119: QJG | D119: NHS SUFFOLK AND NORTH EAST ESSEX ICB - 07K | E119: RGR | F119: WEST SUFFOLK NHS FOUNDATION TRUST | G119: Acute and Acute & Community Trusts | H119: 1438 | I119: 5267 | J119: 7.070004636 | K119: 25 | L119: 81 | M119: 225 | N119: 696 | O119: 413 | P119: 48 | Q119: 131 | R119: 322 | S119: 663 | T119: 276 | U119: 31 | V119: 96 | W119: 289 | X119: 701 | Y119: 321
A120: Y61 | B120: EAST OF ENGLAND COMMISSIONING REGION | C120: QUE | D120: NHS CAMBRIDGESHIRE AND PETERBOROUGH ICB - 06H | E120: RGT | F120: CAMBRIDGE UNIVERSITY HOSPITALS NHS FOUNDATION TRUST | G120: Acute and Acute & Community Trusts | H120: 2880 | I120: 12276 | J120: 7.300347222 | K120: 58 | L120: 142 | M120: 359 | N120: 1388 | O120: 933 | P120: 117 | Q120: 242 | R120: 593 | S120: 1296 | T120: 638 | U120: 59 | V120: 149 | W120: 407 | X120: 1425 | Y120: 842
A121: Y61 | B121: EAST OF ENGLAND COMMISSIONING REGION | C121: QMM | D121: NHS NORFOLK AND WAVENEY ICB - 26A | E121: RM1 | F121: NORFOLK AND NORWICH UNIVERSITY HOSPITALS NHS FOUNDATION TRUST | G121: Acute and Acute & Community Trusts | H121: 388 | I121: 9383 | J121: 5.814003436 | K121: 26 | L121: 53 | M121: 88 | N121: 148 | O121: 73 | P121: 42 | Q121: 75 | R121: 111 | S121: 122 | T121: 38 | U121: 27 | V121: 45 | W121: 108 | X121: 166 | Y121: 42
A122: Y61 | B122: EAST OF ENGLAND COMMISSIONING REGION | C122: QMM | D122: NHS NORFOLK AND WAVENEY ICB - 26A | E122: RMY | F122: NORFOLK AND SUFFOLK NHS FOUNDATION TRUST | G122: Mental Health & Learning Disability and Mental Health, Learning Disability & Community Trusts | H122: 22 | I122: 5055 | J122: 4.772727273 | K122: 4 | L122: 2 | M122: 5 | N122: 8 | O122: 3 | P122: 8 | Q122: 2 | R122: 4 | S122: 6 | T122: 2 | U122: 6 | V122: 3 | W122: 4 | X122: 5 | Y122: 4
A123: Y61 | B123: EAST OF ENGLAND COMMISSIONING REGION | C123: QM7 | D123: NHS HERTFORDSHIRE AND WEST ESSEX ICB - 07H | E123: RQW | F123: THE PRINCESS ALEXANDRA HOSPITAL NHS TRUST | G123: Acute and Acute & Community Trusts | H123: 103 | I123: 3990 | J123: 5.177993528 | K123: 10 | L123: 14 | M123: 22 | N123: 40 | O123: 17 | P123: 18 | Q123: 21 | R123: 28 | S123: 27 | T123: 9 | U123: 13 | V123: 18 | W123: 42 | X123: 22 | Y123: 8
A124: Y61 | B124: EAST OF ENGLAND COMMISSIONING REGION | C124: QUE | D124: NHS CAMBRIDGESHIRE AND PETERBOROUGH ICB - 06H | E124: RT1 | F124: CAMBRIDGESHIRE AND PETERBOROUGH NHS FOUNDATION TRUST | G124: Mental Health & Learning Disability and Mental Health, Learning Disability & Community Trusts | H124: 2429 | I124: 4789 | J124: 7.412858515 | K124: 24 | L124: 90 | M124: 345 | N124: 974 | O124: 996 | P124: 83 | Q124: 153 | R124: 558 | S124: 977 | T124: 658 | U124: 57 | V124: 117 | W124: 495 | X124: 1058 | Y124: 702
A125: Y61 | B125: EAST OF ENGLAND COMMISSIONING REGION | C125: QM7 | D125: NHS HERTFORDSHIRE AND WEST ESSEX ICB - 07H | E125: RWG | F125: WEST HERTFORDSHIRE TEACHING HOSPITALS NHS TRUST | G125: Acute and Acute & Community Trusts | H125: 486 | I125: 5589 | J125: 5.332647462 | K125: 41 | L125: 68 | M125: 102 | N125: 201 | O125: 74 | P125: 66 | Q125: 91 | R125: 146 | S125: 152 | T125: 31 | U125: 59 | V125: 81 | W125: 167 | X125: 155 | Y125: 24
A126: Y61 | B126: EAST OF ENGLAND COMMISSIONING REGION | C126: QM7 | D126: NHS HERTFORDSHIRE AND WEST ESSEX ICB - 07H | E126: RWR | F126: HERTFORDSHIRE PARTNERSHIP UNIVERSITY NHS FOUNDATION TRUST | G126: Mental Health & Learning Disability and Mental Health, Learning Disability & Community Trusts | H126: 945 | I126: 4182 | J126: 7.492945326 | K126: 12 | L126: 32 | M126: 103 | N126: 381 | O126: 417 | P126: 29 | Q126: 77 | R126: 172 | S126: 363 | T126: 307 | U126: 20 | V126: 67 | W126: 195 | X126: 411 | Y126: 255
A127: Y61 | B127: EAST OF ENGLAND COMMISSIONING REGION | C127: QMM | D127: NHS NORFOLK AND WAVENEY ICB - 26A | E127: RY3 | F127: NORFOLK COMMUNITY HEALTH AND CARE NHS TRUST | G127: Community Trusts | H127: 510 | I127: 2474 | J127: 7.454248366 | K127: 11 | L127: 22 | M127: 71 | N127: 223 | O127: 183 | P127: 18 | Q127: 25 | R127: 105 | S127: 201 | T127: 161 | U127: 12 | V127: 31 | W127: 76 | X127: 232 | Y127: 159
A128: Y61 | B128: EAST OF ENGLAND COMMISSIONING REGION | C128: QM7 | D128: NHS HERTFORDSHIRE AND WEST ESSEX ICB - 07H | E128: RY4 | F128: HERTFORDSHIRE COMMUNITY NHS TRUST | G128: Community Trusts | H128: 264 | I128: 2422 | J128: 7.307449495 | K128: 7 | L128: 14 | M128: 33 | N128: 107 | O128: 103 | P128: 15 | Q128: 26 | R128: 45 | S128: 98 | T128: 80 | U128: 12 | V128: 7 | W128: 53 | X128: 109 | Y128: 83
A129: Y61 | B129: EAST OF ENGLAND COMMISSIONING REGION | C129: QUE | D129: NHS CAMBRIDGESHIRE AND PETERBOROUGH ICB - 06H | E129: RYC | F129: EAST OF ENGLAND AMBULANCE SERVICE NHS TRUST | G129: Ambulance Trusts | H129: 1451 | I129: 6007 | J129: 5.971169309 | K129: 84 | L129: 193 | M129: 272 | N129: 608 | O129: 294 | P129: 186 | Q129: 285 | R129: 377 | S129: 467 | T129: 139 | U129: 83 | V129: 166 | W129: 345 | X129: 632 | Y129: 228
A130: Y61 | B130: EAST OF ENGLAND COMMISSIONING REGION | C130: QUE | D130: NHS CAMBRIDGESHIRE AND PETERBOROUGH ICB - 06H | E130: RYV | F130: CAMBRIDGESHIRE COMMUNITY SERVICES NHS TRUST | G130: Community Trusts | H130: 41 | I130: 2637 | J130: 7.134146341 | K130: 1 | L130: 5 | M130: 2 | N130: 22 | O130: 11 | P130: 3 | Q130: 2 | R130: 9 | S130: 17 | T130: 10 | U130: 0 | V130: 3 | W130: 6 | X130: 22 | Y130: 10
A131: Y62 | B131: NORTH WEST COMMISSIONING REGION | C131: QOP | D131: NHS GREATER MANCHESTER ICB - 00T | E131: R0A | F131: MANCHESTER UNIVERSITY NHS FOUNDATION TRUST | G131: Acute and Acute & Community Trusts | H131: 3372 | I131: 29187 | J131: 6.527283511 | K131: 144 | L131: 311 | M131: 616 | N131: 1409 | O131: 909 | P131: 248 | Q131: 459 | R131: 859 | S131: 1235 | T131: 577 | U131: 157 | V131: 328 | W131: 785 | X131: 1490 | Y131: 612
A132: Y62 | B132: NORTH WEST COMMISSIONING REGION | C132: QYG | D132: NHS CHESHIRE AND MERSEYSIDE ICB - 01J | E132: RBL | F132: WIRRAL UNIVERSITY TEACHING HOSPITAL NHS FOUNDATION TRUST | G132: Acute and Acute & Community Trusts | H132: 748 | I132: 6784 | J132: 6.076203209 | K132: 60 | L132: 84 | M132: 140 | N132: 295 | O132: 169 | P132: 89 | Q132: 99 | R132: 208 | S132: 257 | T132: 95 | U132: 43 | V132: 93 | W132: 178 | X132: 322 | Y132: 112
A133: Y62 | B133: NORTH WEST COMMISSIONING REGION | C133: QYG | D133: NHS CHESHIRE AND MERSEYSIDE ICB - 01J | E133: RBN | F133: MERSEY AND WEST LANCASHIRE TEACHING HOSPITALS NHS TRUST | G133: Acute and Acute & Community Trusts | H133: 196 | I133: 10855 | J133: 6.386054422 | K133: 11 | L133: 21 | M133: 37 | N133: 66 | O133: 61 | P133: 21 | Q133: 36 | R133: 44 | S133: 55 | T133: 40 | U133: 11 | V133: 24 | W133: 42 | X133: 68 | Y133: 51
A134: Y62 | B134: NORTH WEST COMMISSIONING REGION | C134: QYG | D134: NHS CHESHIRE AND MERSEYSIDE ICB - 01J | E134: RBQ | F134: LIVERPOOL HEART AND CHEST HOSPITAL NHS FOUNDATION TRUST | G134: Acute Specialist Trusts | H134: 166 | I134: 1952 | J134: 8.077309237 | K134: 6 | L134: 5 | M134: 8 | N134: 66 | O134: 81 | P134: 7 | Q134: 11 | R134: 26 | S134: 51 | T134: 71 | U134: 3 | V134: 4 | W134: 8 | X134: 58 | Y134: 93
A135: Y62 | B135: NORTH WEST COMMISSIONING REGION | C135: QYG | D135: NHS CHESHIRE AND MERSEYSIDE ICB - 01J | E135: RBT | F135: MID CHESHIRE HOSPITALS NHS FOUNDATION TRUST | G135: Acute and Acute & Community Trusts | H135: 807 | I135: 5629 | J135: 6.907269723 | K135: 29 | L135: 45 | M135: 125 | N135: 352 | O135: 256 | P135: 44 | Q135: 72 | R135: 212 | S135: 313 | T135: 166 | U135: 27 | V135: 52 | W135: 185 | X135: 379 | Y135: 164
A136: Y62 | B136: NORTH WEST COMMISSIONING REGION | C136: QOP | D136: NHS GREATER MANCHESTER ICB - 00T | E136: RBV | F136: THE CHRISTIE NHS FOUNDATION TRUST | G136: Acute Specialist Trusts | H136: 112 | I136: 3633 | J136: 7.44047619 | K136: 1 | L136: 7 | M136: 15 | N136: 51 | O136: 38 | P136: 9 | Q136: 11 | R136: 16 | S136: 52 | T136: 24 | U136: 1 | V136: 5 | W136: 12 | X136: 42 | Y136: 52
A137: Y62 | B137: NORTH WEST COMMISSIONING REGION | C137: QYG | D137: NHS CHESHIRE AND MERSEYSIDE ICB - 01J | E137: REM | F137: LIVERPOOL UNIVERSITY HOSPITALS NHS FOUNDATION TRUST | G137: Acute and Acute & Community Trusts | H137: 1341 | I137: 15194 | J137: 5.979990057 | K137: 106 | L137: 124 | M137: 291 | N137: 520 | O137: 300 | P137: 194 | Q137: 192 | R137: 400 | S137: 388 | T137: 167 | U137: 101 | V137: 116 | W137: 370 | X137: 539 | Y137: 215
A138: Y62 | B138: NORTH WEST COMMISSIONING REGION | C138: QYG | D138: NHS CHESHIRE AND MERSEYSIDE ICB - 01J | E138: REN | F138: THE CLATTERBRIDGE CANCER CENTRE NHS FOUNDATION TRUST | G138: Acute Specialist Trusts | H138: 547 | I138: 1840 | J138: 7.953991469 | K138: 1 | L138: 22 | M138: 54 | N138: 213 | O138: 257 | P138: 17 | Q138: 28 | R138: 101 | S138: 230 | T138: 171 | U138: 1 | V138: 13 | W138: 42 | X138: 241 | Y138: 250
A139: Y62 | B139: NORTH WEST COMMISSIONING REGION | C139: QYG | D139: NHS CHESHIRE AND MERSEYSIDE ICB - 01J | E139: REP | F139: LIVERPOOL WOMEN'S NHS FOUNDATION TRUST | G139: Acute Specialist Trusts | H139: 82 | I139: 1803 | J139: 6.849593496 | K139: 3 | L139: 5 | M139: 15 | N139: 31 | O139: 28 | P139: 8 | Q139: 13 | R139: 18 | S139: 22 | T139: 21 | U139: 4 | V139: 2 | W139: 17 | X139: 37 | Y139: 22
A140: Y62 | B140: NORTH WEST COMMISSIONING REGION | C140: QYG | D140: NHS CHESHIRE AND MERSEYSIDE ICB - 01J | E140: RET | F140: THE WALTON CENTRE NHS FOUNDATION TRUST | G140: Acute Specialist Trusts | H140: 104 | I140: 1573 | J140: 7.692307692 | K140: 1 | L140: 2 | M140: 16 | N140: 44 | O140: 41 | P140: 5 | Q140: 9 | R140: 20 | S140: 41 | T140: 29 | U140: 1 | V140: 1 | W140: 15 | X140: 37 | Y140: 50
A141: Y62 | B141: NORTH WEST COMMISSIONING REGION | C141: QYG | D141: NHS CHESHIRE AND MERSEYSIDE ICB - 01J | E141: RJN | F141: EAST CHESHIRE NHS TRUST | G141: Acute and Acute & Community Trusts | H141: 39 | I141: 2753 | J141: 6.388888889 | K141: 1 | L141: 3 | M141: 7 | N141: 18 | O141: 10 | P141: 4 | Q141: 4 | R141: 15 | S141: 11 | T141: 5 | U141: 1 | V141: 4 | W141: 14 | X141: 11 | Y141: 9
A142: Y62 | B142: NORTH WEST COMMISSIONING REGION | C142: QYG | D142: NHS CHESHIRE AND MERSEYSIDE ICB - 01J | E142: RJR | F142: COUNTESS OF CHESTER HOSPITAL NHS FOUNDATION TRUST | G142: Acute and Acute & Community Trusts | H142: 87 | I142: 4968 | J142: 5.191570881 | K142: 9 | L142: 13 | M142: 22 | N142: 29 | O142: 14 | P142: 16 | Q142: 17 | R142: 25 | S142: 24 | T142: 5 | U142: 9 | V142: 14 | W142: 28 | X142: 31 | Y142: 5
A143: Y62 | B143: NORTH WEST COMMISSIONING REGION | C143: QOP | D143: NHS GREATER MANCHESTER ICB - 00T | E143: RM3 | F143: NORTHERN CARE ALLIANCE NHS FOUNDATION TRUST | G143: Acute and Acute & Community Trusts | H143: 1514 | I143: 20832 | J143: 5.768383972 | K143: 125 | L143: 196 | M143: 330 | N143: 560 | O143: 303 | P143: 230 | Q143: 240 | R143: 418 | S143: 455 | T143: 171 | U143: 107 | V143: 182 | W143: 451 | X143: 573 | Y143: 201
A144: Y62 | B144: NORTH WEST COMMISSIONING REGION | C144: QOP | D144: NHS GREATER MANCHESTER ICB - 00T | E144: RMC | F144: BOLTON NHS FOUNDATION TRUST | G144: Acute and Acute & Community Trusts | H144: 149 | I144: 6800 | J144: 5.81655481 | K144: 11 | L144: 17 | M144: 27 | N144: 60 | O144: 34 | P144: 27 | Q144: 17 | R144: 40 | S144: 46 | T144: 19 | U144: 19 | V144: 15 | W144: 44 | X144: 45 | Y144: 26
A145: Y62 | B145: NORTH WEST COMMISSIONING REGION | C145: QOP | D145: NHS GREATER MANCHESTER ICB - 00T | E145: RMP | F145: TAMESIDE AND GLOSSOP INTEGRATED CARE NHS FOUNDATION TRUST | G145: Acute and Acute & Community Trusts | H145: 91 | I145: 4557 | J145: 6.3003663 | K145: 2 | L145: 10 | M145: 15 | N145: 42 | O145: 22 | P145: 6 | Q145: 9 | R145: 33 | S145: 32 | T145: 11 | U145: 2 | V145: 17 | W145: 25 | X145: 36 | Y145: 11
A146: Y62 | B146: NORTH WEST COMMISSIONING REGION | C146: QOP | D146: NHS GREATER MANCHESTER ICB - 00T | E146: RRF | F146: WRIGHTINGTON, WIGAN AND LEIGH NHS FOUNDATION TRUST | G146: Acute and Acute & Community Trusts | H146: 37 | I146: 7264 | J146: 6.261261261 | K146: 1 | L146: 6 | M146: 4 | N146: 17 | O146: 9 | P146: 4 | Q146: 3 | R146: 11 | S146: 13 | T146: 6 | U146: 3 | V146: 3 | W146: 12 | X146: 14 | Y146: 5
A147: Y62 | B147: NORTH WEST COMMISSIONING REGION | C147: QOP | D147: NHS GREATER MANCHESTER ICB - 00T | E147: RT2 | F147: PENNINE CARE NHS FOUNDATION TRUST | G147: Mental Health & Learning Disability and Mental Health, Learning Disability & Community Trusts | H147: 80 | I147: 4019 | J147: 6.135416667 | K147: 5 | L147: 6 | M147: 15 | N147: 34 | O147: 20 | P147: 11 | Q147: 10 | R147: 18 | S147: 27 | T147: 14 | U147: 9 | V147: 8 | W147: 21 | X147: 30 | Y147: 12
A148: Y62 | B148: NORTH WEST COMMISSIONING REGION | C148: QE1 | D148: NHS LANCASHIRE AND SOUTH CUMBRIA ICB - 01E | E148: RTX | F148: UNIVERSITY HOSPITALS OF MORECAMBE BAY NHS FOUNDATION TRUST | G148: Acute and Acute & Community Trusts | H148: 44 | I148: 7524 | J148: 6.306818182 | K148: 2 | L148: 3 | M148: 12 | N148: 15 | O148: 12 | P148: 3 | Q148: 5 | R148: 16 | S148: 14 | T148: 6 | U148: 2 | V148: 5 | W148: 12 | X148: 19 | Y148: 6
A149: Y62 | B149: NORTH WEST COMMISSIONING REGION | C149: QYG | D149: NHS CHESHIRE AND MERSEYSIDE ICB - 01J | E149: RW4 | F149: MERSEY CARE NHS FOUNDATION TRUST | G149: Mental Health & Learning Disability and Mental Health, Learning Disability & Community Trusts | H149: 1362 | I149: 11102 | J149: 6.734581498 | K149: 53 | L149: 88 | M149: 259 | N149: 535 | O149: 427 | P149: 115 | Q149: 153 | R149: 331 | S149: 485 | T149: 278 | U149: 60 | V149: 87 | W149: 333 | X149: 575 | Y149: 307
A150: Y62 | B150: NORTH WEST COMMISSIONING REGION | C150: QE1 | D150: NHS LANCASHIRE AND SOUTH CUMBRIA ICB - 01E | E150: RW5 | F150: LANCASHIRE & SOUTH CUMBRIA NHS FOUNDATION TRUST | G150: Mental Health & Learning Disability and Mental Health, Learning Disability & Community Trusts | H150: 1195 | I150: 7660 | J150: 6.709205021 | K150: 36 | L150: 81 | M150: 222 | N150: 522 | O150: 334 | P150: 73 | Q150: 116 | R150: 274 | S150: 500 | T150: 232 | U150: 45 | V150: 107 | W150: 324 | X150: 529 | Y150: 190
A151: Y62 | B151: NORTH WEST COMMISSIONING REGION | C151: QOP | D151: NHS GREATER MANCHESTER ICB - 00T | E151: RWJ | F151: STOCKPORT NHS FOUNDATION TRUST | G151: Acute and Acute & Community Trusts | H151: 90 | I151: 6242 | J151: 5.462962963 | K151: 10 | L151: 12 | M151: 19 | N151: 30 | O151: 19 | P151: 13 | Q151: 20 | R151: 24 | S151: 23 | T151: 10 | U151: 11 | V151: 14 | W151: 21 | X151: 35 | Y151: 9
A152: Y62 | B152: NORTH WEST COMMISSIONING REGION | C152: QYG | D152: NHS CHESHIRE AND MERSEYSIDE ICB - 01J | E152: RWW | F152: WARRINGTON AND HALTON TEACHING HOSPITALS NHS FOUNDATION TRUST | G152: Acute and Acute & Community Trusts | H152: 91 | I152: 4664 | J152: 6.492673993 | K152: 0 | L152: 11 | M152: 13 | N152: 40 | O152: 27 | P152: 4 | Q152: 17 | R152: 23 | S152: 31 | T152: 16 | U152: 8 | V152: 8 | W152: 23 | X152: 38 | Y152: 14
A153: Y62 | B153: NORTH WEST COMMISSIONING REGION | C153: QOP | D153: NHS GREATER MANCHESTER ICB - 00T | E153: RX7 | F153: NORTH WEST AMBULANCE SERVICE NHS TRUST | G153: Ambulance Trusts | H153: 1103 | I153: 7179 | J153: 6.714264128 | K153: 41 | L153: 104 | M153: 200 | N153: 441 | O153: 317 | P153: 90 | Q153: 143 | R153: 244 | S153: 416 | T153: 210 | U153: 34 | V153: 78 | W153: 230 | X153: 513 | Y153: 249
A154: Y62 | B154: NORTH WEST COMMISSIONING REGION | C154: QYG | D154: NHS CHESHIRE AND MERSEYSIDE ICB - 01J | E154: RXA | F154: CHESHIRE AND WIRRAL PARTNERSHIP NHS FOUNDATION TRUST | G154: Mental Health & Learning Disability and Mental Health, Learning Disability & Community Trusts | H154: 604 | I154: 4345 | J154: 7.115066225 | K154: 12 | L154: 28 | M154: 91 | N154: 296 | O154: 178 | P154: 24 | Q154: 50 | R154: 125 | S154: 270 | T154: 137 | U154: 13 | V154: 39 | W154: 134 | X154: 290 | Y154: 128
A155: Y62 | B155: NORTH WEST COMMISSIONING REGION | C155: QE1 | D155: NHS LANCASHIRE AND SOUTH CUMBRIA ICB - 01E | E155: RXL | F155: BLACKPOOL TEACHING HOSPITALS NHS FOUNDATION TRUST | G155: Acute and Acute & Community Trusts | H155: 360 | I155: 8309 | J155: 6.583333333 | K155: 9 | L155: 24 | M155: 71 | N155: 155 | O155: 101 | P155: 21 | Q155: 29 | R155: 108 | S155: 146 | T155: 56 | U155: 20 | V155: 36 | W155: 101 | X155: 148 | Y155: 55
A156: Y62 | B156: NORTH WEST COMMISSIONING REGION | C156: QE1 | D156: NHS LANCASHIRE AND SOUTH CUMBRIA ICB - 01E | E156: RXN | F156: LANCASHIRE TEACHING HOSPITALS NHS FOUNDATION TRUST | G156: Acute and Acute & Community Trusts | H156: 1501 | I156: 10291 | J156: 6.425161004 | K156: 48 | L156: 128 | M156: 266 | N156: 676 | O156: 383 | P156: 100 | Q156: 174 | R156: 436 | S156: 578 | T156: 215 | U156: 74 | V156: 183 | W156: 417 | X156: 612 | Y156: 215
A157: Y62 | B157: NORTH WEST COMMISSIONING REGION | C157: QE1 | D157: NHS LANCASHIRE AND SOUTH CUMBRIA ICB - 01E | E157: RXR | F157: EAST LANCASHIRE HOSPITALS NHS TRUST | G157: Acute and Acute & Community Trusts | H157: 35 | I157: 10213 | J157: 6.214285714 | K157: 1 | L157: 1 | M157: 6 | N157: 16 | O157: 11 | P157: 9 | Q157: 2 | R157: 9 | S157: 9 | T157: 6 | U157: 2 | V157: 8 | W157: 6 | X157: 11 | Y157: 8
A158: Y62 | B158: NORTH WEST COMMISSIONING REGION | C158: QOP | D158: NHS GREATER MANCHESTER ICB - 00T | E158: RXV | F158: GREATER MANCHESTER MENTAL HEALTH NHS FOUNDATION TRUST | G158: Mental Health & Learning Disability and Mental Health, Learning Disability & Community Trusts | H158: 1486 | I158: 6861 | J158: 6.33243607 | K158: 50 | L158: 120 | M158: 284 | N158: 637 | O158: 398 | P158: 110 | Q158: 210 | R158: 382 | S158: 538 | T158: 249 | U158: 116 | V158: 204 | W158: 410 | X158: 531 | Y158: 225
A159: Y62 | B159: NORTH WEST COMMISSIONING REGION | C159: QYG | D159: NHS CHESHIRE AND MERSEYSIDE ICB - 01J | E159: RY2 | F159: BRIDGEWATER COMMUNITY HEALTHCARE NHS FOUNDATION TRUST | G159: Community Trusts | H159: 205 | I159: 1579 | J159: 7.024390244 | K159: 12 | L159: 15 | M159: 24 | N159: 90 | O159: 64 | P159: 14 | Q159: 26 | R159: 45 | S159: 68 | T159: 52 | U159: 2 | V159: 15 | W159: 31 | X159: 94 | Y159: 63
A160: Y62 | B160: NORTH WEST COMMISSIONING REGION | C160: QYG | D160: NHS CHESHIRE AND MERSEYSIDE ICB - 01J | E160: RY7 | F160: WIRRAL COMMUNITY HEALTH AND CARE NHS FOUNDATION TRUST | G160: Community Trusts | H160: 354 | I160: 1757 | J160: 7.332862524 | K160: 8 | L160: 18 | M160: 55 | N160: 140 | O160: 133 | P160: 16 | Q160: 37 | R160: 78 | S160: 124 | T160: 99 | U160: 5 | V160: 12 | W160: 61 | X160: 164 | Y160: 112
A161: Y63 | B161: NORTH EAST AND YORKSHIRE COMMISSIONING REGION | C161: QHM | D161: NHS NORTH EAST AND NORTH CUMBRIA ICB - 00L | E161: R0B | F161: SOUTH TYNESIDE AND SUNDERLAND NHS FOUNDATION TRUST | G161: Acute and Acute & Community Trusts | H161: 160 | I161: 9548 | J161: 5.338541667 | K161: 7 | L161: 22 | M161: 46 | N161: 53 | O161: 32 | P161: 33 | Q161: 32 | R161: 45 | S161: 33 | T161: 17 | U161: 19 | V161: 30 | W161: 45 | X161: 49 | Y161: 17
A162: Y63 | B162: NORTH EAST AND YORKSHIRE COMMISSIONING REGION | C162: QWO | D162: NHS WEST YORKSHIRE ICB - 02T | E162: RAE | F162: BRADFORD TEACHING HOSPITALS NHS FOUNDATION TRUST | G162: Acute and Acute & Community Trusts | H162: 77 | I162: 6767 | J162: 6.19047619 | K162: 4 | L162: 6 | M162: 17 | N162: 32 | O162: 18 | P162: 9 | Q162: 10 | R162: 22 | S162: 22 | T162: 14 | U162: 8 | V162: 6 | W162: 21 | X162: 28 | Y162: 14
A163: Y63 | B163: NORTH EAST AND YORKSHIRE COMMISSIONING REGION | C163: QOQ | D163: NHS HUMBER AND NORTH YORKSHIRE ICB - 02Y | E163: RCB | F163: YORK AND SCARBOROUGH TEACHING HOSPITALS NHS FOUNDATION TRUST | G163: Acute and Acute & Community Trusts | H163: 318 | I163: 10211 | J163: 5.382599581 | K163: 15 | L163: 46 | M163: 85 | N163: 122 | O163: 50 | P163: 43 | Q163: 61 | R163: 101 | S163: 88 | T163: 25 | U163: 31 | V163: 61 | W163: 117 | X163: 86 | Y163: 23
A164: Y63 | B164: NORTH EAST AND YORKSHIRE COMMISSIONING REGION | C164: QOQ | D164: NHS HUMBER AND NORTH YORKSHIRE ICB - 02Y | E164: RCD | F164: HARROGATE AND DISTRICT NHS FOUNDATION TRUST | G164: Acute and Acute & Community Trusts | H164: 1332 | I164: 5180 | J164: 7.14527027 | K164: 24 | L164: 86 | M164: 211 | N164: 580 | O164: 436 | P164: 48 | Q164: 116 | R164: 298 | S164: 566 | T164: 305 | U164: 17 | V164: 71 | W164: 288 | X164: 672 | Y164: 284
A165: Y63 | B165: NORTH EAST AND YORKSHIRE COMMISSIONING REGION | C165: QWO | D165: NHS WEST YORKSHIRE ICB - 02T | E165: RCF | F165: AIREDALE NHS FOUNDATION TRUST | G165: Acute and Acute & Community Trusts | H165: 299 | I165: 3762 | J165: 6.24303233 | K165: 12 | L165: 40 | M165: 58 | N165: 128 | O165: 61 | P165: 33 | Q165: 31 | R165: 73 | S165: 114 | T165: 48 | U165: 18 | V165: 39 | W165: 67 | X165: 128 | Y165: 47
A166: Y63 | B166: NORTH EAST AND YORKSHIRE COMMISSIONING REGION | C166: QF7 | D166: NHS SOUTH YORKSHIRE ICB - 02P | E166: RCU | F166: SHEFFIELD CHILDREN'S NHS FOUNDATION TRUST | G166: Acute and Acute & Community Trusts | H166: 427 | I166: 3944 | J166: 7.408274785 | K166: 11 | L166: 12 | M166: 63 | N166: 192 | O166: 149 | P166: 21 | Q166: 27 | R166: 91 | S166: 175 | T166: 113 | U166: 16 | V166: 12 | W166: 50 | X166: 208 | Y166: 141
A167: Y63 | B167: NORTH EAST AND YORKSHIRE COMMISSIONING REGION | C167: QF7 | D167: NHS SOUTH YORKSHIRE ICB - 02P | E167: RFF | F167: BARNSLEY HOSPITAL NHS FOUNDATION TRUST | G167: Acute and Acute & Community Trusts | H167: 147 | I167: 4369 | J167: 6.286848073 | K167: 9 | L167: 14 | M167: 29 | N167: 58 | O167: 37 | P167: 9 | Q167: 22 | R167: 38 | S167: 54 | T167: 24 | U167: 9 | V167: 20 | W167: 35 | X167: 63 | Y167: 20
A168: Y63 | B168: NORTH EAST AND YORKSHIRE COMMISSIONING REGION | C168: QF7 | D168: NHS SOUTH YORKSHIRE ICB - 02P | E168: RFR | F168: THE ROTHERHAM NHS FOUNDATION TRUST | G168: Acute and Acute & Community Trusts | H168: 62 | I168: 4865 | J168: 5.725806452 | K168: 5 | L168: 4 | M168: 16 | N168: 21 | O168: 16 | P168: 8 | Q168: 10 | R168: 19 | S168: 16 | T168: 9 | U168: 6 | V168: 9 | W168: 23 | X168: 20 | Y168: 4
A169: Y63 | B169: NORTH EAST AND YORKSHIRE COMMISSIONING REGION | C169: QWO | D169: NHS WEST YORKSHIRE ICB - 02T | E169: RGD | F169: LEEDS AND YORK PARTNERSHIP NHS FOUNDATION TRUST | G169: Mental Health & Learning Disability and Mental Health, Learning Disability & Community Trusts | H169: 296 | I169: 3126 | J169: 7.043918919 | K169: 5 | L169: 18 | M169: 51 | N169: 127 | O169: 95 | P169: 13 | Q169: 27 | R169: 59 | S169: 119 | T169: 78 | U169: 13 | V169: 24 | W169: 71 | X169: 111 | Y169: 77
A170: Y63 | B170: NORTH EAST AND YORKSHIRE COMMISSIONING REGION | C170: QF7 | D170: NHS SOUTH YORKSHIRE ICB - 02P | E170: RHQ | F170: SHEFFIELD TEACHING HOSPITALS NHS FOUNDATION TRUST | G170: Acute and Acute & Community Trusts | H170: 1129 | I170: 17944 | J170: 6.526424565 | K170: 39 | L170: 95 | M170: 215 | N170: 498 | O170: 282 | P170: 76 | Q170: 165 | R170: 307 | S170: 435 | T170: 146 | U170: 27 | V170: 93 | W170: 280 | X170: 542 | Y170: 187
A171: Y63 | B171: NORTH EAST AND YORKSHIRE COMMISSIONING REGION | C171: QOQ | D171: NHS HUMBER AND NORTH YORKSHIRE ICB - 02Y | E171: RJL | F171: NORTHERN LINCOLNSHIRE AND GOOLE NHS FOUNDATION TRUST | G171: Acute and Acute & Community Trusts | H171: 142 | I171: 7085 | J171: 4.800469484 | K171: 15 | L171: 22 | M171: 42 | N171: 44 | O171: 19 | P171: 35 | Q171: 26 | R171: 41 | S171: 35 | T171: 5 | U171: 28 | V171: 20 | W171: 43 | X171: 39 | Y171: 12
A172: Y63 | B172: NORTH EAST AND YORKSHIRE COMMISSIONING REGION | C172: QHM | D172: NHS NORTH EAST AND NORTH CUMBRIA ICB - 00L | E172: RNN | F172: NORTH CUMBRIA INTEGRATED CARE NHS FOUNDATION TRUST | G172: Acute and Acute & Community Trusts | H172: 396 | I172: 7353 | J172: 5.326178451 | K172: 26 | L172: 58 | M172: 110 | N172: 142 | O172: 60 | P172: 56 | Q172: 79 | R172: 121 | S172: 115 | T172: 25 | U172: 43 | V172: 65 | W172: 135 | X172: 126 | Y172: 27
A173: Y63 | B173: NORTH EAST AND YORKSHIRE COMMISSIONING REGION | C173: QHM | D173: NHS NORTH EAST AND NORTH CUMBRIA ICB - 00L | E173: RR7 | F173: GATESHEAD HEALTH NHS FOUNDATION TRUST | G173: Acute and Acute & Community Trusts | H173: 95 | I173: 5359 | J173: 6.842105263 | K173: 3 | L173: 6 | M173: 15 | N173: 43 | O173: 28 | P173: 4 | Q173: 12 | R173: 23 | S173: 37 | T173: 19 | U173: 3 | V173: 8 | W173: 22 | X173: 42 | Y173: 20
A174: Y63 | B174: NORTH EAST AND YORKSHIRE COMMISSIONING REGION | C174: QWO | D174: NHS WEST YORKSHIRE ICB - 02T | E174: RR8 | F174: LEEDS TEACHING HOSPITALS NHS TRUST | G174: Acute and Acute & Community Trusts | H174: 1543 | I174: 20689 | J174: 6.882696047 | K174: 44 | L174: 113 | M174: 230 | N174: 647 | O174: 509 | P174: 90 | Q174: 177 | R174: 363 | S174: 630 | T174: 283 | U174: 47 | V174: 103 | W174: 326 | X174: 754 | Y174: 313
A175: Y63 | B175: NORTH EAST AND YORKSHIRE COMMISSIONING REGION | C175: QHM | D175: NHS NORTH EAST AND NORTH CUMBRIA ICB - 00L | E175: RTF | F175: NORTHUMBRIA HEALTHCARE NHS FOUNDATION TRUST | G175: Acute and Acute & Community Trusts | H175: 4114 | I175: 9211 | J175: 7.733349538 | K175: 43 | L175: 117 | M175: 459 | N175: 1865 | O175: 1630 | P175: 85 | Q175: 180 | R175: 655 | S175: 1931 | T175: 1263 | U175: 50 | V175: 135 | W175: 554 | X175: 2050 | Y175: 1325
A176: Y63 | B176: NORTH EAST AND YORKSHIRE COMMISSIONING REGION | C176: QHM | D176: NHS NORTH EAST AND NORTH CUMBRIA ICB - 00L | E176: RVW | F176: NORTH TEES AND HARTLEPOOL NHS FOUNDATION TRUST | G176: Acute and Acute & Community Trusts | H176: 51 | I176: 5934 | J176: 6.486928105 | K176: 4 | L176: 1 | M176: 10 | N176: 21 | O176: 15 | P176: 3 | Q176: 7 | R176: 14 | S176: 19 | T176: 8 | U176: 2 | V176: 5 | W176: 13 | X176: 26 | Y176: 5
A177: Y63 | B177: NORTH EAST AND YORKSHIRE COMMISSIONING REGION | C177: QOQ | D177: NHS HUMBER AND NORTH YORKSHIRE ICB - 02Y | E177: RWA | F177: HULL UNIVERSITY TEACHING HOSPITALS NHS TRUST | G177: Acute and Acute & Community Trusts | H177: 1893 | I177: 9682 | J177: 6.3699595 | K177: 66 | L177: 184 | M177: 388 | N177: 817 | O177: 438 | P177: 123 | Q177: 255 | R177: 496 | S177: 749 | T177: 271 | U177: 96 | V177: 212 | W177: 508 | X177: 819 | Y177: 261
A178: Y63 | B178: NORTH EAST AND YORKSHIRE COMMISSIONING REGION | C178: QWO | D178: NHS WEST YORKSHIRE ICB - 02T | E178: RWY | F178: CALDERDALE AND HUDDERSFIELD NHS FOUNDATION TRUST | G178: Acute and Acute & Community Trusts | H178: 282 | I178: 6698 | J178: 6.391843972 | K178: 10 | L178: 22 | M178: 53 | N178: 125 | O178: 72 | P178: 23 | Q178: 40 | R178: 74 | S178: 109 | T178: 36 | U178: 11 | V178: 30 | W178: 81 | X178: 119 | Y178: 41
A179: Y63 | B179: NORTH EAST AND YORKSHIRE COMMISSIONING REGION | C179: QHM | D179: NHS NORTH EAST AND NORTH CUMBRIA ICB - 00L | E179: RX3 | F179: TEES, ESK AND WEAR VALLEYS NHS FOUNDATION TRUST | G179: Mental Health & Learning Disability and Mental Health, Learning Disability & Community Trusts | H179: 823 | I179: 7998 | J179: 6.404414743 | K179: 32 | L179: 65 | M179: 131 | N179: 359 | O179: 236 | P179: 61 | Q179: 103 | R179: 216 | S179: 309 | T179: 134 | U179: 57 | V179: 103 | W179: 227 | X179: 322 | Y179: 114
A180: Y63 | B180: NORTH EAST AND YORKSHIRE COMMISSIONING REGION | C180: QHM | D180: NHS NORTH EAST AND NORTH CUMBRIA ICB - 00L | E180: RX4 | F180: CUMBRIA, NORTHUMBERLAND, TYNE AND WEAR NHS FOUNDATION TRUST | G180: Mental Health & Learning Disability and Mental Health, Learning Disability & Community Trusts | H180: 549 | I180: 8284 | J180: 6.809350334 | K180: 14 | L180: 36 | M180: 83 | N180: 236 | O180: 180 | P180: 39 | Q180: 55 | R180: 127 | S180: 223 | T180: 105 | U180: 26 | V180: 47 | W180: 127 | X180: 239 | Y180: 110
A181: Y63 | B181: NORTH EAST AND YORKSHIRE COMMISSIONING REGION | C181: QHM | D181: NHS NORTH EAST AND NORTH CUMBRIA ICB - 00L | E181: RX6 | F181: NORTH EAST AMBULANCE SERVICE NHS FOUNDATION TRUST | G181: Ambulance Trusts | H181: 66 | I181: 3264 | J181: 4.532828283 | K181: 17 | L181: 16 | M181: 13 | N181: 13 | O181: 7 | P181: 23 | Q181: 12 | R181: 17 | S181: 10 | T181: 4 | U181: 3 | V181: 5 | W181: 28 | X181: 23 | Y181: 7
A182: Y63 | B182: NORTH EAST AND YORKSHIRE COMMISSIONING REGION | C182: QWO | D182: NHS WEST YORKSHIRE ICB - 02T | E182: RX8 | F182: YORKSHIRE AMBULANCE SERVICE NHS TRUST | G182: Ambulance Trusts | H182: 919 | I182: 6251 | J182: 6.171563293 | K182: 77 | L182: 96 | M182: 181 | N182: 344 | O182: 221 | P182: 121 | Q182: 136 | R182: 216 | S182: 311 | T182: 135 | U182: 48 | V182: 86 | W182: 223 | X182: 389 | Y182: 173
A183: Y63 | B183: NORTH EAST AND YORKSHIRE COMMISSIONING REGION | C183: QF7 | D183: NHS SOUTH YORKSHIRE ICB - 02P | E183: RXE | F183: ROTHERHAM DONCASTER AND SOUTH HUMBER NHS FOUNDATION TRUST | G183: Mental Health & Learning Disability and Mental Health, Learning Disability & Community Trusts | H183: 58 | I183: 3856 | J183: 5.804597701 | K183: 3 | L183: 7 | M183: 13 | N183: 24 | O183: 11 | P183: 7 | Q183: 12 | R183: 12 | S183: 21 | T183: 6 | U183: 6 | V183: 6 | W183: 17 | X183: 24 | Y183: 5
A184: Y63 | B184: NORTH EAST AND YORKSHIRE COMMISSIONING REGION | C184: QWO | D184: NHS WEST YORKSHIRE ICB - 02T | E184: RXF | F184: MID YORKSHIRE TEACHING NHS TRUST | G184: Acute and Acute & Community Trusts | H184: 1741 | I184: 9757 | J184: 6.299061842 | K184: 51 | L184: 169 | M184: 367 | N184: 751 | O184: 403 | P184: 137 | Q184: 216 | R184: 444 | S184: 693 | T184: 251 | U184: 98 | V184: 219 | W184: 510 | X184: 690 | Y184: 224
A185: Y63 | B185: NORTH EAST AND YORKSHIRE COMMISSIONING REGION | C185: QWO | D185: NHS WEST YORKSHIRE ICB - 02T | E185: RXG | F185: SOUTH WEST YORKSHIRE PARTNERSHIP NHS FOUNDATION TRUST | G185: Mental Health & Learning Disability and Mental Health, Learning Disability & Community Trusts | H185: 127 | I185: 4839 | J185: 7.139107612 | K185: 2 | L185: 10 | M185: 14 | N185: 52 | O185: 49 | P185: 4 | Q185: 10 | R185: 30 | S185: 49 | T185: 34 | U185: 7 | V185: 7 | W185: 26 | X185: 62 | Y185: 25
A186: Y63 | B186: NORTH EAST AND YORKSHIRE COMMISSIONING REGION | C186: QHM | D186: NHS NORTH EAST AND NORTH CUMBRIA ICB - 00L | E186: RXP | F186: COUNTY DURHAM AND DARLINGTON NHS FOUNDATION TRUST | G186: Acute and Acute & Community Trusts | H186: 726 | I186: 8337 | J186: 5.850550964 | K186: 58 | L186: 89 | M186: 148 | N186: 248 | O186: 183 | P186: 96 | Q186: 114 | R186: 197 | S186: 217 | T186: 102 | U186: 75 | V186: 102 | W186: 193 | X186: 243 | Y186: 113
A187: Y63 | B187: NORTH EAST AND YORKSHIRE COMMISSIONING REGION | C187: QWO | D187: NHS WEST YORKSHIRE ICB - 02T | E187: RY6 | F187: LEEDS COMMUNITY HEALTHCARE NHS TRUST | G187: Community Trusts | H187: 773 | I187: 3377 | J187: 7.151789564 | K187: 19 | L187: 39 | M187: 93 | N187: 379 | O187: 244 | P187: 24 | Q187: 74 | R187: 171 | S187: 327 | T187: 177 | U187: 13 | V187: 54 | W187: 167 | X187: 361 | Y187: 180
A188: Y63 | B188: NORTH EAST AND YORKSHIRE COMMISSIONING REGION | C188: QWO | D188: NHS WEST YORKSHIRE ICB - 02T | E188: TAD | F188: BRADFORD DISTRICT CARE NHS FOUNDATION TRUST | G188: Mental Health & Learning Disability and Mental Health, Learning Disability & Community Trusts | H188: 370 | I188: 3287 | J188: 7.168918919 | K188: 12 | L188: 39 | M188: 111 | N188: 155 | O188: 55 | P188: 5 | Q188: 20 | R188: 80 | S188: 153 | T188: 112 | U188: 5 | V188: 9 | W188: 77 | X188: 133 | Y188: 147
A189: Y63 | B189: NORTH EAST AND YORKSHIRE COMMISSIONING REGION | C189: QF7 | D189: NHS SOUTH YORKSHIRE ICB - 02P | E189: TAH | F189: SHEFFIELD HEALTH & SOCIAL CARE NHS FOUNDATION TRUST | G189: Mental Health & Learning Disability and Mental Health, Learning Disability & Community Trusts | H189: 318 | I189: 2592 | J189: 5.602725367 | K189: 12 | L189: 42 | M189: 68 | N189: 124 | O189: 72 | P189: 39 | Q189: 72 | R189: 87 | S189: 88 | T189: 32 | U189: 31 | V189: 59 | W189: 108 | X189: 93 | Y189: 27

Sheet Involvement
O5: Avg Involvement: | P5: =AVERAGE(K6,P6,U6) -> 6.482307748
K6: =IF($H$10=0,"-",((K$10*0)+(L$10*2.5)+(M$10*5)+(N$10*7.5)+(O$10*10))/$H$10) -> 6.652120026 | P6: =IF($H$10=0,"-",((P$10*0)+(Q$10*2.5)+(R$10*5)+(S$10*7.5)+(T$10*10))/$H$10) -> 6.685431616 | U6: =IF($H$10=0,"-",((U$10*0)+(V$10*2.5)+(W$10*5)+(X$10*7.5)+(Y$10*10))/$H$10) -> 6.109371603
A7: Region Code | B7: Region Name | C7: ICB Code | D7: ICB Name | E7: Org Code | F7: Org Name | G7: Care Setting | H7: Total Responses (Average across Theme) | I7: HSCIC Workforce Headcount | J7: Involvement Score | K7: Weighted Breakdown of Responses - Involvement Q1 | P7: Weighted Breakdown of Responses - Involvement Q2 | U7: Weighted Breakdown of Responses - Involvement Q3
K8: Strongly Disagree | L8: Disagree | M8: Neither Disagree nor Agree | N8: Agree | O8: Strongly Agree | P8: Strongly Disagree | Q8: Disagree | R8: Neither Disagree nor Agree | S8: Agree | T8: Strongly Agree | U8: Strongly Disagree | V8: Disagree | W8: Neither Disagree nor Agree | X8: Agree | Y8: Strongly Agree
F9: England | H9: 114975 | I9: 1258006 | J9: 6.482307748 | K9: 5399 | L9: 12046 | M9: 22152 | N9: 53323 | O9: 22403 | P9: 6011 | Q9: 11298 | R9: 20638 | S9: 53767 | T9: 23397 | U9: 7349 | V9: 15766 | W9: 28952 | X9: 45244 | Y9: 17892
F10: Selection (excluding suppressed data) | H10: =SUBTOTAL(9,H11:H1002) -> 114975 | I10: =SUBTOTAL(9,I11:I1002) -> 1258006 | J10: =IF(H10=0,"-",AVERAGE(((K10*0)+(L10*2.5)+(M10*5)+(N10*7.5)+(O10*10)),((P10*0)+(Q10*2.5)+(R10*5)+(S10*7.5)+(T10*10)),((U10*0)+(V10*2.5)+(W10*5)+(X10*7.5)+(Y10*10)))/H10) -> 6.482307748 | K10: =SUBTOTAL(9,K11:K1002) -> 5399 | L10: =SUBTOTAL(9,L11:L1002) -> 12046 | M10: 22152 | N10: 53323 | O10: 22403 | P10: 6011 | Q10: 11298 | R10: 20638 | S10: 53767 | T10: 23397 | U10: 7349 | V10: 15766 | W10: 28952 | X10: 45244 | Y10: 17892
A11: Y56 | B11: LONDON COMMISSIONING REGION | C11: QMF | D11: NHS NORTH EAST LONDON ICB - A3A8R | E11: R1H | F11: BARTS HEALTH NHS TRUST | G11: Acute and Acute & Community Trusts | H11: 835 | I11: 20029 | J11: 5.9500998 | K11: 71 | L11: 102 | M11: 190 | N11: 328 | O11: 144 | P11: 73 | Q11: 114 | R11: 173 | S11: 327 | T11: 148 | U11: 82 | V11: 143 | W11: 213 | X11: 270 | Y11: 127
A12: Y56 | B12: LONDON COMMISSIONING REGION | C12: QMJ | D12: NHS NORTH CENTRAL LONDON ICB - 93C | E12: RAL | F12: ROYAL FREE LONDON NHS FOUNDATION TRUST | G12: Acute and Acute & Community Trusts | H12: 112 | I12: 11731 | J12: 6.138392857 | K12: 3 | L12: 23 | M12: 24 | N12: 47 | O12: 15 | P12: 3 | Q12: 20 | R12: 20 | S12: 48 | T12: 21 | U12: 9 | V12: 20 | W12: 20 | X12: 47 | Y12: 16
A13: Y56 | B13: LONDON COMMISSIONING REGION | C13: QRV | D13: NHS NORTH WEST LONDON ICB - W2U3Z | E13: RAN | F13: ROYAL NATIONAL ORTHOPAEDIC HOSPITAL NHS TRUST | G13: Acute Specialist Trusts | H13: 45 | I13: 1686 | J13: 7 | K13: 4 | L13: 1 | M13: 6 | N13: 18 | O13: 16 | P13: 4 | Q13: 1 | R13: 6 | S13: 21 | T13: 13 | U13: 4 | V13: 1 | W13: 11 | X13: 20 | Y13: 9
A14: Y56 | B14: LONDON COMMISSIONING REGION | C14: QMJ | D14: NHS NORTH CENTRAL LONDON ICB - 93C | E14: RAP | F14: NORTH MIDDLESEX UNIVERSITY HOSPITAL NHS TRUST | G14: Acute and Acute & Community Trusts | H14: 1099 | I14: 4597 | J14: 6.585532302 | K14: 50 | L14: 79 | M14: 254 | N14: 521 | O14: 195 | P14: 53 | Q14: 72 | R14: 237 | S14: 538 | T14: 199 | U14: 62 | V14: 95 | W14: 303 | X14: 470 | Y14: 172
A15: Y56 | B15: LONDON COMMISSIONING REGION | C15: QMF | D15: NHS NORTH EAST LONDON ICB - A3A8R | E15: RAT | F15: NORTH EAST LONDON NHS FOUNDATION TRUST | G15: Mental Health & Learning Disability and Mental Health, Learning Disability & Community Trusts | H15: 87 | I15: 7175 | J15: 6.647509579 | K15: 4 | L15: 9 | M15: 14 | N15: 44 | O15: 16 | P15: 5 | Q15: 8 | R15: 11 | S15: 44 | T15: 19 | U15: 3 | V15: 11 | W15: 23 | X15: 34 | Y15: 16
A16: Y56 | B16: LONDON COMMISSIONING REGION | C16: QKK | D16: NHS SOUTH EAST LONDON ICB - 72Q | E16: RJ1 | F16: GUY'S AND ST THOMAS' NHS FOUNDATION TRUST | G16: Acute and Acute & Community Trusts | H16: 1624 | I16: 23017 | J16: 6.35929803 | K16: 98 | L16: 190 | M16: 309 | N16: 721 | O16: 317 | P16: 103 | Q16: 176 | R16: 315 | S16: 717 | T16: 324 | U16: 128 | V16: 221 | W16: 395 | X16: 630 | Y16: 250
A17: Y56 | B17: LONDON COMMISSIONING REGION | C17: QKK | D17: NHS SOUTH EAST LONDON ICB - 72Q | E17: RJ2 | F17: LEWISHAM AND GREENWICH NHS TRUST | G17: Acute and Acute & Community Trusts | H17: 88 | I17: 7311 | J17: 6.581439394 | K17: 5 | L17: 11 | M17: 16 | N17: 34 | O17: 22 | P17: 6 | Q17: 8 | R17: 12 | S17: 40 | T17: 22 | U17: 4 | V17: 13 | W17: 22 | X17: 31 | Y17: 18
A18: Y56 | B18: LONDON COMMISSIONING REGION | C18: QWE | D18: NHS SOUTH WEST LONDON ICB - 36L | E18: RJ7 | F18: ST GEORGE'S UNIVERSITY HOSPITALS NHS FOUNDATION TRUST | G18: Acute and Acute & Community Trusts | H18: 12 | I18: 9885 | J18: 5.763888889 | K18: 1 | L18: 3 | M18: 0 | N18: 6 | O18: 2 | P18: 1 | Q18: 2 | R18: 1 | S18: 6 | T18: 2 | U18: 1 | V18: 4 | W18: 3 | X18: 2 | Y18: 2
A19: Y56 | B19: LONDON COMMISSIONING REGION | C19: QKK | D19: NHS SOUTH EAST LONDON ICB - 72Q | E19: RJZ | F19: KING'S COLLEGE HOSPITAL NHS FOUNDATION TRUST | G19: Acute and Acute & Community Trusts | H19: 55 | I19: 14383 | J19: 6.333333333 | K19: 5 | L19: 1 | M19: 11 | N19: 28 | O19: 10 | P19: 4 | Q19: 4 | R19: 11 | S19: 26 | T19: 10 | U19: 5 | V19: 7 | W19: 18 | X19: 16 | Y19: 9
A20: Y56 | B20: LONDON COMMISSIONING REGION | C20: QMJ | D20: NHS NORTH CENTRAL LONDON ICB - 93C | E20: RKE | F20: WHITTINGTON HEALTH NHS TRUST | G20: Acute and Acute & Community Trusts | H20: 411 | I20: 4929 | J20: 6.549067315 | K20: 30 | L20: 33 | M20: 66 | N20: 196 | O20: 86 | P20: 32 | Q20: 30 | R20: 63 | S20: 189 | T20: 97 | U20: 35 | V20: 41 | W20: 87 | X20: 185 | Y20: 63
A21: Y56 | B21: LONDON COMMISSIONING REGION | C21: QMJ | D21: NHS NORTH CENTRAL LONDON ICB - 93C | E21: RNK | F21: TAVISTOCK AND PORTMAN NHS FOUNDATION TRUST | G21: Mental Health & Learning Disability and Mental Health, Learning Disability & Community Trusts | H21: 21 | I21: 819 | J21: 5.317460317 | K21: 3 | L21: 6 | M21: 1 | N21: 8 | O21: 3 | P21: 3 | Q21: 4 | R21: 1 | S21: 10 | T21: 3 | U21: 3 | V21: 4 | W21: 5 | X21: 8 | Y21: 1
A22: Y56 | B22: LONDON COMMISSIONING REGION | C22: QMJ | D22: NHS NORTH CENTRAL LONDON ICB - 93C | E22: RP4 | F22: GREAT ORMOND STREET HOSPITAL FOR CHILDREN NHS FOUNDATION TRUST | G22: Acute Specialist Trusts | H22: 790 | I22: 5718 | J22: 6.588607595 | K22: 37 | L22: 87 | M22: 128 | N22: 371 | O22: 170 | P22: 40 | Q22: 78 | R22: 134 | S22: 359 | T22: 182 | U22: 50 | V22: 109 | W22: 185 | X22: 304 | Y22: 142
A23: Y56 | B23: LONDON COMMISSIONING REGION | C23: QMJ | D23: NHS NORTH CENTRAL LONDON ICB - 93C | E23: RP6 | F23: MOORFIELDS EYE HOSPITAL NHS FOUNDATION TRUST | G23: Acute Specialist Trusts | H23: 36 | I23: 2484 | J23: 4.62962963 | K23: 6 | L23: 10 | M23: 8 | N23: 7 | O23: 5 | P23: 7 | Q23: 7 | R23: 10 | S23: 8 | T23: 4 | U23: 7 | V23: 7 | W23: 12 | X23: 5 | Y23: 5
A24: Y56 | B24: LONDON COMMISSIONING REGION | C24: QRV | D24: NHS NORTH WEST LONDON ICB - W2U3Z | E24: RPY | F24: THE ROYAL MARSDEN NHS FOUNDATION TRUST | G24: Acute Specialist Trusts | H24: 163 | I24: 4612 | J24: 6.196319018 | K24: 13 | L24: 12 | M24: 34 | N24: 81 | O24: 23 | P24: 13 | Q24: 17 | R24: 27 | S24: 75 | T24: 31 | U24: 14 | V24: 22 | W24: 47 | X24: 59 | Y24: 21
A25: Y56 | B25: LONDON COMMISSIONING REGION | C25: QMF | D25: NHS NORTH EAST LONDON ICB - A3A8R | E25: RQX | F25: HOMERTON HEALTHCARE NHS FOUNDATION TRUST | G25: Acute and Acute & Community Trusts | H25: 621 | I25: 4208 | J25: 6.820987654 | K25: 26 | L25: 39 | M25: 114 | N25: 297 | O25: 147 | P25: 25 | Q25: 47 | R25: 100 | S25: 304 | T25: 145 | U25: 31 | V25: 75 | W25: 136 | X25: 265 | Y25: 114
A26: Y56 | B26: LONDON COMMISSIONING REGION | C26: QWE | D26: NHS SOUTH WEST LONDON ICB - 36L | E26: RQY | F26: SOUTH WEST LONDON AND ST GEORGE'S MENTAL HEALTH NHS TRUST | G26: Mental Health & Learning Disability and Mental Health, Learning Disability & Community Trusts | H26: 75 | I26: 2923 | J26: 6.177777778 | K26: 5 | L26: 11 | M26: 12 | N26: 32 | O26: 15 | P26: 4 | Q26: 12 | R26: 14 | S26: 30 | T26: 15 | U26: 6 | V26: 14 | W26: 18 | X26: 23 | Y26: 14
A27: Y56 | B27: LONDON COMMISSIONING REGION | C27: QMJ | D27: NHS NORTH CENTRAL LONDON ICB - 93C | E27: RRP | F27: BARNET, ENFIELD AND HARINGEY MENTAL HEALTH NHS TRUST | G27: Mental Health & Learning Disability and Mental Health, Learning Disability & Community Trusts | H27: 85 | I27: 3066 | J27: 6.441176471 | K27: 8 | L27: 5 | M27: 19 | N27: 35 | O27: 18 | P27: 7 | Q27: 6 | R27: 14 | S27: 38 | T27: 20 | U27: 6 | V27: 11 | W27: 22 | X27: 30 | Y27: 16
A28: Y56 | B28: LONDON COMMISSIONING REGION | C28: QKK | D28: NHS SOUTH EAST LONDON ICB - 72Q | E28: RRU | F28: LONDON AMBULANCE SERVICE NHS TRUST | G28: Ambulance Trusts | H28: 86 | I28: 7665 | J28: 5.639534884 | K28: 7 | L28: 16 | M28: 22 | N28: 32 | O28: 9 | P28: 9 | Q28: 8 | R28: 18 | S28: 37 | T28: 14 | U28: 13 | V28: 13 | W28: 24 | X28: 26 | Y28: 10
